Workbook

Sheet INDICE
F1: UGANDA
F2: Trocas comerciais com Portugal (PT) 2019-2023 Setores agrícola e agroalimentar, do mar e das florestas
C3: Fonte
D4: Estatísticas do Comércio Internacional | F4: Uganda - Síntese
D5: dados: 2022 definitivos | F5: 1. Evolução da balança comercial
F6: 2. Ranking dos parceiros comerciais de Portugal por país
C7: Data | D7: 2024-09-25T12:28:58.840 | F7: 2A Parceiros comerciais de Portugal - UE vs. Países Terceiros
F8: 3. Principais produtos transacionados (NC a 2 e 4 dígitos)
F9: 3A Principais produtos transacionados (sem mar nem florestas)
F10: 4A Evolução da balança comercial por produto
F11: 5.2. Trocas comerciais por produto (NC 2 dígitos)

Sheet Sintese
A1: Uganda - Síntese (2019-2023)
A3: • As trocas comerciais de bens transacionáveis (excluindo serviços) entre Portugal e Uganda representam um total de 6,7 milhões de € (M€) em exportações e 23,1 M€ em importações, na média do período 2019-2023, correspondendo a um saldo negativo da balança comercial de cerca de -16,4 M€.
A4: • No que respeita aos produtos dos setores agrícola e agroalimentar, mar e florestas, Portugal exportou para Uganda 1,2 M€ em média anual, no mesmo período (este país ocupa assim a 133ª posição em relação ao total dos países), enquanto as importações totalizaram 23 M€ (42ª posição), com um saldo negativo de -21,8 M€. Estes setores representam perto de 17,3% do total de exportações de bens transacionáveis e 99,6% das correspondentes importações.
A5: • Se nos referirmos apenas ao setor agrícola e agroalimentar, as exportações representam, em média, 0,6 M€ (119ª posição) e as importações 17,5 milhões (37ª posição), ou seja, Portugal tem um saldo negativo de -16,9 M€. Estes valores representam, respetivamente, cerca de 52,6% das exportações do setor agroflorestal e mar e 76,3% das importações.
A6: • As principais exportações agrícolas e agroalimentares (NC 4 dígitos) neste período são Aves de capoeira vivas (38%), Outras preparações e conservas de carnes, miudezas ou sangue (9%) e Produtos hortícolas preparados, não congelados (8%). As importações agrícolas e agroalimentares mais relevantes referem-se a Café (78%), Algodão não cardado nem penteado (21%) e Outras gorduras e óleos vegetais (1%). Se considerarmos também os produtos do mar e da floresta, merecem particular destaque, em termos de exportações, Papel e cartão "kraft", não revestidos (31%), Aves de capoeira vivas (20%) e Papel e cartão p/ escrita, etc. (10%). Nas importações destes setores, destacam-se Café (59%), Peixes congelados (18%) e Algodão não cardado nem penteado (16%).
A9: Saldo da Balança Comercial | B9: 2019 | C9: 2020 | D9: 2021 | E9: 2022 | F9: 2023 | G9: média 2019-2023 | J9: Posição entre os parceiros comerciais de Portugal (milhares de euros)
A10: Total de Bens Transacionáveis* | B10: -15896.925 | C10: -13603.261 | D10: -10262.206 | E10: -26342.853 | F10: -15720.449 | G10: -16365.1388 | J10: AA + M + F | K10: Posição | L10: média 2019-2023 | M10: % do total | N10: TVMA* 2019-2023 | O10: TVT* 2019-2023
A11: Agrícola e Agroalimentar (AA) | B11: -14796.904 | C11: -15744.346 | D11: -8063.829 | E11: -24113.294 | F11: -21830.662 | G11: -16909.807 | J11: Exportações | K11: 133ª | L11: 1159.4308 | M11: 8.363759571e-05 | N11: 0.3779206226 | O11: 2.604929702
A12: Mar (M) | B12: -7808.999 | C12: -3934.752 | D12: -5675.852 | E12: -6655.061 | F12: -2988.171 | G12: -5412.567 | J12: Importações | K12: 42ª | L12: 22974.3624 | M12: 0.001418543388 | N12: 0.03178682371 | O12: 0.1333391986
A13: Florestas (F) | B13: 403.987 | C13: 1900-07-28T02:00:57.600 | D13: 347.635 | E13: 775.958 | F13: 1902-03-09T13:09:07.200 | G13: 507.4424 | J13: AA
A14: AA + M + F | B14: -22201.916 | C14: -19469.014 | D14: -13392.046 | E14: -29992.397 | F14: -24019.285 | G14: -21814.9316 | J14: Exportações | K14: 119ª | L14: 610.399 | M14: 7.884576991e-05 | N14: 1.034189968 | O14: 16.12245498
J15: Importações | K15: 37ª | L15: 17520.206 | M15: 0.001559773747 | N15: 0.08762838515 | O15: 0.5219579967
A16: milhares de euros *exclui serviços | K16: *TVMA - Taxa de variação média anual; TVT - Taxa de variação total
A18: Evolução das trocas comerciais Portugal-Uganda em milhares de euros (2019-2023)
E27: Exportações | G27: Importações | I27: Saldo
A28: Principais produtos agrícolas e agroalimentares, do mar e da floresta transacionados (NC 4 dígitos)
A47: Principais produtos agrícolas e agroalimentares transacionados (NC 4 dígitos)
A81: Fonte: GPP a partir de dados INE/Comércio Internacional (2022 definitivos) | N81: 2024-09-25T12:28:58.840

Sheet 1
A1: Evolução da balança comercial Portugal-Uganda 2019-2023 em milhões de euros
A3: Total de Bens Transacionáveis (BT)(1) | B3: 2019 | C3: 2020 | D3: 2021 | E3: 2022 | F3: 2023 | G3: média quinquénio | H3: var. 19/20 | I3: var. 20/21 | J3: var. 21/22 | K3: var. 22/23 | L3: TVMA* 2019-2023 | M3: TVT* 2019-2023
A4: Exportações | B4: 6.815742 | C4: 6.461102 | D4: 5.09202 | E4: 5.003012 | F4: 10.086757 | G4: 6.6917266 | H4: -0.05203248597 | I4: -0.2118960512 | J4: -0.01747989992 | K4: 1.016136879 | L4: 0.1029595972 | M4: 0.4799206015
A5: Importações | B5: 22.712667 | C5: 20.064363 | D5: 15.354226 | E5: 31.345865 | F5: 25.807206 | G5: 23.0568654 | H5: -0.1166003094 | I5: -0.2347513848 | J5: 1.041513848 | K5: -0.1766950441 | L5: 0.03244806278 | M5: 0.1362472756
A6: Saldo (exp-imp) | B6: -15.896925 | C6: -13.603261 | D6: -10.262206 | E6: -26.342853 | F6: -15.720449 | G6: -16.3651388
A7: Cobertura (exp/imp) | B7: 0.3000854985 | C7: 0.3220187952 | D7: 0.3316363847 | E7: 0.1596067615 | F7: 0.3908504082 | G7: 0.2902270748
A8: Exp BT Uganda / Exp BT Mundo | B8: 0.0001137800048 | C8: 0.0001201900184 | D8: 8.003989368e-05 | E8: 6.38643155e-05 | F8: 0.0001304752934 | G8: 0.0001004991112 | L8: Exportações
A9: Imp BT Uganda / Imp BT Mundo | B9: 0.0002839895289 | C9: 0.0002944338656 | D9: 0.0001846664742 | E9: 0.0002861027591 | F9: 0.0002454360093 | G9: 0.0002584975678 | L9: Importações
A10: Exp BT Uganda / Exp TE Mundo | B10: 7.307459957e-05 | C10: 8.697630902e-05 | D10: 5.692604966e-05 | E10: 4.162290088e-05 | F10: 8.002759896e-05 | G10: 6.648563606e-05
A11: Imp BT Uganda / Imp TE Mundo | B11: 0.0002460696799 | C11: 0.0002553212567 | D11: 0.0001606968232 | E11: 0.0002487131463 | F11: 0.0002085447724 | G11: 0.0002233259582
A12: (1) Todos os produtos transacionados entre PT e Uganda (exclui serviços) | D12: TE - Total da Economia (bens e serviços) Fonte: INE/Contas Nacionais | H12: *TVMA - Taxa de variação média anual; TVT - Taxa de variação total
A24: Agro(1) + Mar + Florestas (AMF) | B24: 2019 | C24: 2020 | D24: 2021 | E24: 2022 | F24: 2023 | G24: média quinquénio | H24: var. 19/20 | I24: var. 20/21 | J24: var. 21/22 | K24: var. 22/23 | L24: TVMA* 2019-2023 | M24: TVT* 2019-2023
A25: Exportações | B25: 0.462462 | C25: 0.463936 | D25: 1.893541 | E25: 1.310072 | F25: 1.667143 | G25: 1.1594308 | H25: 0.003187288902 | I25: 3.081470289 | J25: -0.3081364491 | K25: 0.2725583021 | L25: 0.3779206226 | M25: 2.604929702
A26: Importações | B26: 22.664378 | C26: 19.93295 | D26: 15.285587 | E26: 31.302469 | F26: 25.686428 | G26: 22.9743624 | H26: -0.1205163451 | I26: -0.2331497847 | J26: 1.047842127 | K26: -0.1794120777 | L26: 0.03178682371 | M26: 0.1333391986
A27: Saldo (exp-imp) | B27: -22.201916 | C27: -19.469014 | D27: -13.392046 | E27: -29.992397 | F27: -24.019285 | G27: -21.8149316
A28: Cobertura (exp/imp) | B28: 0.02040479558 | C28: 0.02327482886 | D28: 0.1238775456 | E28: 0.0418520341 | F28: 0.06490365262 | G28: 0.05046628846
A29: Exp AMF / Exp BT | B29: 0.06785204017 | C29: 0.07180446927 | D29: 0.3718644074 | E29: 0.2618566575 | F29: 0.165280377 | G29: 0.1732633249 | L29: Exportações
A30: Imp AMF / Imp BT | B30: 0.9978739177 | C30: 0.9934504275 | D30: 0.9955296346 | E30: 0.998615575 | F30: 0.9953199893 | G30: 0.9964217599 | L30: Importações
A31: Exp AMF Uganda / Exp AMF Mundo | B31: 3.9099495e-05 | C31: 4.021832183e-05 | D31: 0.0001413452147 | E31: 7.993915262e-05 | F31: 0.0001031355728 | G31: 8.363759571e-05
A32: Imp AMF Uganda / Imp AMF Mundo | B32: 0.001638384955 | C32: 0.001527969139 | D32: 0.001022815977 | E32: 0.001616658487 | F32: 0.001297760065 | G32: 0.001418543388
A33: (1) Produtos agrícolas e agroalimentares | B33: BT - Total de Bens Transacionáveis (exclui serviços) | H33: *TVMA - Taxa de variação média anual; TVT - Taxa de variação total
A45: Agroalimentar (AA)(1) | B45: 2019 | C45: 2020 | D45: 2021 | E45: 2022 | F45: 2023 | G45: média quinquénio | H45: var. 19/20 | I45: var. 20/21 | J45: var. 21/22 | K45: var. 22/23 | L45: TVMA* 2019-2023 | M45: TVT* 2019-2023
A46: Exportações | B46: 0.044204 | C46: 0.230685 | D46: 1.518243 | E46: 0.501982 | F46: 0.756881 | G46: 0.610399 | H46: 4.218645371 | I46: 5.581455231 | J46: -0.669366498 | K46: 0.5077851397 | L46: 1.034189968 | M46: 16.12245498
A47: Importações | B47: 14.841108 | C47: 15.975031 | D47: 9.582072 | E47: 24.615276 | F47: 22.587543 | G47: 17.520206 | H47: 0.07640420109 | I47: -0.4001844503 | J47: 1.56888865 | K47: -0.08237701661 | L47: 0.110709961 | M47: 0.5219579967
A48: Saldo (exp-imp) | B48: -14.796904 | C48: -15.744346 | D48: -8.063829 | E48: -24.113294 | F48: -21.830662 | G48: -16.909807
A49: Cobertura (exp/imp) | B49: 0.002978483817 | C49: 0.01444034756 | D49: 0.1584462108 | E49: 0.02039310873 | F49: 0.0335087796 | G49: 0.03483971593
A50: Exp AA / Exp AMF | B50: 0.09558406961 | C50: 0.4972345323 | D50: 0.8018009644 | E50: 0.3831713066 | F50: 0.4539988471 | G50: 0.5264643651 | L50: Exportações
A51: Imp AA / Imp AMF | B51: 0.6548208824 | C51: 0.8014383721 | D51: 0.6268697434 | E51: 0.786368513 | F51: 0.8793571064 | G51: 0.7625981385 | L51: Importações
A52: Exp AA / Exp BT | B52: 0.006485574131 | C52: 0.0357036617 | D52: 0.2981612405 | E52: 0.1003359576 | F52: 0.07503710063 | G52: 0.09121696634
A53: Imp AA / Imp BT | B53: 0.6534286792 | C53: 0.7961892934 | D53: 0.6240674066 | E53: 0.7852798447 | F53: 0.8752417057 | G53: 0.7598693793
A54: Exp AA Uganda / Exp AA Mundo | B54: 7.025809399e-06 | C54: 3.486204535e-05 | D54: 0.0002037417038 | E54: 5.654608739e-05 | F54: 7.992004156e-05 | G54: 7.884576991e-05
A55: Imp AA Uganda / Imp AA Mundo | B55: 0.001592893795 | C55: 0.001758502597 | D55: 0.0009329391496 | E55: 0.001852677927 | F55: 0.001590228367 | G55: 0.001559773747
A56: (1) Produtos agrícolas e agroalimentares | B56: AMF - Agroalimentar, Mar e Florestas; BT - Total de Bens Transacionáveis (exclui serviços) | H56: *TVMA - Taxa de variação média anual; TVT - Taxa de variação total
A67: Mar (M) | B67: 2019 | C67: 2020 | D67: 2021 | E67: 2022 | F67: 2023 | G67: média quinquénio | H67: var. 19/20 | I67: var. 20/21 | J67: var. 21/22 | K67: var. 22/23 | L67: TVMA* 2019-2023 | M67: TVT* 2019-2023
A68: Exportações | B68: 0.01363 | C68: 0.012398 | D68: 0.027663 | E68: 0.032031 | F68: 0.0357 | G68: 0.0242844 | H68: -0.09038884813 | I68: 1.231246975 | J68: 0.1579004446 | K68: 0.1145452843 | L68: 0.2721639661 | M68: 1.619222304
A69: Importações | B69: 7.822629 | C69: 3.94715 | D69: 5.703515 | E69: 6.687092 | F69: 3.023871 | G69: 5.4368514 | H69: -0.4954189953 | I69: 0.4449704217 | J69: 0.1724510236 | K69: -0.5478047857 | L69: -0.2114983044
A70: Saldo (exp-imp) | B70: -7.808999 | C70: -3.934752 | D70: -5.675852 | E70: -6.655061 | F70: -2.988171 | G70: -5.412567
A71: Cobertura (exp/imp) | B71: 0.001742380982 | C71: 0.003141000469 | D71: 0.004850166958 | E71: 0.004789974476 | F71: 0.01180605919 | G71: 0.004466629344
A72: Exp M / Exp AMF | B72: 0.02947269181 | C72: 0.02672351359 | D72: 0.01460913706 | E72: 0.02444980123 | F72: 0.02141387991 | G72: 0.02094510513 | L72: Exportações
A73: Imp M / Imp AMF | B73: 0.3451508354 | C73: 0.1980213666 | D73: 0.3731302566 | E73: 0.2136282604 | F73: 0.1177225187 | G73: 0.2366486306 | L73: Importações
A74: Exp M / Exp BT | B74: 0.001999782269 | C74: 0.00191886771 | D74: 0.005432618097 | E74: 0.006402343228 | F74: 0.003539294146 | G74: 0.003629018556
A75: Imp M / Imp BT | B75: 0.3444170163 | C75: 0.1967244113 | D75: 0.3714622281 | E75: 0.2133325081 | F75: 0.117171576 | G75: 0.2358018449
A76: Exp M Uganda / Exp M Mundo | B76: 1.275755023e-05 | C76: 1.378061318e-05 | D76: 2.525318763e-05 | E76: 2.504140077e-05 | F76: 2.66866784e-05 | G76: 2.137579351e-05
A77: Imp M Uganda / Imp M Mundo | B77: 0.003589444948 | C77: 0.002050609313 | D77: 0.002726274455 | E77: 0.002571531084 | F77: 0.001179204116 | G77: 0.002392763846
A78: AMF - Agroalimentar, Mar e Florestas; BT - Total de Bens Transacionáveis (exclui serviços) | H78: *TVMA - Taxa de variação média anual; TVT - Taxa de variação total
A90: Florestas (F) | B90: 2019 | C90: 2020 | D90: 2021 | E90: 2022 | F90: 2023 | G90: média quinquénio | H90: var. 19/20 | I90: var. 20/21 | J90: var. 21/22 | K90: var. 22/23 | L90: TVMA* 2019-2023 | M90: TVT* 2019-2023
A91: Exportações | B91: 0.404628 | C91: 0.220853 | D91: 0.347635 | E91: 0.776059 | F91: 0.874562 | G91: 0.5247474 | H91: -0.4541826072 | I91: 0.5740560463 | J91: 1.232396048 | K91: 0.1269272053 | L91: 0.2125053616 | M91: 1.161397629
A92: Importações | B92: 0.000641 | C92: 0.010769 | D92: 0 | E92: 0.000101 | F92: 0.075014 | G92: 0.017305 | H92: 15.80031201 | I92: -1 | K92: 741.7128713 | L92: 2.289054529 | M92: 116.0265211
A93: Saldo (exp-imp) | B93: 0.403987 | C93: 0.210084 | D93: 0.347635 | E93: 0.775958 | F93: 0.799548 | G93: 0.5074424
A94: Cobertura (exp/imp) | B94: 631.2449298 | C94: 20.50821803 | D94: 0 | E94: 7683.752475 | F94: 11.65865039 | G94: 30.32345565
A95: Exp F / Exp AMF | B95: 0.8749432386 | C95: 0.4760419541 | D95: 0.1835898985 | E95: 0.5923788922 | F95: 0.524587273 | G95: 0.4525905298 | L95: Exportações
A96: Imp F / Imp AMF | B96: 2.828226744e-05 | C96: 0.0005402612258 | D96: 0 | E96: 3.226582542e-06 | F96: 0.002920374916 | G96: 0.0007532309145 | L96: Importações
A97: Exp F / Exp BT | B97: 0.05936668377 | C97: 0.03418193986 | D97: 0.06827054882 | E97: 0.1551183567 | F97: 0.08670398226 | G97: 0.07841734
A98: Imp F / Imp BT | B98: 2.822213701e-05 | C98: 0.0005367227457 | D98: 0 | E98: 3.22211558e-06 | F98: 0.00290670753 | G98: 0.0007505356734
A99: Exp F Uganda / Exp F Mundo | B99: 9.056580411e-05 | C99: 5.495649707e-05 | D99: 7.168706488e-05 | E99: 0.0001245311321 | F99: 0.0001632756244 | G99: 0.0001052694635
A100: Imp F Uganda / Imp F Mundo | B100: 2.74289118e-07 | C100: 5.289111576e-06 | D100: 0 | E100: 2.905893186e-08 | F100: 2.480129177e-05 | G100: 6.430681061e-06
A101: AMF - Agroalimentar, Mar e Florestas; BT - Total de Bens Transacionáveis (exclui serviços) | H101: *TVMA - Taxa de variação média anual; TVT - Taxa de variação total
A111: Fonte: GPP a partir de dados INE/Comércio Internacional (2022 definitivos) | J111: 2024-09-25T12:28:58.840

Sheet 2
A1: Ranking dos parceiros comerciais de Portugal por país (média 2019-2023 em milhares de euros) produtos agrícolas e agroalimentares, do mar e da floresta
A2: Exportações | F2: Importações | K2: Trocas comerciais (total e saldo)
A3: P | B3: País | C3: média quinquénio | D3: % do Total | F3: P | G3: País | H3: média quinquénio | I3: % do Total | K3: P | L3: País | M3: Total (exp+imp) | N3: % do Total | O3: Saldo (exp-imp)
A4: 1 | B4: Espanha | C4: 4585756.813 | D4: 0.3308016954 | F4: 1 | G4: Espanha | H4: 7547729.415 | I4: 0.4660317212 | K4: 1 | L4: Espanha | M4: 12133486.23 | N4: 0.4036651237 | O4: -2961972.602
A5: 2 | B5: França | C5: 1476071.27 | D5: 0.1064790172 | F5: 2 | G5: França | H5: 1062436.209 | I5: 0.06559972516 | K5: 2 | L5: França | M5: 2538507.479 | N5: 0.08445280411 | O5: 413635.0608
A6: 3 | B6: Itália | C6: 913877.3852 | D6: 0.06592416492 | F6: 3 | G6: Países Baixos | H6: 948338.8256 | I6: 0.05855482502 | K6: 3 | L6: Países Baixos | M6: 1577205.446 | N6: 0.05247155017 | O6: -319472.2056
A7: 4 | B7: Alemanha | C7: 648818.1992 | D7: 0.04680365075 | F7: 4 | G7: Alemanha | H7: 912527.6676 | I7: 0.0563436785 | K7: 4 | L7: Alemanha | M7: 1561345.867 | N7: 0.05194392285 | O7: -263709.4684
A8: 5 | B8: Países Baixos | C8: 628866.62 | D8: 0.04536440823 | F8: 5 | G8: Brasil | H8: 813478.7406 | I8: 0.05022793966 | K8: 5 | L8: Itália | M8: 1408170.116 | N8: 0.04684796714 | O8: 419584.6544
A9: 6 | B9: Estados Unidos | C9: 565262.0838 | D9: 0.04077618228 | F9: 6 | G9: Itália | H9: 494292.7308 | I9: 0.03051991923 | K9: 6 | L9: Brasil | M9: 1307152.866 | N9: 0.04348725614 | O9: -319804.615 | P9: Nota: Nesta listagem, o Reino Unido passa a ser constituído por três componentes: Reino Unido [até 2020] ; Reino Unido (sem Irlanda do Norte) pós-2020 e Reino Unido (Irlanda do Norte) pós-2020. Estas componentes são calculadas igualmente como média do quinquénio, embora a primeira corresponda apenas a 2019-2020 e as duas últimas a 2021-2023.
A10: 7 | B10: Brasil | C10: 493674.1256 | D10: 0.03561205803 | F10: 7 | G10: Suécia | H10: 342247.2896 | I10: 0.0211319305 | K10: 7 | L10: Estados Unidos | M10: 831232.853 | N10: 0.02765402343 | O10: 299291.3146
A11: 8 | B11: Reino Unido (sem Irlanda do Norte) pós 2020 | C11: 454631.9512 | D11: 0.03279568158 | F11: 8 | G11: Bélgica | H11: 312247.382 | I11: 0.01927959746 | K11: 8 | L11: Bélgica | M11: 565798.269 | N11: 0.01882336403 | O11: -58696.495
A12: 9 | B12: Angola | C12: 292706.3904 | D12: 0.02111489426 | F12: 9 | G12: Estados Unidos | H12: 265970.7692 | I12: 0.01642226537 | K12: 9 | L12: Reino Unido (sem Irlanda do Norte) pós 2020 | M12: 544250.0942 | N12: 0.01810648461 | O12: 365013.8082
A13: 10 | B13: Reino Unido | C13: 261878.4294 | D13: 0.01889106465 | F13: 10 | G13: Polónia | H13: 242309.6554 | I13: 0.01496131877 | K13: 10 | L13: Polónia | M13: 501545.95 | N13: 0.01668577391 | O13: 16926.6392
A14: 11 | B14: Polónia | C14: 259236.2946 | D14: 0.01870046958 | F14: 11 | G14: Ucrânia | H14: 222824.047 | I14: 0.01375818719 | K14: 11 | L14: Suécia | M14: 441290.6982 | N14: 0.01468116096 | O14: -243203.881
A15: 12 | B15: Bélgica | C15: 253550.887 | D15: 0.01829034262 | F15: 12 | G15: China, República Popular da | H15: 185787.1552 | I15: 0.0114713582 | K15: 12 | L15: China, República Popular da | M15: 398792.1586 | N15: 0.01326729046 | O15: 27217.8482
A16: 13 | B16: Israel | C16: 229244.4504 | D16: 0.01653695474 | F16: 13 | G16: Dinamarca | H16: 157430.6822 | I16: 0.009720498413 | K16: 13 | L16: Reino Unido | M16: 360801.6302 | N16: 0.01200339556 | O16: 162955.2286
A17: 14 | B17: China, República Popular da | C17: 213005.0034 | D17: 0.01536549345 | F17: 14 | G17: África do Sul | H17: 152632.6762 | I17: 0.009424247332 | K17: 14 | L17: Angola | M17: 311604.8276 | N17: 0.01036668266 | O17: 273807.9532
A18: 15 | B18: Turquia | C18: 183333.1054 | D18: 0.01322505849 | F18: 15 | G18: Roménia | H18: 150608.7654 | I18: 0.009299281719 | K18: 15 | L18: Turquia | M18: 242675.4258 | N18: 0.008073492148 | O18: 123990.785
A19: 16 | B19: Suíça | C19: 154476.0802 | D19: 0.01114340584 | F19: 16 | G19: Irlanda | H19: 121563.8324 | I19: 0.007505913227 | K19: 16 | L19: Dinamarca | M19: 241759.6084 | N19: 0.008043024108 | O19: -73101.756
A20: 17 | B20: Marrocos | C20: 118599.4982 | D20: 0.008555385006 | F20: 17 | G20: Canadá | H20: 119673.4798 | I20: 0.007389194115 | K20: 17 | L20: Ucrânia | M20: 239492.4868 | N20: 0.007967599955 | O20: -206155.6072
A21: 18 | B21: Cabo Verde | C21: 109768.3062 | D21: 0.007918331319 | F21: 18 | G21: Argentina | H21: 105868.1604 | I21: 0.006536789848 | K21: 18 | L21: Israel | M21: 237296.8038 | N21: 0.00789455247 | O21: 221192.097
A22: 19 | B22: Suécia | C22: 99043.4086 | D22: 0.007144671822 | F22: 19 | G22: Uruguai | H22: 104314.011 | I22: 0.006440829476 | K22: 19 | L22: Canadá | M22: 218506.9396 | N22: 0.007269438408 | O22: -20840.02
A23: 20 | B23: Canadá | C23: 98833.4598 | D23: 0.007129526794 | F23: 20 | G23: Rússia, Federação da | H23: 103735.9956 | I23: 0.006405140132 | K23: 20 | L23: Irlanda | M23: 195620.2292 | N23: 0.006508027664 | O23: -47507.4356
A24: 21 | B24: Argélia | C24: 96645.8134 | D24: 0.006971717043 | F24: 21 | G24: Reino Unido | H24: 98923.2008 | I24: 0.006107975923 | K24: 21 | L24: África do Sul | M24: 189444.1038 | N24: 0.006302556097 | O24: -115821.2486
A25: 22 | B25: Dinamarca | C25: 84328.9262 | D25: 0.006083216555 | F25: 22 | G25: Reino Unido (sem Irlanda do Norte) pós 2020 | H25: 89618.143 | I25: 0.00553343862 | K25: 22 | L25: Roménia | M25: 176652.68 | N25: 0.005877002256 | O25: -124564.8508
A26: 23 | B26: Egito | C26: 82715.0134 | D26: 0.005966794094 | F26: 23 | G26: Finlândia | H26: 83872.0086 | I26: 0.005178645707 | K26: 23 | L26: Rússia, Federação da | M26: 176431.7776 | N26: 0.005869653124 | O26: -31040.2136
A27: 24 | B27: México | C27: 78971.398 | D27: 0.005696741762 | F27: 24 | G27: Índia | H27: 79609.8928 | I27: 0.004915482966 | K27: 24 | L27: Marrocos | M27: 161201.8654 | N27: 0.005362973981 | O27: 75997.131
A28: 25 | B28: Irlanda | C28: 74056.3968 | D28: 0.00534218944 | F28: 25 | G28: Áustria | H28: 71821.2034 | I28: 0.00443457326 | K28: 25 | L28: Suíça | M28: 158542.3376 | N28: 0.00527449499 | O28: 150409.8228
A29: 26 | B29: Japão | C29: 73359.52 | D29: 0.005291918996 | F29: 26 | G29: Costa Rica | H29: 70760.3382 | I29: 0.004369070537 | K29: 26 | L29: Argentina | M29: 121955.0646 | N29: 0.004057284553 | O29: -89781.2562
A30: 27 | B30: Rússia, Federação da | C30: 72695.782 | D30: 0.005244039079 | F30: 27 | G30: Vietname | H30: 69724.9328 | I30: 0.004305139819 | K30: 27 | L30: Grécia | M30: 120257.4232 | N30: 0.004000806257 | O30: -6293.966
A31: 28 | B31: Luxemburgo | C31: 58686.6694 | D31: 0.004233466912 | F31: 28 | G31: Grécia | H31: 63275.6946 | I31: 0.003906934025 | K31: 28 | L31: Finlândia | M31: 114621.0072 | N31: 0.003813290112 | O31: -53123.01
A32: 29 | B32: Grécia | C32: 56981.7286 | D32: 0.004110477986 | F32: 29 | G32: Turquia | H32: 59342.3204 | I32: 0.003664069311 | K32: 29 | L32: Áustria | M32: 113107.3328 | N32: 0.003762932156 | O32: -30535.074
A33: 30 | B33: Moçambique | C33: 41355.542 | D33: 0.00298325532 | F33: 30 | G33: Equador | H33: 58414.7012 | I33: 0.003606793812 | K33: 30 | L33: Índia | M33: 110945.593 | N33: 0.003691013917 | O33: -48274.1926
A34: 31 | B34: Áustria | C34: 41286.1294 | D34: 0.002978248119 | F34: 31 | G34: Chile | H34: 53583.8458 | I34: 0.003308514457 | K34: 31 | L34: Cabo Verde | M34: 110187.168 | N34: 0.003665782115 | O34: 109349.4444
A35: 32 | B35: África do Sul | C35: 36811.4276 | D35: 0.002655457574 | F35: 32 | G35: Bulgária | H35: 43918.2552 | I35: 0.002711716192 | K35: 32 | L35: Uruguai | M35: 107585.2664 | N35: 0.003579220272 | O35: -101042.7556
A36: 33 | B36: Arábia Saudita | C36: 35850.4594 | D36: 0.00258613643 | F36: 33 | G36: Marrocos | H36: 42602.3672 | I36: 0.002630467181 | K36: 33 | L36: Argélia | M36: 103320.8284 | N36: 0.00343734803 | O36: 89970.7984
A37: 34 | B37: Austrália | C37: 35111.9988 | D37: 0.002532866265 | F37: 34 | G37: Checa, República | H37: 40081.5398 | I37: 0.002474819639 | K37: 34 | L37: Egito | M37: 96954.5746 | N37: 0.003225551142 | O37: 68475.4522
A38: 35 | B38: Guiné-Bissau | C38: 34936.7752 | D38: 0.0025202262 | F38: 35 | G38: Moçambique | H38: 38763.0634 | I38: 0.002393410808 | K38: 35 | L38: México | M38: 96735.4946 | N38: 0.003218262638 | O38: 61207.3014
A39: 36 | B39: Índia | C39: 31335.7002 | D39: 0.002260456273 | F39: 36 | G39: Cuba | H39: 37252.762 | I39: 0.002300157814 | K39: 36 | L39: Japão | M39: 88203.9396 | N39: 0.002934429028 | O39: 58515.1004
A40: 37 | B40: Emirados Árabes Unidos | C40: 31192.854 | D40: 0.002250151809 | F40: 37 | G40: Colômbia | H40: 31648.7664 | I40: 0.001954141208 | K40: 37 | L40: Chile | M40: 83999.9476 | N40: 0.002794567745 | O40: -23167.744
A41: 38 | B41: Checa, República | C41: 30764.1282 | D41: 0.002219224914 | F41: 38 | G41: Guiana | H41: 31014.2578 | I41: 0.001914963713 | K41: 38 | L41: Moçambique | M41: 80118.6054 | N41: 0.002665440596 | O41: 2592.4786
A42: 39 | B42: Finlândia | C42: 30748.9986 | D42: 0.002218133513 | F42: 39 | G42: Indonésia | H42: 29000.5124 | I42: 0.001790625759 | K42: 39 | L42: Vietname | M42: 76018.6734 | N42: 0.002529041252 | O42: -63431.1922
A43: 40 | B43: Chile | C43: 30416.1018 | D43: 0.002194119412 | F43: 40 | G43: Hungria | H43: 27779.284 | I43: 0.001715221469 | K43: 40 | L43: Costa Rica | M43: 75106.2046 | N43: 0.002498684616 | O43: -66414.4718
A44: 41 | B44: Jordânia | C44: 29572.427 | D44: 0.002133259435 | F44: 41 | G44: Costa do Marfim | H44: 23657.6814 | I44: 0.001460734663 | K44: 41 | L44: Checa, República | M44: 70845.668 | N44: 0.002356942168 | O44: -9317.4116
A45: 42 | B45: São Tomé e Príncipe | C45: 26629.6346 | D45: 0.00192097589 | F45: 42 | G45: Uganda | H45: 22974.3624 | I45: 0.001418543388 | K45: 42 | L45: Luxemburgo | M45: 67571.5174 | N45: 0.002248015485 | O45: 49801.8214
A46: 43 | B46: Roménia | C46: 26043.9146 | D46: 0.001878723939 | F46: 43 | G46: Namíbia | H46: 22922.6958 | I46: 0.001415353253 | K46: 43 | L46: Equador | M46: 61226.7844 | N46: 0.002036934566 | O46: -55602.618
A47: 44 | B47: Tunísia | C47: 25929.0266 | D47: 0.00187043629 | F47: 44 | G47: Peru | H47: 21918.9314 | I47: 0.001353376196 | K47: 44 | L47: Bulgária | M47: 58330.5044 | N47: 0.001940579141 | O47: -29506.006
A48: 45 | B48: Noruega | C48: 23600.8168 | D48: 0.00170248675 | F48: 45 | G48: Letónia | H48: 19947.8168 | I48: 0.001231670465 | K48: 45 | L48: Austrália | M48: 52767.6096 | N48: 0.001755508949 | O48: 17456.388
A49: 46 | B49: Coreia, República da | C49: 22130.4584 | D49: 0.00159641984 | F49: 46 | G49: Lituânia | H49: 19184.1502 | I49: 0.001184518157 | K49: 46 | L49: Hungria | M49: 47551.7948 | N49: 0.001581985653 | O49: -8006.7732
A50: 47 | B50: Hungria | C50: 19772.5108 | D50: 0.001426325111 | F50: 47 | G50: Angola | H50: 18898.4372 | I50: 0.001166876915 | K50: 47 | L50: Cuba | M50: 44341.484 | N50: 0.001475182836 | O50: -30164.04
A51: 48 | B51: Nigéria | C51: 18837.3684 | D51: 0.001358866957 | F51: 48 | G51: Suazilândia | H51: 17908.5286 | I51: 0.00110575538 | K51: 48 | L51: Colômbia | M51: 40554.4044 | N51: 0.00134919168 | O51: -22743.1284
A52: 49 | B52: Ucrânia | C52: 16668.4398 | D52: 0.001202407448 | F52: 49 | G52: México | H52: 17764.0966 | I52: 0.00109683748 | K52: 49 | L52: Noruega | M52: 38853.6178 | N52: 0.001292608748 | O52: 8348.0158
A53: 50 | B53: Argentina | C53: 16086.9042 | D53: 0.001160457347 | F53: 50 | G53: Austrália | H53: 17655.6108 | I53: 0.001090139065 | K53: 50 | L53: Tunísia | M53: 37478.8224 | N53: 0.001246871113 | O53: 14379.2308
A54: 51 | B54: Lituânia | C54: 15786.2588 | D54: 0.001138769758 | F54: 51 | G54: Senegal | H54: 16694.7038 | I54: 0.001030808223 | K54: 51 | L54: Arábia Saudita | M54: 35901.7282 | N54: 0.001194403264 | O54: 35799.1906
A55: 52 | B55: Macau | C55: 14584.6512 | D55: 0.001052089664 | F55: 52 | G55: Nova Zelânda | H55: 16509.393 | I55: 0.001019366277 | K55: 52 | L55: Costa do Marfim | M55: 35761.26 | N55: 0.001189730072 | O55: -11554.1028
A56: 53 | B56: Bulgária | C56: 14412.2492 | D56: 0.00103965314 | F56: 53 | G56: Estónia | H56: 16427.6394 | I56: 0.001014318432 | K56: 53 | L56: Guiné-Bissau | M56: 35228.5746 | N56: 0.00117200833 | O56: 34644.9758
A57: 54 | B57: Líbia, Jamahira Árabe da | C57: 13798.5402 | D57: 0.0009953821536 | F57: 54 | G57: Eslovénia | H57: 16270.8324 | I57: 0.001004636443 | K57: 54 | L57: Coreia, República da | M57: 35092.2444 | N57: 0.001167472803 | O57: 9168.6724
A58: 55 | B58: Iraque | C58: 13659.5246 | D58: 0.0009853540169 | F58: 55 | G58: Noruega | H58: 15252.801 | I58: 0.0009417784757 | K58: 55 | L58: Lituânia | M58: 34970.409 | N58: 0.0011634195 | O58: -3397.8914
A59: 56 | B59: Senegal | C59: 13224.0438 | D59: 0.0009539398376 | F59: 56 | G59: Japão | H59: 14844.4196 | I59: 0.0009165631194 | K59: 56 | L59: Indonésia | M59: 33334.8236 | N59: 0.001109005725 | O59: -24666.2012
A60: 57 | B60: Letónia | C60: 13103.7848 | D60: 0.0009452647415 | F60: 57 | G60: Egito | H60: 14239.5612 | I60: 0.0008792163644 | K60: 57 | L60: Letónia | M60: 33051.6016 | N60: 0.001099583302 | O60: -6844.032
A61: 58 | B61: Eslováquia | C61: 12790.885 | D61: 0.0009226931598 | F61: 58 | G61: Mauritânia | H61: 13443.2356 | I61: 0.0008300475389 | K61: 58 | L61: Emirados Árabes Unidos | M61: 31951.4766 | N61: 0.00106298359 | O61: 30434.2314
A62: 59 | B62: Croácia | C62: 12325.2824 | D62: 0.0008891060911 | F62: 59 | G62: Tanzânia, República Unida da | H62: 13079.5886 | I62: 0.0008075942913 | K62: 59 | L62: Guiana | M62: 31130.901 | N62: 0.00103568412 | O62: -30897.6146
A63: 60 | B63: Costa do Marfim | C63: 12103.5786 | D63: 0.0008731130945 | F63: 60 | G63: Camarões | H63: 13022.835 | I63: 0.0008040900616 | K63: 60 | L63: Senegal | M63: 29918.7476 | N63: 0.0009953573709 | O63: -3470.66
A64: 61 | B64: Síria, República Árabe da | C64: 11995.3212 | D64: 0.0008653037551 | F64: 61 | G64: Coreia, República da | H64: 12961.786 | I64: 0.000800320614 | K64: 61 | L64: Jordânia | M64: 29720.2176 | N64: 0.000988752539 | O64: 29424.6364
A65: 62 | B65: Dominicana, República | C65: 11848.0206 | D65: 0.0008546779652 | F65: 62 | G65: Paquistão | H65: 12615.7586 | I65: 0.000778955282 | K65: 62 | L65: São Tomé e Príncipe | M65: 27718.7218 | N65: 0.000922165407 | O65: 25540.5474
A66: 63 | B66: Território Palestiniano Ocupado | C66: 11806.0928 | D66: 0.0008516534291 | F66: 63 | G66: Tailândia | H66: 12316.0148 | I66: 0.0007604477135 | K66: 63 | L66: Peru | M66: 27428.2474 | N66: 0.0009125017058 | O66: -16409.6154
A67: 64 | B67: HongKong | C67: 11528.0934 | D67: 0.0008315994496 | F67: 64 | G67: Moldava, República de | H67: 12178.8686 | I67: 0.0007519796728 | K67: 64 | L67: Nigéria | M67: 25016.4282 | N67: 0.0008322636541 | O67: 12658.3086
A68: 65 | B68: Chipre | C68: 10963.0956 | D68: 0.0007908423319 | F68: 65 | G68: Sérvia | H68: 11730.0782 | I68: 0.000724269278 | K68: 65 | L68: Estónia | M68: 24772.3938 | N68: 0.0008241449507 | O68: -8082.885
A69: 66 | B69: Malta | C69: 10789.1018 | D69: 0.0007782909808 | F69: 66 | G69: Tunísia | H69: 11549.7958 | I69: 0.0007131378088 | K69: 66 | L69: Eslovénia | M69: 24198.4746 | N69: 0.0008050514139 | O69: -8343.1902
A70: 67 | B70: Kuwait | C70: 10775.802 | D70: 0.0007773315761 | F70: 67 | G70: Belize | H70: 10934.5394 | I70: 0.0006751490332 | K70: 67 | L70: Uganda | M70: 24133.7932 | N70: 0.0008028995489 | O70: -21814.9316
A71: 68 | B71: Tailândia | C71: 9249.1872 | D71: 0.0006672065118 | F71: 68 | G71: Paraguai | H71: 10263.4738 | I71: 0.0006337143395 | K71: 68 | L71: Namíbia | M71: 23788.8134 | N71: 0.0007914225248 | O71: -22056.5782
A72: 69 | B72: Colômbia | C72: 8905.638 | D72: 0.0006424239813 | F72: 69 | G72: Maurícias | H72: 9873.1322 | I72: 0.0006096128438 | K72: 69 | L72: Camarões | M72: 21652.1512 | N72: 0.0007203385844 | O72: -4393.5188
A73: 70 | B73: Geórgia | C73: 8749.508 | D73: 0.0006311612671 | F73: 70 | G73: Islândia | H73: 9112.1228 | I73: 0.0005626246039 | K73: 70 | L73: Tailândia | M73: 21565.202 | N73: 0.0007174458989 | O73: -3066.8276
A74: 71 | B74: Líbano | C74: 8677.7716 | D74: 0.0006259864347 | F74: 71 | G74: Reino Unido (Irlanda do Norte) pós-2020 | H74: 9030.0978 | I74: 0.0005575600011 | K74: 71 | L74: Nova Zelânda | M74: 20801.8358 | N74: 0.0006920497097 | O74: -12216.9502
A75: 72 | B75: Camarões | C75: 8629.3162 | D75: 0.0006224910185 | F75: 72 | G75: Luxemburgo | H75: 8884.848 | I75: 0.0005485916066 | K75: 72 | L75: Croácia | M75: 20440.9604 | N75: 0.00068004386 | O75: 4209.6044
A76: 73 | B76: Estónia | C76: 8344.7544 | D76: 0.0006019636488 | F76: 73 | G76: Croácia | H76: 8115.678 | I76: 0.0005010994935 | K76: 73 | L76: Eslováquia | M76: 20012.3526 | N76: 0.0006657846423 | O76: 5569.4174
A77: 74 | B77: Gana | C77: 8178.0838 | D77: 0.0005899405696 | F77: 74 | G77: Israel | H77: 8052.3534 | I77: 0.0004971895399 | K77: 74 | L77: Suazilândia | M77: 19975.647 | N77: 0.0006645634953 | O77: -15841.4102
A78: 75 | B78: Eslovénia | C78: 7927.6422 | D78: 0.0005718745209 | F78: 75 | G78: Bangladesh | H78: 7823.1864 | I78: 0.0004830397094 | K78: 75 | L78: Sérvia | M78: 19112.5274 | N78: 0.0006358486418 | O78: -4347.629
A79: 76 | B79: Belarus | C79: 7872.655 | D79: 0.0005679079218 | F79: 76 | G79: Malásia | H79: 7805.4946 | I79: 0.0004819473359 | K79: 76 | L79: Paquistão | M79: 17209.3196 | N79: 0.0005725314222 | O79: -8022.1976
A80: 77 | B80: Sérvia | C80: 7382.4492 | D80: 0.0005325460576 | F80: 77 | G80: Quénia | H80: 7356.6728 | I80: 0.0004542350022 | K80: 77 | L80: Mauritânia | M80: 16816.7526 | N80: 0.0005594712345 | O80: -10069.7186
A81: 78 | B81: Gibraltar | C81: 7309.1272 | D81: 0.0005272568452 | F81: 78 | G81: Filipinas | H81: 7323.2778 | I81: 0.0004521730405 | K81: 78 | L81: Maurícias | M81: 16663.174 | N81: 0.0005543618766 | O81: -3083.0904
A82: 79 | B82: Cuba | C82: 7088.722 | D82: 0.0005113575254 | F82: 79 | G82: Eslováquia | H82: 7221.4676 | I82: 0.0004458868079 | K82: 79 | L82: Moldava, República de | M82: 15413.0444 | N82: 0.0005127717095 | O82: -8944.6928
A83: 80 | B83: Maurícias | C83: 6790.0418 | D83: 0.0004898116998 | F83: 80 | G83: Gana | H83: 6780.459 | I83: 0.0004186568973 | K83: 80 | L83: Chipre | M83: 15203.508 | N83: 0.0005058007091 | O83: 6722.6832
A84: 81 | B84: Taiwan | C84: 6498.8018 | D84: 0.0004688025862 | F84: 81 | G84: Argélia | H84: 6675.015 | I84: 0.0004121462971 | K84: 81 | L84: Gana | M84: 14958.5428 | N84: 0.0004976510392 | O84: 1397.6248
A85: 82 | B85: Vietname | C85: 6293.7406 | D85: 0.0004540101331 | F85: 82 | G85: Nigéria | H85: 6179.0598 | I85: 0.0003815237293 | K85: 82 | L85: Macau | M85: 14605.328 | N85: 0.0004859000475 | O85: 14563.9744
A86: 83 | B86: Andorra | C86: 6022.5714 | D86: 0.0004344488622 | F86: 83 | G86: Panamá | H86: 5638.1698 | I86: 0.0003481266792 | K86: 83 | L86: HongKong | M86: 14502.3074 | N86: 0.0004824726877 | O86: 8553.8794
A87: 84 | B87: Guatemala | C87: 5731.0826 | D87: 0.000413421801 | F87: 84 | G87: Congo | H87: 5587.8748 | I87: 0.0003450212333 | K87: 84 | L87: Dominicana, República | M87: 14480.0752 | N87: 0.0004817330516 | O87: 9215.966
A88: 85 | B88: Peru | C88: 5509.316 | D88: 0.0003974242743 | F88: 85 | G88: Honduras | H88: 5352.2984 | I88: 0.0003304756568 | K88: 85 | L88: Líbia, Jamahira Árabe da | M88: 13839.6806 | N88: 0.0004604279658 | O88: 13757.3998
A89: 86 | B89: Singapura | C89: 5117.4204 | D89: 0.0003691541906 | F89: 86 | G89: Camboja | H89: 5251.3428 | I89: 0.0003242421912 | K89: 86 | L89: Iraque | M89: 13672.6982 | N89: 0.000454872681 | O89: 13646.351
A90: 87 | B90: Omã | C90: 4766.6966 | D90: 0.0003438541077 | F90: 87 | G90: Zimbabwe | H90: 5173.4104 | I90: 0.0003194302844 | K90: 87 | L90: Tanzânia, República Unida da | M90: 13489.1328 | N90: 0.0004487657017 | O90: -12670.0444
A91: 88 | B91: Panamá | C91: 4742.5904 | D91: 0.0003421151642 | F91: 88 | G91: Etiópia | H91: 4865.2452 | I91: 0.0003004027397 | K91: 88 | L91: Malta | M91: 13279.4746 | N91: 0.0004417906492 | O91: 8298.729
A92: 89 | B92: Paquistão | C92: 4593.561 | D92: 0.0003313646643 | F92: 89 | G92: Sri Lanca | H92: 4526.3248 | I92: 0.0002794762267 | K92: 89 | L92: Reino Unido (Irlanda do Norte) pós-2020 | M92: 12625.0654 | N92: 0.0004200193161 | O92: -5435.1302
A93: 90 | B93: Mali | C93: 4507.5844 | D93: 0.0003251625899 | F93: 90 | G93: Suriname | H93: 4461.0484 | I93: 0.0002754457599 | K93: 90 | L93: Kuwait | M93: 12319.6144 | N93: 0.0004098573632 | O93: 9231.9896
A94: 91 | B94: Costa Rica | C94: 4345.8664 | D94: 0.0003134967753 | F94: 91 | G94: Macedónia, Antiga República jugoslava da | H94: 4419.1882 | I94: 0.0002728611176 | K94: 91 | L94: Síria, República Árabe da | M94: 12141.732 | N94: 0.0004039394497 | O94: 11848.9104
A95: 92 | B95: Indonésia | C95: 4334.3112 | D95: 0.0003126632205 | F95: 92 | G95: Myanmar | H95: 4417.7112 | I95: 0.0002727699208 | K95: 92 | L95: Território Palestiniano Ocupado | M95: 11817.7626 | N95: 0.000393161414 | O95: 11794.423
A96: 93 | B96: Nova Zelânda | C96: 4292.4428 | D96: 0.0003096429692 | F96: 93 | G96: Papuásia-Nova Guiné | H96: 4268.11 | I96: 0.0002635328508 | K96: 93 | L96: Paraguai | M96: 11233.283 | N96: 0.0003737165467 | O96: -9293.6646
A97: 94 | B97: Burquina Faso | C97: 4086.0794 | D97: 0.0002947565796 | F97: 94 | G97: Chipre | H97: 4240.4124 | I97: 0.0002618226729 | K97: 94 | L97: Islândia | M97: 10997.2792 | N97: 0.0003658650107 | O97: -7226.9664
A98: 95 | B98: Venezuela | C98: 3914.122 | D98: 0.0002823521278 | F98: 95 | G98: Suíça | H98: 4066.2574 | I98: 0.0002510695377 | K98: 95 | L98: Belize | M98: 10954.0486 | N98: 0.0003644267856 | O98: -10915.0302
A99: 96 | B99: Reino Unido (Irlanda do Norte) pós-2020 | C99: 3594.9676 | D99: 0.0002593293595 | F99: 96 | G99: Guatemala | H99: 3891.5458 | I99: 0.0002402820355 | K99: 96 | L99: Filipinas | M99: 10864.798 | N99: 0.0003614575355 | O99: -3781.7576
A100: 97 | B100: Filipinas | C100: 3541.5202 | D100: 0.0002554738366 | F100: 97 | G100: Malavi | H100: 3761.9744 | I100: 0.000232281698 | K100: 97 | L100: Malásia | M100: 10802.8778 | N100: 0.0003593975319 | O100: -4808.1114
A101: 98 | B101: Catar | C101: 3508.7446 | D101: 0.0002531095106 | F101: 98 | G101: Congo, República Democrática do | H101: 3658.6742 | I101: 0.0002259034659 | K101: 98 | L101: Panamá | M101: 10380.7602 | N101: 0.0003453542347 | O101: -895.5794
A102: 99 | B102: Mauritânia | C102: 3373.517 | D102: 0.000243354628 | F102: 99 | G102: Madagáscar | H102: 3530.0618 | I102: 0.0002179623416 | K102: 99 | L102: Bangladesh | M102: 9992.512 | N102: 0.0003324377279 | O102: -5653.8608
A103: 100 | B103: Uruguai | C103: 3271.2554 | D103: 0.0002359778062 | F103: 100 | G103: Taiwan | H103: 3371.9198 | I103: 0.0002081979231 | K103: 100 | L103: Taiwan | M103: 9870.7216 | N103: 0.0003283859215 | O103: 3126.882
A104: 101 | B104: Moldava, República de | C104: 3234.1758 | D104: 0.0002333030035 | F104: 101 | G104: Nicarágua | H104: 3348.1524 | I104: 0.0002067304139 | K104: 101 | L104: Geórgia | M104: 9735.827 | N104: 0.0003238981556 | O104: 7763.189
A105: 102 | B105: Guiné | C105: 3199.9078 | D105: 0.0002308310206 | F105: 102 | G105: Gâmbia | H105: 3121.0516 | I105: 0.0001927081602 | K105: 102 | L105: Quénia | M105: 9728.6164 | N105: 0.0003236582685 | O105: -4984.7292
A106: 103 | B106: Malásia | C106: 2997.3832 | D106: 0.0002162215496 | F106: 103 | G106: HongKong | H106: 2974.214 | I106: 0.0001836417277 | K106: 103 | L106: Guatemala | M106: 9622.6284 | N106: 0.0003201321871 | O106: 1839.5368
A107: 104 | B107: Gabão | C107: 2969.7446 | D107: 0.0002142277902 | F107: 104 | G107: Gabão | H107: 2833.2392 | I107: 0.0001749372915 | K107: 104 | L107: Líbano | M107: 9030.5176 | N107: 0.0003004334398 | O107: 8325.0256
A108: 105 | B108: Equador | C108: 2812.0832 | D108: 0.0002028546057 | F108: 105 | G108: Dominicana, República | H108: 2632.0546 | I108: 0.0001625152239 | K108: 105 | L108: Belarus | M108: 8568.8172 | N108: 0.0002850732749 | O108: 7176.4928
A109: 106 | B109: Arménia | C109: 2727.7232 | D109: 0.0001967691476 | F109: 106 | G109: Malta | H109: 2490.3728 | I109: 0.0001537671343 | K109: 106 | L109: Congo | M109: 8287.998 | N109: 0.0002757307896 | O109: -2887.7516
A110: 107 | B110: Guiné Equatorial | C110: 2712.0278 | D110: 0.0001956369321 | F110: 107 | G110: Mali | H110: 2475.2962 | I110: 0.0001528362353 | K110: 107 | L110: Gibraltar | M110: 7351.7996 | N110: 0.0002445847005 | O110: 7266.4548
A111: 108 | B111: Congo | C111: 2700.1232 | D111: 0.0001947781727 | F111: 108 | G111: Centro-Africana, República | H111: 2466.2132 | I111: 0.0001522754088 | K111: 108 | L111: Mali | M111: 6982.8806 | N111: 0.0002323112507 | O111: 2032.2882
A112: 109 | B112: Timor-Leste | C112: 2668.3464 | D112: 0.0001924858969 | F112: 109 | G112: Benim | H112: 1927.4574 | I112: 0.0001190101341 | K112: 109 | L112: Singapura | M112: 6658.127 | N112: 0.0002215071257 | O112: 3576.7138
A113: 110 | B113: Benim | C113: 2475.3426 | D113: 0.0001785632257 | F113: 110 | G113: Serra Leoa | H113: 1903.7664 | I113: 0.0001175473422 | K113: 110 | L113: Honduras | M113: 6528.1984 | N113: 0.0002171845721 | O113: -4176.3984
A114: 111 | B114: Quénia | C114: 2371.9436 | D114: 0.0001711043556 | F114: 111 | G114: Laos, República Democrática Popular do | H114: 1764.877 | I114: 0.0001089716683 | K114: 111 | L114: Etiópia | M114: 6273.798 | N114: 0.0002087210055 | O114: -3456.6924
A115: 112 | B115: Seychelles | C115: 2348.937 | D115: 0.0001694447337 | F115: 112 | G115: Burquina Faso | H115: 1596.8146 | I115: 9.859471844e-05 | K115: 112 | L115: Camboja | M115: 6128.9364 | N115: 0.0002039016507 | O115: -4373.7492
A116: 113 | B116: Congo, República Democrática do | C116: 2222.0526 | D116: 0.0001602917026 | F116: 113 | G116: Kuwait | H116: 1543.8124 | I116: 9.532211748e-05 | K116: 113 | L116: Andorra | M116: 6085.3588 | N116: 0.0002024518813 | O116: 5959.784
A117: 114 | B117: Bangladesh | C117: 2169.3256 | D117: 0.000156488147 | F117: 114 | G117: Singapura | H117: 1540.7066 | I117: 9.513035103e-05 | K117: 114 | L117: Sri Lanca | M117: 6081.0406 | N117: 0.0002023082204 | O117: -2971.609
A118: 115 | B118: Suazilândia | C118: 2067.1184 | D118: 0.0001491152495 | F118: 115 | G118: Seychelles | H118: 1430.6602 | I118: 8.833557734e-05 | K118: 115 | L118: Congo, República Democrática do | M118: 5880.7268 | N118: 0.0001956440438 | O118: -1436.6216
A119: 116 | B119: Irão, República Islâmica do | C119: 2015.5486 | D119: 0.0001453951706 | F119: 116 | G119: Bolívia | H119: 1415.5334 | I119: 8.740157875e-05 | K119: 116 | L119: Gabão | M119: 5802.9838 | N119: 0.0001930576365 | O119: 136.5054
A120: 117 | B120: Islândia | C120: 1885.1564 | D120: 0.0001359890981 | F120: 117 | G120: São Tomé e Príncipe | H120: 1089.0872 | I120: 6.72452806e-05 | K120: 117 | L120: Burquina Faso | M120: 5682.894 | N120: 0.0001890624068 | O120: 2489.2648
A121: 118 | B121: Togo | C121: 1879.1826 | D121: 0.0001355581675 | F121: 118 | G121: Venezuela | H121: 1080.4086 | I121: 6.67094237e-05 | K121: 118 | L121: Omã | M121: 5590.2942 | N121: 0.0001859817333 | O121: 3943.099
A122: 119 | B122: Sudão | C122: 1868.0632 | D122: 0.0001347560499 | F122: 119 | G122: Bósnia-Herzegovina | H122: 1034.9792 | I122: 6.390440244e-05 | K122: 119 | L122: Macedónia, Antiga República jugoslava da | M122: 5497.1662 | N122: 0.0001828834873 | O122: -3341.2102
A123: 120 | B123: Nicarágua | C123: 1709.2518 | D123: 0.000123299908 | F123: 120 | G123: Geórgia | H123: 986.319 | I123: 6.089989664e-05 | K123: 120 | L123: Zimbabwe | M123: 5240.2698 | N123: 0.000174336882 | O123: -5106.551
A124: 121 | B124: Jamaica | C124: 1645.8018 | D124: 0.0001187228298 | F124: 121 | G124: Cazaquistão | H124: 977.1554 | I124: 6.03340936e-05 | K124: 121 | L124: Suriname | M124: 5124.6412 | N124: 0.0001704900706 | O124: -3797.4556
A125: 122 | B125: El Salvador | C125: 1616.0178 | D125: 0.0001165743082 | F125: 122 | G125: El Salvador | H125: 921.9424 | I125: 5.692498762e-05 | K125: 122 | L125: Nicarágua | M125: 5057.4042 | N125: 0.0001682531841 | O125: -1638.9006
A126: 123 | B126: Cazaquistão | C126: 1586.0954 | D126: 0.0001144158028 | F126: 123 | G126: Omã | H126: 823.5976 | I126: 5.085272484e-05 | K126: 123 | L126: Venezuela | M126: 4994.5306 | N126: 0.0001661614622 | O126: 2833.7134
A127: 124 | B127: Sri Lanca | C127: 1554.7158 | D127: 0.0001121521798 | F127: 124 | G127: Timor-Leste | H127: 773.0574 | I127: 4.773213915e-05 | K127: 124 | L127: Myanmar | M127: 4788.3232 | N127: 0.0001593012132 | O127: -4047.0992
A128: 125 | B128: Ruanda | C128: 1542.3664 | D128: 0.0001112613339 | F128: 125 | G128: Emirados Árabes Unidos | H128: 758.6226 | I128: 4.684086784e-05 | K128: 125 | L128: Benim | M128: 4402.8 | N128: 0.0001464753636 | O128: 547.8852
A129: 126 | B129: Azerbaijão | C129: 1447.7444 | D129: 0.0001044356083 | F129: 126 | G129: Belarus | H129: 696.1622 | I129: 4.298427388e-05 | K129: 126 | L129: Papuásia-Nova Guiné | M129: 4270.9956 | N129: 0.0001420904046 | O129: -4265.2244
A130: 127 | B130: Etiópia | C130: 1408.5528 | D130: 0.0001016084527 | F130: 127 | G130: Turquemenistão | H130: 693.7048 | I130: 4.283254264e-05 | K130: 127 | L130: Madagáscar | M130: 3916.3276 | N130: 0.0001302910669 | O130: -3143.796
A131: 128 | B131: Albânia | C131: 1395.6804 | D131: 0.0001006798793 | F131: 128 | G131: Iémen | H131: 684.2014 | I131: 4.224575877e-05 | K131: 128 | L131: Seychelles | M131: 3779.5972 | N131: 0.0001257422263 | O131: 918.2768
A132: 129 | B132: Bolívia | C132: 1235.6182 | D132: 8.913350885e-05 | F132: 129 | G132: Gronelândia | H132: 628.3832 | I132: 3.879928495e-05 | K132: 129 | L132: Malavi | M132: 3770.4898 | N132: 0.0001254392351 | O132: -3753.459
A133: 130 | B133: Montenegro | C133: 1193.9358 | D133: 8.612667505e-05 | F133: 130 | G133: Faroé, Ilhas | H133: 595.1746 | I133: 3.67488324e-05 | K133: 130 | L133: Gâmbia | M133: 3599.2084 | N133: 0.0001197409283 | O133: -2642.8948
A134: 131 | B134: São Bartolomeu | C134: 1183.3114 | D134: 8.536026512e-05 | F134: 131 | G134: Cabo Verde | H134: 418.8618 | I134: 2.586246471e-05 | K134: 131 | L134: Catar | M134: 3530.094 | N134: 0.0001174415831 | O134: 3487.3952
A135: 132 | B135: Honduras | C135: 1175.9 | D135: 8.482563065e-05 | F135: 132 | G135: Usbequistão | H135: 380.3996 | I135: 2.34876306e-05 | K135: 132 | L135: Guiné | M135: 3486.7122 | N135: 0.0001159983277 | O135: 2913.1034
A136: 133 | B136: Uganda | C136: 1159.4308 | D136: 8.363759571e-05 | F136: 133 | G136: Líbano | H136: 352.746 | I136: 2.178016944e-05 | K136: 133 | L136: Timor-Leste | M136: 3441.4038 | N136: 0.0001144909768 | O136: 1895.289
A137: 134 | B137: Macedónia, Antiga República jugoslava da | C137: 1077.978 | D137: 7.776185362e-05 | F137: 134 | G137: Chade | H137: 303.1764 | I137: 1.871951308e-05 | K137: 134 | L137: Arménia | M137: 2777.2064 | N137: 9.239400318e-05 | O137: 2678.24
A138: 135 | B138: Paraguai | C138: 969.8092 | D138: 6.995890552e-05 | F138: 135 | G138: Guiné-Bissau | H138: 291.7994 | I138: 1.801704449e-05 | K138: 135 | L138: Guiné Equatorial | M138: 2721.8116 | N138: 9.055109106e-05 | O138: 2702.244
A139: 136 | B139: Bermudas | C139: 957.27 | D139: 6.90543681e-05 | F139: 136 | G139: Guiné | H139: 286.8044 | I139: 1.770863008e-05 | K139: 136 | L139: Bolívia | M139: 2651.1516 | N139: 8.820032582e-05 | O139: -179.9152
A140: 137 | B140: Aruba | C140: 940.2512 | D140: 6.78266868e-05 | F140: 137 | G140: Togo | H140: 238.6312 | I140: 1.473419392e-05 | K140: 137 | L140: Centro-Africana, República | M140: 2569.5112 | N140: 8.548425712e-05 | O140: -2362.9152
A141: 138 | B141: Barbados | C141: 924.8742 | D141: 6.671743965e-05 | F141: 138 | G141: Irão, República Islâmica do | H141: 211.8336 | I141: 1.307958616e-05 | K141: 138 | L141: Cazaquistão | M141: 2563.2508 | N141: 8.527598185e-05 | O141: 608.94
A142: 139 | B142: Trindade e Tobago | C142: 878.2468 | D142: 6.335388951e-05 | F142: 139 | G142: Zâmbia | H142: 183.9482 | I142: 1.13578126e-05 | K142: 139 | L142: El Salvador | M142: 2537.9602 | N142: 8.443459686e-05 | O142: 694.0754
A143: 140 | B143: Camboja | C143: 877.5936 | D143: 6.330676977e-05 | F143: 140 | G143: Jordânia | H143: 147.7906 | I143: 9.125275154e-06 | K143: 140 | L143: Serra Leoa | M143: 2340.2336 | N143: 7.785649301e-05 | O143: -1467.2992
A144: 141 | B144: Kosovo | C144: 870.5922 | D144: 6.280171137e-05 | F144: 141 | G144: Síria, República Árabe da | H144: 146.4108 | I144: 9.040079921e-06 | K144: 141 | L144: Irão, República Islâmica do | M144: 2227.3822 | N144: 7.41020754e-05 | O144: 1803.715
A145: 142 | B145: Namíbia | C145: 866.1176 | D145: 6.247892817e-05 | F145: 142 | G145: Maldivas | H145: 127.2588 | I145: 7.857546865e-06 | K145: 142 | L145: Togo | M145: 2117.8138 | N145: 7.045687889e-05 | O145: 1640.5514
A146: 143 | B146: Turquemenistão | C146: 749.1004 | D146: 5.403768505e-05 | F146: 143 | G146: Albânia | H146: 125.451 | I146: 7.745924933e-06 | K146: 143 | L146: Laos, República Democrática Popular do | M146: 1935.8146 | N146: 6.440200494e-05 | O146: -1593.9394
A147: 144 | B147: Barém | C147: 728.9324 | D147: 5.258283062e-05 | F147: 144 | G147: Azerbaijão | H147: 124.9348 | I147: 7.714052357e-06 | K147: 144 | L147: Sudão | M147: 1883.1514 | N147: 6.264996957e-05 | O147: 1852.975
A148: 145 | B148: Iémen | C148: 704.0114 | D148: 5.078511012e-05 | F148: 145 | G148: Kosovo | H148: 80.0464 | I148: 4.942434939e-06 | K148: 145 | L148: Jamaica | M148: 1660.4856 | N148: 5.524217134e-05 | O148: 1631.118
A149: 146 | B149: Suriname | C149: 663.5928 | D149: 4.786944277e-05 | F149: 146 | G149: Tajiquistão | H149: 74.7168 | I149: 4.613360786e-06 | K149: 146 | L149: Azerbaijão | M149: 1572.6792 | N149: 5.232096794e-05 | O149: 1322.8096
A150: 147 | B150: Niger | C150: 619.0434 | D150: 4.465579284e-05 | F150: 147 | G150: Andorra | H150: 62.7874 | I150: 3.876784459e-06 | K150: 147 | L150: Bósnia-Herzegovina | M150: 1571.8568 | N150: 5.229360777e-05 | O150: -498.1016
A151: 148 | B151: São Martinho (parte holandesa) | C151: 606.1984 | D151: 4.3729196e-05 | F151: 148 | G151: Libéria | H151: 54.4472 | I151: 3.361821938e-06 | K151: 148 | L151: Ruanda | M151: 1569.6358 | N151: 5.221971802e-05 | O151: 1515.097
A152: 149 | B152: Bósnia-Herzegovina | C152: 536.8776 | D152: 3.872861723e-05 | F152: 149 | G152: Arábia Saudita | H152: 51.2688 | I152: 3.165572823e-06 | K152: 149 | L152: Albânia | M152: 1521.1314 | N152: 5.060604045e-05 | O152: 1270.2294
A153: 150 | B153: Curaçau | C153: 534.0534 | D153: 3.852488856e-05 | F153: 150 | G153: Fiji, Ilhas | H153: 50.1218 | I153: 3.094751738e-06 | K153: 150 | L153: Turquemenistão | M153: 1442.8052 | N153: 4.800023082e-05 | O153: 55.3956
A154: 151 | B154: Burundi | C154: 485.0592 | D154: 3.49906051e-05 | F154: 151 | G154: Arménia | H154: 49.4832 | I154: 3.055321621e-06 | K154: 151 | L154: Iémen | M154: 1388.2128 | N154: 4.618401349e-05 | O154: 19.81
A155: 152 | B155: Gâmbia | C155: 478.1568 | D155: 3.449268825e-05 | F155: 152 | G155: Falkland Ilhas (Malvinas) | H155: 46.09 | I155: 2.84580976e-06 | K155: 152 | L155: Montenegro | M155: 1194.2042 | N155: 3.972960261e-05 | O155: 1193.6674
A156: 153 | B156: Antígua e Barbuda | C156: 468.1724 | D156: 3.377244586e-05 | F156: 153 | G156: Aruba | H156: 45.6344 | I156: 2.817678908e-06 | K156: 153 | L156: São Bartolomeu | M156: 1185.2626 | N156: 3.943212735e-05 | O156: 1181.3602
A157: 154 | B157: Serra Leoa | C157: 436.4672 | D157: 3.148533506e-05 | F157: 154 | G157: Gibraltar | H157: 42.6724 | I157: 2.63479133e-06 | K157: 154 | L157: Aruba | M157: 985.8856 | N157: 3.279911686e-05 | O157: 894.6168
A158: 155 | B158: Tanzânia, República Unida da | C158: 409.5442 | D158: 2.954319674e-05 | F158: 155 | G158: Líbia, Jamahira Árabe da | H158: 41.1404 | I158: 2.540198564e-06 | K158: 155 | L158: Bermudas | M158: 958.1048 | N158: 3.187488619e-05 | O158: 956.4352
A159: 156 | B159: Nova Caledónia | C159: 388.6078 | D159: 2.803291242e-05 | F159: 156 | G159: Curaçau | H159: 39.2148 | I159: 2.421303115e-06 | K159: 156 | L159: Kosovo | M159: 950.6386 | N159: 3.162649554e-05 | O159: 790.5458
A160: 157 | B160: Madagáscar | C160: 386.2658 | D160: 2.786396809e-05 | F160: 157 | G160: Botswana | H160: 30.0368 | I160: 1.854610948e-06 | K160: 157 | L160: Barbados | M160: 935.22 | N160: 3.111353901e-05 | O160: 914.5284
A161: 158 | B161: Myanmar | C161: 370.612 | D161: 2.673475349e-05 | F161: 158 | G161: São Pedro e Miquelon | H161: 28.9156 | I161: 1.785382874e-06 | K161: 158 | L161: Trindade e Tobago | M161: 878.6292 | N161: 2.923083754e-05 | O161: 877.8644
A162: 159 | B162: Comores | C162: 333.8038 | D162: 2.407952874e-05 | F162: 159 | G162: Ruanda | H162: 27.2694 | I162: 1.683738873e-06 | K162: 159 | L162: Barém | M162: 733.5668 | N162: 2.440480234e-05 | O162: 724.298
A163: 160 | B163: Haiti | C163: 328.0528 | D163: 2.366467016e-05 | F163: 160 | G163: São Marino | H163: 25.3104 | I163: 1.562781153e-06 | K163: 160 | L163: Usbequistão | M163: 665.2208 | N163: 2.213102084e-05 | O163: -95.5784
A164: 161 | B164: Polinésia Francesa | C164: 317.6242 | D164: 2.291238462e-05 | F164: 161 | G164: Catar | H164: 21.3494 | I164: 1.318210694e-06 | K164: 161 | L164: Gronelândia | M164: 629.1046 | N164: 2.092948238e-05 | O164: -627.6618
A165: 162 | B165: Bahamas | C165: 305.389 | D165: 2.202977678e-05 | F165: 162 | G165: Macau | H165: 20.6768 | I165: 1.276681259e-06 | K165: 162 | L165: Niger | M165: 622.3102 | N165: 2.070344163e-05 | O165: 615.7766
A166: 163 | B166: Libéria | C166: 303.6128 | D166: 2.190164745e-05 | F166: 163 | G166: Marshall, Ilhas | H166: 18.3784 | I166: 1.134767413e-06 | K166: 163 | L166: São Martinho (parte holandesa) | M166: 606.2012 | N166: 2.016751639e-05 | O166: 606.1956
A167: 164 | B167: Somália | C167: 293.0252 | D167: 2.113789216e-05 | F167: 164 | G167: Quirguizistão | H167: 17.5046 | I167: 1.08081496e-06 | K167: 164 | L167: Faroé, Ilhas | M167: 600.7416 | N167: 1.998588268e-05 | O167: -589.6076
A168: 165 | B168: Usbequistão | C168: 284.8212 | D168: 2.054608207e-05 | F168: 165 | G168: Salomão, Ilhas | H168: 16.0532 | I168: 9.911988117e-07 | K168: 165 | L168: Curaçau | M168: 573.2682 | N168: 1.907187881e-05 | O168: 494.8386
A169: 166 | B169: São Marino | C169: 251.4926 | D169: 1.814186444e-05 | F169: 166 | G169: Sudão | H169: 15.0882 | I169: 9.316152487e-07 | K169: 166 | L169: Burundi | M169: 485.2096 | N169: 1.614228504e-05 | O169: 484.9088
A170: 167 | B170: Bonaire, Santo Eustáquio e Saba | C170: 241.8602 | D170: 1.74470142e-05 | F170: 167 | G170: Jamaica | H170: 14.6838 | I170: 9.066457224e-07 | K170: 167 | L170: Antígua e Barbuda | M170: 477.853 | N170: 1.589754064e-05 | O170: 458.4918
A171: 168 | B171: Laos, República Democrática Popular do | C171: 170.9376 | D171: 1.233088674e-05 | F171: 168 | G171: Iraque | H171: 13.1736 | I171: 8.1339899e-07 | K171: 168 | L171: Nova Caledónia | M171: 390.0338 | N171: 1.297591139e-05 | O171: 387.1818
A172: 169 | B172: Zâmbia | C172: 164.8696 | D172: 1.189316081e-05 | F172: 169 | G172: São Cristovão e Nevis | H172: 12.4064 | I172: 7.660285138e-07 | K172: 169 | L172: Libéria | M172: 358.06 | N172: 1.191218513e-05 | O172: 249.1656
A173: 170 | B173: Santa Lúcia | C173: 158.8492 | D173: 1.145886858e-05 | F173: 170 | G173: Nepal | H173: 12.0262 | I173: 7.425532074e-07 | K173: 170 | L173: Zâmbia | M173: 348.8178 | N173: 1.160470929e-05 | O173: -19.0786
A174: 171 | B174: Liechtenstein | C174: 144.4366 | D174: 1.041919014e-05 | F174: 171 | G174: Território Palestiniano Ocupado | H174: 11.6698 | I174: 7.205474231e-07 | K174: 171 | L174: Comores | M174: 333.8038 | N174: 1.110521327e-05 | O174: 333.8038
A175: 172 | B175: Maldivas | C175: 139.5096 | D175: 1.006377226e-05 | F175: 172 | G175: Barbados | H175: 10.3458 | I175: 6.387975398e-07 | K175: 172 | L175: Haiti | M175: 328.3348 | N175: 1.092326683e-05 | O175: 327.7708
A176: 173 | B176: Ceuta e Melilha | C176: 132.796 | D176: 9.579474825e-06 | F176: 173 | G176: Jibuti | H176: 9.885 | I176: 6.103456167e-07 | K176: 173 | L176: Polinésia Francesa | M176: 318.4566 | N176: 1.059463211e-05 | O176: 316.7918
A177: 174 | B177: Quirguizistão | C177: 130.9018 | D177: 9.442833351e-06 | F177: 174 | G177: Guiné Equatorial | H177: 9.7838 | I177: 6.040970606e-07 | K177: 174 | L177: Bahamas | M177: 305.389 | N177: 1.015989025e-05 | O177: 305.389
A178: 175 | B178: Botswana | C178: 118.8382 | D178: 8.572604184e-06 | F178: 175 | G178: Antígua e Barbuda | H178: 9.6806 | I178: 5.977250154e-07 | K178: 175 | L178: Chade | M178: 303.2232 | N178: 1.008783694e-05 | O178: -303.1296
A179: 176 | B179: Guiana | C179: 116.6432 | D179: 8.414263969e-06 | F179: 176 | G179: Santa Helena | H179: 5.0476 | I179: 3.116621684e-07 | K179: 176 | L179: Somália | M179: 293.0252 | N179: 9.748562894e-06 | O179: 293.0252
A180: 177 | B180: Nepal | C180: 114.3036 | D180: 8.245492776e-06 | F180: 177 | G180: Barém | H180: 4.6344 | I180: 2.861492894e-07 | K180: 177 | L180: São Marino | M180: 276.803 | N180: 9.208871642e-06 | O180: 226.1822
A181: 178 | B181: Afeganistão | C181: 109.4574 | D181: 7.89590355e-06 | F181: 178 | G181: Niger | H181: 3.2668 | I181: 2.017073405e-07 | K181: 178 | L181: Maldivas | M181: 266.7684 | N181: 8.875033702e-06 | O181: 12.2508
A182: 179 | B182: Virgens Britânicas, Ilhas | C182: 106.6708 | D182: 7.69488722e-06 | F182: 179 | G182: São Bartolomeu | H182: 1.9512 | I182: 1.20476112e-07 | K182: 179 | L182: Bonaire, Santo Eustáquio e Saba | M182: 241.8602 | N182: 8.046370658e-06 | O182: 241.8602
A183: 180 | B183: Centro-Africana, República | C183: 103.298 | D183: 7.451584314e-06 | F183: 180 | G183: Liechtenstein | H183: 1.8568 | I183: 1.146474194e-07 | K183: 180 | L183: Santa Lúcia | M183: 158.8768 | N183: 5.285622114e-06 | O183: 158.8216
A184: 181 | B184: Jibuti | C184: 90.5704 | D184: 6.53345633e-06 | F184: 181 | G184: Lesoto | H184: 1.7136 | I184: 1.058055891e-07 | K184: 181 | L184: Botswana | M184: 148.875 | N184: 4.952875387e-06 | O184: 88.8014
A185: 182 | B185: Caimão, Ilhas | C185: 73.8006 | D185: 5.323737084e-06 | F185: 182 | G185: Nova Caledónia | H185: 1.426 | I185: 8.804783504e-08 | K185: 182 | L185: Quirguizistão | M185: 148.4064 | N185: 4.937285682e-06 | O185: 113.3972
A186: 183 | B186: Zimbabwe | C186: 66.8594 | D186: 4.82302132e-06 | F186: 183 | G186: Bermudas | H186: 0.8348 | I186: 5.154441283e-08 | K186: 183 | L186: Liechtenstein | M186: 146.2934 | N186: 4.866988951e-06 | O186: 142.5798
A187: 184 | B187: Turcas e Caicos, Ilhas | C187: 48.519 | D187: 3.500004059e-06 | F187: 184 | G187: Polinésia Francesa | H187: 0.8324 | I187: 5.139622573e-08 | K187: 184 | L187: Ceuta e Melilha | M187: 132.796 | N187: 4.417948211e-06 | O187: 132.796
A188: 185 | B188: Virgens dos Estados Unidos, Ilhas | C188: 27.4406 | D188: 1.979476316e-06 | F188: 185 | G188: Micronésia, Estados Federados da | H188: 0.6592 | I188: 4.07020567e-08 | K188: 185 | L188: Nepal | M188: 126.3298 | N188: 4.202826244e-06 | O188: 102.2774
A189: 186 | B189: Mongólia | C189: 26.1112 | D189: 1.883577691e-06 | F189: 186 | G189: Afeganistão | H189: 0.6156 | I189: 3.800999106e-08 | K189: 186 | L189: Afeganistão | M189: 110.073 | N189: 3.661983896e-06 | O189: 108.8418
A190: 187 | B190: Belize | C190: 19.5092 | D190: 1.40733072e-06 | F190: 187 | G190: Trindade e Tobago | H190: 0.3824 | I190: 2.361114454e-08 | K190: 187 | L190: Virgens Britânicas, Ilhas | M190: 106.6778 | N190: 3.549030059e-06 | O190: 106.6638
A191: 188 | B191: Anguila | C191: 15.482 | D191: 1.11682151e-06 | F191: 188 | G191: Haiti | H191: 0.282 | I191: 1.741198421e-08 | K191: 188 | L191: Jibuti | M191: 100.4554 | N191: 3.342018997e-06 | O191: 80.6854
A192: 189 | B192: Brunei Darussalam | C192: 13.5634 | D192: 9.784198986e-07 | F192: 189 | G192: Montenegro | H192: 0.2684 | I192: 1.657225731e-08 | K192: 189 | L192: Tajiquistão | M192: 74.7168 | N192: 2.485729637e-06 | O192: -74.7168
A193: 190 | B193: Fiji, Ilhas | C193: 11.4598 | D193: 8.266729842e-07 | F193: 190 | G193: Burundi | H193: 0.1504 | I193: 9.286391578e-09 | K193: 190 | L193: Caimão, Ilhas | M193: 73.8014 | N193: 2.455275483e-06 | O193: 73.7998
A194: 191 | B194: Malavi | C194: 8.5154 | D194: 6.142734716e-07 | F194: 191 | G194: Oceano Indico, Território Britânico do | H194: 0.1384 | I194: 8.54545608e-09 | K194: 191 | L194: Fiji, Ilhas | M194: 61.5816 | N194: 2.048738814e-06 | O194: -38.662
A195: 192 | B195: São Vicente e Granadinas | C195: 7.5006 | D195: 5.410690749e-07 | F195: 192 | G195: Vanuatu | H195: 0.0874 | I195: 5.396480212e-09 | K195: 192 | L195: Turcas e Caicos, Ilhas | M195: 48.519 | N195: 1.614163297e-06 | O195: 48.519
A196: 193 | B196: Guam | C196: 6.4026 | D196: 4.618628989e-07 | F196: 193 | G196: Nauru | H196: 0.0694 | I196: 4.285076965e-09 | K196: 193 | L196: Falkland Ilhas (Malvinas) | M196: 46.09 | N196: 1.533353663e-06 | O196: -46.09
A197: 194 | B197: Territórios Franceses do Sul | C197: 6.3292 | D197: 4.565680598e-07 | F197: 194 | G197: Palau | H197: 0.0478 | I197: 2.951393068e-09 | K197: 194 | L197: São Pedro e Miquelon | M197: 28.9156 | N197: 9.6198397e-07 | O197: -28.9156
A198: 195 | B198: Faroé, Ilhas | C198: 5.567 | D198: 4.015854119e-07 | F198: 195 | G198: Butão | H198: 0.0362 | I198: 2.23515542e-09 | K198: 195 | L198: Virgens dos Estados Unidos, Ilhas | M198: 27.4406 | N198: 9.129126606e-07 | O198: 27.4406
A199: 196 | B199: Sudão do Sul | C199: 3.771 | D199: 2.720277687e-07 | F199: 196 | G199: Santa Lúcia | H199: 0.0276 | I199: 1.704151646e-09 | K199: 196 | L199: Mongólia | M199: 26.1254 | N199: 8.691576869e-07 | O199: 26.097
A200: 197 | B200: Marianas do Norte, Ilhas | C200: 2.9244 | D200: 2.109567772e-07 | F200: 197 | G200: Coreia, República Popular Democrática da | H200: 0.0196 | I200: 1.210194647e-09 | K200: 197 | L200: Marshall, Ilhas | M200: 18.3784 | N200: 6.11425189e-07 | O200: -18.3784
... 59 more rows

Sheet 2AA
A1: Ranking dos parceiros comerciais de Portugal por país (média 2019-2023 em milhares de euros) produtos agrícolas e agroalimentares
A2: Exportações | F2: Importações | K2: Trocas comerciais (total e saldo)
A3: P | B3: País | C3: média quinquénio | D3: % do Total | F3: P | G3: País | H3: média quinquénio | I3: % do Total | K3: P | L3: País | M3: Total (exp+imp) | N3: % do Total | O3: Saldo (exp-imp)
A4: 1 | B4: Espanha | C4: 2754910.088 | D4: 0.355854133 | F4: 1 | G4: Espanha | H4: 5231129.168 | I4: 0.4657124432 | K4: 1 | L4: Espanha | M4: 7986039.256 | N4: 0.4208890698 | O4: -2476219.08
A5: 2 | B5: França | C5: 750433.8928 | D5: 0.09693419885 | F5: 2 | G5: França | H5: 875820.1248 | I5: 0.07797175658 | K5: 2 | L5: França | M5: 1626254.018 | N5: 0.08570863714 | O5: -125386.232
A6: 3 | B6: Itália | C6: 480519.5302 | D6: 0.06206912579 | F6: 3 | G6: Alemanha | H6: 722469.3516 | I6: 0.06431937658 | K6: 3 | L6: Países Baixos | M6: 1047151.811 | N6: 0.0551881524 | O6: -317492.277
A7: 4 | B7: Brasil | C7: 405336.56 | D7: 0.05235767612 | F7: 4 | G7: Países Baixos | H7: 682322.0438 | I7: 0.06074517678 | K7: 4 | L7: Brasil | M7: 1040771.33 | N7: 0.05485188127 | O7: -230098.2102
A8: 5 | B8: Países Baixos | C8: 364829.7668 | D8: 0.0471253784 | F8: 5 | G8: Brasil | H8: 635434.7702 | I8: 0.05657093714 | K8: 5 | L8: Alemanha | M8: 1003758.573 | N8: 0.05290119403 | O8: -441180.13
A9: 6 | B9: Alemanha | C9: 281289.2216 | D9: 0.03633437349 | F9: 6 | G9: Itália | H9: 369898.8296 | I9: 0.03293103308 | K9: 6 | L9: Itália | M9: 850418.3598 | N9: 0.04481968858 | O9: 110620.7006 | P9: Nota: Nesta listagem, o Reino Unido passa a ser constituído por três componentes: Reino Unido [até 2020] ; Reino Unido (sem Irlanda do Norte) pós-2020 e Reino Unido (Irlanda do Norte) pós-2020. Estas componentes são calculadas igualmente como média do quinquénio, embora a primeira corresponda apenas a 2019-2020 e as duas últimas a 2021-2023.
A10: 7 | B10: Angola | C10: 239256.9608 | D10: 0.03090502979 | F10: 7 | G10: Bélgica | H10: 282007.7362 | I10: 0.02510634083 | K10: 7 | L10: Bélgica | M10: 456599.9768 | N10: 0.02406423677 | O10: -107415.4956
A11: 8 | B11: Reino Unido (sem Irlanda do Norte) pós 2020 | C11: 237395.5032 | D11: 0.03066458369 | F11: 8 | G11: Ucrânia | H11: 218361.7158 | I11: 0.01944011798 | K11: 8 | L11: Estados Unidos | M11: 399323.5974 | N11: 0.0210455937 | O11: -4830.235
A12: 9 | B12: Estados Unidos | C12: 197246.6812 | D12: 0.02547852543 | F12: 9 | G12: Polónia | H12: 217236.343 | I12: 0.01933992926 | K12: 9 | L12: Polónia | M12: 363004.7058 | N12: 0.01913147532 | O12: -71467.9802
A13: 10 | B13: Israel | C13: 180570.0632 | D13: 0.02332439217 | F13: 10 | G13: Estados Unidos | H13: 202076.9162 | I13: 0.01799032892 | K13: 10 | L13: Reino Unido (sem Irlanda do Norte) pós 2020 | M13: 311990.6544 | N13: 0.01644287639 | O13: 162800.352
A14: 11 | B14: Bélgica | C14: 174592.2406 | D14: 0.02255223162 | F14: 11 | G14: Roménia | H14: 147199.4388 | I14: 0.01310474433 | K14: 11 | L14: Angola | M14: 248842.9478 | N14: 0.01311479614 | O14: 229670.9738
A15: 12 | B15: Polónia | C15: 145768.3628 | D15: 0.01882902625 | F15: 12 | G15: África do Sul | H15: 122030.4884 | I15: 0.01086402478 | K15: 12 | L15: Ucrânia | M15: 226323.8304 | N15: 0.01192796872 | O15: -210399.6012
A16: 13 | B16: Reino Unido | C16: 140181.6612 | D16: 0.01810738714 | F16: 13 | G16: Canadá | H16: 114588.1522 | I16: 0.01020145491 | K16: 13 | L16: Reino Unido | M16: 218445.519 | N16: 0.01151275724 | O16: 61917.8034
A17: 14 | B17: Suíça | C17: 101109.2834 | D17: 0.01306037411 | F17: 14 | G17: Irlanda | H17: 113157.4162 | I17: 0.01007408058 | K17: 14 | L17: Canadá | M17: 187938.5752 | N17: 0.009904946565 | O17: -41237.7292
A18: 15 | B18: Cabo Verde | C18: 93249.769 | D18: 0.01204515379 | F18: 15 | G18: Argentina | H18: 81740.7798 | I18: 0.007277147447 | K18: 15 | L18: Israel | M18: 185902.3476 | N18: 0.009797631047 | O18: 175237.7788
A19: 16 | B19: Canadá | C19: 73350.423 | D19: 0.009474737958 | F19: 16 | G19: Reino Unido | H19: 78263.8578 | I19: 0.006967607043 | K19: 16 | L19: Roménia | M19: 163854.9424 | N19: 0.008635664324 | O19: -130543.9352
A20: 17 | B20: China, República Popular da | C20: 65000.047 | D20: 0.008396112624 | F20: 17 | G20: Dinamarca | H20: 78040.2892 | I20: 0.006947703371 | K20: 17 | L20: África do Sul | M20: 144191.6388 | N20: 0.007599347159 | O20: -99869.338
A21: 18 | B21: Japão | C21: 61056.1688 | D21: 0.007886678446 | F21: 18 | G21: Reino Unido (sem Irlanda do Norte) pós 2020 | H21: 74595.1512 | I21: 0.006640992605 | K21: 18 | L21: Irlanda | M21: 143972.3374 | N21: 0.007587789294 | O21: -82342.495
A22: 19 | B22: Suécia | C22: 55290.0604 | D22: 0.007141865207 | F22: 19 | G22: Costa Rica | H22: 70757.5668 | I22: 0.00629934346 | K22: 19 | L22: Dinamarca | M22: 126248.1808 | N22: 0.006653671198 | O22: -29832.3976
A23: 20 | B23: Marrocos | C23: 49742.7108 | D23: 0.006425309233 | F23: 20 | G23: China, República Popular da | H23: 48105.8896 | I23: 0.004282729533 | K23: 20 | L23: China, República Popular da | M23: 113105.9366 | N23: 0.005961034115 | O23: 16894.1574
A24: 21 | B24: Luxemburgo | C24: 48494.8944 | D24: 0.006264127703 | F24: 21 | G24: Bulgária | H24: 41680.5786 | I24: 0.003710702503 | K24: 21 | L24: Suíça | M24: 103783.1754 | N24: 0.005469695647 | O24: 98435.3914
A25: 22 | B25: Dinamarca | C25: 48207.8916 | D25: 0.006227055301 | F25: 22 | G25: Grécia | H25: 35221.4358 | I25: 0.003135663524 | K25: 22 | L25: Cabo Verde | M25: 93394.9182 | N25: 0.004922202232 | O25: 93104.6198
A26: 23 | B26: Rússia, Federação da | C26: 47519.044 | D26: 0.006138076258 | F26: 23 | G26: Colômbia | H26: 31210.9008 | I26: 0.002778617082 | K26: 23 | L26: Argentina | M26: 82057.188 | N26: 0.00432466864 | O26: -81424.3716
A27: 24 | B27: Guiné-Bissau | C27: 33198.0766 | D27: 0.004288224438 | F27: 24 | G27: Guiana | H27: 31014.2578 | I27: 0.00276111052 | K27: 24 | L27: Japão | M27: 72870.7534 | N27: 0.003840515008 | O27: 49241.5842
A28: 25 | B28: Irlanda | C28: 30814.9212 | D28: 0.003980390182 | F28: 25 | G28: Vietname | H28: 30892.4606 | I28: 0.002750267264 | K28: 25 | L28: Costa Rica | M28: 72069.7792 | N28: 0.00379830118 | O28: -69445.3544
A29: 26 | B29: Arábia Saudita | C29: 29146.6976 | D29: 0.003764904288 | F29: 26 | G29: Cuba | H29: 28789.5394 | I29: 0.002563050214 | K29: 26 | L29: Suécia | M29: 68998.0924 | N29: 0.003636413746 | O29: 41582.0284
A30: 27 | B30: Moçambique | C30: 28593.5828 | D30: 0.003693457968 | F30: 27 | G30: Áustria | H30: 28139.855 | I30: 0.002505210673 | K30: 27 | L30: Marrocos | M30: 61066.293 | N30: 0.003218383285 | O30: 38419.1286
A31: 28 | B31: São Tomé e Príncipe | C31: 25042.9108 | D31: 0.003234814577 | F31: 28 | G31: Chile | H31: 26079.5438 | I31: 0.00232178707 | K31: 28 | L31: Grécia | M31: 60200.4906 | N31: 0.00317275281 | O31: -10242.381
A32: 29 | B32: Grécia | C32: 24979.0548 | D32: 0.003226566242 | F32: 29 | G32: Checa, República | H32: 24187.3892 | I32: 0.002153333966 | K32: 29 | L32: Rússia, Federação da | M32: 59387.4838 | N32: 0.003129904827 | O32: 35650.6042
A33: 30 | B33: Finlândia | C33: 22471.8472 | D33: 0.002902708054 | F33: 30 | G33: Índia | H33: 24071.1164 | I33: 0.002142982532 | K33: 30 | L33: Luxemburgo | M33: 56774.71 | N33: 0.002992203534 | O33: 40215.0788
A34: 31 | B34: África do Sul | C34: 22161.1504 | D34: 0.002862575079 | F34: 31 | G34: Uruguai | H34: 22728.6904 | I34: 0.002023470191 | K34: 31 | L34: Bulgária | M34: 50689.3586 | N34: 0.002671486616 | O34: -32671.7986
A35: 32 | B35: Jordânia | C35: 21896.9324 | D35: 0.00282844581 | F35: 32 | G35: Costa do Marfim | H35: 22619.1532 | I35: 0.002013718408 | K35: 32 | L35: Checa, República | M35: 43680.2136 | N35: 0.002302082908 | O35: -4694.5648
A36: 33 | B36: Argélia | C36: 20564.5852 | D36: 0.002656345363 | F36: 33 | G36: Turquia | H36: 19669.1404 | I36: 0.00175108722 | K36: 33 | L36: Áustria | M36: 42720.5824 | N36: 0.002251507363 | O36: -13559.1276
A37: 34 | B37: Checa, República | C37: 19492.8244 | D37: 0.002517905088 | F37: 34 | G37: Hungria | H37: 19287.1012 | I37: 0.001717075364 | K37: 34 | L37: Moçambique | M37: 38413.1156 | N37: 0.002024490486 | O37: 18774.05
A38: 35 | B38: Noruega | C38: 18383.7692 | D38: 0.002374647462 | F38: 35 | G38: Suazilândia | H38: 17908.3868 | I38: 0.001594332371 | K38: 35 | L38: Colômbia | M38: 37783.0514 | N38: 0.001991284146 | O38: -24638.7502
A39: 36 | B39: Coreia, República da | C39: 16791.3796 | D39: 0.002168957112 | F39: 36 | G39: Letónia | H39: 17532.862 | I39: 0.001560900474 | K39: 36 | L39: Guiné-Bissau | M39: 33468.9146 | N39: 0.001763915739 | O39: 32927.2386
A40: 37 | B40: Roménia | C40: 16655.5036 | D40: 0.002151405891 | F40: 37 | G40: Uganda | H40: 17520.206 | I40: 0.001559773747 | K40: 37 | L40: Austrália | M40: 33457.3372 | N40: 0.001763305574 | O40: -225.0956
A41: 38 | B41: Austrália | C41: 16616.1208 | D41: 0.002146318781 | F41: 38 | G41: Austrália | H41: 16841.2164 | I41: 0.001499325248 | K41: 38 | L41: Cuba | M41: 33227.7552 | N41: 0.001751205889 | O41: -24351.3236
A42: 39 | B42: Áustria | C42: 14580.7274 | D42: 0.001883405244 | F42: 39 | G42: Lituânia | H42: 14499.352 | I42: 0.00129083577 | K42: 39 | L42: Vietname | M42: 32990.619 | N42: 0.001738708075 | O42: -28794.3022
A43: 40 | B43: Emirados Árabes Unidos | C43: 13772.665 | D43: 0.001779027121 | F43: 40 | G43: México | H43: 13943.036 | I43: 0.00124130855 | K43: 40 | L43: Hungria | M43: 31358.0174 | N43: 0.001652664901 | O43: -7216.185
A44: 41 | B44: Iraque | C44: 13213.736 | D44: 0.001706829776 | F44: 41 | G44: Suécia | H44: 13708.032 | I44: 0.001220386817 | K44: 41 | L44: Chile | M44: 31046.9554 | N44: 0.001636270967 | O44: -21112.1322
A45: 42 | B45: Nigéria | C45: 12563.3872 | D45: 0.001622823655 | F45: 42 | G45: Peru | H45: 13551.168 | I45: 0.001206421664 | K45: 42 | L45: Guiana | M45: 31034.393 | N45: 0.00163560889 | O45: -30994.1226
A46: 43 | B46: Hungria | C46: 12070.9162 | D46: 0.001559210748 | F46: 43 | G46: Egito | H46: 13444.298 | I46: 0.001196907335 | K46: 43 | L46: Finlândia | M46: 30551.8208 | N46: 0.001610175836 | O46: 14391.8736
A47: 44 | B47: Macau | C47: 11451.795 | D47: 0.001479238324 | F47: 44 | G47: Indonésia | H47: 13373.0124 | I47: 0.001190560982 | K47: 44 | L47: Costa do Marfim | M47: 30195.6948 | N47: 0.00159140689 | O47: -15042.6116
A48: 45 | B48: Território Palestiniano Ocupado | C48: 11126.9966 | D48: 0.001437283832 | F48: 45 | G48: Paquistão | H48: 12392.2874 | I48: 0.001103249845 | K48: 45 | L48: Turquia | M48: 29726.9116 | N48: 0.00156670056 | O48: -9611.3692
A49: 46 | B49: Líbia, Jamahira Árabe da | C49: 10747.1924 | D49: 0.001388224193 | F49: 46 | G49: Moldava, República de | H49: 12169.9488 | I49: 0.001083455676 | K49: 46 | L49: Arábia Saudita | M49: 29183.7424 | N49: 0.001538073856 | O49: 29109.6528
A50: 47 | B50: Senegal | C50: 10277.8906 | D50: 0.001327604071 | F50: 47 | G50: Rússia, Federação da | H50: 11868.4398 | I50: 0.001056613194 | K50: 47 | L50: Índia | M50: 27213.7138 | N50: 0.001434247231 | O50: -20928.519
A51: 48 | B51: Turquia | C51: 10057.7712 | D51: 0.001299171057 | F51: 48 | G51: Japão | H51: 11814.5846 | I51: 0.001051818619 | K51: 48 | L51: São Tomé e Príncipe | M51: 26131.7412 | N51: 0.001377223915 | O51: 23954.0804
A52: 49 | B52: Kuwait | C52: 9238.6512 | D52: 0.001193364614 | F52: 49 | G52: Marrocos | H52: 11323.5822 | I52: 0.001008106082 | K52: 49 | L52: Uruguai | M52: 24804.8012 | N52: 0.001307290056 | O52: -20652.5796
A53: 50 | B53: Bulgária | C53: 9008.78 | D53: 0.001163671951 | F53: 50 | G53: Tailândia | H53: 10221.0348 | I53: 0.0009099494461 | K53: 50 | L53: Letónia | M53: 24493.1076 | N53: 0.001290862835 | O53: -10572.6164
A54: 51 | B54: Eslováquia | C54: 8993.6222 | D54: 0.001161714004 | F54: 51 | G54: Paraguai | H54: 9862.989 | I54: 0.0008780736543 | K54: 51 | L54: Argélia | M54: 22394.6546 | N54: 0.001180267845 | O54: 18734.5158
A55: 52 | B55: Ucrânia | C55: 7962.1146 | D55: 0.00102847327 | F55: 52 | G55: Moçambique | H55: 9819.5328 | I55: 0.0008742048733 | K55: 52 | L55: Jordânia | M55: 22017.5574 | N55: 0.001160393652 | O55: 21776.3074
A56: 53 | B56: Costa do Marfim | C56: 7576.5416 | D56: 0.0009786684705 | F56: 53 | G56: Angola | H56: 9585.987 | I56: 0.0008534129598 | K56: 53 | L56: México | M56: 20411.189 | N56: 0.001075733048 | O56: -7474.883
A57: 54 | B57: Letónia | C57: 6960.2456 | D57: 0.0008990609799 | F57: 54 | G57: Equador | H57: 9434.6834 | I57: 0.0008399428338 | K57: 54 | L57: Lituânia | M57: 20173.4692 | N57: 0.001063204477 | O57: -8825.2348
A58: 55 | B58: Gibraltar | C58: 6866.4034 | D58: 0.0008869393013 | F58: 55 | G58: Sérvia | H58: 8961.3786 | I58: 0.0007978058634 | K58: 55 | L58: Suazilândia | M58: 19974.7336 | N58: 0.001052730493 | O58: -15842.04
A59: 56 | B59: Maurícias | C59: 6601.9064 | D59: 0.0008527739937 | F59: 56 | G59: Belize | H59: 8481.6488 | I59: 0.0007550968937 | K59: 56 | L59: Noruega | M59: 19563.0642 | N59: 0.001031034237 | O59: 17204.4742
A60: 57 | B60: Colômbia | C60: 6572.1506 | D60: 0.0008489304111 | F60: 57 | G60: Luxemburgo | H60: 8279.8156 | I60: 0.0007371282621 | K60: 57 | L60: Uganda | M60: 18130.605 | N60: 0.000955539189 | O60: -16909.807
A61: 58 | B61: México | C61: 6468.153 | D61: 0.0008354969506 | F61: 58 | G61: Estónia | H61: 8118.3658 | I61: 0.000722754849 | K61: 58 | L61: Coreia, República da | M61: 18110.489 | N61: 0.0009544790133 | O61: 15472.2702
A62: 59 | B62: Andorra | C62: 5880.33 | D62: 0.0007595673423 | F62: 59 | G62: Finlândia | H62: 8079.9736 | I62: 0.0007193369014 | K62: 59 | L62: Peru | M62: 15535.3602 | N62: 0.0008187617284 | O62: -11566.9758
A63: 60 | B63: Malta | C63: 5863.9562 | D63: 0.0007574523243 | F63: 60 | G63: Nova Zelânda | H63: 7373.8418 | I63: 0.0006564720102 | K63: 60 | L63: Egito | M63: 15081.777 | N63: 0.0007948564851 | O63: -11806.819
A64: 61 | B64: Lituânia | C64: 5674.1172 | D64: 0.0007329306555 | F64: 61 | G64: Malásia | H64: 6878.284 | I64: 0.000612353919 | K64: 61 | L64: Indonésia | M64: 14608.0962 | N64: 0.0007698920359 | O64: -12137.9286
A65: 62 | B65: Estónia | C65: 5255.2302 | D65: 0.0006788226573 | F65: 62 | G65: Camarões | H65: 6873.699 | I65: 0.0006119457296 | K65: 62 | L65: Emirados Árabes Unidos | M65: 14301.077 | N65: 0.0007537111706 | O65: 13244.253
A66: 63 | B66: HongKong | C66: 4973.9084 | D66: 0.0006424840756 | F66: 63 | G66: Eslovénia | H66: 5844.3932 | I66: 0.0005203095831 | K66: 63 | L66: Eslováquia | M66: 14022.6874 | N66: 0.0007390391741 | O66: 3964.557
A67: 64 | B67: Chile | C67: 4967.4116 | D67: 0.0006416448783 | F67: 64 | G67: Israel | H67: 5332.2844 | I67: 0.0004747180037 | K67: 64 | L67: Tailândia | M67: 13537.848 | N67: 0.000713486632 | O67: -6904.2216
A68: 65 | B68: Chipre | C68: 4681.2394 | D68: 0.0006046797662 | F68: 65 | G68: Honduras | H68: 5320.7238 | I68: 0.0004736887966 | K68: 65 | L68: Estónia | M68: 13373.596 | N68: 0.0007048300416 | O68: -2863.1356
A69: 66 | B69: Cuba | C69: 4438.2158 | D69: 0.0005732881964 | F69: 66 | G69: Camboja | H69: 5251.2886 | I69: 0.0004675071797 | K69: 66 | L69: Iraque | M69: 13226 | N69: 0.000697051274 | O69: 13201.472
A70: 67 | B70: Mali | C70: 4408.7876 | D70: 0.0005694869302 | F70: 67 | G70: Zimbabwe | H70: 5172.692 | I70: 0.0004605099496 | K70: 67 | L70: Paquistão | M70: 12653.1082 | N70: 0.000666858097 | O70: -12131.4666
A71: 68 | B71: Omã | C71: 4251.3822 | D71: 0.0005491547377 | F71: 68 | G71: Eslováquia | H71: 5029.0652 | I71: 0.000447723267 | K71: 68 | L71: Nigéria | M71: 12613.3946 | N71: 0.0006647650669 | O71: 12513.3798
A72: 69 | B72: Sérvia | C72: 3643.2286 | D72: 0.0004705990081 | F72: 69 | G72: Reino Unido (Irlanda do Norte) pós-2020 | H72: 4895.674 | I72: 0.0004358478307 | K72: 69 | L72: Sérvia | M72: 12604.6072 | N72: 0.0006643019437 | O72: -5318.15
A73: 70 | B73: Gana | C73: 3561.703 | D73: 0.0004600682754 | F73: 70 | G73: Etiópia | H73: 4865.1618 | I73: 0.0004331314169 | K73: 70 | L73: Moldava, República de | M73: 12435.7686 | N73: 0.0006554036251 | O73: -11904.129
A74: 71 | B74: Síria, República Árabe da | C74: 3557.076 | D74: 0.0004594706018 | F74: 71 | G74: Tanzânia, República Unida da | H74: 4645.6112 | I74: 0.000413585456 | K74: 71 | L74: Macau | M74: 11470.0426 | N74: 0.0006045068658 | O74: 11433.5474
A75: 72 | B75: Tailândia | C75: 3316.8132 | D75: 0.0004284356468 | F75: 72 | G75: Filipinas | H75: 4316.8972 | I75: 0.0003843209903 | K75: 72 | L75: Território Palestiniano Ocupado | M75: 11138.6664 | N75: 0.0005870423109 | O75: 11115.3268
A76: 73 | B76: Singapura | C76: 3292.5498 | D76: 0.0004253015224 | F76: 73 | G76: Macedónia, Antiga República jugoslava da | H76: 4269.7612 | I76: 0.0003801246072 | K76: 73 | L76: Kuwait | M76: 10781.5982 | N76: 0.0005682237079 | O76: 7695.7042
A77: 74 | B77: Eslovénia | C77: 3214.7354 | D77: 0.0004152501686 | F77: 74 | G77: Myanmar | H77: 4258.6984 | I77: 0.0003791397179 | K77: 74 | L77: Senegal | M77: 10777.8742 | N77: 0.0005680274416 | O77: 9777.907
A78: 75 | B78: Índia | C78: 3142.5974 | D78: 0.0004059320404 | F78: 75 | G78: Tunísia | H78: 4096.4148 | I78: 0.0003646920739 | K78: 75 | L78: Líbia, Jamahira Árabe da | M78: 10763.4438 | N78: 0.0005672669147 | O78: 10730.941
A79: 76 | B79: Taiwan | C79: 3027.0112 | D79: 0.0003910016704 | F79: 76 | G79: Quénia | H79: 3999.5868 | I79: 0.0003560717544 | K79: 76 | L79: Paraguai | M79: 10570.759 | N79: 0.0005571118273 | O79: -9155.219
A80: 77 | B80: Guiné | C80: 2745.3572 | D80: 0.0003546201781 | F80: 77 | G80: Chipre | H80: 3964.7046 | I80: 0.0003529662921 | K80: 77 | L80: Equador | M80: 10263.3844 | N80: 0.0005409122313 | O80: -8605.9824
A81: 78 | B81: Burquina Faso | C81: 2525.8832 | D81: 0.0003262705306 | F81: 78 | G81: Suriname | H81: 3877.4378 | I81: 0.0003451971789 | K81: 78 | L81: Nova Zelânda | M81: 9856.092 | N81: 0.000519446657 | O81: -4891.5916
A82: 79 | B82: Venezuela | C82: 2486.9168 | D82: 0.0003212372068 | F82: 79 | G82: Malavi | H82: 3756.8802 | I82: 0.0003344642812 | K82: 79 | L82: Maurícias | M82: 9426.6558 | N82: 0.0004968140356 | O82: 3777.157
A83: 80 | B83: Nova Zelânda | C83: 2482.2502 | D83: 0.000320634418 | F83: 80 | G83: Guatemala | H83: 3336.0478 | I83: 0.0002969987782 | K83: 80 | L83: Eslovénia | M83: 9059.1286 | N83: 0.0004774442108 | O83: -2629.6578
A84: 81 | B84: Timor-Leste | C84: 2425.104 | D84: 0.0003132527936 | F84: 81 | G84: Sri Lanca | H84: 3081.7578 | I84: 0.000274360068 | K84: 81 | L84: Camarões | M84: 8912.767 | N84: 0.0004697304999 | O84: -4834.631
A85: 82 | B85: Filipinas | C85: 2423.494 | D85: 0.0003130448285 | F85: 82 | G85: Nicarágua | H85: 3050.975 | I85: 0.0002716195635 | K85: 82 | L85: Chipre | M85: 8645.944 | N85: 0.0004556680992 | O85: 716.5348
A86: 83 | B86: Congo | C86: 2410.8414 | D86: 0.0003114104812 | F86: 83 | G86: Maurícias | H86: 2824.7494 | I86: 0.0002514793465 | K86: 83 | L86: Belize | M86: 8501.158 | N86: 0.0004480374274 | O86: -8462.1396
A87: 84 | B87: Dominicana, República | C87: 2366.1238 | D87: 0.0003056342699 | F87: 84 | G87: Suíça | H87: 2673.892 | I87: 0.0002380489444 | K87: 84 | L87: Malásia | M87: 8478.9296 | N87: 0.0004468659216 | O87: -5277.6384
A88: 85 | B88: Seychelles | C88: 2266.2448 | D88: 0.0002927328126 | F88: 85 | G88: Taiwan | H88: 2620.8608 | I88: 0.0002333277286 | K88: 85 | L88: Mali | M88: 6882.4964 | N88: 0.0003627289342 | O88: 1935.0788
A89: 86 | B89: Belarus | C89: 2265.0334 | D89: 0.000292576335 | F89: 86 | G89: Dominicana, República | H89: 2590.705 | I89: 0.0002306430441 | K89: 86 | L89: Gibraltar | M89: 6866.425 | N89: 0.0003618819215 | O89: 6866.3818
A90: 87 | B90: Benim | C90: 2254.2056 | D90: 0.0002911776986 | F90: 87 | G90: Mali | H90: 2473.7088 | I90: 0.0002202272076 | K90: 87 | L90: Filipinas | M90: 6740.3912 | N90: 0.0003552395489 | O90: -1893.4032
A91: 88 | B91: Guiné Equatorial | C91: 2237.2378 | D91: 0.0002889859531 | F91: 88 | G91: Gana | H91: 2244.2026 | I91: 0.0001997949281 | K91: 88 | L91: Reino Unido (Irlanda do Norte) pós-2020 | M91: 6650.3094 | N91: 0.0003504919582 | O91: -3141.0386
A92: 89 | B92: Líbano | C92: 2221.1552 | D92: 0.0002869085497 | F92: 89 | G92: Croácia | H92: 2138.9776 | I92: 0.0001904270478 | K92: 89 | L92: HongKong | M92: 6486.5376 | N92: 0.0003418606758 | O92: 3461.2792
A93: 90 | B93: Gabão | C93: 2209.6904 | D93: 0.0002854276315 | F93: 90 | G93: Congo, República Democrática do | H93: 1937.5962 | I93: 0.0001724986387 | K93: 90 | L93: Malta | M93: 6388.2172 | N93: 0.0003366788854 | O93: 5339.6952
A94: 91 | B94: Croácia | C94: 2104.5002 | D94: 0.0002718401219 | F94: 91 | G94: Benim | H94: 1901.2456 | I94: 0.0001692624489 | K94: 91 | L94: Honduras | M94: 6000.563 | N94: 0.0003162483051 | O94: -4640.8846
A95: 92 | B95: Vietname | C95: 2098.1584 | D95: 0.000271020946 | F95: 92 | G95: Serra Leoa | H95: 1900.5094 | I95: 0.0001691969071 | K95: 92 | L95: Andorra | M95: 5897.0704 | N95: 0.0003107939237 | O95: 5863.5896
A96: 93 | B96: Uruguai | C96: 2076.1108 | D96: 0.0002681730384 | F96: 93 | G96: Argélia | H96: 1830.0694 | I96: 0.0001629258357 | K96: 93 | L96: Gana | M96: 5805.9056 | N96: 0.0003059892556 | O96: 1317.5004
A97: 94 | B97: Suazilândia | C97: 2066.3468 | D97: 0.000266911814 | F97: 94 | G97: Laos, República Democrática Popular do | H97: 1764.7672 | I97: 0.000157112168 | K97: 94 | L97: Camboja | M97: 5661.0952 | N97: 0.0002983572978 | O97: -4841.482
A98: 95 | B98: Camarões | C98: 2039.068 | D98: 0.0002633881877 | F98: 95 | G98: Burquina Faso | H98: 1596.6714 | I98: 0.0001421470805 | K98: 95 | L98: Taiwan | M98: 5647.872 | N98: 0.0002976603941 | O98: 406.1504
A99: 96 | B99: Peru | C99: 1984.1922 | D99: 0.0002562998328 | F99: 96 | G99: Kuwait | H99: 1542.947 | I99: 0.000137364151 | K99: 96 | L99: Etiópia | M99: 5274.7022 | N99: 0.0002779931868 | O99: -4455.6214
A100: 97 | B100: Catar | C100: 1922.7982 | D100: 0.0002483695164 | F100: 97 | G100: HongKong | H100: 1512.6292 | I100: 0.0001346650442 | K100: 97 | L100: Zimbabwe | M100: 5238.022 | N100: 0.0002760600263 | O100: -5107.362
A101: 98 | B101: Irão, República Islâmica do | C101: 1920.529 | D101: 0.0002480764019 | F101: 98 | G101: Panamá | H101: 1505.4946 | I101: 0.0001340298712 | K101: 98 | L101: Tunísia | M101: 5011.6896 | N101: 0.000264131606 | O101: -3181.14
A102: 99 | B102: Geórgia | C102: 1916.3824 | D102: 0.000247540782 | F102: 99 | G102: Madagáscar | H102: 1471.7744 | I102: 0.0001310278584 | K102: 99 | L102: Tanzânia, República Unida da | M102: 4986.1422 | N102: 0.0002627851786 | O102: -4305.0802
A103: 100 | B103: Reino Unido (Irlanda do Norte) pós-2020 | C103: 1754.6354 | D103: 0.0002266477812 | F103: 100 | G103: Coreia, República da | H103: 1319.1094 | I103: 0.0001174365308 | K103: 100 | L103: Dominicana, República | M103: 4956.8288 | N103: 0.0002612402714 | O103: -224.5812
A104: 101 | B104: Egito | C104: 1637.479 | D104: 0.0002115145871 | F104: 101 | G104: Singapura | H104: 1313.0898 | I104: 0.000116900623 | K104: 101 | L104: Omã | M104: 4826.1814 | N104: 0.0002543547477 | O104: 3676.583
A105: 102 | B105: Malásia | C105: 1600.6456 | D105: 0.0002067567848 | F105: 102 | G105: Noruega | H105: 1179.295 | I105: 0.0001049892553 | K105: 102 | L105: Singapura | M105: 4605.6396 | N105: 0.00024273151 | O105: 1979.46
A106: 103 | B106: Bangladesh | C106: 1592.1082 | D106: 0.0002056540014 | F106: 103 | G106: São Tomé e Príncipe | H106: 1088.8304 | I106: 9.693545113e-05 | K106: 103 | L106: Myanmar | M106: 4593.3818 | N106: 0.0002420854858 | O106: -3924.015
A107: 104 | B107: Congo, República Democrática do | C107: 1477.1908 | D107: 0.0001908100209 | F107: 104 | G107: Timor-Leste | H107: 773.0574 | I107: 6.88230856e-05 | K107: 104 | L107: Macedónia, Antiga República jugoslava da | M107: 4569.6312 | N107: 0.0002408337555 | O107: -3969.8912
A108: 105 | B108: Costa Rica | C108: 1312.2124 | D108: 0.0001694996174 | F108: 105 | G108: El Salvador | H108: 699.8298 | I108: 6.230384216e-05 | K108: 105 | L108: Quénia | M108: 4449.271 | N108: 0.0002344903991 | O108: -3549.9026
A109: 106 | B109: Sudão | C109: 1307.024 | D109: 0.0001688294273 | F109: 106 | G109: Turquemenistão | H109: 693.7048 | I109: 6.175855096e-05 | K109: 106 | L109: Croácia | M109: 4243.4778 | N109: 0.0002236444584 | O109: -34.4774
A110: 107 | B110: Togo | C110: 1248.9136 | D110: 0.0001613232563 | F110: 107 | G110: Cazaquistão | H110: 686.1392 | I110: 6.108500726e-05 | K110: 107 | L110: Benim | M110: 4155.4512 | N110: 0.0002190051832 | O110: 352.96
A111: 108 | B111: Indonésia | C111: 1235.0838 | D111: 0.000159536849 | F111: 108 | G111: Omã | H111: 574.7992 | I111: 5.117272604e-05 | K111: 108 | L111: Burquina Faso | M111: 4122.5546 | N111: 0.0002172714302 | O111: 929.2118
A112: 109 | B112: Islândia | C112: 1198.9784 | D112: 0.0001548730831 | F112: 109 | G112: Geórgia | H112: 547.4566 | I112: 4.87384927e-05 | K112: 109 | L112: Suriname | M112: 4115.4388 | N112: 0.0002168964055 | O112: -3639.4368
A113: 110 | B113: Panamá | C113: 1014.5438 | D113: 0.0001310495054 | F113: 110 | G113: Emirados Árabes Unidos | H113: 528.412 | I113: 4.704300652e-05 | K113: 110 | L113: Guatemala | M113: 3875.6132 | N113: 0.0002042568515 | O113: -2796.4824
A114: 111 | B114: Tunísia | C114: 915.2748 | D114: 0.0001182268423 | F114: 111 | G114: Malta | H114: 524.261 | I114: 4.667345488e-05 | K114: 111 | L114: Malavi | M114: 3763.5146 | N114: 0.0001983489072 | O114: -3750.2458
A115: 112 | B115: Equador | C115: 828.701 | D115: 0.0001070440292 | F115: 112 | G115: Senegal | H115: 499.9836 | I115: 4.451210751e-05 | K115: 112 | L115: Síria, República Árabe da | M115: 3703.4868 | N115: 0.0001951852557 | O115: 3410.6652
A116: 113 | B116: Bermudas | C116: 818.2718 | D116: 0.0001056968803 | F116: 113 | G116: Usbequistão | H116: 380.3472 | I116: 3.386122156e-05 | K116: 113 | L116: Sri Lanca | M116: 3487.029 | N116: 0.0001837772574 | O116: -2676.4866
A117: 114 | B117: Kosovo | C117: 799.843 | D117: 0.0001033164162 | F117: 114 | G117: Líbano | H117: 342.886 | I117: 3.052615825e-05 | K117: 114 | L117: Nicarágua | M117: 3449.8372 | N117: 0.0001818171341 | O117: -2652.1128
A118: 115 | B118: Paraguai | C118: 707.77 | D118: 9.14232667e-05 | F118: 115 | G118: Chade | H118: 303.1764 | I118: 2.699092633e-05 | K118: 115 | L118: Congo, República Democrática do | M118: 3414.787 | N118: 0.0001799698797 | O118: -460.4054
A119: 116 | B119: Honduras | C119: 679.8392 | D119: 8.781542096e-05 | F119: 116 | G119: Bangladesh | H119: 298.8156 | I119: 2.660269679e-05 | K119: 116 | L119: Timor-Leste | M119: 3198.1614 | N119: 0.0001685530378 | O119: 1652.0466
A120: 117 | B120: Aruba | C120: 651.3298 | D120: 8.413283696e-05 | F120: 117 | G120: Bolívia | H120: 296.5114 | I120: 2.639756047e-05 | K120: 117 | L120: Guiné | M120: 3020.6542 | N120: 0.0001591978571 | O120: 2470.0602
A121: 118 | B121: Mauritânia | C121: 615.705 | D121: 7.953115055e-05 | F121: 118 | G121: Venezuela | H121: 285.0498 | I121: 2.537716706e-05 | K121: 118 | L121: Venezuela | M121: 2771.9666 | N121: 0.0001460912483 | O121: 2201.867
A122: 119 | B122: Uganda | C122: 610.399 | D122: 7.884576991e-05 | F122: 119 | G122: Guiné | H122: 275.297 | I122: 2.450890321e-05 | K122: 119 | L122: Congo | M122: 2664.9158 | N122: 0.0001404493387 | O122: 2156.767
A123: 120 | B123: Namíbia | C123: 600.2532 | D123: 7.75352281e-05 | F123: 120 | G123: Guiné-Bissau | H123: 270.838 | I123: 2.411193122e-05 | K123: 120 | L123: Líbano | M123: 2564.0412 | N123: 0.000135132934 | O123: 1878.2692
A124: 121 | B124: Cazaquistão | C124: 584.6762 | D124: 7.552313345e-05 | F124: 121 | G124: Congo | H124: 254.0744 | I124: 2.261951594e-05 | K124: 121 | L124: Panamá | M124: 2520.0384 | N124: 0.0001328138498 | O124: -490.9508
A125: 122 | B125: Albânia | C125: 582.0574 | D125: 7.518486078e-05 | F125: 122 | G125: Belarus | H125: 241.8214 | I125: 2.152866645e-05 | K125: 122 | L125: Belarus | M125: 2506.8548 | N125: 0.0001321190331 | O125: 2023.212
A126: 123 | B126: Ruanda | C126: 580.43 | D126: 7.49746481e-05 | F126: 123 | G126: Togo | H126: 238.6312 | I126: 2.124465208e-05 | K126: 123 | L126: Geórgia | M126: 2463.839 | N126: 0.0001298519669 | O126: 1368.9258
A127: 124 | B127: Azerbaijão | C127: 564.159 | D127: 7.287290888e-05 | F127: 124 | G127: Irão, República Islâmica do | H127: 186.7364 | I127: 1.662460671e-05 | K127: 124 | L127: Serra Leoa | M127: 2326.8524 | N127: 0.0001226323476 | O127: -1474.1664
A128: 125 | B128: São Bartolomeu | C128: 548.5216 | D128: 7.085301231e-05 | F128: 125 | G128: Zâmbia | H128: 183.9482 | I128: 1.637638125e-05 | K128: 125 | L128: Seychelles | M128: 2267.3882 | N128: 0.0001194983996 | O128: 2265.1014
A129: 126 | B129: Guatemala | C129: 539.5654 | D129: 6.969613217e-05 | F129: 126 | G129: Islândia | H129: 183.9188 | I129: 1.637376386e-05 | K129: 126 | L129: Guiné Equatorial | M129: 2237.2378 | N129: 0.0001179093799 | O129: 2237.2378
A130: 127 | B130: Arménia | C130: 525.5354 | D130: 6.788386486e-05 | F130: 127 | G130: Síria, República Árabe da | H130: 146.4108 | I130: 1.303453407e-05 | K130: 127 | L130: Gabão | M130: 2210.0274 | N130: 0.0001164753073 | O130: 2209.3534
A131: 128 | B131: Barém | C131: 502.4658 | D131: 6.490394456e-05 | F131: 128 | G131: Cabo Verde | H131: 145.1492 | I131: 1.292221744e-05 | K131: 128 | L131: Irão, República Islâmica do | M131: 2107.2654 | N131: 0.0001110594308 | O131: 1733.7926
A132: 129 | B132: Bolívia | C132: 494.4554 | D132: 6.386923422e-05 | F132: 129 | G132: Azerbaijão | H132: 124.9014 | I132: 1.111961381e-05 | K132: 129 | L132: Catar | M132: 1939.0478 | N132: 0.0001021938409 | O132: 1906.5486
A133: 130 | B133: Burundi | C133: 484.978 | D133: 6.264503022e-05 | F133: 130 | G133: Jordânia | H133: 120.625 | I133: 1.073889817e-05 | K133: 130 | L133: Bangladesh | M133: 1890.9238 | N133: 9.965755662e-05 | O133: 1293.2926
A134: 131 | B134: Quénia | C134: 449.6842 | D134: 5.808609936e-05 | F134: 131 | G134: Albânia | H134: 120.2724 | I134: 1.070750721e-05 | K134: 131 | L134: Laos, República Democrática Popular do | M134: 1777.8864 | N134: 9.370013459e-05 | O134: -1751.648
A135: 132 | B135: Gâmbia | C135: 434.028 | D135: 5.606377439e-05 | F135: 132 | G135: Iémen | H135: 84.6154 | I135: 7.533066648e-06 | K135: 132 | L135: Madagáscar | M135: 1602.434 | N135: 8.445324824e-05 | O135: -1341.1148
A136: 133 | B136: Serra Leoa | C136: 426.343 | D136: 5.507109625e-05 | F136: 133 | G136: Kosovo | H136: 79.8322 | I136: 7.107232056e-06 | K136: 133 | L136: Togo | M136: 1487.5448 | N136: 7.83982306e-05 | O136: 1010.2824
A137: 134 | B137: Camboja | C137: 409.8066 | D137: 5.293507507e-05 | F137: 134 | G137: Tajiquistão | H137: 74.7168 | I137: 6.651822649e-06 | K137: 134 | L137: Islândia | M137: 1382.8972 | N137: 7.288297709e-05 | O137: 1015.0596
A138: 135 | B138: Etiópia | C138: 409.5404 | D138: 5.290068979e-05 | F138: 135 | G138: Namíbia | H138: 64.9894 | I138: 5.785820095e-06 | K138: 135 | L138: Sudão | M138: 1318.1622 | N138: 6.947124156e-05 | O138: 1295.8858
A139: 136 | B139: Sri Lanca | C139: 405.2712 | D139: 5.234923351e-05 | F139: 136 | G139: Libéria | H139: 54.4472 | I139: 4.847278231e-06 | K139: 136 | L139: Cazaquistão | M139: 1270.8154 | N139: 6.697591816e-05 | O139: -101.463
A140: 137 | B140: Antígua e Barbuda | C140: 403.3246 | D140: 5.20977895e-05 | F140: 137 | G140: Nigéria | H140: 50.0074 | I140: 4.452015556e-06 | K140: 137 | L140: El Salvador | M140: 1081.0396 | N140: 5.697414414e-05 | O140: -318.62
A141: 138 | B141: Nicarágua | C141: 398.8622 | D141: 5.15213774e-05 | F141: 138 | G141: Aruba | H141: 45.6144 | I141: 4.060919352e-06 | K141: 138 | L141: Kosovo | M141: 879.6752 | N141: 4.636161491e-05 | O141: 720.0108
A142: 139 | B142: El Salvador | C142: 381.2098 | D142: 4.924120154e-05 | F142: 139 | G142: Bósnia-Herzegovina | H142: 42.5574 | I142: 3.7887634e-06 | K142: 139 | L142: Bermudas | M142: 818.9736 | N142: 4.316245208e-05 | O142: 817.57
A143: 140 | B143: São Martinho (parte holandesa) | C143: 373.2376 | D143: 4.821142553e-05 | F143: 140 | G143: Curaçau | H143: 39.2148 | I143: 3.491181298e-06 | K143: 140 | L143: Bolívia | M143: 790.9668 | N143: 4.168640675e-05 | O143: 197.944
A144: 141 | B144: Iémen | C144: 360.3172 | D144: 4.654248622e-05 | F144: 141 | G144: Arménia | H144: 37.5768 | I144: 3.345354851e-06 | K144: 141 | L144: Albânia | M144: 702.3298 | N144: 3.701496158e-05 | O144: 461.785
A145: 142 | B145: Tanzânia, República Unida da | C145: 340.531 | D145: 4.398668555e-05 | F145: 142 | G145: Arábia Saudita | H145: 37.0448 | I145: 3.297992415e-06 | K145: 142 | L145: Turquemenistão | M145: 700.9924 | N145: 3.694447645e-05 | O145: -686.4172
A146: 143 | B146: Myanmar | C146: 334.6834 | D146: 4.323134597e-05 | F146: 143 | G146: Botswana | H146: 30.0368 | I146: 2.674090252e-06 | K146: 143 | L146: Aruba | M146: 696.9442 | N146: 3.673112373e-05 | O146: 605.7154
A147: 144 | B147: Comores | C147: 333.8038 | D147: 4.311772727e-05 | F147: 144 | G147: Ruanda | H147: 26.8274 | I147: 2.388366564e-06 | K147: 144 | L147: Azerbaijão | M147: 689.0604 | N147: 3.631562299e-05 | O147: 439.2576
A148: 145 | B148: Argentina | C148: 316.4082 | D148: 4.087072249e-05 | F148: 145 | G148: São Marino | H148: 25.2246 | I148: 2.245673872e-06 | K148: 145 | L148: Namíbia | M148: 665.2426 | N148: 3.506035096e-05 | O148: 535.2638
A149: 146 | B149: Jamaica | C149: 302.5728 | D149: 3.908359183e-05 | F149: 146 | G149: Macau | H149: 18.2476 | I149: 1.624531551e-06 | K149: 146 | L149: Mauritânia | M149: 617.715 | N149: 3.255549884e-05 | O149: 613.695
A150: 147 | B150: Libéria | C150: 301.9358 | D150: 3.900130999e-05 | F150: 147 | G150: Quirguizistão | H150: 17.5046 | I150: 1.558384389e-06 | K150: 147 | L150: Ruanda | M150: 607.2574 | N150: 3.200435085e-05 | O150: 553.6026
A151: 148 | B151: Macedónia, Antiga República jugoslava da | C151: 299.87 | D151: 3.87344688e-05 | F151: 148 | G151: Andorra | H151: 16.7404 | I151: 1.490349853e-06 | K151: 148 | L151: Arménia | M151: 563.1122 | N151: 2.967776171e-05 | O151: 487.9586
A152: 149 | B152: Somália | C152: 292.8384 | D152: 3.782619091e-05 | F152: 149 | G152: Líbia, Jamahira Árabe da | H152: 16.2514 | I152: 1.446815584e-06 | K152: 149 | L152: São Bartolomeu | M152: 548.8046 | N152: 2.892370676e-05 | O152: 548.2386
A153: 150 | B153: Moldava, República de | C153: 265.8198 | D153: 3.433617484e-05 | F153: 150 | G153: Catar | H153: 16.2496 | I153: 1.446655335e-06 | K153: 150 | L153: Barém | M153: 506.7984 | N153: 2.670984957e-05 | O153: 498.1332
A154: 151 | B154: Paquistão | C154: 260.8208 | D154: 3.369044966e-05 | F154: 151 | G154: Jamaica | H154: 14.6482 | I154: 1.304087281e-06 | K154: 151 | L154: Burundi | M154: 485.092 | N154: 2.556585488e-05 | O154: 484.864
A155: 152 | B155: Curaçau | C155: 251.4226 | D155: 3.247647599e-05 | F155: 152 | G155: São Cristovão e Nevis | H155: 12.4064 | I155: 1.104506249e-06 | K155: 152 | L155: Iémen | M155: 444.9326 | N155: 2.344932978e-05 | O155: 275.7018
A156: 153 | B156: Suriname | C156: 238.001 | D156: 3.074279624e-05 | F156: 153 | G156: Iraque | H156: 12.264 | I156: 1.091828785e-06 | K156: 153 | L156: Gâmbia | M156: 434.0662 | N156: 2.287663675e-05 | O156: 433.9898
A157: 154 | B157: Nova Caledónia | C157: 206.2626 | D157: 2.66431195e-05 | F157: 154 | G157: Território Palestiniano Ocupado | H157: 11.6698 | I157: 1.038928861e-06 | K157: 154 | L157: Usbequistão | M157: 421.6898 | N157: 2.222436204e-05 | O157: -339.0046
A158: 155 | B158: Trindade e Tobago | C158: 189.8074 | D158: 2.4517587e-05 | F158: 155 | G158: Sudão | H158: 11.1382 | I158: 9.916020363e-07 | K158: 155 | L158: Antígua e Barbuda | M158: 403.7924 | N158: 2.128111348e-05 | O158: 402.8568
A159: 156 | B159: Haiti | C159: 187.225 | D159: 2.418401615e-05 | F159: 156 | G159: Barém | H159: 4.3326 | I159: 3.857189656e-07 | K159: 156 | L159: São Martinho (parte holandesa) | M159: 373.2376 | N159: 1.967078063e-05 | O159: 373.2376
A160: 157 | B160: Zâmbia | C160: 152.2624 | D160: 1.966786668e-05 | F160: 157 | G160: Nepal | H160: 2.658 | I160: 2.366341251e-07 | K160: 157 | L160: Libéria | M160: 356.383 | N160: 1.878249086e-05 | O160: 247.4886
A161: 158 | B161: Maldivas | C161: 137.7162 | D161: 1.778892137e-05 | F161: 158 | G161: Fiji, Ilhas | H161: 2.251 | I161: 2.004000811e-07 | K161: 158 | L161: Zâmbia | M161: 336.2106 | N161: 1.771934274e-05 | O161: -31.6858
A162: 159 | B162: Liechtenstein | C162: 135.8048 | D162: 1.754202417e-05 | F162: 159 | G162: Mauritânia | H162: 2.01 | I162: 1.789445416e-07 | K162: 159 | L162: Comores | M162: 333.8038 | N162: 1.75924969e-05 | O162: 333.8038
A163: 160 | B163: Polinésia Francesa | C163: 133.9344 | D163: 1.730042298e-05 | F163: 160 | G163: Liechtenstein | H163: 1.7982 | I163: 1.600885944e-07 | K163: 160 | L163: Jamaica | M163: 317.221 | N163: 1.671853185e-05 | O163: 287.9246
A164: 161 | B164: Madagáscar | C164: 130.6596 | D164: 1.687741421e-05 | F164: 161 | G164: Lesoto | H164: 1.7136 | I164: 1.525568987e-07 | K164: 161 | L164: Chade | M164: 303.1804 | N164: 1.597854862e-05 | O164: -303.1724
A165: 162 | B165: Niger | C165: 126.732 | D165: 1.63700827e-05 | F165: 162 | G165: Seychelles | H165: 1.1434 | I165: 1.017936263e-07 | K165: 162 | L165: Somália | M165: 292.8384 | N165: 1.54334931e-05 | O165: 292.8384
A166: 163 | B166: Bósnia-Herzegovina | C166: 90.5322 | D166: 1.169412304e-05 | F166: 163 | G166: Bermudas | H166: 0.7018 | I166: 6.247924342e-08 | K166: 163 | L166: Curaçau | M166: 290.6374 | N166: 1.531749357e-05 | O166: 212.2078
A167: 164 | B167: Centro-Africana, República | C167: 89.9082 | D167: 1.161352042e-05 | F167: 164 | G167: Afeganistão | H167: 0.5848 | I167: 5.206306861e-08 | K167: 164 | L167: Nova Caledónia | M167: 206.2906 | N167: 1.087215527e-05 | O167: 206.2346
A168: 165 | B168: Nepal | C168: 87.8934 | D168: 1.135326695e-05 | F168: 165 | G168: Antígua e Barbuda | H168: 0.4678 | I168: 4.164689381e-08 | K168: 165 | L168: Trindade e Tobago | M168: 189.8764 | N168: 1.000707595e-05 | O168: 189.7384
A169: 166 | B169: Jibuti | C169: 70.7204 | D169: 9.135015598e-06 | F169: 166 | G169: Gabão | H169: 0.337 | I169: 3.000214453e-08 | K169: 166 | L169: Haiti | M169: 187.2264 | N169: 9.867412721e-06 | O169: 187.2236
A170: 167 | B170: Zimbabwe | C170: 65.33 | D170: 8.43873294e-06 | F170: 167 | G170: São Bartolomeu | H170: 0.283 | I170: 2.519467924e-08 | K170: 167 | L170: Maldivas | M170: 137.7198 | N170: 7.258261156e-06 | O170: 137.7126
A171: 168 | B171: Montenegro | C171: 54.6326 | D171: 7.056940475e-06 | F171: 168 | G171: Barbados | H171: 0.1636 | I171: 1.45648393e-08 | K171: 168 | L171: Liechtenstein | M171: 137.603 | N171: 7.252105433e-06 | O171: 134.0066
A172: 169 | B172: Caimão, Ilhas | C172: 53.1296 | D172: 6.862796658e-06 | F172: 169 | G172: Oceano Indico, Território Britânico do | H172: 0.1384 | I172: 1.23213555e-08 | K172: 169 | L172: Polinésia Francesa | M172: 133.9626 | N172: 7.060245047e-06 | O172: 133.9062
A173: 170 | B173: Ceuta e Melilha | C173: 51.6648 | D173: 6.673587167e-06 | F173: 170 | G173: Niger | H173: 0.1252 | I173: 1.114619732e-08 | K173: 170 | L173: Bósnia-Herzegovina | M173: 133.0896 | N173: 7.014235236e-06 | O173: 47.9748
A174: 171 | B174: Bahamas | C174: 43.9552 | D174: 5.677731427e-06 | F174: 171 | G174: Burundi | H174: 0.114 | I174: 1.01490934e-08 | K174: 171 | L174: Niger | M174: 126.8572 | N174: 6.685768401e-06 | O174: 126.6068
A175: 172 | B175: Usbequistão | C175: 41.3426 | D175: 5.340259612e-06 | F175: 172 | G175: Trindade e Tobago | H175: 0.069 | I175: 6.142872323e-09 | K175: 172 | L175: Nepal | M175: 90.5514 | N175: 4.772339992e-06 | O175: 85.2354
A176: 173 | B176: Virgens dos Estados Unidos, Ilhas | C176: 26.0742 | D176: 3.3680271e-06 | F176: 173 | G176: Gâmbia | H176: 0.0382 | I176: 3.400836561e-09 | K176: 173 | L176: Centro-Africana, República | M176: 89.9082 | N176: 4.738441354e-06 | O176: 89.9082
A177: 174 | B177: Turcas e Caicos, Ilhas | C177: 25.0024 | D177: 3.229581761e-06 | F177: 174 | G177: Polinésia Francesa | H177: 0.0282 | I177: 2.51056521e-09 | K177: 174 | L177: Tajiquistão | M177: 74.7168 | N177: 3.937807397e-06 | O177: -74.7168
A178: 175 | B178: Quirguizistão | C178: 23.7908 | D178: 3.073078335e-06 | F178: 175 | G178: Nova Caledónia | H178: 0.028 | I178: 2.492759783e-09 | K178: 175 | L178: Jibuti | M178: 70.7204 | N178: 3.727184706e-06 | O178: 70.7204
A179: 176 | B179: Guiana | C179: 20.1352 | D179: 2.600881303e-06 | F179: 176 | G179: Papuásia-Nova Guiné | H179: 0.0222 | I179: 1.976402399e-09 | K179: 176 | L179: Montenegro | M179: 54.634 | N179: 2.879381469e-06 | O179: 54.6312
A180: 177 | B180: Belize | C180: 19.5092 | D180: 2.520020338e-06 | F180: 177 | G180: Gibraltar | H180: 0.0216 | I180: 1.922986118e-09 | K180: 177 | L180: Caimão, Ilhas | M180: 53.1304 | N180: 2.800137079e-06 | O180: 53.1288
A181: 178 | B181: Mongólia | C181: 19.1206 | D181: 2.469824538e-06 | F181: 178 | G181: São Vicente e Granadinas | H181: 0.0144 | I181: 1.281990746e-09 | K181: 178 | L181: Ceuta e Melilha | M181: 51.6648 | N181: 2.722895408e-06 | O181: 51.6648
A182: 179 | B182: Afeganistão | C182: 18.9718 | D182: 2.450603912e-06 | F182: 179 | G182: Mongólia | H182: 0.0112 | I182: 9.971039133e-10 | K182: 179 | L182: Bahamas | M182: 43.9552 | N182: 2.316575545e-06 | O182: 43.9552
A183: 180 | B183: Barbados | C183: 15.4724 | D183: 1.99858337e-06 | F183: 180 | G183: Santa Lúcia | H183: 0.009 | I183: 8.01244216e-10 | K183: 180 | L183: Quirguizistão | M183: 41.2954 | N183: 2.176395825e-06 | O183: 6.2862
A184: 181 | B184: Virgens Britânicas, Ilhas | C184: 13.47 | D184: 1.73993162e-06 | F184: 181 | G184: Virgens Britânicas, Ilhas | H184: 0.007 | I184: 6.231899458e-10 | K184: 181 | L184: Botswana | M184: 30.0884 | N184: 1.585752121e-06 | O184: -29.9852
A185: 182 | B185: Laos, República Democrática Popular do | C185: 13.1192 | D185: 1.694618478e-06 | F185: 182 | G185: Maldivas | H185: 0.0036 | I185: 3.204976864e-10 | K185: 182 | L185: Virgens dos Estados Unidos, Ilhas | M185: 26.0742 | N185: 1.374191315e-06 | O185: 26.0742
A186: 183 | B186: Brunei Darussalam | C186: 12.819 | D186: 1.655841383e-06 | F186: 183 | G186: Faroé, Ilhas | H186: 0.0026 | I186: 2.314705513e-10 | K186: 183 | L186: São Marino | M186: 25.2486 | N186: 1.330679631e-06 | O186: -25.2006
A187: 184 | B187: Fiji, Ilhas | C187: 11.4226 | D187: 1.47546718e-06 | F187: 184 | G187: Haiti | H187: 0.0014 | I187: 1.246379892e-10 | K187: 184 | L187: Turcas e Caicos, Ilhas | M187: 25.0024 | N187: 1.317704126e-06 | O187: 25.0024
A188: 185 | B188: Turquemenistão | C188: 7.2876 | D188: 9.413456326e-07 | F188: 185 | G188: Montenegro | H188: 0.0014 | I188: 1.246379892e-10 | K188: 185 | L188: Afeganistão | M188: 19.5566 | N188: 1.030693554e-06 | O188: 18.387
A189: 186 | B189: Santa Lúcia | C189: 7.138 | D189: 9.220216704e-07 | F189: 186 | G189: Caimão, Ilhas | H189: 0.0008 | I189: 7.122170809e-11 | K189: 186 | L189: Mongólia | M189: 19.1318 | N189: 1.008305275e-06 | O189: 19.1094
A190: 187 | B190: Malavi | C190: 6.6344 | D190: 8.569712203e-07 | F190: 187 | G190: Anguila | H190: 0 | I190: 0 | K190: 187 | L190: Barbados | M190: 15.636 | N190: 8.240657584e-07 | O190: 15.3088
A191: 188 | B191: Bonaire, Santo Eustáquio e Saba | C191: 6.6316 | D191: 8.566095418e-07 | F191: 188 | G191: Antárctica | H191: 0 | I191: 0 | K191: 188 | L191: Fiji, Ilhas | M191: 13.6736 | N191: 7.20641184e-07 | O191: 9.1716
A192: 189 | B192: Guam | C192: 6.3336 | D192: 8.181166226e-07 | F192: 189 | G192: Antilhas Holandesas | H192: 0 | I192: 0 | K192: 189 | L192: Virgens Britânicas, Ilhas | M192: 13.477 | N192: 7.102797535e-07 | O192: 13.463
A193: 190 | B193: São Vicente e Granadinas | C193: 4.3128 | D193: 5.570881284e-07 | F193: 190 | G193: Bahamas | H193: 0 | I193: 0 | K193: 190 | L193: São Cristovão e Nevis | M193: 13.1558 | N193: 6.93351516e-07 | O193: -11.657
A194: 191 | B194: Sudão do Sul | C194: 3.771 | D194: 4.87103351e-07 | F194: 191 | G194: Bonaire, Santo Eustáquio e Saba | H194: 0 | I194: 0 | K194: 191 | L194: Brunei Darussalam | M194: 12.819 | N194: 6.7560111e-07 | O194: 12.819
A195: 192 | B195: Marianas do Norte, Ilhas | C195: 2.9244 | D195: 3.777472924e-07 | F195: 192 | G195: Bouvet, Ilha | H195: 0 | I195: 0 | K195: 192 | L195: Santa Lúcia | M195: 7.147 | N195: 3.766690954e-07 | O195: 7.129
A196: 193 | B196: Papuásia-Nova Guiné | C196: 2.8856 | D196: 3.727354626e-07 | F196: 193 | G196: Brunei Darussalam | H196: 0 | I196: 0 | K196: 193 | L196: Bonaire, Santo Eustáquio e Saba | M196: 6.6316 | N196: 3.495059148e-07 | O196: 6.6316
A197: 194 | B197: Anguila | C197: 2.7816 | D197: 3.593016921e-07 | F197: 194 | G197: Butão | H197: 0 | I197: 0 | K197: 194 | L197: Guam | M197: 6.3336 | N197: 3.338003893e-07 | O197: 6.3336
A198: 195 | B198: Domínica | C198: 1.4248 | D198: 1.840426556e-07 | F198: 195 | G198: Centro-Africana, República | H198: 0 | I198: 0 | K198: 195 | L198: São Vicente e Granadinas | M198: 4.3272 | N198: 2.280568783e-07 | O198: 4.2984
A199: 196 | B199: São Cristovão e Nevis | C199: 0.7494 | D199: 9.680065002e-08 | F199: 196 | G199: Ceuta | H199: 0 | I199: 0 | K199: 196 | L199: Sudão do Sul | M199: 3.771 | N199: 1.98743411e-07 | O199: 3.771
A200: 197 | B200: Granada | C200: 0.6942 | D200: 8.967041799e-08 | F200: 197 | G200: Ceuta e Melilha | H200: 0 | I200: 0 | K200: 197 | L200: Marianas do Norte, Ilhas | M200: 2.9244 | N200: 1.541249619e-07 | O200: 2.9244
... 59 more rows

Sheet 2A
A1: Parceiros comerciais de Portugal - União Europeia vs. Países Terceiros (média 2019-2023 em milhões de euros) produtos agrícolas e agroalimentares, do mar e da floresta
A2: Exportações | F2: Importações | K2: Trocas comerciais (total e saldo)
A3: P | B3: Grupo de Países | C3: média quinquénio | D3: % do Total | F3: P | G3: Grupo de Países | H3: média quinquénio | I3: % do Total | K3: P | L3: Grupo de Países | M3: média quinquénio | N3: % do Total | O3: Saldo (exp-imp)
A4: 1 | B4: União Europeia | C4: 9394.333334 | D4: 0.6776768854 | F4: 1 | G4: União Europeia | H4: 12725.26366 | I4: 0.7857166307 | K4: 1 | L4: União Europeia | M4: 22119.59699 | N4: 0.7358898909 | O4: -3330.930324
A5: 2 | B5: Países Terceiros | C5: 4468.497449 | D5: 0.3223429833 | F5: 2 | G5: Países Terceiros | H5: 3470.478115 | I5: 0.2142833693 | K5: 2 | L5: Países Terceiros | M5: 7938.975564 | N5: 0.2641192723 | O5: 998.0193336
B6: Outros | C6: -0.2754318 | D6: -1.986876106e-05 | G6: Outros | H6: 0 | I6: 0 | L6: Outros | M6: -0.2754318 | N6: -9.163253622e-06 | O6: -0.2754318
B7: Total | C7: 13862.55535 | D7: 1 | G7: Total | H7: 16195.74177 | I7: 1 | L7: Total | M7: 30058.29712 | N7: 1 | O7: -2333.186422
F27: valores em milhões de euros
A28: Nota: Outros = Países não determinados, abastecimentos de bordo, etc.
A29: Fonte: GPP a partir de dados INE/Comércio Internacional (2022 provisórios) | M29: 2024-08-19

Sheet 3
A1: Principais produtos agrícolas e agroalimentares, do mar e da floresta transacionados entre Portugal e Uganda em 2019-2023 (NC a 2 e 4 dígitos) em milhões de euros
AC4: P | AE4: Cód.NC | AF4: Descritivo | AG4: Média export quinquénio | AH4: % do total | AI4: % acumulada | AN4: P | AO4: NC | AP4: Exportações | AQ4: 2019 | AR4: 2020 | AS4: 2021 | AT4: 2022 | AU4: 2023 | AV4: média quinquénio
AC5: 1 | AD5: º | AE5: 48 | AF5: Papel e cartão | AG5: 0.50525 | AH5: 0.4357741747 | AN5: 1º | AO5: 48 | AP5: Papel e cartão | AQ5: 0.403219 | AR5: 0.210517 | AS5: 0.271065 | AT5: 0.773408 | AU5: 0.868041 | AV5: 0.50525
AC6: 2 | AD6: º | AE6: 01 | AF6: Animais vivos | AG6: 0.2345918 | AH6: 0.2023335933 | AN6: 2º | AO6: 01 | AP6: Animais vivos | AQ6: 0.015526 | AR6: 0 | AS6: 1.100078 | AT6: 0.057355 | AU6: 0 | AV6: 0.2345918
AC7: 3 | AD7: º | AE7: 19a | AF7: Preparações à base de cereais (exc. NC 19022010) (a) | AG7: 0.0691752 | AH7: 0.05966306915 | AI7: 0.6977708372 | AN7: 3º | AO7: 19a | AP7: Preparações à base de cereais (exc. NC 19022010) (a) | AQ7: 4.6e-05 | AR7: 0.023363 | AS7: 0.080254 | AT7: 0.083168 | AU7: 0.159045 | AV7: 0.0691752
AC8: 4 | AD8: º | AE8: 20 | AF8: Preparações de produtos vegetais | AG8: 0.0632312 | AH8: 0.05453641563 | AO8: - | AP8: Outros | AQ8: 0.043671 | AR8: 0.230056 | AS8: 0.442144 | AT8: 0.396141 | AU8: 0.640057 | AV8: 0.3504138
AC9: 5 | AD9: º | AE9: 15 | AF9: Gorduras e óleos animais ou vegetais | AG9: 0.0598546 | AH9: 0.05162412453 | AP9: Total | AQ9: 0.462462 | AR9: 0.463936 | AS9: 1.893541 | AT9: 1.310072 | AU9: 1.667143 | AV9: 1.1594308
AC10: 6 | AD10: º | AE10: 16a | AF10: Preparações de carnes (exc. NC 1604-05) (a) | AG10: 0.052635 | AH10: 0.04539727597
AC11: 7 | AD11: º | AE11: 22 | AF11: Bebidas, líquidos alcoólicos e vinagres | AG11: 0.04734 | AH11: 0.04083037987
AC12: 8 | AD12: º | AE12: 33 | AF12: Óleos essenciais e resinóides (NC 3301) | AG12: 0.0298768 | AH12: 0.02576850641
AC13: 9 | AD13: º | AE13: 21 | AF13: Preparações alimentícias diversas | AG13: 0.0225244 | AH13: 0.01942711889
AC14: 10 | AD14: º | AE14: 44 | AF14: Madeira e suas obras | AG14: 0.0194534 | AH14: 0.0167784054 | AI14: 0.9521330639
AE15: - | AF15: Outros | AG15: 0.0554984 | AH15: 0.04786693609
AE16: Total | AG16: 1.1594308 | AH16: 1
AC38: P | AE38: Cód.NC | AF38: Descritivo | AG38: Média import quinquénio | AH38: % do total | AI38: % acumulada | AN38: P | AO38: NC | AP38: Importações | AQ38: 2019 | AR38: 2020 | AS38: 2021 | AT38: 2022 | AU38: 2023 | AV38: média quinquénio
AC39: 1 | AD39: º | AE39: 09 | AF39: Café, chá, mate e especiarias | AG39: 13.6664602 | AH39: 0.5948569959 | AN39: 1º | AO39: 09 | AP39: Café, chá, mate e especiarias | AQ39: 9.477205 | AR39: 8.286566 | AS39: 8.7407 | AT39: 20.037977 | AU39: 21.789853 | AV39: 13.6664602
AC40: 2 | AD40: º | AE40: 03 | AF40: Peixes e crustáceos | AG40: 5.4368514 | AH40: 0.2366486306 | AN40: 2º | AO40: 03 | AP40: Peixes e crustáceos | AQ40: 7.822629 | AR40: 3.94715 | AS40: 5.703515 | AT40: 6.687092 | AU40: 3.023871 | AV40: 5.4368514
AC41: 3 | AD41: º | AE41: 52 | AF41: Algodão (NC 5201-5203) | AG41: 3.6322184 | AH41: 0.1580987684 | AI41: 0.9896043949 | AN41: 3º | AO41: 52 | AP41: Algodão (NC 5201-5203) | AQ41: 5.363903 | AR41: 7.688465 | AS41: 0.799685 | AT41: 3.892045 | AU41: 0.416994 | AV41: 3.6322184
AC42: 4 | AD42: º | AE42: 07 | AF42: Produtos hortícolas | AG42: 0.1153236 | AH42: 0.005019664877 | AO42: - | AP42: Outros | AQ42: 0.000641 | AR42: 0.010769 | AS42: 0.041687 | AT42: 0.685355 | AU42: 0.45571 | AV42: 0.2388324
AC43: 5 | AD43: º | AE43: 15 | AF43: Gorduras e óleos animais ou vegetais | AG43: 0.0993162 | AH43: 0.004322914311 | AP43: Total | AQ43: 22.664378 | AR43: 19.93295 | AS43: 15.285587 | AT43: 31.302469 | AU43: 25.686428 | AV43: 22.9743624
AC44: 6 | AD44: º | AE44: 38f | AF44: Tall oil, essências e colofónias (f) | AG44: 0.0136512 | AH44: 0.0005941927685
AC45: 7 | AD45: º | AE45: 12 | AF45: Sementes e frutos oleaginosos | AG45: 0.0060946 | AH45: 0.0002652783087
AC46: 8 | AD46: º | AE46: 13f | AF46: Gomas e resinas (NC 1301) (f) | AG46: 0.002112 | AH46: 9.192855772e-05
AC47: 9 | AD47: º | AE47: 46 | AF47: Obras de espartaria ou de cestaria | AG47: 0.0008512 | AH47: 3.704999448e-05
AC48: 10 | AD48: º | AE48: 44 | AF48: Madeira e suas obras | AG48: 0.0006906 | AH48: 3.005959373e-05 | AI48: 0.9999654833
AE49: - | AF49: Outros | AG49: 0.000793 | AH49: 3.451673592e-05
AE50: Total | AG50: 22.9743624 | AH50: 1
AC62: DESAGREGAÇÃO A 4 DÍGITOS | AN62: DESAGREGAÇÃO A 4 DÍGITOS
AC64: P | AE64: Cód.NC | AF64: Descritivo | AG64: Média export quinquénio | AH64: % do total | AI64: % acumulada | AN64: P | AO64: NC | AP64: Exportações | AQ64: 2019 | AR64: 2020 | AS64: 2021 | AT64: 2022 | AU64: 2023 | AV64: média quinquénio
AC65: 1 | AD65: º | AE65: 4804 | AF65: Papel e cartão "kraft", não revestidos | AG65: 0.3588966 | AH65: 0.3095455115 | AN65: 1º | AO65: 4804 | AP65: Papel e cartão "kraft", não revestidos | AQ65: 0.174871 | AR65: 0.060226 | AS65: 0.028658 | AT65: 0.694167 | AU65: 0.836561 | AV65: 0.3588966
AC66: 2 | AD66: º | AE66: 0105 | AF66: Aves de capoeira vivas | AG66: 0.2345918 | AH66: 0.2023335933 | AN66: 2º | AO66: 0105 | AP66: Aves de capoeira vivas | AQ66: 0.015526 | AR66: 0 | AS66: 1.100078 | AT66: 0.057355 | AU66: 0 | AV66: 0.2345918
AC67: 3 | AD67: º | AE67: 4802 | AF67: Papel e cartão p/ escrita, etc. | AG67: 0.1148848 | AH67: 0.09908724177 | AI67: 0.6109663466 | AN67: 3º | AO67: 4802 | AP67: Papel e cartão p/ escrita, etc. | AQ67: 0.218312 | AR67: 0.143185 | AS67: 0.168517 | AT67: 0.04441 | AU67: 0 | AV67: 0.1148848
AC68: 4 | AD68: º | AE68: 1602 | AF68: Outras preparações e conservas de carnes, miudezas ou sangue | AG68: 0.052632 | AH68: 0.0453946885 | AN68: - | AO68: - | AP68: Outros | AQ68: 0.053753 | AR68: 0.260525 | AS68: 0.596288 | AT68: 0.51414 | AU68: 0.830582 | AV68: 0.4510576
AC69: 5 | AD69: º | AE69: 2005 | AF69: Produtos hortícolas preparados, não congelados | AG69: 0.0495958 | AH69: 0.04277598974 | AP69: Total | AQ69: 0.462462 | AR69: 0.463936 | AS69: 1.893541 | AT69: 1.310072 | AU69: 1.667143 | AV69: 1.1594308
AC70: 6 | AD70: º | AE70: 1509 | AF70: Azeite (processos mecânicos ou físicos) | AG70: 0.0425102 | AH70: 0.03666471513
AC71: 7 | AD71: º | AE71: 3302 | AF71: Misturas de substâncias odoríferas p/ alimentação e bebidas | AG71: 0.0298768 | AH71: 0.02576850641
AC72: 8 | AD72: º | AE72: 1904 | AF72: Produtos à base de cereais | AG72: 0.0295006 | AH72: 0.02544403685
AC73: 9 | AD73: º | AE73: 2204 | AF73: Vinhos de uvas frescas | AG73: 0.0281118 | AH73: 0.02424620771
AC74: 10 | AD74: º | AE74: 1905 | AF74: Produtos de padaria, pastelaria, etc. | AG74: 0.0251244 | AH74: 0.02166959857 | AI74: 0.8329300895
AE75: - | AF75: Outros | AG75: 0.193706 | AH75: 0.1670699105
AE76: Total | AG76: 1.1594308 | AH76: 1
AC89: DESAGREGAÇÃO A 4 DÍGITOS | AN89: DESAGREGAÇÃO A 4 DÍGITOS
G91: média 2019-2023 em milhões de euros | I91: Cód. NC | J91: Descritivo | K91: Export | L91: Import | M91: Saldo | AC91: P | AE91: Cód.NC | AF91: Descritivo | AG91: Média import quinquénio | AH91: % do total | AI91: % acumulada | AN91: P | AO91: NC | AP91: Importações | AQ91: 2019 | AR91: 2020 | AS91: 2021 | AT91: 2022 | AU91: 2023 | AV91: média quinquénio
I92: 4804 | J92: Papel e cartão "kraft", não revestidos | K92: 0.3588966 | L92: 0 | M92: 0.3588966 | AC92: 1 | AD92: º | AE92: 0901 | AF92: Café | AG92: 13.6557506 | AH92: 0.5943908415 | AN92: 1º | AO92: 0901 | AP92: Café | AQ92: 9.47601 | AR92: 8.286566 | AS92: 8.7407 | AT92: 19.992078 | AU92: 21.783399 | AV92: 13.6557506
I93: 0105 | J93: Aves de capoeira vivas | K93: 0.2345918 | L93: 0 | M93: 0.2345918 | AC93: 2 | AD93: º | AE93: 0303 | AF93: Peixes congelados | AG93: 4.1318582 | AH93: 0.1798464797 | AN93: 2º | AO93: 0303 | AP93: Peixes congelados | AQ93: 4.834498 | AR93: 3.395885 | AS93: 5.231109 | AT93: 5.059107 | AU93: 2.138692 | AV93: 4.1318582
I94: 4802 | J94: Papel e cartão p/ escrita, etc. | K94: 0.1148848 | L94: 0 | M94: 0.1148848 | AC94: 3 | AD94: º | AE94: 5201 | AF94: Algodão não cardado nem penteado | AG94: 3.6322184 | AH94: 0.1580987684 | AI94: 0.9323360896 | AN94: 3º | AO94: 5201 | AP94: Algodão não cardado nem penteado | AQ94: 5.363903 | AR94: 7.688465 | AS94: 0.799685 | AT94: 3.892045 | AU94: 0.416994 | AV94: 3.6322184
I95: 1602 | J95: Outras preparações e conservas de carnes, miudezas ou sangue | K95: 0.052632 | L95: 0 | M95: 0.052632 | AC95: 4 | AD95: º | AE95: 0304 | AF95: Filetes de peixes | AG95: 0.873347 | AH95: 0.03801398206 | AN95: - | AO95: - | AP95: Outros | AQ95: 2.989967 | AR95: 0.562034 | AS95: 0.514093 | AT95: 2.359239 | AU95: 1.347343 | AV95: 1.5545352
I96: 2005 | J96: Produtos hortícolas preparados, não congelados | K96: 0.0495958 | L96: 0 | M96: 0.0495958 | AC96: 5 | AD96: º | AE96: 0302 | AF96: Peixes frescos ou refrigerados | AG96: 0.425899 | AH96: 0.01853801174 | AP96: Total | AQ96: 22.664378 | AR96: 19.93295 | AS96: 15.285587 | AT96: 31.302469 | AU96: 25.686428 | AV96: 22.9743624
I97: 1509 | J97: Azeite (processos mecânicos ou físicos) | K97: 0.0425102 | L97: 0 | M97: 0.0425102 | AC97: 6 | AD97: º | AE97: 1515 | AF97: Outras gorduras e óleos vegetais | AG97: 0.0993162 | AH97: 0.004322914311
I98: 3302 | J98: Misturas de substâncias odoríferas p/ alimentação e bebidas | K98: 0.0298768 | L98: 0 | M98: 0.0298768 | AC98: 7 | AD98: º | AE98: 0713 | AF98: Legumes de vagem, secos, em grão | AG98: 0.09852 | AH98: 0.004288258289
I99: 1904 | J99: Produtos à base de cereais | K99: 0.0295006 | L99: 0 | M99: 0.0295006 | AC99: 8 | AD99: º | AE99: 0709 | AF99: Outros produtos hortícolas, frescos ou refrigerados | AG99: 0.0168036 | AH99: 0.0007314065874
I100: 2204 | J100: Vinhos de uvas frescas | K100: 0.0281118 | L100: 0 | M100: 0.0281118 | AC100: 9 | AD100: º | AE100: 3806 | AF100: Colofónias e derivados | AG100: 0.0136512 | AH100: 0.0005941927685
I101: 1905 | J101: Produtos de padaria, pastelaria, etc. | K101: 0.0251244 | L101: 0 | M101: 0.0251244 | AC101: 10 | AD101: º | AE101: 0904 | AF101: Pimenta | AG101: 0.0091798 | AH101: 0.0003995671279 | AI101: 0.9992244224
I102: - | J102: Outros | K102: 0.1852644 | L102: 0.0178184 | M102: 0.167446 | AE102: - | AF102: Outros | AG102: 0.0178184 | AH102: 0.0007755775629
I103: 0904 | J103: Pimenta | K103: 0 | L103: 0.0091798 | M103: -0.0091798 | AE103: Total | AG103: 22.9743624 | AH103: 1
I104: 3806 | J104: Colofónias e derivados | K104: 0 | L104: 0.0136512 | M104: -0.0136512
I105: 0709 | J105: Outros produtos hortícolas, frescos ou refrigerados | K105: 0 | L105: 0.0168036 | M105: -0.0168036
I106: 1515 | J106: Outras gorduras e óleos vegetais | K106: 0.00196 | L106: 0.0993162 | M106: -0.0973562
I107: 0713 | J107: Legumes de vagem, secos, em grão | K107: 3.64e-05 | L107: 0.09852 | M107: -0.0984836
I108: 0302 | J108: Peixes frescos ou refrigerados | K108: 1.14e-05 | L108: 0.425899 | M108: -0.4258876
I109: 0304 | J109: Filetes de peixes | K109: 0.001511 | L109: 0.873347 | M109: -0.871836
I110: 5201 | J110: Algodão não cardado nem penteado | K110: 0 | L110: 3.6322184 | M110: -3.6322184
I111: 0303 | J111: Peixes congelados | K111: 0.002077 | L111: 4.1318582 | M111: -4.1297812
I112: 0901 | J112: Café | K112: 0.0028458 | L112: 13.6557506 | M112: -13.6529048
I113: Total | K113: 1.1594308 | L113: 22.9743624 | M113: -21.8149316
A116: Fonte: GPP a partir de dados INE/Comércio Internacional (2022 definitivos) | Y116: 2024-09-25T12:28:58.840

Sheet 3A
A1: Principais produtos agrícolas e agroalimentares transacionados entre Portugal e Uganda em 2019-2023 (NC a 2 e 4 dígitos) em milhões de euros
AC4: P | AE4: Cód.NC | AF4: Descritivo | AG4: Média export quinquénio | AH4: % do total | AI4: % acumulada | AN4: P | AO4: NC | AP4: Exportações | AQ4: 2019 | AR4: 2020 | AS4: 2021 | AT4: 2022 | AU4: 2023 | AV4: média quinquénio
AC5: 1 | AD5: º | AE5: 01 | AF5: Animais vivos | AG5: 0.2345918 | AH5: 0.3843253347 | AN5: 1º | AO5: 01 | AP5: Animais vivos | AQ5: 0.015526 | AR5: 0 | AS5: 1.100078 | AT5: 0.057355 | AU5: 0 | AV5: 0.2345918
AC6: 2 | AD6: º | AE6: 19a | AF6: Preparações à base de cereais (exc. NC 19022010) (a) | AG6: 0.0691752 | AH6: 0.1133278397 | AN6: 2º | AO6: 19a | AP6: Preparações à base de cereais (exc. NC 19022010) (a) | AQ6: 4.6e-05 | AR6: 0.023363 | AS6: 0.080254 | AT6: 0.083168 | AU6: 0.159045 | AV6: 0.0691752
AC7: 3 | AD7: º | AE7: 20 | AF7: Preparações de produtos vegetais | AG7: 0.0632312 | AH7: 0.1035899469 | AI7: 0.6012431213 | AN7: 3º | AO7: 20 | AP7: Preparações de produtos vegetais | AQ7: 9e-06 | AR7: 0.025121 | AS7: 0.08136 | AT7: 0.08136 | AU7: 0.128306 | AV7: 0.0632312
AC8: 4 | AD8: º | AE8: 15 | AF8: Gorduras e óleos animais ou vegetais | AG8: 0.0598546 | AH8: 0.0980581554 | AO8: - | AP8: Outros | AQ8: 0.028623 | AR8: 0.182201 | AS8: 0.256551 | AT8: 0.280099 | AU8: 0.46953 | AV8: 0.2434008
AC9: 5 | AD9: º | AE9: 16a | AF9: Preparações de carnes (exc. NC 1604-05) (a) | AG9: 0.052635 | AH9: 0.08623048203 | AP9: Total | AQ9: 0.044204 | AR9: 0.230685 | AS9: 1.518243 | AT9: 0.501982 | AU9: 0.756881 | AV9: 0.610399
AC10: 6 | AD10: º | AE10: 22 | AF10: Bebidas, líquidos alcoólicos e vinagres | AG10: 0.04734 | AH10: 0.07755582824
AC11: 7 | AD11: º | AE11: 33 | AF11: Óleos essenciais e resinóides (NC 3301) | AG11: 0.0298768 | AH11: 0.04894634493
AC12: 8 | AD12: º | AE12: 21 | AF12: Preparações alimentícias diversas | AG12: 0.0225244 | AH12: 0.03690110895
AC13: 9 | AD13: º | AE13: 18 | AF13: Cacau e suas preparações | AG13: 0.0105744 | AH13: 0.01732375053
AC14: 10 | AD14: º | AE14: 09 | AF14: Café, chá, mate e especiarias | AG14: 0.0071158 | AH14: 0.01165762067 | AI14: 0.9779164121
AE15: - | AF15: Outros | AG15: 0.0134798 | AH15: 0.02208358795
AE16: Total | AG16: 0.610399 | AH16: 1
AC38: P | AE38: Cód.NC | AF38: Descritivo | AG38: Média import quinquénio | AH38: % do total | AI38: % acumulada | AN38: P | AO38: NC | AP38: Importações | AQ38: 2019 | AR38: 2020 | AS38: 2021 | AT38: 2022 | AU38: 2023 | AV38: média quinquénio
AC39: 1 | AD39: º | AE39: 09 | AF39: Café, chá, mate e especiarias | AG39: 13.6664602 | AH39: 0.7800399265 | AN39: 1º | AO39: 09 | AP39: Café, chá, mate e especiarias | AQ39: 9.477205 | AR39: 8.286566 | AS39: 8.7407 | AT39: 20.037977 | AU39: 21.789853 | AV39: 13.6664602
AC40: 2 | AD40: º | AE40: 52 | AF40: Algodão (NC 5201-5203) | AG40: 3.6322184 | AH40: 0.2073159642 | AN40: 2º | AO40: 52 | AP40: Algodão (NC 5201-5203) | AQ40: 5.363903 | AR40: 7.688465 | AS40: 0.799685 | AT40: 3.892045 | AU40: 0.416994 | AV40: 3.6322184
AC41: 3 | AD41: º | AE41: 07 | AF41: Produtos hortícolas | AG41: 0.1153236 | AH41: 0.006582319865 | AI41: 0.9939382105 | AN41: 3º | AO41: 07 | AP41: Produtos hortícolas | AQ41: 0 | AR41: 0 | AS41: 0.039266 | AT41: 0.532852 | AU41: 0.0045 | AV41: 0.1153236
AC42: 4 | AD42: º | AE42: 15 | AF42: Gorduras e óleos animais ou vegetais | AG42: 0.0993162 | AH42: 0.005668666225 | AO42: - | AP42: Outros | AQ42: 0 | AR42: 0 | AS42: 0.002421 | AT42: 0.152402 | AU42: 0.376196 | AV42: 0.1062038
AC43: 5 | AD43: º | AE43: 12 | AF43: Sementes e frutos oleaginosos | AG43: 0.0060946 | AH43: 0.0003478612067 | AP43: Total | AQ43: 14.841108 | AR43: 15.975031 | AS43: 9.582072 | AT43: 24.615276 | AU43: 22.587543 | AV43: 17.520206
AC44: 6 | AD44: º | AE44: 08 | AF44: Frutas | AG44: 0.0004442 | AH44: 2.535358317e-05
AC45: 7 | AD45: º | AE45: 24 | AF45: Tabaco | AG45: 0.000295 | AH45: 1.683770157e-05
AC46: 8 | AD46: º | AE46: 21 | AF46: Preparações alimentícias diversas | AG46: 2.74e-05 | AH46: 1.563908552e-06
AC47: 9 | AD47: º | AE47: 06 | AF47: Plantas vivas e produtos de floricultura | AG47: 2.64e-05 | AH47: 1.506831598e-06
AC48: 10 | AD48: º | AG48: 0 | AH48: 0 | AI48: 1
AG49: 0 | AH49: 0
AE50: Total | AG50: 17.520206 | AH50: 1
AC62: DESAGREGAÇÃO A 4 DÍGITOS | AN62: DESAGREGAÇÃO A 4 DÍGITOS
AC64: P | AE64: Cód.NC | AF64: Descritivo | AG64: Média export quinquénio | AH64: % do total | AI64: % acumulada | AN64: P | AO64: NC | AP64: Exportações | AQ64: 2019 | AR64: 2020 | AS64: 2021 | AT64: 2022 | AU64: 2023 | AV64: média quinquénio
AC65: 1 | AD65: º | AE65: 0105 | AF65: Aves de capoeira vivas | AG65: 0.2345918 | AH65: 0.3843253347 | AN65: 1º | AO65: 0105 | AP65: Aves de capoeira vivas | AQ65: 0.015526 | AR65: 0 | AS65: 1.100078 | AT65: 0.057355 | AU65: 0 | AV65: 0.2345918
AC66: 2 | AD66: º | AE66: 1602 | AF66: Outras preparações e conservas de carnes, miudezas ou sangue | AG66: 0.052632 | AH66: 0.08622556721 | AN66: 2º | AO66: 1602 | AP66: Outras preparações e conservas de carnes, miudezas ou sangue | AQ66: 0.0003 | AR66: 0.01944 | AS66: 0.0648 | AT66: 0.0648 | AU66: 0.11382 | AV66: 0.052632
AC67: 3 | AD67: º | AE67: 2005 | AF67: Produtos hortícolas preparados, não congelados | AG67: 0.0495958 | AH67: 0.08125144373 | AI67: 0.5518023457 | AN67: 3º | AO67: 2005 | AP67: Produtos hortícolas preparados, não congelados | AQ67: 3e-06 | AR67: 0.01947 | AS67: 0.0648 | AT67: 0.0648 | AU67: 0.098906 | AV67: 0.0495958
AC68: 4 | AD68: º | AE68: 1509 | AF68: Azeite (processos mecânicos ou físicos) | AG68: 0.0425102 | AH68: 0.06964329889 | AN68: - | AO68: - | AP68: Outros | AQ68: 0.028375 | AR68: 0.191775 | AS68: 0.288565 | AT68: 0.315027 | AU68: 0.544155 | AV68: 0.2735794
AC69: 5 | AD69: º | AE69: 3302 | AF69: Misturas de substâncias odoríferas p/ alimentação e bebidas | AG69: 0.0298768 | AH69: 0.04894634493 | AP69: Total | AQ69: 0.044204 | AR69: 0.230685 | AS69: 1.518243 | AT69: 0.501982 | AU69: 0.756881 | AV69: 0.610399
AC70: 6 | AD70: º | AE70: 1904 | AF70: Produtos à base de cereais | AG70: 0.0295006 | AH70: 0.04833002675
AC71: 7 | AD71: º | AE71: 2204 | AF71: Vinhos de uvas frescas | AG71: 0.0281118 | AH71: 0.04605479367
AC72: 8 | AD72: º | AE72: 1905 | AF72: Produtos de padaria, pastelaria, etc. | AG72: 0.0251244 | AH72: 0.04116061789
AC73: 9 | AD73: º | AE73: 2106 | AF73: Outras preparações alimentícias | AG73: 0.0159626 | AH73: 0.02615109134
AC74: 10 | AD74: º | AE74: 1902 | AF74: Massas alimentícias (exc. NC 1902 20 10) (a) | AG74: 0.014545 | AH74: 0.023828676 | AI74: 0.8559171951
AE75: - | AF75: Outros | AG75: 0.087948 | AH75: 0.1440828049
AE76: Total | AG76: 0.610399 | AH76: 1
AC89: DESAGREGAÇÃO A 4 DÍGITOS | AN89: DESAGREGAÇÃO A 4 DÍGITOS
G91: média 2019-2023 em milhões de euros | I91: Cód. NC | J91: Descritivo | K91: Export | L91: Import | M91: Saldo | AC91: P | AE91: Cód.NC | AF91: Descritivo | AG91: Média import quinquénio | AH91: % do total | AI91: % acumulada | AN91: P | AO91: NC | AP91: Importações | AQ91: 2019 | AR91: 2020 | AS91: 2021 | AT91: 2022 | AU91: 2023 | AV91: média quinquénio
I92: 0105 | J92: Aves de capoeira vivas | K92: 0.2345918 | L92: 0 | M92: 0.2345918 | AC92: 1 | AD92: º | AE92: 0901 | AF92: Café | AG92: 13.6557506 | AH92: 0.7794286551 | AN92: 1º | AO92: 0901 | AP92: Café | AQ92: 9.47601 | AR92: 8.286566 | AS92: 8.7407 | AT92: 19.992078 | AU92: 21.783399 | AV92: 13.6557506
I93: 1602 | J93: Outras preparações e conservas de carnes, miudezas ou sangue | K93: 0.052632 | L93: 0 | M93: 0.052632 | AC93: 2 | AD93: º | AE93: 5201 | AF93: Algodão não cardado nem penteado | AG93: 3.6322184 | AH93: 0.2073159642 | AN93: 2º | AO93: 5201 | AP93: Algodão não cardado nem penteado | AQ93: 5.363903 | AR93: 7.688465 | AS93: 0.799685 | AT93: 3.892045 | AU93: 0.416994 | AV93: 3.6322184
I94: 2005 | J94: Produtos hortícolas preparados, não congelados | K94: 0.0495958 | L94: 0 | M94: 0.0495958 | AC94: 3 | AD94: º | AE94: 1515 | AF94: Outras gorduras e óleos vegetais | AG94: 0.0993162 | AH94: 0.005668666225 | AI94: 0.9924132856 | AN94: 3º | AO94: 1515 | AP94: Outras gorduras e óleos vegetais | AQ94: 0 | AR94: 0 | AS94: 0 | AT94: 0.121342 | AU94: 0.375239 | AV94: 0.0993162
I95: 1509 | J95: Azeite (processos mecânicos ou físicos) | K95: 0.0425102 | L95: 0 | M95: 0.0425102 | AC95: 4 | AD95: º | AE95: 0713 | AF95: Legumes de vagem, secos, em grão | AG95: 0.09852 | AH95: 0.005623221553 | AN95: - | AO95: - | AP95: Outros | AQ95: 0.001195 | AR95: 0 | AS95: 0.041687 | AT95: 0.609811 | AU95: 0.011911 | AV95: 0.1329208
I96: 3302 | J96: Misturas de substâncias odoríferas p/ alimentação e bebidas | K96: 0.0298768 | L96: 0 | M96: 0.0298768 | AC96: 5 | AD96: º | AE96: 0709 | AF96: Outros produtos hortícolas, frescos ou refrigerados | AG96: 0.0168036 | AH96: 0.000959098312 | AP96: Total | AQ96: 14.841108 | AR96: 15.975031 | AS96: 9.582072 | AT96: 24.615276 | AU96: 22.587543 | AV96: 17.520206
I97: 1904 | J97: Produtos à base de cereais | K97: 0.0295006 | L97: 0 | M97: 0.0295006 | AC97: 6 | AD97: º | AE97: 0904 | AF97: Pimenta | AG97: 0.0091798 | AH97: 0.0005239550266
I98: 2204 | J98: Vinhos de uvas frescas | K98: 0.0281118 | L98: 0 | M98: 0.0281118 | AC98: 7 | AD98: º | AE98: 1207 | AF98: Sementes e frutos oleaginosos | AG98: 0.0060946 | AH98: 0.0003478612067
I99: 1905 | J99: Produtos de padaria, pastelaria, etc. | K99: 0.0251244 | L99: 0 | M99: 0.0251244 | AC99: 8 | AD99: º | AE99: 0902 | AF99: Chá | AG99: 0.0015298 | AH99: 8.731632493e-05
I100: 2106 | J100: Outras preparações alimentícias | K100: 0.0159626 | L100: 4e-07 | M100: 0.0159622 | AC100: 9 | AD100: º | AE100: 2401 | AF100: Tabaco não manufaturado | AG100: 0.000295 | AH100: 1.683770157e-05
I101: 1902 | J101: Massas alimentícias (exc. NC 1902 20 10) (a) | K101: 0.014545 | L101: 0 | M101: 0.014545 | AC101: 10 | AD101: º | AE101: 0810 | AF101: Outras frutas frescas | AG101: 0.0002282 | AH101: 1.302496101e-05 | AI101: 0.9999846006
I102: - | J102: Outros | K102: 0.0831058 | L102: 0.001634 | M102: 0.0814718 | AE102: - | AF102: Outros | AG102: 0.0002698 | AH102: 1.539936231e-05
I103: 0807 | J103: Melões, melancias e papaia, frescos | K103: 0 | L103: 0.0001652 | M103: -0.0001652 | AE103: Total | AG103: 17.520206 | AH103: 1
I104: 0810 | J104: Outras frutas frescas | K104: 0 | L104: 0.0002282 | M104: -0.0002282
I105: 2401 | J105: Tabaco não manufaturado | K105: 0 | L105: 0.000295 | M105: -0.000295
I106: 1207 | J106: Sementes e frutos oleaginosos | K106: 0 | L106: 0.0060946 | M106: -0.0060946
I107: 0904 | J107: Pimenta | K107: 0 | L107: 0.0091798 | M107: -0.0091798
I108: 0709 | J108: Outros produtos hortícolas, frescos ou refrigerados | K108: 0 | L108: 0.0168036 | M108: -0.0168036
I109: 1515 | J109: Outras gorduras e óleos vegetais | K109: 0.00196 | L109: 0.0993162 | M109: -0.0973562
I110: 0713 | J110: Legumes de vagem, secos, em grão | K110: 3.64e-05 | L110: 0.09852 | M110: -0.0984836
I111: 5201 | J111: Algodão não cardado nem penteado | K111: 0 | L111: 3.6322184 | M111: -3.6322184
I112: 0901 | J112: Café | K112: 0.0028458 | L112: 13.6557506 | M112: -13.6529048
I113: Total | K113: 0.610399 | L113: 17.520206 | M113: -16.909807
A116: Fonte: GPP a partir de dados INE/Comércio Internacional (2022 definitivos) | Y116: 2024-09-25T12:28:58.840

Sheet 4A
A1: Evolução da balança comercial Portugal-Uganda 2019-2023 por produto em euros (NC 2 dígitos)
A3: =+aux!A31 -> Evolução da balança comercial Portugal-Uganda para Animais vivos
A5: Selecione o produto:
Q7: Para obter uma maior desagregação deste produto, clique no botão respetivo:
A20: =+aux!A43 -> Evolução da balança comercial Portugal-Uganda para Café, chá, mate e especiarias
A22: Selecione o produto:
A38: Fonte: GPP a partir de dados INE/Comércio Internacional (2022 definitivos) | N38: 2024-09-25T12:28:58.840

Sheet 5.2
A1: Trocas comerciais Portugal-Uganda 2019-2023 em milhares de euros (NC 2 dígitos) | C1: Produtos agrícolas e agroalimentares, do mar e da floresta
C2: Importações | K2: Exportações | U2: =+"Variação das Importações " & INDEX(K3:N3,1,aux!AL1) & "-"& '5.2'!O3 &"" -> Variação das Importações 2019-2023 | AA2: ="Variação das Exportações " & INDEX(K3:N3,1,aux!AL1) & "-"& '5.2'!O3 &"" -> Variação das Exportações 2019-2023
A3: Cód. NC | B3: Descritivo | C3: 2019 | D3: 2020 | E3: 2021 | F3: 2022 | G3: 2023 | H3: média quinquénio | I3: % Subtot | J3: % Total | K3: 2019 | L3: 2020 | M3: 2021 | N3: 2022 | O3: 2023 | P3: média quinquénio | Q3: % Subtot | R3: % Total | S3: Saldo quinquénio (exp-imp) | T3: Evolução das importações | U3: variação total em valor | V3: % no subtotal de variação | W3: % no total de variação | X3: taxa de variação média anual | Y3: taxa de variação total | Z3: Evolução das exportações | AA3: variação total em valor | AB3: % no subtotal de variação | AC3: % no total de variação | AD3: taxa de variação média anual | AE3: taxa de variação total
A4: 01 | B4: Animais vivos | C4: 0 | D4: 0 | E4: 0 | F4: 0 | G4: 0 | H4: 0 | I4: 0 | J4: 0 | K4: 15.526 | L4: 0 | M4: 1100.078 | N4: 57.355 | O4: 0 | P4: 234.5918 | Q4: 0.3843253347 | R4: 0.2023335933 | S4: 234.5918 | U4: =G4-INDEX($C4:$G4,1,aux!$AL$1) -> 0 | V4: =IF($U$37<>0,U4/$U$37, "n.d.") -> 0 | W4: =IF($U$53<>0,U4/$U$53, "n.d.") -> 0 | X4: =+IF(INDEX($C4:$G4,1,aux!$AL$1)>0,(G4/INDEX($C4:$G4,1,aux!$AL$1))^(1/($G$3-INDEX($C$3:$G$3,1,aux!$AL$1)))-1,"n.d.") -> n.d. | Y4: =IF(INDEX($C4:$G4,1,aux!$AL$1)>0,(G4-INDEX($C4:$G4,1,aux!$AL$1))/INDEX($C4:$G4,1,aux!$AL$1),"n.d.") -> n.d. | AA4: =O4-INDEX($K4:$O4,1,aux!$AL$1) -> -15.526 | AB4: =IF($AA$37<>0,AA4/$AA$37, "n.d.") -> -0.02178546522 | AC4: =IF($AA$53<>0,AA4/$AA$53, "n.d.") -> -0.01288805916 | AD4: =+IF(INDEX($K4:$O4,1,aux!$AL$1)>0,(O4/INDEX($K4:$O4,1,aux!$AL$1))^(1/($O$3-INDEX($K$3:$O$3,1,aux!$AL$1)))-1,"n.d.") -> -1 | AE4: =IF(INDEX($K4:$O4,1,aux!$AL$1)>0,(O4-INDEX($K4:$O4,1,aux!$AL$1))/INDEX($K4:$O4,1,aux!$AL$1),"n.d.") -> -1
A5: 02 | B5: Carnes e miudezas | C5: 0 | D5: 0 | E5: 0 | F5: 0 | G5: 0 | H5: 0 | I5: 0 | J5: 0 | K5: 0 | L5: 0 | M5: 0 | N5: 0 | O5: 0 | P5: 0 | Q5: 0 | R5: 0 | S5: 0 | U5: =G5-INDEX($C5:$G5,1,aux!$AL$1) -> 0 | V5: 0 | W5: 0 | X5: =+IF(INDEX($C5:$G5,1,aux!$AL$1)>0,(G5/INDEX($C5:$G5,1,aux!$AL$1))^(1/($G$3-INDEX($C$3:$G$3,1,aux!$AL$1)))-1,"n.d.") -> n.d. | Y5: =IF(INDEX($C5:$G5,1,aux!$AL$1)>0,(G5-INDEX($C5:$G5,1,aux!$AL$1))/INDEX($C5:$G5,1,aux!$AL$1),"n.d.") -> n.d. | AA5: =O5-INDEX($K5:$O5,1,aux!$AL$1) -> 0 | AB5: 0 | AC5: 0 | AD5: =+IF(INDEX($K5:$O5,1,aux!$AL$1)>0,(O5/INDEX($K5:$O5,1,aux!$AL$1))^(1/($O$3-INDEX($K$3:$O$3,1,aux!$AL$1)))-1,"n.d.") -> n.d. | AE5: =IF(INDEX($K5:$O5,1,aux!$AL$1)>0,(O5-INDEX($K5:$O5,1,aux!$AL$1))/INDEX($K5:$O5,1,aux!$AL$1),"n.d.") -> n.d.
A6: 04 | B6: Leite e laticínios; ovos; mel, etc. | C6: 0 | D6: 0 | E6: 0 | F6: 0 | G6: 0 | H6: 0 | I6: 0 | J6: 0 | K6: 0 | L6: 1.944 | M6: 6.48 | N6: 6.48 | O6: 10.08 | P6: 4.9968 | Q6: 0.008186120882 | R6: 0.004309700933 | S6: 4.9968 | U6: =G6-INDEX($C6:$G6,1,aux!$AL$1) -> 0 | V6: 0 | W6: 0 | X6: =+IF(INDEX($C6:$G6,1,aux!$AL$1)>0,(G6/INDEX($C6:$G6,1,aux!$AL$1))^(1/($G$3-INDEX($C$3:$G$3,1,aux!$AL$1)))-1,"n.d.") -> n.d. | Y6: =IF(INDEX($C6:$G6,1,aux!$AL$1)>0,(G6-INDEX($C6:$G6,1,aux!$AL$1))/INDEX($C6:$G6,1,aux!$AL$1),"n.d.") -> n.d. | AA6: =O6-INDEX($K6:$O6,1,aux!$AL$1) -> 10.08 | AB6: 0.01414385479 | AC6: 0.008367360322 | AD6: =+IF(INDEX($K6:$O6,1,aux!$AL$1)>0,(O6/INDEX($K6:$O6,1,aux!$AL$1))^(1/($O$3-INDEX($K$3:$O$3,1,aux!$AL$1)))-1,"n.d.") -> n.d. | AE6: =IF(INDEX($K6:$O6,1,aux!$AL$1)>0,(O6-INDEX($K6:$O6,1,aux!$AL$1))/INDEX($K6:$O6,1,aux!$AL$1),"n.d.") -> n.d.
A7: 05a | B7: Outros produtos de origem animal (exc. NC 0508, 051191) (a) | C7: 0 | D7: 0 | E7: 0 | F7: 0 | G7: 0 | H7: 0 | I7: 0 | J7: 0 | K7: 0 | L7: 0 | M7: 0 | N7: 0 | O7: 0 | P7: 0 | Q7: 0 | R7: 0 | S7: 0 | U7: =G7-INDEX($C7:$G7,1,aux!$AL$1) -> 0 | V7: 0 | W7: 0 | X7: =+IF(INDEX($C7:$G7,1,aux!$AL$1)>0,(G7/INDEX($C7:$G7,1,aux!$AL$1))^(1/($G$3-INDEX($C$3:$G$3,1,aux!$AL$1)))-1,"n.d.") -> n.d. | Y7: =IF(INDEX($C7:$G7,1,aux!$AL$1)>0,(G7-INDEX($C7:$G7,1,aux!$AL$1))/INDEX($C7:$G7,1,aux!$AL$1),"n.d.") -> n.d. | AA7: =O7-INDEX($K7:$O7,1,aux!$AL$1) -> 0 | AB7: 0 | AC7: 0 | AD7: =+IF(INDEX($K7:$O7,1,aux!$AL$1)>0,(O7/INDEX($K7:$O7,1,aux!$AL$1))^(1/($O$3-INDEX($K$3:$O$3,1,aux!$AL$1)))-1,"n.d.") -> n.d. | AE7: =IF(INDEX($K7:$O7,1,aux!$AL$1)>0,(O7-INDEX($K7:$O7,1,aux!$AL$1))/INDEX($K7:$O7,1,aux!$AL$1),"n.d.") -> n.d.
A8: 06 | B8: Plantas vivas e produtos de floricultura | C8: 0 | D8: 0 | E8: 0.132 | F8: 0 | G8: 0 | H8: 0.0264 | I8: 1.506831598e-06 | J8: 1.149106972e-06 | K8: 0.351 | L8: 0 | M8: 0 | N8: 0 | O8: 0 | P8: 0.0702 | Q8: 0.0001150067415 | R8: 6.054695114e-05 | S8: 0.0438 | U8: =G8-INDEX($C8:$G8,1,aux!$AL$1) -> 0 | V8: 0 | W8: 0 | X8: =+IF(INDEX($C8:$G8,1,aux!$AL$1)>0,(G8/INDEX($C8:$G8,1,aux!$AL$1))^(1/($G$3-INDEX($C$3:$G$3,1,aux!$AL$1)))-1,"n.d.") -> n.d. | Y8: =IF(INDEX($C8:$G8,1,aux!$AL$1)>0,(G8-INDEX($C8:$G8,1,aux!$AL$1))/INDEX($C8:$G8,1,aux!$AL$1),"n.d.") -> n.d. | AA8: =O8-INDEX($K8:$O8,1,aux!$AL$1) -> -0.351 | AB8: -0.0004925092293 | AC8: -0.0002913634398 | AD8: =+IF(INDEX($K8:$O8,1,aux!$AL$1)>0,(O8/INDEX($K8:$O8,1,aux!$AL$1))^(1/($O$3-INDEX($K$3:$O$3,1,aux!$AL$1)))-1,"n.d.") -> -1 | AE8: =IF(INDEX($K8:$O8,1,aux!$AL$1)>0,(O8-INDEX($K8:$O8,1,aux!$AL$1))/INDEX($K8:$O8,1,aux!$AL$1),"n.d.") -> -1
A9: 07 | B9: Produtos hortícolas | C9: 0 | D9: 0 | E9: 39.266 | F9: 532.852 | G9: 4.5 | H9: 115.3236 | I9: 0.006582319865 | J9: 0.005019664877 | K9: 0 | L9: 0.228 | M9: 0 | N9: 0 | O9: 0 | P9: 0.0456 | Q9: 7.470523379e-05 | R9: 3.932964348e-05 | S9: -115.278 | U9: =G9-INDEX($C9:$G9,1,aux!$AL$1) -> 4.5 | V9: 0.000580912381 | W9: 0.001489055442 | X9: =+IF(INDEX($C9:$G9,1,aux!$AL$1)>0,(G9/INDEX($C9:$G9,1,aux!$AL$1))^(1/($G$3-INDEX($C$3:$G$3,1,aux!$AL$1)))-1,"n.d.") -> n.d. | Y9: =IF(INDEX($C9:$G9,1,aux!$AL$1)>0,(G9-INDEX($C9:$G9,1,aux!$AL$1))/INDEX($C9:$G9,1,aux!$AL$1),"n.d.") -> n.d. | AA9: =O9-INDEX($K9:$O9,1,aux!$AL$1) -> 0 | AB9: 0 | AC9: 0 | AD9: =+IF(INDEX($K9:$O9,1,aux!$AL$1)>0,(O9/INDEX($K9:$O9,1,aux!$AL$1))^(1/($O$3-INDEX($K$3:$O$3,1,aux!$AL$1)))-1,"n.d.") -> n.d. | AE9: =IF(INDEX($K9:$O9,1,aux!$AL$1)>0,(O9-INDEX($K9:$O9,1,aux!$AL$1))/INDEX($K9:$O9,1,aux!$AL$1),"n.d.") -> n.d.
A10: 08 | B10: Frutas | C10: 0 | D10: 0 | E10: 2.221 | F10: 0 | G10: 0 | H10: 0.4442 | I10: 2.535358317e-05 | J10: 1.933459533e-05 | K10: 0.018 | L10: 0.313 | M10: 0 | N10: 0 | O10: 0 | P10: 0.0662 | Q10: 0.0001084536508 | R10: 5.709698242e-05 | S10: -0.378 | U10: =G10-INDEX($C10:$G10,1,aux!$AL$1) -> 0 | V10: 0 | W10: 0 | X10: =+IF(INDEX($C10:$G10,1,aux!$AL$1)>0,(G10/INDEX($C10:$G10,1,aux!$AL$1))^(1/($G$3-INDEX($C$3:$G$3,1,aux!$AL$1)))-1,"n.d.") -> n.d. | Y10: =IF(INDEX($C10:$G10,1,aux!$AL$1)>0,(G10-INDEX($C10:$G10,1,aux!$AL$1))/INDEX($C10:$G10,1,aux!$AL$1),"n.d.") -> n.d. | AA10: =O10-INDEX($K10:$O10,1,aux!$AL$1) -> -0.018 | AB10: -2.525688355e-05 | AC10: -1.494171486e-05 | AD10: =+IF(INDEX($K10:$O10,1,aux!$AL$1)>0,(O10/INDEX($K10:$O10,1,aux!$AL$1))^(1/($O$3-INDEX($K$3:$O$3,1,aux!$AL$1)))-1,"n.d.") -> -1 | AE10: =IF(INDEX($K10:$O10,1,aux!$AL$1)>0,(O10-INDEX($K10:$O10,1,aux!$AL$1))/INDEX($K10:$O10,1,aux!$AL$1),"n.d.") -> -1
A11: 09 | B11: Café, chá, mate e especiarias | C11: 9477.205 | D11: 8286.566 | E11: 8740.7 | F11: 20037.977 | G11: 21789.853 | H11: 13666.4602 | I11: 0.7800399265 | J11: 0.5948569959 | K11: 0.024 | L11: 2.855 | M11: 9 | N11: 9 | O11: 14.7 | P11: 7.1158 | Q11: 0.01165762067 | R11: 0.006137321865 | S11: -13659.3444 | U11: =G11-INDEX($C11:$G11,1,aux!$AL$1) -> 12312.648 | V11: 1.589459926 | W11: 4.074270115 | X11: =+IF(INDEX($C11:$G11,1,aux!$AL$1)>0,(G11/INDEX($C11:$G11,1,aux!$AL$1))^(1/($G$3-INDEX($C$3:$G$3,1,aux!$AL$1)))-1,"n.d.") -> 0.2313840003 | Y11: =IF(INDEX($C11:$G11,1,aux!$AL$1)>0,(G11-INDEX($C11:$G11,1,aux!$AL$1))/INDEX($C11:$G11,1,aux!$AL$1),"n.d.") -> 1.299185572 | AA11: =O11-INDEX($K11:$O11,1,aux!$AL$1) -> 14.676 | AB11: 0.02059277906 | AC11: 0.01218247818 | AD11: =+IF(INDEX($K11:$O11,1,aux!$AL$1)>0,(O11/INDEX($K11:$O11,1,aux!$AL$1))^(1/($O$3-INDEX($K$3:$O$3,1,aux!$AL$1)))-1,"n.d.") -> 3.974810282 | AE11: =IF(INDEX($K11:$O11,1,aux!$AL$1)>0,(O11-INDEX($K11:$O11,1,aux!$AL$1))/INDEX($K11:$O11,1,aux!$AL$1),"n.d.") -> 611.5
A12: 10 | B12: Cereais | C12: 0 | D12: 0 | E12: 0 | F12: 0 | G12: 0 | H12: 0 | I12: 0 | J12: 0 | K12: 0 | L12: 0.089 | M12: 0 | N12: 0 | O12: 0 | P12: 0.0178 | Q12: 2.916125354e-05 | R12: 1.535236083e-05 | S12: 0.0178 | U12: =G12-INDEX($C12:$G12,1,aux!$AL$1) -> 0 | V12: 0 | W12: 0 | X12: =+IF(INDEX($C12:$G12,1,aux!$AL$1)>0,(G12/INDEX($C12:$G12,1,aux!$AL$1))^(1/($G$3-INDEX($C$3:$G$3,1,aux!$AL$1)))-1,"n.d.") -> n.d. | Y12: =IF(INDEX($C12:$G12,1,aux!$AL$1)>0,(G12-INDEX($C12:$G12,1,aux!$AL$1))/INDEX($C12:$G12,1,aux!$AL$1),"n.d.") -> n.d. | AA12: =O12-INDEX($K12:$O12,1,aux!$AL$1) -> 0 | AB12: 0 | AC12: 0 | AD12: =+IF(INDEX($K12:$O12,1,aux!$AL$1)>0,(O12/INDEX($K12:$O12,1,aux!$AL$1))^(1/($O$3-INDEX($K$3:$O$3,1,aux!$AL$1)))-1,"n.d.") -> n.d. | AE12: =IF(INDEX($K12:$O12,1,aux!$AL$1)>0,(O12-INDEX($K12:$O12,1,aux!$AL$1))/INDEX($K12:$O12,1,aux!$AL$1),"n.d.") -> n.d.
A13: 11 | B13: Produtos da indústria de moagem e outros | C13: 0 | D13: 0 | E13: 0 | F13: 0 | G13: 0 | H13: 0 | I13: 0 | J13: 0 | K13: 0 | L13: 0 | M13: 0 | N13: 0 | O13: 0 | P13: 0 | Q13: 0 | R13: 0 | S13: 0 | U13: =G13-INDEX($C13:$G13,1,aux!$AL$1) -> 0 | V13: 0 | W13: 0 | X13: =+IF(INDEX($C13:$G13,1,aux!$AL$1)>0,(G13/INDEX($C13:$G13,1,aux!$AL$1))^(1/($G$3-INDEX($C$3:$G$3,1,aux!$AL$1)))-1,"n.d.") -> n.d. | Y13: =IF(INDEX($C13:$G13,1,aux!$AL$1)>0,(G13-INDEX($C13:$G13,1,aux!$AL$1))/INDEX($C13:$G13,1,aux!$AL$1),"n.d.") -> n.d. | AA13: =O13-INDEX($K13:$O13,1,aux!$AL$1) -> 0 | AB13: 0 | AC13: 0 | AD13: =+IF(INDEX($K13:$O13,1,aux!$AL$1)>0,(O13/INDEX($K13:$O13,1,aux!$AL$1))^(1/($O$3-INDEX($K$3:$O$3,1,aux!$AL$1)))-1,"n.d.") -> n.d. | AE13: =IF(INDEX($K13:$O13,1,aux!$AL$1)>0,(O13-INDEX($K13:$O13,1,aux!$AL$1))/INDEX($K13:$O13,1,aux!$AL$1),"n.d.") -> n.d.
A14: 12 | B14: Sementes e frutos oleaginosos | C14: 0 | D14: 0 | E14: 0 | F14: 30.473 | G14: 0 | H14: 6.0946 | I14: 0.0003478612067 | J14: 0.0002652783087 | K14: 0 | L14: 0 | M14: 0 | N14: 0 | O14: 6.52 | P14: 1.304 | Q14: 0.002136307563 | R14: 0.001124689805 | S14: -4.7906 | U14: =G14-INDEX($C14:$G14,1,aux!$AL$1) -> 0 | V14: 0 | W14: 0 | X14: =+IF(INDEX($C14:$G14,1,aux!$AL$1)>0,(G14/INDEX($C14:$G14,1,aux!$AL$1))^(1/($G$3-INDEX($C$3:$G$3,1,aux!$AL$1)))-1,"n.d.") -> n.d. | Y14: =IF(INDEX($C14:$G14,1,aux!$AL$1)>0,(G14-INDEX($C14:$G14,1,aux!$AL$1))/INDEX($C14:$G14,1,aux!$AL$1),"n.d.") -> n.d. | AA14: =O14-INDEX($K14:$O14,1,aux!$AL$1) -> 6.52 | AB14: 0.009148604487 | AC14: 0.005412221161 | AD14: =+IF(INDEX($K14:$O14,1,aux!$AL$1)>0,(O14/INDEX($K14:$O14,1,aux!$AL$1))^(1/($O$3-INDEX($K$3:$O$3,1,aux!$AL$1)))-1,"n.d.") -> n.d. | AE14: =IF(INDEX($K14:$O14,1,aux!$AL$1)>0,(O14-INDEX($K14:$O14,1,aux!$AL$1))/INDEX($K14:$O14,1,aux!$AL$1),"n.d.") -> n.d.
A15: 13a | B15: Sucos e extratos vegetais (exc. NC 1301) (a) | C15: 0 | D15: 0 | E15: 0 | F15: 0 | G15: 0 | H15: 0 | I15: 0 | J15: 0 | K15: 0 | L15: 0 | M15: 0 | N15: 0 | O15: 0 | P15: 0 | Q15: 0 | R15: 0 | S15: 0 | U15: =G15-INDEX($C15:$G15,1,aux!$AL$1) -> 0 | V15: 0 | W15: 0 | X15: =+IF(INDEX($C15:$G15,1,aux!$AL$1)>0,(G15/INDEX($C15:$G15,1,aux!$AL$1))^(1/($G$3-INDEX($C$3:$G$3,1,aux!$AL$1)))-1,"n.d.") -> n.d. | Y15: =IF(INDEX($C15:$G15,1,aux!$AL$1)>0,(G15-INDEX($C15:$G15,1,aux!$AL$1))/INDEX($C15:$G15,1,aux!$AL$1),"n.d.") -> n.d. | AA15: =O15-INDEX($K15:$O15,1,aux!$AL$1) -> 0 | AB15: 0 | AC15: 0 | AD15: =+IF(INDEX($K15:$O15,1,aux!$AL$1)>0,(O15/INDEX($K15:$O15,1,aux!$AL$1))^(1/($O$3-INDEX($K$3:$O$3,1,aux!$AL$1)))-1,"n.d.") -> n.d. | AE15: =IF(INDEX($K15:$O15,1,aux!$AL$1)>0,(O15-INDEX($K15:$O15,1,aux!$AL$1))/INDEX($K15:$O15,1,aux!$AL$1),"n.d.") -> n.d.
A16: 14 | B16: Matérias para entrançar e outros | C16: 0 | D16: 0 | E16: 0 | F16: 0 | G16: 0 | H16: 0 | I16: 0 | J16: 0 | K16: 0 | L16: 0 | M16: 0 | N16: 0 | O16: 0 | P16: 0 | Q16: 0 | R16: 0 | S16: 0 | U16: =G16-INDEX($C16:$G16,1,aux!$AL$1) -> 0 | V16: 0 | W16: 0 | X16: =+IF(INDEX($C16:$G16,1,aux!$AL$1)>0,(G16/INDEX($C16:$G16,1,aux!$AL$1))^(1/($G$3-INDEX($C$3:$G$3,1,aux!$AL$1)))-1,"n.d.") -> n.d. | Y16: =IF(INDEX($C16:$G16,1,aux!$AL$1)>0,(G16-INDEX($C16:$G16,1,aux!$AL$1))/INDEX($C16:$G16,1,aux!$AL$1),"n.d.") -> n.d. | AA16: =O16-INDEX($K16:$O16,1,aux!$AL$1) -> 0 | AB16: 0 | AC16: 0 | AD16: =+IF(INDEX($K16:$O16,1,aux!$AL$1)>0,(O16/INDEX($K16:$O16,1,aux!$AL$1))^(1/($O$3-INDEX($K$3:$O$3,1,aux!$AL$1)))-1,"n.d.") -> n.d. | AE16: =IF(INDEX($K16:$O16,1,aux!$AL$1)>0,(O16-INDEX($K16:$O16,1,aux!$AL$1))/INDEX($K16:$O16,1,aux!$AL$1),"n.d.") -> n.d.
A17: 15 | B17: Gorduras e óleos animais ou vegetais | C17: 0 | D17: 0 | E17: 0 | F17: 121.342 | G17: 375.239 | H17: 99.3162 | I17: 0.005668666225 | J17: 0.004322914311 | K17: 0.01 | L17: 46.12 | M17: 67.488 | N17: 48.428 | O17: 137.227 | P17: 59.8546 | Q17: 0.0980581554 | R17: 0.05162412453 | S17: -39.4616 | U17: =G17-INDEX($C17:$G17,1,aux!$AL$1) -> 375.239 | V17: 0.04844021798 | W17: 0.1241670389 | X17: =+IF(INDEX($C17:$G17,1,aux!$AL$1)>0,(G17/INDEX($C17:$G17,1,aux!$AL$1))^(1/($G$3-INDEX($C$3:$G$3,1,aux!$AL$1)))-1,"n.d.") -> n.d. | Y17: =IF(INDEX($C17:$G17,1,aux!$AL$1)>0,(G17-INDEX($C17:$G17,1,aux!$AL$1))/INDEX($C17:$G17,1,aux!$AL$1),"n.d.") -> n.d. | AA17: =O17-INDEX($K17:$O17,1,aux!$AL$1) -> 137.217 | AB17: 0.1925374328 | AC17: 0.1139031827 | AD17: =+IF(INDEX($K17:$O17,1,aux!$AL$1)>0,(O17/INDEX($K17:$O17,1,aux!$AL$1))^(1/($O$3-INDEX($K$3:$O$3,1,aux!$AL$1)))-1,"n.d.") -> 9.823304882 | AE17: =IF(INDEX($K17:$O17,1,aux!$AL$1)>0,(O17-INDEX($K17:$O17,1,aux!$AL$1))/INDEX($K17:$O17,1,aux!$AL$1),"n.d.") -> 13721.7
A18: 16a | B18: Preparações de carnes (exc. NC 1604-05) (a) | C18: 0 | D18: 0 | E18: 0 | F18: 0 | G18: 0 | H18: 0 | I18: 0 | J18: 0 | K18: 0.315 | L18: 19.44 | M18: 64.8 | N18: 64.8 | O18: 113.82 | P18: 52.635 | Q18: 0.08623048203 | R18: 0.04539727597 | S18: 52.635 | U18: =G18-INDEX($C18:$G18,1,aux!$AL$1) -> 0 | V18: 0 | W18: 0 | X18: =+IF(INDEX($C18:$G18,1,aux!$AL$1)>0,(G18/INDEX($C18:$G18,1,aux!$AL$1))^(1/($G$3-INDEX($C$3:$G$3,1,aux!$AL$1)))-1,"n.d.") -> n.d. | Y18: =IF(INDEX($C18:$G18,1,aux!$AL$1)>0,(G18-INDEX($C18:$G18,1,aux!$AL$1))/INDEX($C18:$G18,1,aux!$AL$1),"n.d.") -> n.d. | AA18: =O18-INDEX($K18:$O18,1,aux!$AL$1) -> 113.505 | AB18: 0.1592656982 | AC18: 0.09421996363 | AD18: =+IF(INDEX($K18:$O18,1,aux!$AL$1)>0,(O18/INDEX($K18:$O18,1,aux!$AL$1))^(1/($O$3-INDEX($K$3:$O$3,1,aux!$AL$1)))-1,"n.d.") -> 3.359904805 | AE18: =IF(INDEX($K18:$O18,1,aux!$AL$1)>0,(O18-INDEX($K18:$O18,1,aux!$AL$1))/INDEX($K18:$O18,1,aux!$AL$1),"n.d.") -> 360.3333333
A19: 17 | B19: Açúcares e produtos de confeitaria | C19: 0 | D19: 0 | E19: 0 | F19: 0 | G19: 0 | H19: 0 | I19: 0 | J19: 0 | K19: 0.003 | L19: 2.733 | M19: 8.64 | N19: 8.64 | O19: 13.44 | P19: 6.6912 | Q19: 0.0109620101 | R19: 0.005771107685 | S19: 6.6912 | U19: =G19-INDEX($C19:$G19,1,aux!$AL$1) -> 0 | V19: 0 | W19: 0 | X19: =+IF(INDEX($C19:$G19,1,aux!$AL$1)>0,(G19/INDEX($C19:$G19,1,aux!$AL$1))^(1/($G$3-INDEX($C$3:$G$3,1,aux!$AL$1)))-1,"n.d.") -> n.d. | Y19: =IF(INDEX($C19:$G19,1,aux!$AL$1)>0,(G19-INDEX($C19:$G19,1,aux!$AL$1))/INDEX($C19:$G19,1,aux!$AL$1),"n.d.") -> n.d. | AA19: =O19-INDEX($K19:$O19,1,aux!$AL$1) -> 13.437 | AB19: 0.01885426357 | AC19: 0.01115399014 | AD19: =+IF(INDEX($K19:$O19,1,aux!$AL$1)>0,(O19/INDEX($K19:$O19,1,aux!$AL$1))^(1/($O$3-INDEX($K$3:$O$3,1,aux!$AL$1)))-1,"n.d.") -> 7.181246978 | AE19: =IF(INDEX($K19:$O19,1,aux!$AL$1)>0,(O19-INDEX($K19:$O19,1,aux!$AL$1))/INDEX($K19:$O19,1,aux!$AL$1),"n.d.") -> 4479
A20: 18 | B20: Cacau e suas preparações | C20: 0 | D20: 0 | E20: 0 | F20: 0 | G20: 0 | H20: 0 | I20: 0 | J20: 0 | K20: 0 | L20: 4.212 | M20: 14.04 | N20: 14.04 | O20: 20.58 | P20: 10.5744 | Q20: 0.01732375053 | R20: 0.009120337324 | S20: 10.5744 | U20: =G20-INDEX($C20:$G20,1,aux!$AL$1) -> 0 | V20: 0 | W20: 0 | X20: =+IF(INDEX($C20:$G20,1,aux!$AL$1)>0,(G20/INDEX($C20:$G20,1,aux!$AL$1))^(1/($G$3-INDEX($C$3:$G$3,1,aux!$AL$1)))-1,"n.d.") -> n.d. | Y20: =IF(INDEX($C20:$G20,1,aux!$AL$1)>0,(G20-INDEX($C20:$G20,1,aux!$AL$1))/INDEX($C20:$G20,1,aux!$AL$1),"n.d.") -> n.d. | AA20: =O20-INDEX($K20:$O20,1,aux!$AL$1) -> 20.58 | AB20: 0.02887703686 | AC20: 0.01708336066 | AD20: =+IF(INDEX($K20:$O20,1,aux!$AL$1)>0,(O20/INDEX($K20:$O20,1,aux!$AL$1))^(1/($O$3-INDEX($K$3:$O$3,1,aux!$AL$1)))-1,"n.d.") -> n.d. | AE20: =IF(INDEX($K20:$O20,1,aux!$AL$1)>0,(O20-INDEX($K20:$O20,1,aux!$AL$1))/INDEX($K20:$O20,1,aux!$AL$1),"n.d.") -> n.d.
A21: 19a | B21: Preparações à base de cereais (exc. NC 19022010) (a) | C21: 0 | D21: 0 | E21: 0 | F21: 0 | G21: 0 | H21: 0 | I21: 0 | J21: 0 | K21: 0.046 | L21: 23.363 | M21: 80.254 | N21: 83.168 | O21: 159.045 | P21: 69.1752 | Q21: 0.1133278397 | R21: 0.05966306915 | S21: 69.1752 | U21: =G21-INDEX($C21:$G21,1,aux!$AL$1) -> 0 | V21: 0 | W21: 0 | X21: =+IF(INDEX($C21:$G21,1,aux!$AL$1)>0,(G21/INDEX($C21:$G21,1,aux!$AL$1))^(1/($G$3-INDEX($C$3:$G$3,1,aux!$AL$1)))-1,"n.d.") -> n.d. | Y21: =IF(INDEX($C21:$G21,1,aux!$AL$1)>0,(G21-INDEX($C21:$G21,1,aux!$AL$1))/INDEX($C21:$G21,1,aux!$AL$1),"n.d.") -> n.d. | AA21: =O21-INDEX($K21:$O21,1,aux!$AL$1) -> 158.999 | AB21: 0.2231010682 | AC21: 0.1319843178 | AD21: =+IF(INDEX($K21:$O21,1,aux!$AL$1)>0,(O21/INDEX($K21:$O21,1,aux!$AL$1))^(1/($O$3-INDEX($K$3:$O$3,1,aux!$AL$1)))-1,"n.d.") -> 6.668149073 | AE21: =IF(INDEX($K21:$O21,1,aux!$AL$1)>0,(O21-INDEX($K21:$O21,1,aux!$AL$1))/INDEX($K21:$O21,1,aux!$AL$1),"n.d.") -> 3456.5
A22: 20 | B22: Preparações de produtos vegetais | C22: 0 | D22: 0 | E22: 0 | F22: 0 | G22: 0 | H22: 0 | I22: 0 | J22: 0 | K22: 0.009 | L22: 25.121 | M22: 81.36 | N22: 81.36 | O22: 128.306 | P22: 63.2312 | Q22: 0.1035899469 | R22: 0.05453641563 | S22: 63.2312 | U22: =G22-INDEX($C22:$G22,1,aux!$AL$1) -> 0 | V22: 0 | W22: 0 | X22: =+IF(INDEX($C22:$G22,1,aux!$AL$1)>0,(G22/INDEX($C22:$G22,1,aux!$AL$1))^(1/($G$3-INDEX($C$3:$G$3,1,aux!$AL$1)))-1,"n.d.") -> n.d. | Y22: =IF(INDEX($C22:$G22,1,aux!$AL$1)>0,(G22-INDEX($C22:$G22,1,aux!$AL$1))/INDEX($C22:$G22,1,aux!$AL$1),"n.d.") -> n.d. | AA22: =O22-INDEX($K22:$O22,1,aux!$AL$1) -> 128.297 | AB22: 0.1800212438 | AC22: 0.1064987329 | AD22: =+IF(INDEX($K22:$O22,1,aux!$AL$1)>0,(O22/INDEX($K22:$O22,1,aux!$AL$1))^(1/($O$3-INDEX($K$3:$O$3,1,aux!$AL$1)))-1,"n.d.") -> 9.927004303 | AE22: =IF(INDEX($K22:$O22,1,aux!$AL$1)>0,(O22-INDEX($K22:$O22,1,aux!$AL$1))/INDEX($K22:$O22,1,aux!$AL$1),"n.d.") -> 14255.22222
A23: 21 | B23: Preparações alimentícias diversas | C23: 0 | D23: 0 | E23: 0.068 | F23: 0.037 | G23: 0.032 | H23: 0.0274 | I23: 1.563908552e-06 | J23: 1.192633751e-06 | K23: 0.357 | L23: 7.099 | M23: 27.309 | N23: 40.09 | O23: 37.767 | P23: 22.5244 | Q23: 0.03690110895 | R23: 0.01942711889 | S23: 22.497 | U23: =G23-INDEX($C23:$G23,1,aux!$AL$1) -> 0.032 | V23: 4.130932487e-06 | W23: 1.05888387e-05 | X23: =+IF(INDEX($C23:$G23,1,aux!$AL$1)>0,(G23/INDEX($C23:$G23,1,aux!$AL$1))^(1/($G$3-INDEX($C$3:$G$3,1,aux!$AL$1)))-1,"n.d.") -> n.d. | Y23: =IF(INDEX($C23:$G23,1,aux!$AL$1)>0,(G23-INDEX($C23:$G23,1,aux!$AL$1))/INDEX($C23:$G23,1,aux!$AL$1),"n.d.") -> n.d. | AA23: =O23-INDEX($K23:$O23,1,aux!$AL$1) -> 37.41 | AB23: 0.05249222298 | AC23: 0.03105386405 | AD23: =+IF(INDEX($K23:$O23,1,aux!$AL$1)>0,(O23/INDEX($K23:$O23,1,aux!$AL$1))^(1/($O$3-INDEX($K$3:$O$3,1,aux!$AL$1)))-1,"n.d.") -> 2.207089412 | AE23: =IF(INDEX($K23:$O23,1,aux!$AL$1)>0,(O23-INDEX($K23:$O23,1,aux!$AL$1))/INDEX($K23:$O23,1,aux!$AL$1),"n.d.") -> 104.789916
A24: 22 | B24: Bebidas, líquidos alcoólicos e vinagres | C24: 0 | D24: 0 | E24: 0 | F24: 0 | G24: 0 | H24: 0 | I24: 0 | J24: 0 | K24: 1.276 | L24: 33.751 | M24: 49.291 | N24: 62.032 | O24: 90.35 | P24: 47.34 | Q24: 0.07755582824 | R24: 0.04083037987 | S24: 47.34 | U24: =G24-INDEX($C24:$G24,1,aux!$AL$1) -> 0 | V24: 0 | W24: 0 | X24: =+IF(INDEX($C24:$G24,1,aux!$AL$1)>0,(G24/INDEX($C24:$G24,1,aux!$AL$1))^(1/($G$3-INDEX($C$3:$G$3,1,aux!$AL$1)))-1,"n.d.") -> n.d. | Y24: =IF(INDEX($C24:$G24,1,aux!$AL$1)>0,(G24-INDEX($C24:$G24,1,aux!$AL$1))/INDEX($C24:$G24,1,aux!$AL$1),"n.d.") -> n.d. | AA24: =O24-INDEX($K24:$O24,1,aux!$AL$1) -> 89.074 | AB24: 0.1249850914 | AC24: 0.07393990608 | AD24: =+IF(INDEX($K24:$O24,1,aux!$AL$1)>0,(O24/INDEX($K24:$O24,1,aux!$AL$1))^(1/($O$3-INDEX($K$3:$O$3,1,aux!$AL$1)))-1,"n.d.") -> 1.900810579 | AE24: =IF(INDEX($K24:$O24,1,aux!$AL$1)>0,(O24-INDEX($K24:$O24,1,aux!$AL$1))/INDEX($K24:$O24,1,aux!$AL$1),"n.d.") -> 69.80721003
A25: 23a | B25: Resíduos indústrias alimentares; alimentos p/ animais (exc. NC 230120) (a) | C25: 0 | D25: 0 | E25: 0 | F25: 0 | G25: 0 | H25: 0 | I25: 0 | J25: 0 | K25: 0 | L25: 0 | M25: 0 | N25: 0.06 | O25: 0 | P25: 0.012 | Q25: 1.965927205e-05 | R25: 1.034990618e-05 | S25: 0.012 | U25: =G25-INDEX($C25:$G25,1,aux!$AL$1) -> 0 | V25: 0 | W25: 0 | X25: =+IF(INDEX($C25:$G25,1,aux!$AL$1)>0,(G25/INDEX($C25:$G25,1,aux!$AL$1))^(1/($G$3-INDEX($C$3:$G$3,1,aux!$AL$1)))-1,"n.d.") -> n.d. | Y25: =IF(INDEX($C25:$G25,1,aux!$AL$1)>0,(G25-INDEX($C25:$G25,1,aux!$AL$1))/INDEX($C25:$G25,1,aux!$AL$1),"n.d.") -> n.d. | AA25: =O25-INDEX($K25:$O25,1,aux!$AL$1) -> 0 | AB25: 0 | AC25: 0 | AD25: =+IF(INDEX($K25:$O25,1,aux!$AL$1)>0,(O25/INDEX($K25:$O25,1,aux!$AL$1))^(1/($O$3-INDEX($K$3:$O$3,1,aux!$AL$1)))-1,"n.d.") -> n.d. | AE25: =IF(INDEX($K25:$O25,1,aux!$AL$1)>0,(O25-INDEX($K25:$O25,1,aux!$AL$1))/INDEX($K25:$O25,1,aux!$AL$1),"n.d.") -> n.d.
A26: 24 | B26: Tabaco | C26: 0 | D26: 0 | E26: 0 | F26: 0.55 | G26: 0.925 | H26: 0.295 | I26: 1.683770157e-05 | J26: 1.284039987e-05 | K26: 0 | L26: 0 | M26: 0 | N26: 0 | O26: 0 | P26: 0 | Q26: 0 | R26: 0 | S26: -0.295 | U26: =G26-INDEX($C26:$G26,1,aux!$AL$1) -> 0.925 | V26: 0.0001194097672 | W26: 0.0003060836187 | X26: =+IF(INDEX($C26:$G26,1,aux!$AL$1)>0,(G26/INDEX($C26:$G26,1,aux!$AL$1))^(1/($G$3-INDEX($C$3:$G$3,1,aux!$AL$1)))-1,"n.d.") -> n.d. | Y26: =IF(INDEX($C26:$G26,1,aux!$AL$1)>0,(G26-INDEX($C26:$G26,1,aux!$AL$1))/INDEX($C26:$G26,1,aux!$AL$1),"n.d.") -> n.d. | AA26: =O26-INDEX($K26:$O26,1,aux!$AL$1) -> 0 | AB26: 0 | AC26: 0 | AD26: =+IF(INDEX($K26:$O26,1,aux!$AL$1)>0,(O26/INDEX($K26:$O26,1,aux!$AL$1))^(1/($O$3-INDEX($K$3:$O$3,1,aux!$AL$1)))-1,"n.d.") -> n.d. | AE26: =IF(INDEX($K26:$O26,1,aux!$AL$1)>0,(O26-INDEX($K26:$O26,1,aux!$AL$1))/INDEX($K26:$O26,1,aux!$AL$1),"n.d.") -> n.d.
A27: 29 | B27: Manitol e sorbitol (NC 290543; 290544) | C27: 0 | D27: 0 | E27: 0 | F27: 0 | G27: 0 | H27: 0 | I27: 0 | J27: 0 | K27: 0 | L27: 0 | M27: 0 | N27: 0 | O27: 0 | P27: 0 | Q27: 0 | R27: 0 | S27: 0 | U27: =G27-INDEX($C27:$G27,1,aux!$AL$1) -> 0 | V27: 0 | W27: 0 | X27: =+IF(INDEX($C27:$G27,1,aux!$AL$1)>0,(G27/INDEX($C27:$G27,1,aux!$AL$1))^(1/($G$3-INDEX($C$3:$G$3,1,aux!$AL$1)))-1,"n.d.") -> n.d. | Y27: =IF(INDEX($C27:$G27,1,aux!$AL$1)>0,(G27-INDEX($C27:$G27,1,aux!$AL$1))/INDEX($C27:$G27,1,aux!$AL$1),"n.d.") -> n.d. | AA27: =O27-INDEX($K27:$O27,1,aux!$AL$1) -> 0 | AB27: 0 | AC27: 0 | AD27: =+IF(INDEX($K27:$O27,1,aux!$AL$1)>0,(O27/INDEX($K27:$O27,1,aux!$AL$1))^(1/($O$3-INDEX($K$3:$O$3,1,aux!$AL$1)))-1,"n.d.") -> n.d. | AE27: =IF(INDEX($K27:$O27,1,aux!$AL$1)>0,(O27-INDEX($K27:$O27,1,aux!$AL$1))/INDEX($K27:$O27,1,aux!$AL$1),"n.d.") -> n.d.
A28: 33 | B28: Óleos essenciais e resinóides (NC 3301) | C28: 0 | D28: 0 | E28: 0 | F28: 0 | G28: 0 | H28: 0 | I28: 0 | J28: 0 | K28: 26.269 | L28: 63.417 | M28: 9.503 | N28: 25.149 | O28: 25.046 | P28: 29.8768 | Q28: 0.04894634493 | R28: 0.02576850641 | S28: 29.8768 | U28: =G28-INDEX($C28:$G28,1,aux!$AL$1) -> 0 | V28: 0 | W28: 0 | X28: =+IF(INDEX($C28:$G28,1,aux!$AL$1)>0,(G28/INDEX($C28:$G28,1,aux!$AL$1))^(1/($G$3-INDEX($C$3:$G$3,1,aux!$AL$1)))-1,"n.d.") -> n.d. | Y28: =IF(INDEX($C28:$G28,1,aux!$AL$1)>0,(G28-INDEX($C28:$G28,1,aux!$AL$1))/INDEX($C28:$G28,1,aux!$AL$1),"n.d.") -> n.d. | AA28: =O28-INDEX($K28:$O28,1,aux!$AL$1) -> -1.223 | AB28: -0.001716064921 | AC28: -0.001015206515 | AD28: =+IF(INDEX($K28:$O28,1,aux!$AL$1)>0,(O28/INDEX($K28:$O28,1,aux!$AL$1))^(1/($O$3-INDEX($K$3:$O$3,1,aux!$AL$1)))-1,"n.d.") -> -0.01184810251 | AE28: =IF(INDEX($K28:$O28,1,aux!$AL$1)>0,(O28-INDEX($K28:$O28,1,aux!$AL$1))/INDEX($K28:$O28,1,aux!$AL$1),"n.d.") -> -0.04655677795
A29: 35 | B29: Caseínas, albuminas, gelatinas, peptonas, dextrinas (NC 3501 a 3505) | C29: 0 | D29: 0 | E29: 0 | F29: 0 | G29: 0 | H29: 0 | I29: 0 | J29: 0 | K29: 0 | L29: 0 | M29: 0 | N29: 1.38 | O29: 0 | P29: 0.276 | Q29: 0.0004521632571 | R29: 0.0002380478421 | S29: 0.276 | U29: =G29-INDEX($C29:$G29,1,aux!$AL$1) -> 0 | V29: 0 | W29: 0 | X29: =+IF(INDEX($C29:$G29,1,aux!$AL$1)>0,(G29/INDEX($C29:$G29,1,aux!$AL$1))^(1/($G$3-INDEX($C$3:$G$3,1,aux!$AL$1)))-1,"n.d.") -> n.d. | Y29: =IF(INDEX($C29:$G29,1,aux!$AL$1)>0,(G29-INDEX($C29:$G29,1,aux!$AL$1))/INDEX($C29:$G29,1,aux!$AL$1),"n.d.") -> n.d. | AA29: =O29-INDEX($K29:$O29,1,aux!$AL$1) -> 0 | AB29: 0 | AC29: 0 | AD29: =+IF(INDEX($K29:$O29,1,aux!$AL$1)>0,(O29/INDEX($K29:$O29,1,aux!$AL$1))^(1/($O$3-INDEX($K$3:$O$3,1,aux!$AL$1)))-1,"n.d.") -> n.d. | AE29: =IF(INDEX($K29:$O29,1,aux!$AL$1)>0,(O29-INDEX($K29:$O29,1,aux!$AL$1))/INDEX($K29:$O29,1,aux!$AL$1),"n.d.") -> n.d.
A30: 38a | B30: Agentes de acabamento, ácidos gordos, sorbitol (NC 380910, 382311-12-13-19-70, 382460) (a) | C30: 0 | D30: 0 | E30: 0 | F30: 0 | G30: 0 | H30: 0 | I30: 0 | J30: 0 | K30: 0 | L30: 0 | M30: 0 | N30: 0 | O30: 0 | P30: 0 | Q30: 0 | R30: 0 | S30: 0 | U30: =G30-INDEX($C30:$G30,1,aux!$AL$1) -> 0 | V30: 0 | W30: 0 | X30: =+IF(INDEX($C30:$G30,1,aux!$AL$1)>0,(G30/INDEX($C30:$G30,1,aux!$AL$1))^(1/($G$3-INDEX($C$3:$G$3,1,aux!$AL$1)))-1,"n.d.") -> n.d. | Y30: =IF(INDEX($C30:$G30,1,aux!$AL$1)>0,(G30-INDEX($C30:$G30,1,aux!$AL$1))/INDEX($C30:$G30,1,aux!$AL$1),"n.d.") -> n.d. | AA30: =O30-INDEX($K30:$O30,1,aux!$AL$1) -> 0 | AB30: 0 | AC30: 0 | AD30: =+IF(INDEX($K30:$O30,1,aux!$AL$1)>0,(O30/INDEX($K30:$O30,1,aux!$AL$1))^(1/($O$3-INDEX($K$3:$O$3,1,aux!$AL$1)))-1,"n.d.") -> n.d. | AE30: =IF(INDEX($K30:$O30,1,aux!$AL$1)>0,(O30-INDEX($K30:$O30,1,aux!$AL$1))/INDEX($K30:$O30,1,aux!$AL$1),"n.d.") -> n.d.
A31: 41 | B31: Couro e peles em bruto (NC 4101 a 4103) | C31: 0 | D31: 0 | E31: 0 | F31: 0 | G31: 0 | H31: 0 | I31: 0 | J31: 0 | K31: 0 | L31: 0 | M31: 0 | N31: 0 | O31: 0 | P31: 0 | Q31: 0 | R31: 0 | S31: 0 | U31: =G31-INDEX($C31:$G31,1,aux!$AL$1) -> 0 | V31: 0 | W31: 0 | X31: =+IF(INDEX($C31:$G31,1,aux!$AL$1)>0,(G31/INDEX($C31:$G31,1,aux!$AL$1))^(1/($G$3-INDEX($C$3:$G$3,1,aux!$AL$1)))-1,"n.d.") -> n.d. | Y31: =IF(INDEX($C31:$G31,1,aux!$AL$1)>0,(G31-INDEX($C31:$G31,1,aux!$AL$1))/INDEX($C31:$G31,1,aux!$AL$1),"n.d.") -> n.d. | AA31: =O31-INDEX($K31:$O31,1,aux!$AL$1) -> 0 | AB31: 0 | AC31: 0 | AD31: =+IF(INDEX($K31:$O31,1,aux!$AL$1)>0,(O31/INDEX($K31:$O31,1,aux!$AL$1))^(1/($O$3-INDEX($K$3:$O$3,1,aux!$AL$1)))-1,"n.d.") -> n.d. | AE31: =IF(INDEX($K31:$O31,1,aux!$AL$1)>0,(O31-INDEX($K31:$O31,1,aux!$AL$1))/INDEX($K31:$O31,1,aux!$AL$1),"n.d.") -> n.d.
A32: 43 | B32: Peles com pelo em bruto (NC 4301) | C32: 0 | D32: 0 | E32: 0 | F32: 0 | G32: 0 | H32: 0 | I32: 0 | J32: 0 | K32: 0 | L32: 0 | M32: 0 | N32: 0 | O32: 0 | P32: 0 | Q32: 0 | R32: 0 | S32: 0 | U32: =G32-INDEX($C32:$G32,1,aux!$AL$1) -> 0 | V32: 0 | W32: 0 | X32: =+IF(INDEX($C32:$G32,1,aux!$AL$1)>0,(G32/INDEX($C32:$G32,1,aux!$AL$1))^(1/($G$3-INDEX($C$3:$G$3,1,aux!$AL$1)))-1,"n.d.") -> n.d. | Y32: =IF(INDEX($C32:$G32,1,aux!$AL$1)>0,(G32-INDEX($C32:$G32,1,aux!$AL$1))/INDEX($C32:$G32,1,aux!$AL$1),"n.d.") -> n.d. | AA32: =O32-INDEX($K32:$O32,1,aux!$AL$1) -> 0 | AB32: 0 | AC32: 0 | AD32: =+IF(INDEX($K32:$O32,1,aux!$AL$1)>0,(O32/INDEX($K32:$O32,1,aux!$AL$1))^(1/($O$3-INDEX($K$3:$O$3,1,aux!$AL$1)))-1,"n.d.") -> n.d. | AE32: =IF(INDEX($K32:$O32,1,aux!$AL$1)>0,(O32-INDEX($K32:$O32,1,aux!$AL$1))/INDEX($K32:$O32,1,aux!$AL$1),"n.d.") -> n.d.
A33: 50 | B33: Seda crua (NC 5001-5003) | C33: 0 | D33: 0 | E33: 0 | F33: 0 | G33: 0 | H33: 0 | I33: 0 | J33: 0 | K33: 0 | L33: 0 | M33: 0 | N33: 0 | O33: 0 | P33: 0 | Q33: 0 | R33: 0 | S33: 0 | U33: =G33-INDEX($C33:$G33,1,aux!$AL$1) -> 0 | V33: 0 | W33: 0 | X33: =+IF(INDEX($C33:$G33,1,aux!$AL$1)>0,(G33/INDEX($C33:$G33,1,aux!$AL$1))^(1/($G$3-INDEX($C$3:$G$3,1,aux!$AL$1)))-1,"n.d.") -> n.d. | Y33: =IF(INDEX($C33:$G33,1,aux!$AL$1)>0,(G33-INDEX($C33:$G33,1,aux!$AL$1))/INDEX($C33:$G33,1,aux!$AL$1),"n.d.") -> n.d. | AA33: =O33-INDEX($K33:$O33,1,aux!$AL$1) -> 0 | AB33: 0 | AC33: 0 | AD33: =+IF(INDEX($K33:$O33,1,aux!$AL$1)>0,(O33/INDEX($K33:$O33,1,aux!$AL$1))^(1/($O$3-INDEX($K$3:$O$3,1,aux!$AL$1)))-1,"n.d.") -> n.d. | AE33: =IF(INDEX($K33:$O33,1,aux!$AL$1)>0,(O33-INDEX($K33:$O33,1,aux!$AL$1))/INDEX($K33:$O33,1,aux!$AL$1),"n.d.") -> n.d.
A34: 51 | B34: Lã não cardada (NC 5101-5103) | C34: 0 | D34: 0 | E34: 0 | F34: 0 | G34: 0 | H34: 0 | I34: 0 | J34: 0 | K34: 0 | L34: 0 | M34: 0 | N34: 0 | O34: 0 | P34: 0 | Q34: 0 | R34: 0 | S34: 0 | U34: =G34-INDEX($C34:$G34,1,aux!$AL$1) -> 0 | V34: 0 | W34: 0 | X34: =+IF(INDEX($C34:$G34,1,aux!$AL$1)>0,(G34/INDEX($C34:$G34,1,aux!$AL$1))^(1/($G$3-INDEX($C$3:$G$3,1,aux!$AL$1)))-1,"n.d.") -> n.d. | Y34: =IF(INDEX($C34:$G34,1,aux!$AL$1)>0,(G34-INDEX($C34:$G34,1,aux!$AL$1))/INDEX($C34:$G34,1,aux!$AL$1),"n.d.") -> n.d. | AA34: =O34-INDEX($K34:$O34,1,aux!$AL$1) -> 0 | AB34: 0 | AC34: 0 | AD34: =+IF(INDEX($K34:$O34,1,aux!$AL$1)>0,(O34/INDEX($K34:$O34,1,aux!$AL$1))^(1/($O$3-INDEX($K$3:$O$3,1,aux!$AL$1)))-1,"n.d.") -> n.d. | AE34: =IF(INDEX($K34:$O34,1,aux!$AL$1)>0,(O34-INDEX($K34:$O34,1,aux!$AL$1))/INDEX($K34:$O34,1,aux!$AL$1),"n.d.") -> n.d.
A35: 52 | B35: Algodão (NC 5201-5203) | C35: 5363.903 | D35: 7688.465 | E35: 799.685 | F35: 3892.045 | G35: 416.994 | H35: 3632.2184 | I35: 0.2073159642 | J35: 0.1580987684 | K35: 0 | L35: 0 | M35: 0 | N35: 0 | O35: 0 | P35: 0 | Q35: 0 | R35: 0 | S35: -3632.2184 | U35: =G35-INDEX($C35:$G35,1,aux!$AL$1) -> -4946.909 | V35: -0.6386045968 | W35: -1.636938171 | X35: =+IF(INDEX($C35:$G35,1,aux!$AL$1)>0,(G35/INDEX($C35:$G35,1,aux!$AL$1))^(1/($G$3-INDEX($C$3:$G$3,1,aux!$AL$1)))-1,"n.d.") -> -0.4719655926 | Y35: =IF(INDEX($C35:$G35,1,aux!$AL$1)>0,(G35-INDEX($C35:$G35,1,aux!$AL$1))/INDEX($C35:$G35,1,aux!$AL$1),"n.d.") -> -0.9222592206 | AA35: =O35-INDEX($K35:$O35,1,aux!$AL$1) -> 0 | AB35: 0 | AC35: 0 | AD35: =+IF(INDEX($K35:$O35,1,aux!$AL$1)>0,(O35/INDEX($K35:$O35,1,aux!$AL$1))^(1/($O$3-INDEX($K$3:$O$3,1,aux!$AL$1)))-1,"n.d.") -> n.d. | AE35: =IF(INDEX($K35:$O35,1,aux!$AL$1)>0,(O35-INDEX($K35:$O35,1,aux!$AL$1))/INDEX($K35:$O35,1,aux!$AL$1),"n.d.") -> n.d.
A36: 53 | B36: Linho e cânhamo em bruto (NC 5301-5302) | C36: 0 | D36: 0 | E36: 0 | F36: 0 | G36: 0 | H36: 0 | I36: 0 | J36: 0 | K36: 0 | L36: 0 | M36: 0 | N36: 0 | O36: 0 | P36: 0 | Q36: 0 | R36: 0 | S36: 0 | U36: =G36-INDEX($C36:$G36,1,aux!$AL$1) -> 0 | V36: 0 | W36: =IF($U$53<>0,U36/$U$53, "n.d.") -> 0 | X36: =+IF(INDEX($C36:$G36,1,aux!$AL$1)>0,(G36/INDEX($C36:$G36,1,aux!$AL$1))^(1/($G$3-INDEX($C$3:$G$3,1,aux!$AL$1)))-1,"n.d.") -> n.d. | Y36: =IF(INDEX($C36:$G36,1,aux!$AL$1)>0,(G36-INDEX($C36:$G36,1,aux!$AL$1))/INDEX($C36:$G36,1,aux!$AL$1),"n.d.") -> n.d. | AA36: =O36-INDEX($K36:$O36,1,aux!$AL$1) -> 0 | AB36: 0 | AC36: =IF($AA$53<>0,AA36/$AA$53, "n.d.") -> 0 | AD36: =+IF(INDEX($K36:$O36,1,aux!$AL$1)>0,(O36/INDEX($K36:$O36,1,aux!$AL$1))^(1/($O$3-INDEX($K$3:$O$3,1,aux!$AL$1)))-1,"n.d.") -> n.d. | AE36: =IF(INDEX($K36:$O36,1,aux!$AL$1)>0,(O36-INDEX($K36:$O36,1,aux!$AL$1))/INDEX($K36:$O36,1,aux!$AL$1),"n.d.") -> n.d.
B37: Subtotal Agrícola e Agroalimentar | C37: 14841.108 | D37: 15975.031 | E37: 9582.072 | F37: 24615.276 | G37: 22587.543 | H37: 17520.206 | I37: 1 | J37: 0.7625981385 | K37: 44.204 | L37: 230.685 | M37: 1518.243 | N37: 501.982 | O37: 756.881 | P37: 610.399 | Q37: 1 | R37: 0.5264643651 | S37: -16909.807 | U37: =G37-INDEX($C37:$G37,1,aux!$AL$1) -> 7746.435 | V37: 1 | W37: 2.56330471 | X37: =+IF(INDEX($C37:$G37,1,aux!$AL$1)>0,(G37/INDEX($C37:$G37,1,aux!$AL$1))^(1/($G$3-INDEX($C$3:$G$3,1,aux!$AL$1)))-1,"n.d.") -> 0.110709961 | Y37: =IF(INDEX($C37:$G37,1,aux!$AL$1)>0,(G37-INDEX($C37:$G37,1,aux!$AL$1))/INDEX($C37:$G37,1,aux!$AL$1),"n.d.") -> 0.5219579967 | AA37: =O37-INDEX($K37:$O37,1,aux!$AL$1) -> 712.677 | AB37: 1 | AC37: 0.5915898068 | AD37: =+IF(INDEX($K37:$O37,1,aux!$AL$1)>0,(O37/INDEX($K37:$O37,1,aux!$AL$1))^(1/($O$3-INDEX($K$3:$O$3,1,aux!$AL$1)))-1,"n.d.") -> 1.034189968 | AE37: =IF(INDEX($K37:$O37,1,aux!$AL$1)>0,(O37-INDEX($K37:$O37,1,aux!$AL$1))/INDEX($K37:$O37,1,aux!$AL$1),"n.d.") -> 16.12245498
A38: 03 | B38: Peixes e crustáceos | C38: 7822.629 | D38: 3947.15 | E38: 5703.515 | F38: 6687.092 | G38: 3023.871 | H38: 5436.8514 | I38: 1 | J38: 0.2366486306 | K38: 13.607 | L38: 4.725 | M38: 3.183 | N38: 7.551 | O38: 0 | P38: 5.8132 | Q38: 0.2393800135 | R38: 0.00501383955 | S38: -5431.0382 | U38: =G38-INDEX($C38:$G38,1,aux!$AL$1) -> -4798.758 | V38: =IF($U$44<>0,U38/$U$44, "n.d.") -> 1 | W38: -1.587914826 | X38: =+IF(INDEX($C38:$G38,1,aux!$AL$1)>0,(G38/INDEX($C38:$G38,1,aux!$AL$1))^(1/($G$3-INDEX($C$3:$G$3,1,aux!$AL$1)))-1,"n.d.") -> -0.2114983044 | Y38: =IF(INDEX($C38:$G38,1,aux!$AL$1)>0,(G38-INDEX($C38:$G38,1,aux!$AL$1))/INDEX($C38:$G38,1,aux!$AL$1),"n.d.") -> -0.6134456843 | AA38: =O38-INDEX($K38:$O38,1,aux!$AL$1) -> -13.607 | AB38: =IF($AA$44<>0,AA38/$AA$44, "n.d.") -> -0.6165382873 | AC38: -0.01129510634 | AD38: =+IF(INDEX($K38:$O38,1,aux!$AL$1)>0,(O38/INDEX($K38:$O38,1,aux!$AL$1))^(1/($O$3-INDEX($K$3:$O$3,1,aux!$AL$1)))-1,"n.d.") -> -1 | AE38: =IF(INDEX($K38:$O38,1,aux!$AL$1)>0,(O38-INDEX($K38:$O38,1,aux!$AL$1))/INDEX($K38:$O38,1,aux!$AL$1),"n.d.") -> -1
A39: 05p | B39: Outros produtos de pescado (NC 0508, 051191) (p) | C39: 0 | D39: 0 | E39: 0 | F39: 0 | G39: 0 | H39: 0 | I39: 0 | J39: 0 | K39: 0 | L39: 0 | M39: 0 | N39: 0 | O39: 0 | P39: 0 | Q39: 0 | R39: 0 | S39: 0 | U39: =G39-INDEX($C39:$G39,1,aux!$AL$1) -> 0 | V39: 0 | W39: 0 | X39: =+IF(INDEX($C39:$G39,1,aux!$AL$1)>0,(G39/INDEX($C39:$G39,1,aux!$AL$1))^(1/($G$3-INDEX($C$3:$G$3,1,aux!$AL$1)))-1,"n.d.") -> n.d. | Y39: =IF(INDEX($C39:$G39,1,aux!$AL$1)>0,(G39-INDEX($C39:$G39,1,aux!$AL$1))/INDEX($C39:$G39,1,aux!$AL$1),"n.d.") -> n.d. | AA39: =O39-INDEX($K39:$O39,1,aux!$AL$1) -> 0 | AB39: 0 | AC39: 0 | AD39: =+IF(INDEX($K39:$O39,1,aux!$AL$1)>0,(O39/INDEX($K39:$O39,1,aux!$AL$1))^(1/($O$3-INDEX($K$3:$O$3,1,aux!$AL$1)))-1,"n.d.") -> n.d. | AE39: =IF(INDEX($K39:$O39,1,aux!$AL$1)>0,(O39-INDEX($K39:$O39,1,aux!$AL$1))/INDEX($K39:$O39,1,aux!$AL$1),"n.d.") -> n.d.
A40: 16p | B40: Preparações e conservas de peixes ou crustáceos (NC 1604-05) (p) | C40: 0 | D40: 0 | E40: 0 | F40: 0 | G40: 0 | H40: 0 | I40: 0 | J40: 0 | K40: 0.023 | L40: 6.636 | M40: 21.6 | N40: 21.6 | O40: 31.5 | P40: 16.2718 | Q40: 0.6700515557 | R40: 0.01403430028 | S40: 16.2718 | U40: =G40-INDEX($C40:$G40,1,aux!$AL$1) -> 0 | V40: 0 | W40: 0 | X40: =+IF(INDEX($C40:$G40,1,aux!$AL$1)>0,(G40/INDEX($C40:$G40,1,aux!$AL$1))^(1/($G$3-INDEX($C$3:$G$3,1,aux!$AL$1)))-1,"n.d.") -> n.d. | Y40: =IF(INDEX($C40:$G40,1,aux!$AL$1)>0,(G40-INDEX($C40:$G40,1,aux!$AL$1))/INDEX($C40:$G40,1,aux!$AL$1),"n.d.") -> n.d. | AA40: =O40-INDEX($K40:$O40,1,aux!$AL$1) -> 31.477 | AB40: 1.426234708 | AC40: 0.02612890881 | AD40: =+IF(INDEX($K40:$O40,1,aux!$AL$1)>0,(O40/INDEX($K40:$O40,1,aux!$AL$1))^(1/($O$3-INDEX($K$3:$O$3,1,aux!$AL$1)))-1,"n.d.") -> 5.083390279 | AE40: =IF(INDEX($K40:$O40,1,aux!$AL$1)>0,(O40-INDEX($K40:$O40,1,aux!$AL$1))/INDEX($K40:$O40,1,aux!$AL$1),"n.d.") -> 1368.565217
A41: 19p | B41: Massas recheadas com pescado (NC 19022010) (p) | C41: 0 | D41: 0 | E41: 0 | F41: 0 | G41: 0 | H41: 0 | I41: 0 | J41: 0 | K41: 0 | L41: 0 | M41: 0 | N41: 0 | O41: 0 | P41: 0 | Q41: 0 | R41: 0 | S41: 0 | U41: =G41-INDEX($C41:$G41,1,aux!$AL$1) -> 0 | V41: 0 | W41: 0 | X41: =+IF(INDEX($C41:$G41,1,aux!$AL$1)>0,(G41/INDEX($C41:$G41,1,aux!$AL$1))^(1/($G$3-INDEX($C$3:$G$3,1,aux!$AL$1)))-1,"n.d.") -> n.d. | Y41: =IF(INDEX($C41:$G41,1,aux!$AL$1)>0,(G41-INDEX($C41:$G41,1,aux!$AL$1))/INDEX($C41:$G41,1,aux!$AL$1),"n.d.") -> n.d. | AA41: =O41-INDEX($K41:$O41,1,aux!$AL$1) -> 0 | AB41: 0 | AC41: 0 | AD41: =+IF(INDEX($K41:$O41,1,aux!$AL$1)>0,(O41/INDEX($K41:$O41,1,aux!$AL$1))^(1/($O$3-INDEX($K$3:$O$3,1,aux!$AL$1)))-1,"n.d.") -> n.d. | AE41: =IF(INDEX($K41:$O41,1,aux!$AL$1)>0,(O41-INDEX($K41:$O41,1,aux!$AL$1))/INDEX($K41:$O41,1,aux!$AL$1),"n.d.") -> n.d.
A42: 23p | B42: Farinhas de pescado (NC 230120) (p) | C42: 0 | D42: 0 | E42: 0 | F42: 0 | G42: 0 | H42: 0 | I42: 0 | J42: 0 | K42: 0 | L42: 0 | M42: 0 | N42: 0 | O42: 0 | P42: 0 | Q42: 0 | R42: 0 | S42: 0 | U42: =G42-INDEX($C42:$G42,1,aux!$AL$1) -> 0 | V42: 0 | W42: 0 | X42: =+IF(INDEX($C42:$G42,1,aux!$AL$1)>0,(G42/INDEX($C42:$G42,1,aux!$AL$1))^(1/($G$3-INDEX($C$3:$G$3,1,aux!$AL$1)))-1,"n.d.") -> n.d. | Y42: =IF(INDEX($C42:$G42,1,aux!$AL$1)>0,(G42-INDEX($C42:$G42,1,aux!$AL$1))/INDEX($C42:$G42,1,aux!$AL$1),"n.d.") -> n.d. | AA42: =O42-INDEX($K42:$O42,1,aux!$AL$1) -> 0 | AB42: 0 | AC42: 0 | AD42: =+IF(INDEX($K42:$O42,1,aux!$AL$1)>0,(O42/INDEX($K42:$O42,1,aux!$AL$1))^(1/($O$3-INDEX($K$3:$O$3,1,aux!$AL$1)))-1,"n.d.") -> n.d. | AE42: =IF(INDEX($K42:$O42,1,aux!$AL$1)>0,(O42-INDEX($K42:$O42,1,aux!$AL$1))/INDEX($K42:$O42,1,aux!$AL$1),"n.d.") -> n.d.
A43: 25 | B43: Sal e cloreto de sódio puro; água do mar (NC 2501) | C43: 0 | D43: 0 | E43: 0 | F43: 0 | G43: 0 | H43: 0 | I43: 0 | J43: 0 | K43: 0 | L43: 1.037 | M43: 2.88 | N43: 2.88 | O43: 4.2 | P43: 2.1994 | Q43: 0.09056843076 | R43: 0.001896965304 | S43: 2.1994 | U43: =G43-INDEX($C43:$G43,1,aux!$AL$1) -> 0 | V43: 0 | W43: 0 | X43: =+IF(INDEX($C43:$G43,1,aux!$AL$1)>0,(G43/INDEX($C43:$G43,1,aux!$AL$1))^(1/($G$3-INDEX($C$3:$G$3,1,aux!$AL$1)))-1,"n.d.") -> n.d. | Y43: =IF(INDEX($C43:$G43,1,aux!$AL$1)>0,(G43-INDEX($C43:$G43,1,aux!$AL$1))/INDEX($C43:$G43,1,aux!$AL$1),"n.d.") -> n.d. | AA43: =O43-INDEX($K43:$O43,1,aux!$AL$1) -> 4.2 | AB43: 0.1903035795 | AC43: 0.003486400134 | AD43: =+IF(INDEX($K43:$O43,1,aux!$AL$1)>0,(O43/INDEX($K43:$O43,1,aux!$AL$1))^(1/($O$3-INDEX($K$3:$O$3,1,aux!$AL$1)))-1,"n.d.") -> n.d. | AE43: =IF(INDEX($K43:$O43,1,aux!$AL$1)>0,(O43-INDEX($K43:$O43,1,aux!$AL$1))/INDEX($K43:$O43,1,aux!$AL$1),"n.d.") -> n.d.
B44: Subtotal Mar | C44: 7822.629 | D44: 3947.15 | E44: 5703.515 | F44: 6687.092 | G44: 3023.871 | H44: 5436.8514 | I44: 1 | J44: 0.2366486306 | K44: 13.63 | L44: 12.398 | M44: 27.663 | N44: 32.031 | O44: 35.7 | P44: 24.2844 | Q44: 1 | R44: 0.02094510513 | S44: -5412.567 | U44: =G44-INDEX($C44:$G44,1,aux!$AL$1) -> -4798.758 | V44: 1 | W44: -1.587914826 | X44: =+IF(INDEX($C44:$G44,1,aux!$AL$1)>0,(G44/INDEX($C44:$G44,1,aux!$AL$1))^(1/($G$3-INDEX($C$3:$G$3,1,aux!$AL$1)))-1,"n.d.") -> -0.2114983044 | Y44: =IF(INDEX($C44:$G44,1,aux!$AL$1)>0,(G44-INDEX($C44:$G44,1,aux!$AL$1))/INDEX($C44:$G44,1,aux!$AL$1),"n.d.") -> -0.6134456843 | AA44: =O44-INDEX($K44:$O44,1,aux!$AL$1) -> 22.07 | AB44: 1 | AC44: 0.01832020261 | AD44: =+IF(INDEX($K44:$O44,1,aux!$AL$1)>0,(O44/INDEX($K44:$O44,1,aux!$AL$1))^(1/($O$3-INDEX($K$3:$O$3,1,aux!$AL$1)))-1,"n.d.") -> 0.2721639661 | AE44: =IF(INDEX($K44:$O44,1,aux!$AL$1)>0,(O44-INDEX($K44:$O44,1,aux!$AL$1))/INDEX($K44:$O44,1,aux!$AL$1),"n.d.") -> 1.619222304
A45: 13f | B45: Gomas e resinas (NC 1301) (f) | C45: 0 | D45: 10.56 | E45: 0 | F45: 0 | G45: 0 | H45: 2.112 | I45: 0.1220456515 | J45: 9.192855772e-05 | K45: 0 | L45: 0 | M45: 0 | N45: 0 | O45: 0 | P45: 0 | Q45: 0 | R45: 0 | S45: -2.112 | U45: =G45-INDEX($C45:$G45,1,aux!$AL$1) -> 0 | V45: =IF($U$52<>0,U45/$U$52, "n.d.") -> 0 | W45: 0 | X45: =+IF(INDEX($C45:$G45,1,aux!$AL$1)>0,(G45/INDEX($C45:$G45,1,aux!$AL$1))^(1/($G$3-INDEX($C$3:$G$3,1,aux!$AL$1)))-1,"n.d.") -> n.d. | Y45: =IF(INDEX($C45:$G45,1,aux!$AL$1)>0,(G45-INDEX($C45:$G45,1,aux!$AL$1))/INDEX($C45:$G45,1,aux!$AL$1),"n.d.") -> n.d. | AA45: =O45-INDEX($K45:$O45,1,aux!$AL$1) -> 0 | AB45: =IF($AA$52<>0,AA45/$AA$52, "n.d.") -> 0 | AC45: 0 | AD45: =+IF(INDEX($K45:$O45,1,aux!$AL$1)>0,(O45/INDEX($K45:$O45,1,aux!$AL$1))^(1/($O$3-INDEX($K$3:$O$3,1,aux!$AL$1)))-1,"n.d.") -> n.d. | AE45: =IF(INDEX($K45:$O45,1,aux!$AL$1)>0,(O45-INDEX($K45:$O45,1,aux!$AL$1))/INDEX($K45:$O45,1,aux!$AL$1),"n.d.") -> n.d.
A46: 38f | B46: Tall oil, essências e colofónias (NC 3803,3805,3806) (f) | C46: 0 | D46: 0 | E46: 0 | F46: 0 | G46: 68.256 | H46: 13.6512 | I46: 0.7888587114 | J46: 0.0005941927685 | K46: 0 | L46: 0 | M46: 0 | N46: 0 | O46: 0 | P46: 0 | Q46: 0 | R46: 0 | S46: -13.6512 | U46: =G46-INDEX($C46:$G46,1,aux!$AL$1) -> 68.256 | V46: 0.9177524101 | W46: 0.02258599295 | X46: =+IF(INDEX($C46:$G46,1,aux!$AL$1)>0,(G46/INDEX($C46:$G46,1,aux!$AL$1))^(1/($G$3-INDEX($C$3:$G$3,1,aux!$AL$1)))-1,"n.d.") -> n.d. | Y46: =IF(INDEX($C46:$G46,1,aux!$AL$1)>0,(G46-INDEX($C46:$G46,1,aux!$AL$1))/INDEX($C46:$G46,1,aux!$AL$1),"n.d.") -> n.d. | AA46: =O46-INDEX($K46:$O46,1,aux!$AL$1) -> 0 | AB46: 0 | AC46: 0 | AD46: =+IF(INDEX($K46:$O46,1,aux!$AL$1)>0,(O46/INDEX($K46:$O46,1,aux!$AL$1))^(1/($O$3-INDEX($K$3:$O$3,1,aux!$AL$1)))-1,"n.d.") -> n.d. | AE46: =IF(INDEX($K46:$O46,1,aux!$AL$1)>0,(O46-INDEX($K46:$O46,1,aux!$AL$1))/INDEX($K46:$O46,1,aux!$AL$1),"n.d.") -> n.d.
A47: 44 | B47: Madeira e suas obras | C47: 0.641 | D47: 0 | E47: 0 | F47: 0.101 | G47: 2.711 | H47: 0.6906 | I47: 0.03990754117 | J47: 3.005959373e-05 | K47: 1.409 | L47: 10.336 | M47: 76.57 | N47: 2.431 | O47: 6.521 | P47: 19.4534 | Q47: 0.03707193213 | R47: 0.0167784054 | S47: 18.7628 | U47: =G47-INDEX($C47:$G47,1,aux!$AL$1) -> 2.07 | V47: 0.02783268121 | W47: 0.0006849655035 | X47: =+IF(INDEX($C47:$G47,1,aux!$AL$1)>0,(G47/INDEX($C47:$G47,1,aux!$AL$1))^(1/($G$3-INDEX($C$3:$G$3,1,aux!$AL$1)))-1,"n.d.") -> 0.4340618153 | Y47: =IF(INDEX($C47:$G47,1,aux!$AL$1)>0,(G47-INDEX($C47:$G47,1,aux!$AL$1))/INDEX($C47:$G47,1,aux!$AL$1),"n.d.") -> 3.229329173 | AA47: =O47-INDEX($K47:$O47,1,aux!$AL$1) -> 5.112 | AB47: 0.01087812331 | AC47: 0.00424344702 | AD47: =+IF(INDEX($K47:$O47,1,aux!$AL$1)>0,(O47/INDEX($K47:$O47,1,aux!$AL$1))^(1/($O$3-INDEX($K$3:$O$3,1,aux!$AL$1)))-1,"n.d.") -> 0.4667321168 | AE47: =IF(INDEX($K47:$O47,1,aux!$AL$1)>0,(O47-INDEX($K47:$O47,1,aux!$AL$1))/INDEX($K47:$O47,1,aux!$AL$1),"n.d.") -> 3.628105039
A48: 45 | B48: Cortiça e suas obras | C48: 0 | D48: 0 | E48: 0 | F48: 0 | G48: 0 | H48: 0 | I48: 0 | J48: 0 | K48: 0 | L48: 0 | M48: 0 | N48: 0.22 | O48: 0 | P48: 0.044 | Q48: 8.384986757e-05 | R48: 3.794965599e-05 | S48: 0.044 | U48: =G48-INDEX($C48:$G48,1,aux!$AL$1) -> 0 | V48: 0 | W48: 0 | X48: =+IF(INDEX($C48:$G48,1,aux!$AL$1)>0,(G48/INDEX($C48:$G48,1,aux!$AL$1))^(1/($G$3-INDEX($C$3:$G$3,1,aux!$AL$1)))-1,"n.d.") -> n.d. | Y48: =IF(INDEX($C48:$G48,1,aux!$AL$1)>0,(G48-INDEX($C48:$G48,1,aux!$AL$1))/INDEX($C48:$G48,1,aux!$AL$1),"n.d.") -> n.d. | AA48: =O48-INDEX($K48:$O48,1,aux!$AL$1) -> 0 | AB48: 0 | AC48: 0 | AD48: =+IF(INDEX($K48:$O48,1,aux!$AL$1)>0,(O48/INDEX($K48:$O48,1,aux!$AL$1))^(1/($O$3-INDEX($K$3:$O$3,1,aux!$AL$1)))-1,"n.d.") -> n.d. | AE48: =IF(INDEX($K48:$O48,1,aux!$AL$1)>0,(O48-INDEX($K48:$O48,1,aux!$AL$1))/INDEX($K48:$O48,1,aux!$AL$1),"n.d.") -> n.d.
A49: 46 | B49: Obras de espartaria ou de cestaria | C49: 0 | D49: 0.209 | E49: 0 | F49: 0 | G49: 4.047 | H49: 0.8512 | I49: 0.04918809593 | J49: 3.704999448e-05 | K49: 0 | L49: 0 | M49: 0 | N49: 0 | O49: 0 | P49: 0 | Q49: 0 | R49: 0 | S49: -0.8512 | U49: =G49-INDEX($C49:$G49,1,aux!$AL$1) -> 4.047 | V49: 0.05441490864 | W49: 0.001339157195 | X49: =+IF(INDEX($C49:$G49,1,aux!$AL$1)>0,(G49/INDEX($C49:$G49,1,aux!$AL$1))^(1/($G$3-INDEX($C$3:$G$3,1,aux!$AL$1)))-1,"n.d.") -> n.d. | Y49: =IF(INDEX($C49:$G49,1,aux!$AL$1)>0,(G49-INDEX($C49:$G49,1,aux!$AL$1))/INDEX($C49:$G49,1,aux!$AL$1),"n.d.") -> n.d. | AA49: =O49-INDEX($K49:$O49,1,aux!$AL$1) -> 0 | AB49: 0 | AC49: 0 | AD49: =+IF(INDEX($K49:$O49,1,aux!$AL$1)>0,(O49/INDEX($K49:$O49,1,aux!$AL$1))^(1/($O$3-INDEX($K$3:$O$3,1,aux!$AL$1)))-1,"n.d.") -> n.d. | AE49: =IF(INDEX($K49:$O49,1,aux!$AL$1)>0,(O49-INDEX($K49:$O49,1,aux!$AL$1))/INDEX($K49:$O49,1,aux!$AL$1),"n.d.") -> n.d.
A50: 47 | B50: Pastas de madeira | C50: 0 | D50: 0 | E50: 0 | F50: 0 | G50: 0 | H50: 0 | I50: 0 | J50: 0 | K50: 0 | L50: 0 | M50: 0 | N50: 0 | O50: 0 | P50: 0 | Q50: 0 | R50: 0 | S50: 0 | U50: =G50-INDEX($C50:$G50,1,aux!$AL$1) -> 0 | V50: 0 | W50: 0 | X50: =+IF(INDEX($C50:$G50,1,aux!$AL$1)>0,(G50/INDEX($C50:$G50,1,aux!$AL$1))^(1/($G$3-INDEX($C$3:$G$3,1,aux!$AL$1)))-1,"n.d.") -> n.d. | Y50: =IF(INDEX($C50:$G50,1,aux!$AL$1)>0,(G50-INDEX($C50:$G50,1,aux!$AL$1))/INDEX($C50:$G50,1,aux!$AL$1),"n.d.") -> n.d. | AA50: =O50-INDEX($K50:$O50,1,aux!$AL$1) -> 0 | AB50: 0 | AC50: 0 | AD50: =+IF(INDEX($K50:$O50,1,aux!$AL$1)>0,(O50/INDEX($K50:$O50,1,aux!$AL$1))^(1/($O$3-INDEX($K$3:$O$3,1,aux!$AL$1)))-1,"n.d.") -> n.d. | AE50: =IF(INDEX($K50:$O50,1,aux!$AL$1)>0,(O50-INDEX($K50:$O50,1,aux!$AL$1))/INDEX($K50:$O50,1,aux!$AL$1),"n.d.") -> n.d.
A51: 48 | B51: Papel e cartão | C51: 0 | D51: 0 | E51: 0 | F51: 0 | G51: 0 | H51: 0 | I51: 0 | J51: 0 | K51: 403.219 | L51: 210.517 | M51: 271.065 | N51: 773.408 | O51: 868.041 | P51: 505.25 | Q51: 0.962844218 | R51: 0.4357741747 | S51: 505.25 | U51: =G51-INDEX($C51:$G51,1,aux!$AL$1) -> 0 | V51: 0 | W51: 0 | X51: =+IF(INDEX($C51:$G51,1,aux!$AL$1)>0,(G51/INDEX($C51:$G51,1,aux!$AL$1))^(1/($G$3-INDEX($C$3:$G$3,1,aux!$AL$1)))-1,"n.d.") -> n.d. | Y51: =IF(INDEX($C51:$G51,1,aux!$AL$1)>0,(G51-INDEX($C51:$G51,1,aux!$AL$1))/INDEX($C51:$G51,1,aux!$AL$1),"n.d.") -> n.d. | AA51: =O51-INDEX($K51:$O51,1,aux!$AL$1) -> 464.822 | AB51: 0.9891218767 | AC51: 0.3858465436 | AD51: =+IF(INDEX($K51:$O51,1,aux!$AL$1)>0,(O51/INDEX($K51:$O51,1,aux!$AL$1))^(1/($O$3-INDEX($K$3:$O$3,1,aux!$AL$1)))-1,"n.d.") -> 0.2112946878 | AE51: =IF(INDEX($K51:$O51,1,aux!$AL$1)>0,(O51-INDEX($K51:$O51,1,aux!$AL$1))/INDEX($K51:$O51,1,aux!$AL$1),"n.d.") -> 1.152778019
B52: Subtotal Florestas | C52: 0.641 | D52: 10.769 | E52: 0 | F52: 0.101 | G52: 75.014 | H52: 17.305 | I52: 1 | J52: 0.0007532309145 | K52: 404.628 | L52: 220.853 | M52: 347.635 | N52: 776.059 | O52: 874.562 | P52: 524.7474 | Q52: 1 | R52: 0.4525905298 | S52: 507.4424 | U52: =G52-INDEX($C52:$G52,1,aux!$AL$1) -> 74.373 | V52: 1 | W52: 0.02461011565 | X52: =+IF(INDEX($C52:$G52,1,aux!$AL$1)>0,(G52/INDEX($C52:$G52,1,aux!$AL$1))^(1/($G$3-INDEX($C$3:$G$3,1,aux!$AL$1)))-1,"n.d.") -> 2.289054529 | Y52: =IF(INDEX($C52:$G52,1,aux!$AL$1)>0,(G52-INDEX($C52:$G52,1,aux!$AL$1))/INDEX($C52:$G52,1,aux!$AL$1),"n.d.") -> 116.0265211 | AA52: =O52-INDEX($K52:$O52,1,aux!$AL$1) -> 469.934 | AB52: 1 | AC52: 0.3900899906 | AD52: =+IF(INDEX($K52:$O52,1,aux!$AL$1)>0,(O52/INDEX($K52:$O52,1,aux!$AL$1))^(1/($O$3-INDEX($K$3:$O$3,1,aux!$AL$1)))-1,"n.d.") -> 0.2125053616 | AE52: =IF(INDEX($K52:$O52,1,aux!$AL$1)>0,(O52-INDEX($K52:$O52,1,aux!$AL$1))/INDEX($K52:$O52,1,aux!$AL$1),"n.d.") -> 1.161397629
B53: TOTAL | C53: 22664.378 | D53: 19932.95 | E53: 15285.587 | F53: 31302.469 | G53: 25686.428 | H53: 22974.3624 | J53: 1 | K53: 462.462 | L53: 463.936 | M53: 1893.541 | N53: 1310.072 | O53: 1667.143 | P53: 1159.4308 | R53: 1 | S53: -21814.9316 | U53: =G53-INDEX($C53:$G53,1,aux!$AL$1) -> 3022.05 | W53: 1 | X53: =+IF(INDEX($C53:$G53,1,aux!$AL$1)>0,(G53/INDEX($C53:$G53,1,aux!$AL$1))^(1/($G$3-INDEX($C$3:$G$3,1,aux!$AL$1)))-1,"n.d.") -> 0.03178682371 | Y53: =IF(INDEX($C53:$G53,1,aux!$AL$1)>0,(G53-INDEX($C53:$G53,1,aux!$AL$1))/INDEX($C53:$G53,1,aux!$AL$1),"n.d.") -> 0.1333391986 | AA53: =O53-INDEX($K53:$O53,1,aux!$AL$1) -> 1204.681 | AC53: 1 | AD53: =+IF(INDEX($K53:$O53,1,aux!$AL$1)>0,(O53/INDEX($K53:$O53,1,aux!$AL$1))^(1/($O$3-INDEX($K$3:$O$3,1,aux!$AL$1)))-1,"n.d.") -> 0.3779206226 | AE53: =IF(INDEX($K53:$O53,1,aux!$AL$1)>0,(O53-INDEX($K53:$O53,1,aux!$AL$1))/INDEX($K53:$O53,1,aux!$AL$1),"n.d.") -> 2.604929702
B54: a - agrícola e agroalimentar; p - pescas; f - florestas
A55: Fonte: GPP a partir de dados INE/Comércio Internacional (2022 definitivos) | S55: 2024-09-25T12:28:58.840

Sheet 5.2_var
A1: ="Principais contributos por produto para a variação das trocas comerciais PT-Uganda_x000D_ no período " & INDEX('5.2'!K3:N3,1,aux!AL1) & "-2023 (NC 2 dígitos - milhares de euros) Produtos agrícolas e agroalimentares, do mar e da floresta" -> Principais contributos por produto para a variação das trocas comerciais PT-Uganda no período 2019-2023 (NC 2 dígitos - milhares de euros) Produtos agrícolas e agroalimentares, do mar e da floresta
E5: aumento das importações | J5: aumento das exportações
E17: redução das importações | J17: redução das exportações
A28: Fonte: GPP a partir de dados INE/Comércio Internacional (2022 definitivos) | F28: a - agrícola e agroalimentar; p - mar; f - florestas | H28: ='3'!Y116 -> 2024-09-25T12:28:58.840
A29: Cód. NC | B29: Descritivo | C29: ="Variação das Importações " & INDEX('5.2'!K3:N3,1,aux!AL1) & "-"& '5.2'!O3 &"" -> Variação das Importações 2019-2023 | F29: Cód. NC | G29: Descritivo | H29: ="Variação das Exportações " & INDEX('5.2'!K3:N3,1,aux!AL1) & "-"& '5.2'!O3 &"" -> Variação das Exportações 2019-2023
C30: variação total em valor | D30: % do aumento/ redução total | H30: variação total em valor | I30: % do aumento/ redução total
A31: =IF(C31>0,aux!AU6,"") -> 09 | B31: =IF(C31>0,aux!AV6,"") -> Café, chá, mate e especiarias | C31: =IF(aux!AW6>0,aux!AW6,0) -> 12312.648 | D31: =IF(SUM($C$31:$C$41)<>0,C31/SUM($C$31:$C$41),0) -> 0.964357841 | F31: =IF(H31>0,aux!AZ6,"") -> 48 | G31: =IF(H31>0,aux!BA6,"") -> Papel e cartão | H31: =IF(aux!BB6>0,aux!BB6,0) -> 464.822 | I31: =IF(SUM($H$31:$H$41)<>0,H31/SUM($H$31:$H$41),0) -> 0.3762503987
A32: =IF(C32>0,aux!AU7,"") -> 15 | B32: =IF(C32>0,aux!AV7,"") -> Gorduras e óleos animais ou vegetais | C32: =IF(aux!AW7>0,aux!AW7,0) -> 375.239 | D32: =IF(SUM($C$31:$C$41)<>0,C32/SUM($C$31:$C$41),0) -> 0.02938967084 | F32: =IF(H32>0,aux!AZ7,"") -> 19a | G32: =IF(H32>0,aux!BA7,"") -> Preparações à base de cereais (exc. NC 19022010) (a) | H32: =IF(aux!BB7>0,aux!BB7,0) -> 158.999 | I32: =IF(SUM($H$31:$H$41)<>0,H32/SUM($H$31:$H$41),0) -> 0.1287018195
A33: =IF(C33>0,aux!AU8,"") -> 38f | B33: =IF(C33>0,aux!AV8,"") -> Tall oil, essências e colofónias (NC 3803,3805,3806) (f) | C33: =IF(aux!AW8>0,aux!AW8,0) -> 68.256 | D33: 0.005345983154 | F33: =IF(H33>0,aux!AZ8,"") -> 15 | G33: =IF(H33>0,aux!BA8,"") -> Gorduras e óleos animais ou vegetais | H33: =IF(aux!BB8>0,aux!BB8,0) -> 137.217 | I33: 0.1110703688
A34: =IF(C34>0,aux!AU9,"") -> 07 | B34: =IF(C34>0,aux!AV9,"") -> Produtos hortícolas | C34: =IF(aux!AW9>0,aux!AW9,0) -> 4.5 | D34: 0.000352451421 | F34: =IF(H34>0,aux!AZ9,"") -> 20 | G34: =IF(H34>0,aux!BA9,"") -> Preparações de produtos vegetais | H34: =IF(aux!BB9>0,aux!BB9,0) -> 128.297 | I34: 0.1038500703
A35: =IF(C35>0,aux!AU10,"") -> 46 | B35: =IF(C35>0,aux!AV10,"") -> Obras de espartaria ou de cestaria | C35: =IF(aux!AW10>0,aux!AW10,0) -> 4.047 | D35: 0.0003169713113 | F35: =IF(H35>0,aux!AZ10,"") -> 16a | G35: =IF(H35>0,aux!BA10,"") -> Preparações de carnes (exc. NC 1604-05) (a) | H35: =IF(aux!BB10>0,aux!BB10,0) -> 113.505 | I35: 0.0918766786
A36: =IF(C36>0,aux!AU11,"") -> 44 | B36: =IF(C36>0,aux!AV11,"") -> Madeira e suas obras | C36: =IF(aux!AW11>0,aux!AW11,0) -> 2.07 | D36: 0.0001621276537 | F36: =IF(H36>0,aux!AZ11,"") -> 22 | G36: =IF(H36>0,aux!BA11,"") -> Bebidas, líquidos alcoólicos e vinagres | H36: =IF(aux!BB11>0,aux!BB11,0) -> 89.074 | I36: 0.07210099352
A37: =IF(C37>0,aux!AU12,"") -> 24 | B37: =IF(C37>0,aux!AV12,"") -> Tabaco | C37: =IF(aux!AW12>0,aux!AW12,0) -> 0.925 | D37: 7.244834766e-05 | F37: =IF(H37>0,aux!AZ12,"") -> 21 | G37: =IF(H37>0,aux!BA12,"") -> Preparações alimentícias diversas | H37: =IF(aux!BB12>0,aux!BB12,0) -> 37.41 | I37: 0.03028154307
A38: =IF(C38>0,aux!AU13,"") -> 21 | B38: =IF(C38>0,aux!AV13,"") -> Preparações alimentícias diversas | C38: =IF(aux!AW13>0,aux!AW13,0) -> 0.032 | D38: 2.506321216e-06 | F38: =IF(H38>0,aux!AZ13,"") -> 16p | G38: =IF(H38>0,aux!BA13,"") -> Preparações e conservas de peixes ou crustáceos (NC 1604-05) (p) | H38: =IF(aux!BB13>0,aux!BB13,0) -> 31.477 | I38: 0.02547907328
A39: =IF(C39>0,aux!AU14,"") ->  | B39: =IF(C39>0,aux!AV14,"") ->  | C39: =IF(aux!AW14>0,aux!AW14,0) -> 0 | D39: 0 | F39: =IF(H39>0,aux!AZ14,"") -> 18 | G39: =IF(H39>0,aux!BA14,"") -> Cacau e suas preparações | H39: =IF(aux!BB14>0,aux!BB14,0) -> 20.58 | I39: 0.01665849122
A40: =IF(C40>0,aux!AU15,"") ->  | B40: =IF(C40>0,aux!AV15,"") ->  | C40: =IF(aux!AW15>0,aux!AW15,0) -> 0 | D40: 0 | F40: =IF(H40>0,aux!AZ15,"") -> 09 | G40: =IF(H40>0,aux!BA15,"") -> Café, chá, mate e especiarias | H40: =IF(aux!BB15>0,aux!BB15,0) -> 14.676 | I40: 0.01187949549
B41: Outros contributos para o aumento das importações | C41: =SUMIF(aux!AW16:AW51,">0") -> 0 | D41: 0 | G41: Outros contributos para o aumento das exportações | H41: =SUMIF(aux!BB16:BB51,">0") -> 39.349 | I41: 0.03185106758
B42: Outros contributos para a redução das importações | C42: =SUMIF(aux!AW6:AW41,"<0") -> 0 | D42: =IF(SUM($C$42:$C$52)<>0,C42/SUM($C$42:$C$52),0) -> 0 | G42: Outros contributos para a redução das exportações | H42: =SUMIF(aux!BB6:BB41,"<0") -> 0 | I42: =IF(SUM($H$42:$H$52)<>0,H42/SUM($H$42:$H$52),0) -> 0
A43: =IF(C43<>0,aux!AU42,"") ->  | B43: =IF(C43<0,aux!AV42,"") ->  | C43: =IF(aux!AW42<0,aux!AW42,0) -> 0 | D43: =IF(SUM($C$42:$C$52)<>0,C43/SUM($C$42:$C$52),0) -> 0 | F43: =IF(H43<>0,aux!AZ42,"") ->  | G43: =IF(H43<>0,aux!BA42,"") ->  | H43: =IF(aux!BB42<0,aux!BB42,0) -> 0 | I43: =IF(SUM($H$42:$H$52)<>0,H43/SUM($H$42:$H$52),0) -> 0
A44: =IF(C44<>0,aux!AU43,"") ->  | B44: =IF(C44<0,aux!AV43,"") ->  | C44: =IF(aux!AW43<0,aux!AW43,0) -> 0 | D44: 0 | F44: =IF(H44<>0,aux!AZ43,"") ->  | G44: =IF(H44<>0,aux!BA43,"") ->  | H44: =IF(aux!BB43<0,aux!BB43,0) -> 0 | I44: 0
A45: =IF(C45<>0,aux!AU44,"") ->  | B45: =IF(C45<0,aux!AV44,"") ->  | C45: =IF(aux!AW44<0,aux!AW44,0) -> 0 | D45: 0 | F45: =IF(H45<>0,aux!AZ44,"") ->  | G45: =IF(H45<>0,aux!BA44,"") ->  | H45: =IF(aux!BB44<0,aux!BB44,0) -> 0 | I45: 0
A46: =IF(C46<>0,aux!AU45,"") ->  | B46: =IF(C46<0,aux!AV45,"") ->  | C46: =IF(aux!AW45<0,aux!AW45,0) -> 0 | D46: 0 | F46: =IF(H46<>0,aux!AZ45,"") ->  | G46: =IF(H46<>0,aux!BA45,"") ->  | H46: =IF(aux!BB45<0,aux!BB45,0) -> 0 | I46: 0
A47: =IF(C47<>0,aux!AU46,"") ->  | B47: =IF(C47<0,aux!AV46,"") ->  | C47: =IF(aux!AW46<0,aux!AW46,0) -> 0 | D47: 0 | F47: =IF(H47<>0,aux!AZ46,"") ->  | G47: =IF(H47<>0,aux!BA46,"") ->  | H47: =IF(aux!BB46<0,aux!BB46,0) -> 0 | I47: 0
A48: =IF(C48<>0,aux!AU47,"") ->  | B48: =IF(C48<0,aux!AV47,"") ->  | C48: =IF(aux!AW47<0,aux!AW47,0) -> 0 | D48: 0 | F48: =IF(H48<>0,aux!AZ47,"") -> 08 | G48: =IF(H48<>0,aux!BA47,"") -> Frutas | H48: =IF(aux!BB47<0,aux!BB47,0) -> -0.018 | I48: 0.0005858421481
A49: =IF(C49<>0,aux!AU48,"") ->  | B49: =IF(C49<0,aux!AV48,"") ->  | C49: =IF(aux!AW48<0,aux!AW48,0) -> 0 | D49: 0 | F49: =IF(H49<>0,aux!AZ48,"") -> 06 | G49: =IF(H49<>0,aux!BA48,"") -> Plantas vivas e produtos de floricultura | H49: =IF(aux!BB48<0,aux!BB48,0) -> -0.351 | I49: 0.01142392189
A50: =IF(C50<>0,aux!AU49,"") ->  | B50: =IF(C50<0,aux!AV49,"") ->  | C50: =IF(aux!AW49<0,aux!AW49,0) -> 0 | D50: 0 | F50: =IF(H50<>0,aux!AZ49,"") -> 33 | G50: =IF(H50<>0,aux!BA49,"") -> Óleos essenciais e resinóides (NC 3301) | H50: =IF(aux!BB49<0,aux!BB49,0) -> -1.223 | I50: 0.03980471928
A51: =IF(C51<>0,aux!AU50,"") -> 03 | B51: =IF(C51<0,aux!AV50,"") -> Peixes e crustáceos | C51: =IF(aux!AW50<0,aux!AW50,0) -> -4798.758 | D51: 0.4923991349 | F51: =IF(H51<>0,aux!AZ50,"") -> 03 | G51: =IF(H51<>0,aux!BA50,"") -> Peixes e crustáceos | H51: =IF(aux!BB50<0,aux!BB50,0) -> -13.607 | I51: 0.4428641172
A52: =IF(C52<>0,aux!AU51,"") -> 52 | B52: =IF(C52<0,aux!AV51,"") -> Algodão (NC 5201-5203) | C52: =IF(aux!AW51<0,aux!AW51,0) -> -4946.909 | D52: 0.5076008651 | F52: =IF(H52<>0,aux!AZ51,"") -> 01 | G52: =IF(H52<>0,aux!BA51,"") -> Animais vivos | H52: =IF(aux!BB51<0,aux!BB51,0) -> -15.526 | I52: 0.5053213995
A53: TOTAL | C53: =SUM(C31:C52) -> 3022.05 | F53: TOTAL | H53: =SUM(H31:H52) -> 1204.681

Sheet 5.2A
A1: Trocas comerciais Portugal-Uganda 2019-2023 em milhares de euros (NC 4 dígitos) | G1: Produtos agrícolas e agroalimentares, do mar e da floresta
C2: Importações | K2: Exportações | U2: =+"Variação das Importações " & INDEX(K3:N3,1,aux!AL1) & "-"& '5.2'!O3 &"" -> Variação das Importações 2019-2023 | AA2: ="Variação das Exportações " & INDEX(K3:N3,1,aux!AL1) & "-"& '5.2'!O3 &"" -> Variação das Exportações 2019-2023
A3: Cód. NC | B3: Descritivo | C3: 2019 | D3: 2020 | E3: 2021 | F3: 2022 | G3: 2023 | H3: média quinquénio | I3: % Subtot | J3: % Total | K3: 2019 | L3: 2020 | M3: 2021 | N3: 2022 | O3: 2023 | P3: média quinquénio | Q3: % Subtot | R3: % Total | S3: Saldo quinquénio (exp-imp) | T3: Evolução das importações | U3: variação total em valor | V3: % no subtotal de variação | W3: % no total de variação | X3: taxa de variação média anual | Y3: taxa de variação total | Z3: Evolução das exportações | AA3: variação total em valor | AB3: % no subtotal de variação | AC3: % no total de variação | AD3: taxa de variação média anual | AE3: taxa de variação total
A4: 0101 | B4: Equídeos vivos | C4: 0 | D4: 0 | E4: 0 | F4: 0 | G4: 0 | H4: 0 | I4: 0 | J4: 0 | K4: 0 | L4: 0 | M4: 0 | N4: 0 | O4: 0 | P4: 0 | Q4: 0 | R4: 0 | S4: 0 | U4: =G4-INDEX($C4:$G4,1,aux!$AL$1) -> 0 | V4: =IF($U$237<>0,U4/$U$237, "n.d.") -> 0 | W4: =IF($U$322<>0,U4/$U$322, "n.d.") -> 0 | X4: =+IF(INDEX($C4:$G4,1,aux!$AL$1)>0,(G4/INDEX($C4:$G4,1,aux!$AL$1))^(1/($G$3-INDEX($C$3:$G$3,1,aux!$AL$1)))-1,"n.d.") -> n.d. | Y4: =IF(INDEX($C4:$G4,1,aux!$AL$1)>0,(G4-INDEX($C4:$G4,1,aux!$AL$1))/INDEX($C4:$G4,1,aux!$AL$1),"n.d.") -> n.d. | AA4: =O4-INDEX($K4:$O4,1,aux!$AL$1) -> 0 | AB4: =IF($AA$237<>0,AA4/$AA$237, "n.d.") -> 0 | AC4: =IF($AA$322<>0,AA4/$AA$322, "n.d.") -> 0 | AD4: =+IF(INDEX($K4:$O4,1,aux!$AL$1)>0,(O4/INDEX($K4:$O4,1,aux!$AL$1))^(1/($O$3-INDEX($K$3:$O$3,1,aux!$AL$1)))-1,"n.d.") -> n.d. | AE4: =IF(INDEX($K4:$O4,1,aux!$AL$1)>0,(O4-INDEX($K4:$O4,1,aux!$AL$1))/INDEX($K4:$O4,1,aux!$AL$1),"n.d.") -> n.d. | AX4: =+LEFT(A4,2) -> 01
A5: 0102 | B5: Bovinos vivos | C5: 0 | D5: 0 | E5: 0 | F5: 0 | G5: 0 | H5: 0 | I5: 0 | J5: 0 | K5: 0 | L5: 0 | M5: 0 | N5: 0 | O5: 0 | P5: 0 | Q5: 0 | R5: 0 | S5: 0 | U5: =G5-INDEX($C5:$G5,1,aux!$AL$1) -> 0 | V5: 0 | W5: 0 | X5: =+IF(INDEX($C5:$G5,1,aux!$AL$1)>0,(G5/INDEX($C5:$G5,1,aux!$AL$1))^(1/($G$3-INDEX($C$3:$G$3,1,aux!$AL$1)))-1,"n.d.") -> n.d. | Y5: =IF(INDEX($C5:$G5,1,aux!$AL$1)>0,(G5-INDEX($C5:$G5,1,aux!$AL$1))/INDEX($C5:$G5,1,aux!$AL$1),"n.d.") -> n.d. | AA5: =O5-INDEX($K5:$O5,1,aux!$AL$1) -> 0 | AB5: 0 | AC5: 0 | AD5: =+IF(INDEX($K5:$O5,1,aux!$AL$1)>0,(O5/INDEX($K5:$O5,1,aux!$AL$1))^(1/($O$3-INDEX($K$3:$O$3,1,aux!$AL$1)))-1,"n.d.") -> n.d. | AE5: =IF(INDEX($K5:$O5,1,aux!$AL$1)>0,(O5-INDEX($K5:$O5,1,aux!$AL$1))/INDEX($K5:$O5,1,aux!$AL$1),"n.d.") -> n.d. | AX5: 01
A6: 0103 | B6: Suínos vivos | C6: 0 | D6: 0 | E6: 0 | F6: 0 | G6: 0 | H6: 0 | I6: 0 | J6: 0 | K6: 0 | L6: 0 | M6: 0 | N6: 0 | O6: 0 | P6: 0 | Q6: 0 | R6: 0 | S6: 0 | U6: =G6-INDEX($C6:$G6,1,aux!$AL$1) -> 0 | V6: 0 | W6: 0 | X6: =+IF(INDEX($C6:$G6,1,aux!$AL$1)>0,(G6/INDEX($C6:$G6,1,aux!$AL$1))^(1/($G$3-INDEX($C$3:$G$3,1,aux!$AL$1)))-1,"n.d.") -> n.d. | Y6: =IF(INDEX($C6:$G6,1,aux!$AL$1)>0,(G6-INDEX($C6:$G6,1,aux!$AL$1))/INDEX($C6:$G6,1,aux!$AL$1),"n.d.") -> n.d. | AA6: =O6-INDEX($K6:$O6,1,aux!$AL$1) -> 0 | AB6: 0 | AC6: 0 | AD6: =+IF(INDEX($K6:$O6,1,aux!$AL$1)>0,(O6/INDEX($K6:$O6,1,aux!$AL$1))^(1/($O$3-INDEX($K$3:$O$3,1,aux!$AL$1)))-1,"n.d.") -> n.d. | AE6: =IF(INDEX($K6:$O6,1,aux!$AL$1)>0,(O6-INDEX($K6:$O6,1,aux!$AL$1))/INDEX($K6:$O6,1,aux!$AL$1),"n.d.") -> n.d. | AX6: 01
A7: 0104 | B7: Ovinos ou caprinos vivos | C7: 0 | D7: 0 | E7: 0 | F7: 0 | G7: 0 | H7: 0 | I7: 0 | J7: 0 | K7: 0 | L7: 0 | M7: 0 | N7: 0 | O7: 0 | P7: 0 | Q7: 0 | R7: 0 | S7: 0 | U7: =G7-INDEX($C7:$G7,1,aux!$AL$1) -> 0 | V7: 0 | W7: 0 | X7: =+IF(INDEX($C7:$G7,1,aux!$AL$1)>0,(G7/INDEX($C7:$G7,1,aux!$AL$1))^(1/($G$3-INDEX($C$3:$G$3,1,aux!$AL$1)))-1,"n.d.") -> n.d. | Y7: =IF(INDEX($C7:$G7,1,aux!$AL$1)>0,(G7-INDEX($C7:$G7,1,aux!$AL$1))/INDEX($C7:$G7,1,aux!$AL$1),"n.d.") -> n.d. | AA7: =O7-INDEX($K7:$O7,1,aux!$AL$1) -> 0 | AB7: 0 | AC7: 0 | AD7: =+IF(INDEX($K7:$O7,1,aux!$AL$1)>0,(O7/INDEX($K7:$O7,1,aux!$AL$1))^(1/($O$3-INDEX($K$3:$O$3,1,aux!$AL$1)))-1,"n.d.") -> n.d. | AE7: =IF(INDEX($K7:$O7,1,aux!$AL$1)>0,(O7-INDEX($K7:$O7,1,aux!$AL$1))/INDEX($K7:$O7,1,aux!$AL$1),"n.d.") -> n.d. | AX7: 01
A8: 0105 | B8: Aves de capoeira vivas | C8: 0 | D8: 0 | E8: 0 | F8: 0 | G8: 0 | H8: 0 | I8: 0 | J8: 0 | K8: 15.526 | L8: 0 | M8: 1100.078 | N8: 57.355 | O8: 0 | P8: 234.5918 | Q8: 0.3843253347 | R8: 0.2023335933 | S8: 234.5918 | U8: =G8-INDEX($C8:$G8,1,aux!$AL$1) -> 0 | V8: 0 | W8: 0 | X8: =+IF(INDEX($C8:$G8,1,aux!$AL$1)>0,(G8/INDEX($C8:$G8,1,aux!$AL$1))^(1/($G$3-INDEX($C$3:$G$3,1,aux!$AL$1)))-1,"n.d.") -> n.d. | Y8: =IF(INDEX($C8:$G8,1,aux!$AL$1)>0,(G8-INDEX($C8:$G8,1,aux!$AL$1))/INDEX($C8:$G8,1,aux!$AL$1),"n.d.") -> n.d. | AA8: =O8-INDEX($K8:$O8,1,aux!$AL$1) -> -15.526 | AB8: -0.02178546522 | AC8: -0.01288805916 | AD8: =+IF(INDEX($K8:$O8,1,aux!$AL$1)>0,(O8/INDEX($K8:$O8,1,aux!$AL$1))^(1/($O$3-INDEX($K$3:$O$3,1,aux!$AL$1)))-1,"n.d.") -> -1 | AE8: =IF(INDEX($K8:$O8,1,aux!$AL$1)>0,(O8-INDEX($K8:$O8,1,aux!$AL$1))/INDEX($K8:$O8,1,aux!$AL$1),"n.d.") -> -1 | AX8: 01
A9: 0106 | B9: Outros animais vivos | C9: 0 | D9: 0 | E9: 0 | F9: 0 | G9: 0 | H9: 0 | I9: 0 | J9: 0 | K9: 0 | L9: 0 | M9: 0 | N9: 0 | O9: 0 | P9: 0 | Q9: 0 | R9: 0 | S9: 0 | U9: =G9-INDEX($C9:$G9,1,aux!$AL$1) -> 0 | V9: 0 | W9: 0 | X9: =+IF(INDEX($C9:$G9,1,aux!$AL$1)>0,(G9/INDEX($C9:$G9,1,aux!$AL$1))^(1/($G$3-INDEX($C$3:$G$3,1,aux!$AL$1)))-1,"n.d.") -> n.d. | Y9: =IF(INDEX($C9:$G9,1,aux!$AL$1)>0,(G9-INDEX($C9:$G9,1,aux!$AL$1))/INDEX($C9:$G9,1,aux!$AL$1),"n.d.") -> n.d. | AA9: =O9-INDEX($K9:$O9,1,aux!$AL$1) -> 0 | AB9: 0 | AC9: 0 | AD9: =+IF(INDEX($K9:$O9,1,aux!$AL$1)>0,(O9/INDEX($K9:$O9,1,aux!$AL$1))^(1/($O$3-INDEX($K$3:$O$3,1,aux!$AL$1)))-1,"n.d.") -> n.d. | AE9: =IF(INDEX($K9:$O9,1,aux!$AL$1)>0,(O9-INDEX($K9:$O9,1,aux!$AL$1))/INDEX($K9:$O9,1,aux!$AL$1),"n.d.") -> n.d. | AX9: 01
A10: 01SS | B10: Animais vivos | C10: 0 | D10: 0 | E10: 0 | F10: 0 | G10: 0 | H10: 0 | I10: 0 | J10: 0 | K10: 0 | L10: 0 | M10: 0 | N10: 0 | O10: 0 | P10: 0 | Q10: 0 | R10: 0 | S10: 0 | U10: =G10-INDEX($C10:$G10,1,aux!$AL$1) -> 0 | V10: 0 | W10: 0 | X10: =+IF(INDEX($C10:$G10,1,aux!$AL$1)>0,(G10/INDEX($C10:$G10,1,aux!$AL$1))^(1/($G$3-INDEX($C$3:$G$3,1,aux!$AL$1)))-1,"n.d.") -> n.d. | Y10: =IF(INDEX($C10:$G10,1,aux!$AL$1)>0,(G10-INDEX($C10:$G10,1,aux!$AL$1))/INDEX($C10:$G10,1,aux!$AL$1),"n.d.") -> n.d. | AA10: =O10-INDEX($K10:$O10,1,aux!$AL$1) -> 0 | AB10: 0 | AC10: 0 | AD10: =+IF(INDEX($K10:$O10,1,aux!$AL$1)>0,(O10/INDEX($K10:$O10,1,aux!$AL$1))^(1/($O$3-INDEX($K$3:$O$3,1,aux!$AL$1)))-1,"n.d.") -> n.d. | AE10: =IF(INDEX($K10:$O10,1,aux!$AL$1)>0,(O10-INDEX($K10:$O10,1,aux!$AL$1))/INDEX($K10:$O10,1,aux!$AL$1),"n.d.") -> n.d. | AX10: 01
A11: 0201 | B11: Carnes de bovino, frescas ou refrigeradas | C11: 0 | D11: 0 | E11: 0 | F11: 0 | G11: 0 | H11: 0 | I11: 0 | J11: 0 | K11: 0 | L11: 0 | M11: 0 | N11: 0 | O11: 0 | P11: 0 | Q11: 0 | R11: 0 | S11: 0 | U11: =G11-INDEX($C11:$G11,1,aux!$AL$1) -> 0 | V11: 0 | W11: 0 | X11: =+IF(INDEX($C11:$G11,1,aux!$AL$1)>0,(G11/INDEX($C11:$G11,1,aux!$AL$1))^(1/($G$3-INDEX($C$3:$G$3,1,aux!$AL$1)))-1,"n.d.") -> n.d. | Y11: =IF(INDEX($C11:$G11,1,aux!$AL$1)>0,(G11-INDEX($C11:$G11,1,aux!$AL$1))/INDEX($C11:$G11,1,aux!$AL$1),"n.d.") -> n.d. | AA11: =O11-INDEX($K11:$O11,1,aux!$AL$1) -> 0 | AB11: 0 | AC11: 0 | AD11: =+IF(INDEX($K11:$O11,1,aux!$AL$1)>0,(O11/INDEX($K11:$O11,1,aux!$AL$1))^(1/($O$3-INDEX($K$3:$O$3,1,aux!$AL$1)))-1,"n.d.") -> n.d. | AE11: =IF(INDEX($K11:$O11,1,aux!$AL$1)>0,(O11-INDEX($K11:$O11,1,aux!$AL$1))/INDEX($K11:$O11,1,aux!$AL$1),"n.d.") -> n.d. | AX11: 02
A12: 0202 | B12: Carnes de bovino, congeladas | C12: 0 | D12: 0 | E12: 0 | F12: 0 | G12: 0 | H12: 0 | I12: 0 | J12: 0 | K12: 0 | L12: 0 | M12: 0 | N12: 0 | O12: 0 | P12: 0 | Q12: 0 | R12: 0 | S12: 0 | U12: =G12-INDEX($C12:$G12,1,aux!$AL$1) -> 0 | V12: 0 | W12: 0 | X12: =+IF(INDEX($C12:$G12,1,aux!$AL$1)>0,(G12/INDEX($C12:$G12,1,aux!$AL$1))^(1/($G$3-INDEX($C$3:$G$3,1,aux!$AL$1)))-1,"n.d.") -> n.d. | Y12: =IF(INDEX($C12:$G12,1,aux!$AL$1)>0,(G12-INDEX($C12:$G12,1,aux!$AL$1))/INDEX($C12:$G12,1,aux!$AL$1),"n.d.") -> n.d. | AA12: =O12-INDEX($K12:$O12,1,aux!$AL$1) -> 0 | AB12: 0 | AC12: 0 | AD12: =+IF(INDEX($K12:$O12,1,aux!$AL$1)>0,(O12/INDEX($K12:$O12,1,aux!$AL$1))^(1/($O$3-INDEX($K$3:$O$3,1,aux!$AL$1)))-1,"n.d.") -> n.d. | AE12: =IF(INDEX($K12:$O12,1,aux!$AL$1)>0,(O12-INDEX($K12:$O12,1,aux!$AL$1))/INDEX($K12:$O12,1,aux!$AL$1),"n.d.") -> n.d. | AX12: 02
A13: 0203 | B13: Carnes de suíno | C13: 0 | D13: 0 | E13: 0 | F13: 0 | G13: 0 | H13: 0 | I13: 0 | J13: 0 | K13: 0 | L13: 0 | M13: 0 | N13: 0 | O13: 0 | P13: 0 | Q13: 0 | R13: 0 | S13: 0 | U13: =G13-INDEX($C13:$G13,1,aux!$AL$1) -> 0 | V13: 0 | W13: 0 | X13: =+IF(INDEX($C13:$G13,1,aux!$AL$1)>0,(G13/INDEX($C13:$G13,1,aux!$AL$1))^(1/($G$3-INDEX($C$3:$G$3,1,aux!$AL$1)))-1,"n.d.") -> n.d. | Y13: =IF(INDEX($C13:$G13,1,aux!$AL$1)>0,(G13-INDEX($C13:$G13,1,aux!$AL$1))/INDEX($C13:$G13,1,aux!$AL$1),"n.d.") -> n.d. | AA13: =O13-INDEX($K13:$O13,1,aux!$AL$1) -> 0 | AB13: 0 | AC13: 0 | AD13: =+IF(INDEX($K13:$O13,1,aux!$AL$1)>0,(O13/INDEX($K13:$O13,1,aux!$AL$1))^(1/($O$3-INDEX($K$3:$O$3,1,aux!$AL$1)))-1,"n.d.") -> n.d. | AE13: =IF(INDEX($K13:$O13,1,aux!$AL$1)>0,(O13-INDEX($K13:$O13,1,aux!$AL$1))/INDEX($K13:$O13,1,aux!$AL$1),"n.d.") -> n.d. | AX13: 02
A14: 0204 | B14: Carnes de ovino ou caprino | C14: 0 | D14: 0 | E14: 0 | F14: 0 | G14: 0 | H14: 0 | I14: 0 | J14: 0 | K14: 0 | L14: 0 | M14: 0 | N14: 0 | O14: 0 | P14: 0 | Q14: 0 | R14: 0 | S14: 0 | U14: =G14-INDEX($C14:$G14,1,aux!$AL$1) -> 0 | V14: 0 | W14: 0 | X14: =+IF(INDEX($C14:$G14,1,aux!$AL$1)>0,(G14/INDEX($C14:$G14,1,aux!$AL$1))^(1/($G$3-INDEX($C$3:$G$3,1,aux!$AL$1)))-1,"n.d.") -> n.d. | Y14: =IF(INDEX($C14:$G14,1,aux!$AL$1)>0,(G14-INDEX($C14:$G14,1,aux!$AL$1))/INDEX($C14:$G14,1,aux!$AL$1),"n.d.") -> n.d. | AA14: =O14-INDEX($K14:$O14,1,aux!$AL$1) -> 0 | AB14: 0 | AC14: 0 | AD14: =+IF(INDEX($K14:$O14,1,aux!$AL$1)>0,(O14/INDEX($K14:$O14,1,aux!$AL$1))^(1/($O$3-INDEX($K$3:$O$3,1,aux!$AL$1)))-1,"n.d.") -> n.d. | AE14: =IF(INDEX($K14:$O14,1,aux!$AL$1)>0,(O14-INDEX($K14:$O14,1,aux!$AL$1))/INDEX($K14:$O14,1,aux!$AL$1),"n.d.") -> n.d. | AX14: 02
A15: 0205 | B15: Carnes de equídeo | C15: 0 | D15: 0 | E15: 0 | F15: 0 | G15: 0 | H15: 0 | I15: 0 | J15: 0 | K15: 0 | L15: 0 | M15: 0 | N15: 0 | O15: 0 | P15: 0 | Q15: 0 | R15: 0 | S15: 0 | U15: =G15-INDEX($C15:$G15,1,aux!$AL$1) -> 0 | V15: 0 | W15: 0 | X15: =+IF(INDEX($C15:$G15,1,aux!$AL$1)>0,(G15/INDEX($C15:$G15,1,aux!$AL$1))^(1/($G$3-INDEX($C$3:$G$3,1,aux!$AL$1)))-1,"n.d.") -> n.d. | Y15: =IF(INDEX($C15:$G15,1,aux!$AL$1)>0,(G15-INDEX($C15:$G15,1,aux!$AL$1))/INDEX($C15:$G15,1,aux!$AL$1),"n.d.") -> n.d. | AA15: =O15-INDEX($K15:$O15,1,aux!$AL$1) -> 0 | AB15: 0 | AC15: 0 | AD15: =+IF(INDEX($K15:$O15,1,aux!$AL$1)>0,(O15/INDEX($K15:$O15,1,aux!$AL$1))^(1/($O$3-INDEX($K$3:$O$3,1,aux!$AL$1)))-1,"n.d.") -> n.d. | AE15: =IF(INDEX($K15:$O15,1,aux!$AL$1)>0,(O15-INDEX($K15:$O15,1,aux!$AL$1))/INDEX($K15:$O15,1,aux!$AL$1),"n.d.") -> n.d. | AX15: 02
A16: 0206 | B16: Miudezas de bovino, suíno, ovino, caprino,equídeo | C16: 0 | D16: 0 | E16: 0 | F16: 0 | G16: 0 | H16: 0 | I16: 0 | J16: 0 | K16: 0 | L16: 0 | M16: 0 | N16: 0 | O16: 0 | P16: 0 | Q16: 0 | R16: 0 | S16: 0 | U16: =G16-INDEX($C16:$G16,1,aux!$AL$1) -> 0 | V16: 0 | W16: 0 | X16: =+IF(INDEX($C16:$G16,1,aux!$AL$1)>0,(G16/INDEX($C16:$G16,1,aux!$AL$1))^(1/($G$3-INDEX($C$3:$G$3,1,aux!$AL$1)))-1,"n.d.") -> n.d. | Y16: =IF(INDEX($C16:$G16,1,aux!$AL$1)>0,(G16-INDEX($C16:$G16,1,aux!$AL$1))/INDEX($C16:$G16,1,aux!$AL$1),"n.d.") -> n.d. | AA16: =O16-INDEX($K16:$O16,1,aux!$AL$1) -> 0 | AB16: 0 | AC16: 0 | AD16: =+IF(INDEX($K16:$O16,1,aux!$AL$1)>0,(O16/INDEX($K16:$O16,1,aux!$AL$1))^(1/($O$3-INDEX($K$3:$O$3,1,aux!$AL$1)))-1,"n.d.") -> n.d. | AE16: =IF(INDEX($K16:$O16,1,aux!$AL$1)>0,(O16-INDEX($K16:$O16,1,aux!$AL$1))/INDEX($K16:$O16,1,aux!$AL$1),"n.d.") -> n.d. | AX16: 02
A17: 0207 | B17: Carnes e miudezas de aves de capoeira | C17: 0 | D17: 0 | E17: 0 | F17: 0 | G17: 0 | H17: 0 | I17: 0 | J17: 0 | K17: 0 | L17: 0 | M17: 0 | N17: 0 | O17: 0 | P17: 0 | Q17: 0 | R17: 0 | S17: 0 | U17: =G17-INDEX($C17:$G17,1,aux!$AL$1) -> 0 | V17: 0 | W17: 0 | X17: =+IF(INDEX($C17:$G17,1,aux!$AL$1)>0,(G17/INDEX($C17:$G17,1,aux!$AL$1))^(1/($G$3-INDEX($C$3:$G$3,1,aux!$AL$1)))-1,"n.d.") -> n.d. | Y17: =IF(INDEX($C17:$G17,1,aux!$AL$1)>0,(G17-INDEX($C17:$G17,1,aux!$AL$1))/INDEX($C17:$G17,1,aux!$AL$1),"n.d.") -> n.d. | AA17: =O17-INDEX($K17:$O17,1,aux!$AL$1) -> 0 | AB17: 0 | AC17: 0 | AD17: =+IF(INDEX($K17:$O17,1,aux!$AL$1)>0,(O17/INDEX($K17:$O17,1,aux!$AL$1))^(1/($O$3-INDEX($K$3:$O$3,1,aux!$AL$1)))-1,"n.d.") -> n.d. | AE17: =IF(INDEX($K17:$O17,1,aux!$AL$1)>0,(O17-INDEX($K17:$O17,1,aux!$AL$1))/INDEX($K17:$O17,1,aux!$AL$1),"n.d.") -> n.d. | AX17: 02
A18: 0208 | B18: Outras carnes e miudezas | C18: 0 | D18: 0 | E18: 0 | F18: 0 | G18: 0 | H18: 0 | I18: 0 | J18: 0 | K18: 0 | L18: 0 | M18: 0 | N18: 0 | O18: 0 | P18: 0 | Q18: 0 | R18: 0 | S18: 0 | U18: =G18-INDEX($C18:$G18,1,aux!$AL$1) -> 0 | V18: 0 | W18: 0 | X18: =+IF(INDEX($C18:$G18,1,aux!$AL$1)>0,(G18/INDEX($C18:$G18,1,aux!$AL$1))^(1/($G$3-INDEX($C$3:$G$3,1,aux!$AL$1)))-1,"n.d.") -> n.d. | Y18: =IF(INDEX($C18:$G18,1,aux!$AL$1)>0,(G18-INDEX($C18:$G18,1,aux!$AL$1))/INDEX($C18:$G18,1,aux!$AL$1),"n.d.") -> n.d. | AA18: =O18-INDEX($K18:$O18,1,aux!$AL$1) -> 0 | AB18: 0 | AC18: 0 | AD18: =+IF(INDEX($K18:$O18,1,aux!$AL$1)>0,(O18/INDEX($K18:$O18,1,aux!$AL$1))^(1/($O$3-INDEX($K$3:$O$3,1,aux!$AL$1)))-1,"n.d.") -> n.d. | AE18: =IF(INDEX($K18:$O18,1,aux!$AL$1)>0,(O18-INDEX($K18:$O18,1,aux!$AL$1))/INDEX($K18:$O18,1,aux!$AL$1),"n.d.") -> n.d. | AX18: 02
A19: 0209 | B19: Toucinho, gorduras de porco e de aves | C19: 0 | D19: 0 | E19: 0 | F19: 0 | G19: 0 | H19: 0 | I19: 0 | J19: 0 | K19: 0 | L19: 0 | M19: 0 | N19: 0 | O19: 0 | P19: 0 | Q19: 0 | R19: 0 | S19: 0 | U19: =G19-INDEX($C19:$G19,1,aux!$AL$1) -> 0 | V19: 0 | W19: 0 | X19: =+IF(INDEX($C19:$G19,1,aux!$AL$1)>0,(G19/INDEX($C19:$G19,1,aux!$AL$1))^(1/($G$3-INDEX($C$3:$G$3,1,aux!$AL$1)))-1,"n.d.") -> n.d. | Y19: =IF(INDEX($C19:$G19,1,aux!$AL$1)>0,(G19-INDEX($C19:$G19,1,aux!$AL$1))/INDEX($C19:$G19,1,aux!$AL$1),"n.d.") -> n.d. | AA19: =O19-INDEX($K19:$O19,1,aux!$AL$1) -> 0 | AB19: 0 | AC19: 0 | AD19: =+IF(INDEX($K19:$O19,1,aux!$AL$1)>0,(O19/INDEX($K19:$O19,1,aux!$AL$1))^(1/($O$3-INDEX($K$3:$O$3,1,aux!$AL$1)))-1,"n.d.") -> n.d. | AE19: =IF(INDEX($K19:$O19,1,aux!$AL$1)>0,(O19-INDEX($K19:$O19,1,aux!$AL$1))/INDEX($K19:$O19,1,aux!$AL$1),"n.d.") -> n.d. | AX19: 02
A20: 0210 | B20: Carnes e miudezas processadas; farinhas de carnes | C20: 0 | D20: 0 | E20: 0 | F20: 0 | G20: 0 | H20: 0 | I20: 0 | J20: 0 | K20: 0 | L20: 0 | M20: 0 | N20: 0 | O20: 0 | P20: 0 | Q20: 0 | R20: 0 | S20: 0 | U20: =G20-INDEX($C20:$G20,1,aux!$AL$1) -> 0 | V20: 0 | W20: 0 | X20: =+IF(INDEX($C20:$G20,1,aux!$AL$1)>0,(G20/INDEX($C20:$G20,1,aux!$AL$1))^(1/($G$3-INDEX($C$3:$G$3,1,aux!$AL$1)))-1,"n.d.") -> n.d. | Y20: =IF(INDEX($C20:$G20,1,aux!$AL$1)>0,(G20-INDEX($C20:$G20,1,aux!$AL$1))/INDEX($C20:$G20,1,aux!$AL$1),"n.d.") -> n.d. | AA20: =O20-INDEX($K20:$O20,1,aux!$AL$1) -> 0 | AB20: 0 | AC20: 0 | AD20: =+IF(INDEX($K20:$O20,1,aux!$AL$1)>0,(O20/INDEX($K20:$O20,1,aux!$AL$1))^(1/($O$3-INDEX($K$3:$O$3,1,aux!$AL$1)))-1,"n.d.") -> n.d. | AE20: =IF(INDEX($K20:$O20,1,aux!$AL$1)>0,(O20-INDEX($K20:$O20,1,aux!$AL$1))/INDEX($K20:$O20,1,aux!$AL$1),"n.d.") -> n.d. | AX20: 02
A21: 02SS | B21: Carnes e miudezas, comestíveis | C21: 0 | D21: 0 | E21: 0 | F21: 0 | G21: 0 | H21: 0 | I21: 0 | J21: 0 | K21: 0 | L21: 0 | M21: 0 | N21: 0 | O21: 0 | P21: 0 | Q21: 0 | R21: 0 | S21: 0 | U21: =G21-INDEX($C21:$G21,1,aux!$AL$1) -> 0 | V21: 0 | W21: 0 | X21: =+IF(INDEX($C21:$G21,1,aux!$AL$1)>0,(G21/INDEX($C21:$G21,1,aux!$AL$1))^(1/($G$3-INDEX($C$3:$G$3,1,aux!$AL$1)))-1,"n.d.") -> n.d. | Y21: =IF(INDEX($C21:$G21,1,aux!$AL$1)>0,(G21-INDEX($C21:$G21,1,aux!$AL$1))/INDEX($C21:$G21,1,aux!$AL$1),"n.d.") -> n.d. | AA21: =O21-INDEX($K21:$O21,1,aux!$AL$1) -> 0 | AB21: 0 | AC21: 0 | AD21: =+IF(INDEX($K21:$O21,1,aux!$AL$1)>0,(O21/INDEX($K21:$O21,1,aux!$AL$1))^(1/($O$3-INDEX($K$3:$O$3,1,aux!$AL$1)))-1,"n.d.") -> n.d. | AE21: =IF(INDEX($K21:$O21,1,aux!$AL$1)>0,(O21-INDEX($K21:$O21,1,aux!$AL$1))/INDEX($K21:$O21,1,aux!$AL$1),"n.d.") -> n.d. | AX21: 02
A22: 0401 | B22: Leite e nata, não concentrados | C22: 0 | D22: 0 | E22: 0 | F22: 0 | G22: 0 | H22: 0 | I22: 0 | J22: 0 | K22: 0 | L22: 0 | M22: 0 | N22: 0 | O22: 0 | P22: 0 | Q22: 0 | R22: 0 | S22: 0 | U22: =G22-INDEX($C22:$G22,1,aux!$AL$1) -> 0 | V22: 0 | W22: 0 | X22: =+IF(INDEX($C22:$G22,1,aux!$AL$1)>0,(G22/INDEX($C22:$G22,1,aux!$AL$1))^(1/($G$3-INDEX($C$3:$G$3,1,aux!$AL$1)))-1,"n.d.") -> n.d. | Y22: =IF(INDEX($C22:$G22,1,aux!$AL$1)>0,(G22-INDEX($C22:$G22,1,aux!$AL$1))/INDEX($C22:$G22,1,aux!$AL$1),"n.d.") -> n.d. | AA22: =O22-INDEX($K22:$O22,1,aux!$AL$1) -> 0 | AB22: 0 | AC22: 0 | AD22: =+IF(INDEX($K22:$O22,1,aux!$AL$1)>0,(O22/INDEX($K22:$O22,1,aux!$AL$1))^(1/($O$3-INDEX($K$3:$O$3,1,aux!$AL$1)))-1,"n.d.") -> n.d. | AE22: =IF(INDEX($K22:$O22,1,aux!$AL$1)>0,(O22-INDEX($K22:$O22,1,aux!$AL$1))/INDEX($K22:$O22,1,aux!$AL$1),"n.d.") -> n.d. | AX22: 04
A23: 0402 | B23: Leite e nata, concentrados | C23: 0 | D23: 0 | E23: 0 | F23: 0 | G23: 0 | H23: 0 | I23: 0 | J23: 0 | K23: 0 | L23: 1.944 | M23: 6.48 | N23: 6.48 | O23: 10.08 | P23: 4.9968 | Q23: 0.008186120882 | R23: 0.004309700933 | S23: 4.9968 | U23: =G23-INDEX($C23:$G23,1,aux!$AL$1) -> 0 | V23: 0 | W23: 0 | X23: =+IF(INDEX($C23:$G23,1,aux!$AL$1)>0,(G23/INDEX($C23:$G23,1,aux!$AL$1))^(1/($G$3-INDEX($C$3:$G$3,1,aux!$AL$1)))-1,"n.d.") -> n.d. | Y23: =IF(INDEX($C23:$G23,1,aux!$AL$1)>0,(G23-INDEX($C23:$G23,1,aux!$AL$1))/INDEX($C23:$G23,1,aux!$AL$1),"n.d.") -> n.d. | AA23: =O23-INDEX($K23:$O23,1,aux!$AL$1) -> 10.08 | AB23: 0.01414385479 | AC23: 0.008367360322 | AD23: =+IF(INDEX($K23:$O23,1,aux!$AL$1)>0,(O23/INDEX($K23:$O23,1,aux!$AL$1))^(1/($O$3-INDEX($K$3:$O$3,1,aux!$AL$1)))-1,"n.d.") -> n.d. | AE23: =IF(INDEX($K23:$O23,1,aux!$AL$1)>0,(O23-INDEX($K23:$O23,1,aux!$AL$1))/INDEX($K23:$O23,1,aux!$AL$1),"n.d.") -> n.d. | AX23: 04
A24: 0403 | B24: Leitelho, leite coalhado, iogurte, etc. | C24: 0 | D24: 0 | E24: 0 | F24: 0 | G24: 0 | H24: 0 | I24: 0 | J24: 0 | K24: 0 | L24: 0 | M24: 0 | N24: 0 | O24: 0 | P24: 0 | Q24: 0 | R24: 0 | S24: 0 | U24: =G24-INDEX($C24:$G24,1,aux!$AL$1) -> 0 | V24: 0 | W24: 0 | X24: =+IF(INDEX($C24:$G24,1,aux!$AL$1)>0,(G24/INDEX($C24:$G24,1,aux!$AL$1))^(1/($G$3-INDEX($C$3:$G$3,1,aux!$AL$1)))-1,"n.d.") -> n.d. | Y24: =IF(INDEX($C24:$G24,1,aux!$AL$1)>0,(G24-INDEX($C24:$G24,1,aux!$AL$1))/INDEX($C24:$G24,1,aux!$AL$1),"n.d.") -> n.d. | AA24: =O24-INDEX($K24:$O24,1,aux!$AL$1) -> 0 | AB24: 0 | AC24: 0 | AD24: =+IF(INDEX($K24:$O24,1,aux!$AL$1)>0,(O24/INDEX($K24:$O24,1,aux!$AL$1))^(1/($O$3-INDEX($K$3:$O$3,1,aux!$AL$1)))-1,"n.d.") -> n.d. | AE24: =IF(INDEX($K24:$O24,1,aux!$AL$1)>0,(O24-INDEX($K24:$O24,1,aux!$AL$1))/INDEX($K24:$O24,1,aux!$AL$1),"n.d.") -> n.d. | AX24: 04
A25: 0404 | B25: Soro de leite e outros produtos do leite | C25: 0 | D25: 0 | E25: 0 | F25: 0 | G25: 0 | H25: 0 | I25: 0 | J25: 0 | K25: 0 | L25: 0 | M25: 0 | N25: 0 | O25: 0 | P25: 0 | Q25: 0 | R25: 0 | S25: 0 | U25: =G25-INDEX($C25:$G25,1,aux!$AL$1) -> 0 | V25: 0 | W25: 0 | X25: =+IF(INDEX($C25:$G25,1,aux!$AL$1)>0,(G25/INDEX($C25:$G25,1,aux!$AL$1))^(1/($G$3-INDEX($C$3:$G$3,1,aux!$AL$1)))-1,"n.d.") -> n.d. | Y25: =IF(INDEX($C25:$G25,1,aux!$AL$1)>0,(G25-INDEX($C25:$G25,1,aux!$AL$1))/INDEX($C25:$G25,1,aux!$AL$1),"n.d.") -> n.d. | AA25: =O25-INDEX($K25:$O25,1,aux!$AL$1) -> 0 | AB25: 0 | AC25: 0 | AD25: =+IF(INDEX($K25:$O25,1,aux!$AL$1)>0,(O25/INDEX($K25:$O25,1,aux!$AL$1))^(1/($O$3-INDEX($K$3:$O$3,1,aux!$AL$1)))-1,"n.d.") -> n.d. | AE25: =IF(INDEX($K25:$O25,1,aux!$AL$1)>0,(O25-INDEX($K25:$O25,1,aux!$AL$1))/INDEX($K25:$O25,1,aux!$AL$1),"n.d.") -> n.d. | AX25: 04
A26: 0405 | B26: Manteiga | C26: 0 | D26: 0 | E26: 0 | F26: 0 | G26: 0 | H26: 0 | I26: 0 | J26: 0 | K26: 0 | L26: 0 | M26: 0 | N26: 0 | O26: 0 | P26: 0 | Q26: 0 | R26: 0 | S26: 0 | U26: =G26-INDEX($C26:$G26,1,aux!$AL$1) -> 0 | V26: 0 | W26: 0 | X26: =+IF(INDEX($C26:$G26,1,aux!$AL$1)>0,(G26/INDEX($C26:$G26,1,aux!$AL$1))^(1/($G$3-INDEX($C$3:$G$3,1,aux!$AL$1)))-1,"n.d.") -> n.d. | Y26: =IF(INDEX($C26:$G26,1,aux!$AL$1)>0,(G26-INDEX($C26:$G26,1,aux!$AL$1))/INDEX($C26:$G26,1,aux!$AL$1),"n.d.") -> n.d. | AA26: =O26-INDEX($K26:$O26,1,aux!$AL$1) -> 0 | AB26: 0 | AC26: 0 | AD26: =+IF(INDEX($K26:$O26,1,aux!$AL$1)>0,(O26/INDEX($K26:$O26,1,aux!$AL$1))^(1/($O$3-INDEX($K$3:$O$3,1,aux!$AL$1)))-1,"n.d.") -> n.d. | AE26: =IF(INDEX($K26:$O26,1,aux!$AL$1)>0,(O26-INDEX($K26:$O26,1,aux!$AL$1))/INDEX($K26:$O26,1,aux!$AL$1),"n.d.") -> n.d. | AX26: 04
A27: 0406 | B27: Queijos e requeijão | C27: 0 | D27: 0 | E27: 0 | F27: 0 | G27: 0 | H27: 0 | I27: 0 | J27: 0 | K27: 0 | L27: 0 | M27: 0 | N27: 0 | O27: 0 | P27: 0 | Q27: 0 | R27: 0 | S27: 0 | U27: =G27-INDEX($C27:$G27,1,aux!$AL$1) -> 0 | V27: 0 | W27: 0 | X27: =+IF(INDEX($C27:$G27,1,aux!$AL$1)>0,(G27/INDEX($C27:$G27,1,aux!$AL$1))^(1/($G$3-INDEX($C$3:$G$3,1,aux!$AL$1)))-1,"n.d.") -> n.d. | Y27: =IF(INDEX($C27:$G27,1,aux!$AL$1)>0,(G27-INDEX($C27:$G27,1,aux!$AL$1))/INDEX($C27:$G27,1,aux!$AL$1),"n.d.") -> n.d. | AA27: =O27-INDEX($K27:$O27,1,aux!$AL$1) -> 0 | AB27: 0 | AC27: 0 | AD27: =+IF(INDEX($K27:$O27,1,aux!$AL$1)>0,(O27/INDEX($K27:$O27,1,aux!$AL$1))^(1/($O$3-INDEX($K$3:$O$3,1,aux!$AL$1)))-1,"n.d.") -> n.d. | AE27: =IF(INDEX($K27:$O27,1,aux!$AL$1)>0,(O27-INDEX($K27:$O27,1,aux!$AL$1))/INDEX($K27:$O27,1,aux!$AL$1),"n.d.") -> n.d. | AX27: 04
A28: 0407 | B28: Ovos de aves, com cascas | C28: 0 | D28: 0 | E28: 0 | F28: 0 | G28: 0 | H28: 0 | I28: 0 | J28: 0 | K28: 0 | L28: 0 | M28: 0 | N28: 0 | O28: 0 | P28: 0 | Q28: 0 | R28: 0 | S28: 0 | U28: =G28-INDEX($C28:$G28,1,aux!$AL$1) -> 0 | V28: 0 | W28: 0 | X28: =+IF(INDEX($C28:$G28,1,aux!$AL$1)>0,(G28/INDEX($C28:$G28,1,aux!$AL$1))^(1/($G$3-INDEX($C$3:$G$3,1,aux!$AL$1)))-1,"n.d.") -> n.d. | Y28: =IF(INDEX($C28:$G28,1,aux!$AL$1)>0,(G28-INDEX($C28:$G28,1,aux!$AL$1))/INDEX($C28:$G28,1,aux!$AL$1),"n.d.") -> n.d. | AA28: =O28-INDEX($K28:$O28,1,aux!$AL$1) -> 0 | AB28: 0 | AC28: 0 | AD28: =+IF(INDEX($K28:$O28,1,aux!$AL$1)>0,(O28/INDEX($K28:$O28,1,aux!$AL$1))^(1/($O$3-INDEX($K$3:$O$3,1,aux!$AL$1)))-1,"n.d.") -> n.d. | AE28: =IF(INDEX($K28:$O28,1,aux!$AL$1)>0,(O28-INDEX($K28:$O28,1,aux!$AL$1))/INDEX($K28:$O28,1,aux!$AL$1),"n.d.") -> n.d. | AX28: 04
A29: 0408 | B29: Ovos de aves, sem casca | C29: 0 | D29: 0 | E29: 0 | F29: 0 | G29: 0 | H29: 0 | I29: 0 | J29: 0 | K29: 0 | L29: 0 | M29: 0 | N29: 0 | O29: 0 | P29: 0 | Q29: 0 | R29: 0 | S29: 0 | U29: =G29-INDEX($C29:$G29,1,aux!$AL$1) -> 0 | V29: 0 | W29: 0 | X29: =+IF(INDEX($C29:$G29,1,aux!$AL$1)>0,(G29/INDEX($C29:$G29,1,aux!$AL$1))^(1/($G$3-INDEX($C$3:$G$3,1,aux!$AL$1)))-1,"n.d.") -> n.d. | Y29: =IF(INDEX($C29:$G29,1,aux!$AL$1)>0,(G29-INDEX($C29:$G29,1,aux!$AL$1))/INDEX($C29:$G29,1,aux!$AL$1),"n.d.") -> n.d. | AA29: =O29-INDEX($K29:$O29,1,aux!$AL$1) -> 0 | AB29: 0 | AC29: 0 | AD29: =+IF(INDEX($K29:$O29,1,aux!$AL$1)>0,(O29/INDEX($K29:$O29,1,aux!$AL$1))^(1/($O$3-INDEX($K$3:$O$3,1,aux!$AL$1)))-1,"n.d.") -> n.d. | AE29: =IF(INDEX($K29:$O29,1,aux!$AL$1)>0,(O29-INDEX($K29:$O29,1,aux!$AL$1))/INDEX($K29:$O29,1,aux!$AL$1),"n.d.") -> n.d. | AX29: 04
A30: 0409 | B30: Mel natural | C30: 0 | D30: 0 | E30: 0 | F30: 0 | G30: 0 | H30: 0 | I30: 0 | J30: 0 | K30: 0 | L30: 0 | M30: 0 | N30: 0 | O30: 0 | P30: 0 | Q30: 0 | R30: 0 | S30: 0 | U30: =G30-INDEX($C30:$G30,1,aux!$AL$1) -> 0 | V30: 0 | W30: 0 | X30: =+IF(INDEX($C30:$G30,1,aux!$AL$1)>0,(G30/INDEX($C30:$G30,1,aux!$AL$1))^(1/($G$3-INDEX($C$3:$G$3,1,aux!$AL$1)))-1,"n.d.") -> n.d. | Y30: =IF(INDEX($C30:$G30,1,aux!$AL$1)>0,(G30-INDEX($C30:$G30,1,aux!$AL$1))/INDEX($C30:$G30,1,aux!$AL$1),"n.d.") -> n.d. | AA30: =O30-INDEX($K30:$O30,1,aux!$AL$1) -> 0 | AB30: 0 | AC30: 0 | AD30: =+IF(INDEX($K30:$O30,1,aux!$AL$1)>0,(O30/INDEX($K30:$O30,1,aux!$AL$1))^(1/($O$3-INDEX($K$3:$O$3,1,aux!$AL$1)))-1,"n.d.") -> n.d. | AE30: =IF(INDEX($K30:$O30,1,aux!$AL$1)>0,(O30-INDEX($K30:$O30,1,aux!$AL$1))/INDEX($K30:$O30,1,aux!$AL$1),"n.d.") -> n.d. | AX30: 04
A31: 0410 | B31: Outros produtos comestíveis de origem animal | C31: 0 | D31: 0 | E31: 0 | F31: 0 | G31: 0 | H31: 0 | I31: 0 | J31: 0 | K31: 0 | L31: 0 | M31: 0 | N31: 0 | O31: 0 | P31: 0 | Q31: 0 | R31: 0 | S31: 0 | U31: =G31-INDEX($C31:$G31,1,aux!$AL$1) -> 0 | V31: 0 | W31: 0 | X31: =+IF(INDEX($C31:$G31,1,aux!$AL$1)>0,(G31/INDEX($C31:$G31,1,aux!$AL$1))^(1/($G$3-INDEX($C$3:$G$3,1,aux!$AL$1)))-1,"n.d.") -> n.d. | Y31: =IF(INDEX($C31:$G31,1,aux!$AL$1)>0,(G31-INDEX($C31:$G31,1,aux!$AL$1))/INDEX($C31:$G31,1,aux!$AL$1),"n.d.") -> n.d. | AA31: =O31-INDEX($K31:$O31,1,aux!$AL$1) -> 0 | AB31: 0 | AC31: 0 | AD31: =+IF(INDEX($K31:$O31,1,aux!$AL$1)>0,(O31/INDEX($K31:$O31,1,aux!$AL$1))^(1/($O$3-INDEX($K$3:$O$3,1,aux!$AL$1)))-1,"n.d.") -> n.d. | AE31: =IF(INDEX($K31:$O31,1,aux!$AL$1)>0,(O31-INDEX($K31:$O31,1,aux!$AL$1))/INDEX($K31:$O31,1,aux!$AL$1),"n.d.") -> n.d. | AX31: 04
A32: 04SS | B32: Leite e lacticínios; ovos de aves; mel natural; etc. | C32: 0 | D32: 0 | E32: 0 | F32: 0 | G32: 0 | H32: 0 | I32: 0 | J32: 0 | K32: 0 | L32: 0 | M32: 0 | N32: 0 | O32: 0 | P32: 0 | Q32: 0 | R32: 0 | S32: 0 | U32: =G32-INDEX($C32:$G32,1,aux!$AL$1) -> 0 | V32: 0 | W32: 0 | X32: =+IF(INDEX($C32:$G32,1,aux!$AL$1)>0,(G32/INDEX($C32:$G32,1,aux!$AL$1))^(1/($G$3-INDEX($C$3:$G$3,1,aux!$AL$1)))-1,"n.d.") -> n.d. | Y32: =IF(INDEX($C32:$G32,1,aux!$AL$1)>0,(G32-INDEX($C32:$G32,1,aux!$AL$1))/INDEX($C32:$G32,1,aux!$AL$1),"n.d.") -> n.d. | AA32: =O32-INDEX($K32:$O32,1,aux!$AL$1) -> 0 | AB32: 0 | AC32: 0 | AD32: =+IF(INDEX($K32:$O32,1,aux!$AL$1)>0,(O32/INDEX($K32:$O32,1,aux!$AL$1))^(1/($O$3-INDEX($K$3:$O$3,1,aux!$AL$1)))-1,"n.d.") -> n.d. | AE32: =IF(INDEX($K32:$O32,1,aux!$AL$1)>0,(O32-INDEX($K32:$O32,1,aux!$AL$1))/INDEX($K32:$O32,1,aux!$AL$1),"n.d.") -> n.d. | AX32: 04
A33: 0501 | B33: Cabelos em bruto | C33: 0 | D33: 0 | E33: 0 | F33: 0 | G33: 0 | H33: 0 | I33: 0 | J33: 0 | K33: 0 | L33: 0 | M33: 0 | N33: 0 | O33: 0 | P33: 0 | Q33: 0 | R33: 0 | S33: 0 | U33: =G33-INDEX($C33:$G33,1,aux!$AL$1) -> 0 | V33: 0 | W33: 0 | X33: =+IF(INDEX($C33:$G33,1,aux!$AL$1)>0,(G33/INDEX($C33:$G33,1,aux!$AL$1))^(1/($G$3-INDEX($C$3:$G$3,1,aux!$AL$1)))-1,"n.d.") -> n.d. | Y33: =IF(INDEX($C33:$G33,1,aux!$AL$1)>0,(G33-INDEX($C33:$G33,1,aux!$AL$1))/INDEX($C33:$G33,1,aux!$AL$1),"n.d.") -> n.d. | AA33: =O33-INDEX($K33:$O33,1,aux!$AL$1) -> 0 | AB33: 0 | AC33: 0 | AD33: =+IF(INDEX($K33:$O33,1,aux!$AL$1)>0,(O33/INDEX($K33:$O33,1,aux!$AL$1))^(1/($O$3-INDEX($K$3:$O$3,1,aux!$AL$1)))-1,"n.d.") -> n.d. | AE33: =IF(INDEX($K33:$O33,1,aux!$AL$1)>0,(O33-INDEX($K33:$O33,1,aux!$AL$1))/INDEX($K33:$O33,1,aux!$AL$1),"n.d.") -> n.d. | AX33: 05
A34: 0502 | B34: Cerdas de porco ou de javali, etc. | C34: 0 | D34: 0 | E34: 0 | F34: 0 | G34: 0 | H34: 0 | I34: 0 | J34: 0 | K34: 0 | L34: 0 | M34: 0 | N34: 0 | O34: 0 | P34: 0 | Q34: 0 | R34: 0 | S34: 0 | U34: =G34-INDEX($C34:$G34,1,aux!$AL$1) -> 0 | V34: 0 | W34: 0 | X34: =+IF(INDEX($C34:$G34,1,aux!$AL$1)>0,(G34/INDEX($C34:$G34,1,aux!$AL$1))^(1/($G$3-INDEX($C$3:$G$3,1,aux!$AL$1)))-1,"n.d.") -> n.d. | Y34: =IF(INDEX($C34:$G34,1,aux!$AL$1)>0,(G34-INDEX($C34:$G34,1,aux!$AL$1))/INDEX($C34:$G34,1,aux!$AL$1),"n.d.") -> n.d. | AA34: =O34-INDEX($K34:$O34,1,aux!$AL$1) -> 0 | AB34: 0 | AC34: 0 | AD34: =+IF(INDEX($K34:$O34,1,aux!$AL$1)>0,(O34/INDEX($K34:$O34,1,aux!$AL$1))^(1/($O$3-INDEX($K$3:$O$3,1,aux!$AL$1)))-1,"n.d.") -> n.d. | AE34: =IF(INDEX($K34:$O34,1,aux!$AL$1)>0,(O34-INDEX($K34:$O34,1,aux!$AL$1))/INDEX($K34:$O34,1,aux!$AL$1),"n.d.") -> n.d. | AX34: 05
A35: 0504 | B35: Tripas de animais (excepto peixes) | C35: 0 | D35: 0 | E35: 0 | F35: 0 | G35: 0 | H35: 0 | I35: 0 | J35: 0 | K35: 0 | L35: 0 | M35: 0 | N35: 0 | O35: 0 | P35: 0 | Q35: 0 | R35: 0 | S35: 0 | U35: =G35-INDEX($C35:$G35,1,aux!$AL$1) -> 0 | V35: 0 | W35: 0 | X35: =+IF(INDEX($C35:$G35,1,aux!$AL$1)>0,(G35/INDEX($C35:$G35,1,aux!$AL$1))^(1/($G$3-INDEX($C$3:$G$3,1,aux!$AL$1)))-1,"n.d.") -> n.d. | Y35: =IF(INDEX($C35:$G35,1,aux!$AL$1)>0,(G35-INDEX($C35:$G35,1,aux!$AL$1))/INDEX($C35:$G35,1,aux!$AL$1),"n.d.") -> n.d. | AA35: =O35-INDEX($K35:$O35,1,aux!$AL$1) -> 0 | AB35: 0 | AC35: 0 | AD35: =+IF(INDEX($K35:$O35,1,aux!$AL$1)>0,(O35/INDEX($K35:$O35,1,aux!$AL$1))^(1/($O$3-INDEX($K$3:$O$3,1,aux!$AL$1)))-1,"n.d.") -> n.d. | AE35: =IF(INDEX($K35:$O35,1,aux!$AL$1)>0,(O35-INDEX($K35:$O35,1,aux!$AL$1))/INDEX($K35:$O35,1,aux!$AL$1),"n.d.") -> n.d. | AX35: 05
A36: 0505 | B36: Peles e outras partes de aves | C36: 0 | D36: 0 | E36: 0 | F36: 0 | G36: 0 | H36: 0 | I36: 0 | J36: 0 | K36: 0 | L36: 0 | M36: 0 | N36: 0 | O36: 0 | P36: 0 | Q36: 0 | R36: 0 | S36: 0 | U36: =G36-INDEX($C36:$G36,1,aux!$AL$1) -> 0 | V36: 0 | W36: 0 | X36: =+IF(INDEX($C36:$G36,1,aux!$AL$1)>0,(G36/INDEX($C36:$G36,1,aux!$AL$1))^(1/($G$3-INDEX($C$3:$G$3,1,aux!$AL$1)))-1,"n.d.") -> n.d. | Y36: =IF(INDEX($C36:$G36,1,aux!$AL$1)>0,(G36-INDEX($C36:$G36,1,aux!$AL$1))/INDEX($C36:$G36,1,aux!$AL$1),"n.d.") -> n.d. | AA36: =O36-INDEX($K36:$O36,1,aux!$AL$1) -> 0 | AB36: 0 | AC36: 0 | AD36: =+IF(INDEX($K36:$O36,1,aux!$AL$1)>0,(O36/INDEX($K36:$O36,1,aux!$AL$1))^(1/($O$3-INDEX($K$3:$O$3,1,aux!$AL$1)))-1,"n.d.") -> n.d. | AE36: =IF(INDEX($K36:$O36,1,aux!$AL$1)>0,(O36-INDEX($K36:$O36,1,aux!$AL$1))/INDEX($K36:$O36,1,aux!$AL$1),"n.d.") -> n.d. | AX36: 05
A37: 0506 | B37: Ossos e núcleos córneos, em bruto | C37: 0 | D37: 0 | E37: 0 | F37: 0 | G37: 0 | H37: 0 | I37: 0 | J37: 0 | K37: 0 | L37: 0 | M37: 0 | N37: 0 | O37: 0 | P37: 0 | Q37: 0 | R37: 0 | S37: 0 | U37: =G37-INDEX($C37:$G37,1,aux!$AL$1) -> 0 | V37: 0 | W37: 0 | X37: =+IF(INDEX($C37:$G37,1,aux!$AL$1)>0,(G37/INDEX($C37:$G37,1,aux!$AL$1))^(1/($G$3-INDEX($C$3:$G$3,1,aux!$AL$1)))-1,"n.d.") -> n.d. | Y37: =IF(INDEX($C37:$G37,1,aux!$AL$1)>0,(G37-INDEX($C37:$G37,1,aux!$AL$1))/INDEX($C37:$G37,1,aux!$AL$1),"n.d.") -> n.d. | AA37: =O37-INDEX($K37:$O37,1,aux!$AL$1) -> 0 | AB37: 0 | AC37: 0 | AD37: =+IF(INDEX($K37:$O37,1,aux!$AL$1)>0,(O37/INDEX($K37:$O37,1,aux!$AL$1))^(1/($O$3-INDEX($K$3:$O$3,1,aux!$AL$1)))-1,"n.d.") -> n.d. | AE37: =IF(INDEX($K37:$O37,1,aux!$AL$1)>0,(O37-INDEX($K37:$O37,1,aux!$AL$1))/INDEX($K37:$O37,1,aux!$AL$1),"n.d.") -> n.d. | AX37: 05
A38: 0507 | B38: Marfim, carapaças de tartaruga, etc. | C38: 0 | D38: 0 | E38: 0 | F38: 0 | G38: 0 | H38: 0 | I38: 0 | J38: 0 | K38: 0 | L38: 0 | M38: 0 | N38: 0 | O38: 0 | P38: 0 | Q38: 0 | R38: 0 | S38: 0 | U38: =G38-INDEX($C38:$G38,1,aux!$AL$1) -> 0 | V38: 0 | W38: 0 | X38: =+IF(INDEX($C38:$G38,1,aux!$AL$1)>0,(G38/INDEX($C38:$G38,1,aux!$AL$1))^(1/($G$3-INDEX($C$3:$G$3,1,aux!$AL$1)))-1,"n.d.") -> n.d. | Y38: =IF(INDEX($C38:$G38,1,aux!$AL$1)>0,(G38-INDEX($C38:$G38,1,aux!$AL$1))/INDEX($C38:$G38,1,aux!$AL$1),"n.d.") -> n.d. | AA38: =O38-INDEX($K38:$O38,1,aux!$AL$1) -> 0 | AB38: 0 | AC38: 0 | AD38: =+IF(INDEX($K38:$O38,1,aux!$AL$1)>0,(O38/INDEX($K38:$O38,1,aux!$AL$1))^(1/($O$3-INDEX($K$3:$O$3,1,aux!$AL$1)))-1,"n.d.") -> n.d. | AE38: =IF(INDEX($K38:$O38,1,aux!$AL$1)>0,(O38-INDEX($K38:$O38,1,aux!$AL$1))/INDEX($K38:$O38,1,aux!$AL$1),"n.d.") -> n.d. | AX38: 05
A39: 0510 | B39: Âmbar-cinzento, castóreo, algália e almíscar, etc. | C39: 0 | D39: 0 | E39: 0 | F39: 0 | G39: 0 | H39: 0 | I39: 0 | J39: 0 | K39: 0 | L39: 0 | M39: 0 | N39: 0 | O39: 0 | P39: 0 | Q39: 0 | R39: 0 | S39: 0 | U39: =G39-INDEX($C39:$G39,1,aux!$AL$1) -> 0 | V39: 0 | W39: 0 | X39: =+IF(INDEX($C39:$G39,1,aux!$AL$1)>0,(G39/INDEX($C39:$G39,1,aux!$AL$1))^(1/($G$3-INDEX($C$3:$G$3,1,aux!$AL$1)))-1,"n.d.") -> n.d. | Y39: =IF(INDEX($C39:$G39,1,aux!$AL$1)>0,(G39-INDEX($C39:$G39,1,aux!$AL$1))/INDEX($C39:$G39,1,aux!$AL$1),"n.d.") -> n.d. | AA39: =O39-INDEX($K39:$O39,1,aux!$AL$1) -> 0 | AB39: 0 | AC39: 0 | AD39: =+IF(INDEX($K39:$O39,1,aux!$AL$1)>0,(O39/INDEX($K39:$O39,1,aux!$AL$1))^(1/($O$3-INDEX($K$3:$O$3,1,aux!$AL$1)))-1,"n.d.") -> n.d. | AE39: =IF(INDEX($K39:$O39,1,aux!$AL$1)>0,(O39-INDEX($K39:$O39,1,aux!$AL$1))/INDEX($K39:$O39,1,aux!$AL$1),"n.d.") -> n.d. | AX39: 05
A40: 0511 | B40: Outros produtos de origem animal (exc. NC 0511 91) (a) | C40: 0 | D40: 0 | E40: 0 | F40: 0 | G40: 0 | H40: 0 | I40: 0 | J40: 0 | K40: 0 | L40: 0 | M40: 0 | N40: 0 | O40: 0 | P40: 0 | Q40: 0 | R40: 0 | S40: 0 | U40: =G40-INDEX($C40:$G40,1,aux!$AL$1) -> 0 | V40: 0 | W40: 0 | X40: =+IF(INDEX($C40:$G40,1,aux!$AL$1)>0,(G40/INDEX($C40:$G40,1,aux!$AL$1))^(1/($G$3-INDEX($C$3:$G$3,1,aux!$AL$1)))-1,"n.d.") -> n.d. | Y40: =IF(INDEX($C40:$G40,1,aux!$AL$1)>0,(G40-INDEX($C40:$G40,1,aux!$AL$1))/INDEX($C40:$G40,1,aux!$AL$1),"n.d.") -> n.d. | AA40: =O40-INDEX($K40:$O40,1,aux!$AL$1) -> 0 | AB40: 0 | AC40: 0 | AD40: =+IF(INDEX($K40:$O40,1,aux!$AL$1)>0,(O40/INDEX($K40:$O40,1,aux!$AL$1))^(1/($O$3-INDEX($K$3:$O$3,1,aux!$AL$1)))-1,"n.d.") -> n.d. | AE40: =IF(INDEX($K40:$O40,1,aux!$AL$1)>0,(O40-INDEX($K40:$O40,1,aux!$AL$1))/INDEX($K40:$O40,1,aux!$AL$1),"n.d.") -> n.d. | AX40: 05
A41: 05SS | B41: Outros produtos de origem animal | C41: 0 | D41: 0 | E41: 0 | F41: 0 | G41: 0 | H41: 0 | I41: 0 | J41: 0 | K41: 0 | L41: 0 | M41: 0 | N41: 0 | O41: 0 | P41: 0 | Q41: 0 | R41: 0 | S41: 0 | U41: =G41-INDEX($C41:$G41,1,aux!$AL$1) -> 0 | V41: 0 | W41: 0 | X41: =+IF(INDEX($C41:$G41,1,aux!$AL$1)>0,(G41/INDEX($C41:$G41,1,aux!$AL$1))^(1/($G$3-INDEX($C$3:$G$3,1,aux!$AL$1)))-1,"n.d.") -> n.d. | Y41: =IF(INDEX($C41:$G41,1,aux!$AL$1)>0,(G41-INDEX($C41:$G41,1,aux!$AL$1))/INDEX($C41:$G41,1,aux!$AL$1),"n.d.") -> n.d. | AA41: =O41-INDEX($K41:$O41,1,aux!$AL$1) -> 0 | AB41: 0 | AC41: 0 | AD41: =+IF(INDEX($K41:$O41,1,aux!$AL$1)>0,(O41/INDEX($K41:$O41,1,aux!$AL$1))^(1/($O$3-INDEX($K$3:$O$3,1,aux!$AL$1)))-1,"n.d.") -> n.d. | AE41: =IF(INDEX($K41:$O41,1,aux!$AL$1)>0,(O41-INDEX($K41:$O41,1,aux!$AL$1))/INDEX($K41:$O41,1,aux!$AL$1),"n.d.") -> n.d. | AX41: 05
A42: 0601 | B42: Bolbos, tubérculos, raízes, etc. | C42: 0 | D42: 0 | E42: 0 | F42: 0 | G42: 0 | H42: 0 | I42: 0 | J42: 0 | K42: 0 | L42: 0 | M42: 0 | N42: 0 | O42: 0 | P42: 0 | Q42: 0 | R42: 0 | S42: 0 | U42: =G42-INDEX($C42:$G42,1,aux!$AL$1) -> 0 | V42: 0 | W42: 0 | X42: =+IF(INDEX($C42:$G42,1,aux!$AL$1)>0,(G42/INDEX($C42:$G42,1,aux!$AL$1))^(1/($G$3-INDEX($C$3:$G$3,1,aux!$AL$1)))-1,"n.d.") -> n.d. | Y42: =IF(INDEX($C42:$G42,1,aux!$AL$1)>0,(G42-INDEX($C42:$G42,1,aux!$AL$1))/INDEX($C42:$G42,1,aux!$AL$1),"n.d.") -> n.d. | AA42: =O42-INDEX($K42:$O42,1,aux!$AL$1) -> 0 | AB42: 0 | AC42: 0 | AD42: =+IF(INDEX($K42:$O42,1,aux!$AL$1)>0,(O42/INDEX($K42:$O42,1,aux!$AL$1))^(1/($O$3-INDEX($K$3:$O$3,1,aux!$AL$1)))-1,"n.d.") -> n.d. | AE42: =IF(INDEX($K42:$O42,1,aux!$AL$1)>0,(O42-INDEX($K42:$O42,1,aux!$AL$1))/INDEX($K42:$O42,1,aux!$AL$1),"n.d.") -> n.d. | AX42: 06
A43: 0602 | B43: Plantas vivas | C43: 0 | D43: 0 | E43: 0.132 | F43: 0 | G43: 0 | H43: 0.0264 | I43: 1.506831598e-06 | J43: 1.149106972e-06 | K43: 0.351 | L43: 0 | M43: 0 | N43: 0 | O43: 0 | P43: 0.0702 | Q43: 0.0001150067415 | R43: 6.054695114e-05 | S43: 0.0438 | U43: =G43-INDEX($C43:$G43,1,aux!$AL$1) -> 0 | V43: 0 | W43: 0 | X43: =+IF(INDEX($C43:$G43,1,aux!$AL$1)>0,(G43/INDEX($C43:$G43,1,aux!$AL$1))^(1/($G$3-INDEX($C$3:$G$3,1,aux!$AL$1)))-1,"n.d.") -> n.d. | Y43: =IF(INDEX($C43:$G43,1,aux!$AL$1)>0,(G43-INDEX($C43:$G43,1,aux!$AL$1))/INDEX($C43:$G43,1,aux!$AL$1),"n.d.") -> n.d. | AA43: =O43-INDEX($K43:$O43,1,aux!$AL$1) -> -0.351 | AB43: -0.0004925092293 | AC43: -0.0002913634398 | AD43: =+IF(INDEX($K43:$O43,1,aux!$AL$1)>0,(O43/INDEX($K43:$O43,1,aux!$AL$1))^(1/($O$3-INDEX($K$3:$O$3,1,aux!$AL$1)))-1,"n.d.") -> -1 | AE43: =IF(INDEX($K43:$O43,1,aux!$AL$1)>0,(O43-INDEX($K43:$O43,1,aux!$AL$1))/INDEX($K43:$O43,1,aux!$AL$1),"n.d.") -> -1 | AX43: 06
A44: 0603 | B44: Flores e seus botões | C44: 0 | D44: 0 | E44: 0 | F44: 0 | G44: 0 | H44: 0 | I44: 0 | J44: 0 | K44: 0 | L44: 0 | M44: 0 | N44: 0 | O44: 0 | P44: 0 | Q44: 0 | R44: 0 | S44: 0 | U44: =G44-INDEX($C44:$G44,1,aux!$AL$1) -> 0 | V44: 0 | W44: 0 | X44: =+IF(INDEX($C44:$G44,1,aux!$AL$1)>0,(G44/INDEX($C44:$G44,1,aux!$AL$1))^(1/($G$3-INDEX($C$3:$G$3,1,aux!$AL$1)))-1,"n.d.") -> n.d. | Y44: =IF(INDEX($C44:$G44,1,aux!$AL$1)>0,(G44-INDEX($C44:$G44,1,aux!$AL$1))/INDEX($C44:$G44,1,aux!$AL$1),"n.d.") -> n.d. | AA44: =O44-INDEX($K44:$O44,1,aux!$AL$1) -> 0 | AB44: 0 | AC44: 0 | AD44: =+IF(INDEX($K44:$O44,1,aux!$AL$1)>0,(O44/INDEX($K44:$O44,1,aux!$AL$1))^(1/($O$3-INDEX($K$3:$O$3,1,aux!$AL$1)))-1,"n.d.") -> n.d. | AE44: =IF(INDEX($K44:$O44,1,aux!$AL$1)>0,(O44-INDEX($K44:$O44,1,aux!$AL$1))/INDEX($K44:$O44,1,aux!$AL$1),"n.d.") -> n.d. | AX44: 06
A45: 0604 | B45: Folhagem, folhas, ramos e outras partes de plantas | C45: 0 | D45: 0 | E45: 0 | F45: 0 | G45: 0 | H45: 0 | I45: 0 | J45: 0 | K45: 0 | L45: 0 | M45: 0 | N45: 0 | O45: 0 | P45: 0 | Q45: 0 | R45: 0 | S45: 0 | U45: =G45-INDEX($C45:$G45,1,aux!$AL$1) -> 0 | V45: 0 | W45: 0 | X45: =+IF(INDEX($C45:$G45,1,aux!$AL$1)>0,(G45/INDEX($C45:$G45,1,aux!$AL$1))^(1/($G$3-INDEX($C$3:$G$3,1,aux!$AL$1)))-1,"n.d.") -> n.d. | Y45: =IF(INDEX($C45:$G45,1,aux!$AL$1)>0,(G45-INDEX($C45:$G45,1,aux!$AL$1))/INDEX($C45:$G45,1,aux!$AL$1),"n.d.") -> n.d. | AA45: =O45-INDEX($K45:$O45,1,aux!$AL$1) -> 0 | AB45: 0 | AC45: 0 | AD45: =+IF(INDEX($K45:$O45,1,aux!$AL$1)>0,(O45/INDEX($K45:$O45,1,aux!$AL$1))^(1/($O$3-INDEX($K$3:$O$3,1,aux!$AL$1)))-1,"n.d.") -> n.d. | AE45: =IF(INDEX($K45:$O45,1,aux!$AL$1)>0,(O45-INDEX($K45:$O45,1,aux!$AL$1))/INDEX($K45:$O45,1,aux!$AL$1),"n.d.") -> n.d. | AX45: 06
A46: 06SS | B46: Plantas vivas e produtos de floricultura | C46: 0 | D46: 0 | E46: 0 | F46: 0 | G46: 0 | H46: 0 | I46: 0 | J46: 0 | K46: 0 | L46: 0 | M46: 0 | N46: 0 | O46: 0 | P46: 0 | Q46: 0 | R46: 0 | S46: 0 | U46: =G46-INDEX($C46:$G46,1,aux!$AL$1) -> 0 | V46: 0 | W46: 0 | X46: =+IF(INDEX($C46:$G46,1,aux!$AL$1)>0,(G46/INDEX($C46:$G46,1,aux!$AL$1))^(1/($G$3-INDEX($C$3:$G$3,1,aux!$AL$1)))-1,"n.d.") -> n.d. | Y46: =IF(INDEX($C46:$G46,1,aux!$AL$1)>0,(G46-INDEX($C46:$G46,1,aux!$AL$1))/INDEX($C46:$G46,1,aux!$AL$1),"n.d.") -> n.d. | AA46: =O46-INDEX($K46:$O46,1,aux!$AL$1) -> 0 | AB46: 0 | AC46: 0 | AD46: =+IF(INDEX($K46:$O46,1,aux!$AL$1)>0,(O46/INDEX($K46:$O46,1,aux!$AL$1))^(1/($O$3-INDEX($K$3:$O$3,1,aux!$AL$1)))-1,"n.d.") -> n.d. | AE46: =IF(INDEX($K46:$O46,1,aux!$AL$1)>0,(O46-INDEX($K46:$O46,1,aux!$AL$1))/INDEX($K46:$O46,1,aux!$AL$1),"n.d.") -> n.d. | AX46: 06
A47: 0701 | B47: Batatas, frescas ou refrigeradas | C47: 0 | D47: 0 | E47: 0 | F47: 0 | G47: 0 | H47: 0 | I47: 0 | J47: 0 | K47: 0 | L47: 0 | M47: 0 | N47: 0 | O47: 0 | P47: 0 | Q47: 0 | R47: 0 | S47: 0 | U47: =G47-INDEX($C47:$G47,1,aux!$AL$1) -> 0 | V47: 0 | W47: 0 | X47: =+IF(INDEX($C47:$G47,1,aux!$AL$1)>0,(G47/INDEX($C47:$G47,1,aux!$AL$1))^(1/($G$3-INDEX($C$3:$G$3,1,aux!$AL$1)))-1,"n.d.") -> n.d. | Y47: =IF(INDEX($C47:$G47,1,aux!$AL$1)>0,(G47-INDEX($C47:$G47,1,aux!$AL$1))/INDEX($C47:$G47,1,aux!$AL$1),"n.d.") -> n.d. | AA47: =O47-INDEX($K47:$O47,1,aux!$AL$1) -> 0 | AB47: 0 | AC47: 0 | AD47: =+IF(INDEX($K47:$O47,1,aux!$AL$1)>0,(O47/INDEX($K47:$O47,1,aux!$AL$1))^(1/($O$3-INDEX($K$3:$O$3,1,aux!$AL$1)))-1,"n.d.") -> n.d. | AE47: =IF(INDEX($K47:$O47,1,aux!$AL$1)>0,(O47-INDEX($K47:$O47,1,aux!$AL$1))/INDEX($K47:$O47,1,aux!$AL$1),"n.d.") -> n.d. | AX47: 07
A48: 0702 | B48: Tomates, frescos ou refrigerados | C48: 0 | D48: 0 | E48: 0 | F48: 0 | G48: 0 | H48: 0 | I48: 0 | J48: 0 | K48: 0 | L48: 0 | M48: 0 | N48: 0 | O48: 0 | P48: 0 | Q48: 0 | R48: 0 | S48: 0 | U48: =G48-INDEX($C48:$G48,1,aux!$AL$1) -> 0 | V48: 0 | W48: 0 | X48: =+IF(INDEX($C48:$G48,1,aux!$AL$1)>0,(G48/INDEX($C48:$G48,1,aux!$AL$1))^(1/($G$3-INDEX($C$3:$G$3,1,aux!$AL$1)))-1,"n.d.") -> n.d. | Y48: =IF(INDEX($C48:$G48,1,aux!$AL$1)>0,(G48-INDEX($C48:$G48,1,aux!$AL$1))/INDEX($C48:$G48,1,aux!$AL$1),"n.d.") -> n.d. | AA48: =O48-INDEX($K48:$O48,1,aux!$AL$1) -> 0 | AB48: 0 | AC48: 0 | AD48: =+IF(INDEX($K48:$O48,1,aux!$AL$1)>0,(O48/INDEX($K48:$O48,1,aux!$AL$1))^(1/($O$3-INDEX($K$3:$O$3,1,aux!$AL$1)))-1,"n.d.") -> n.d. | AE48: =IF(INDEX($K48:$O48,1,aux!$AL$1)>0,(O48-INDEX($K48:$O48,1,aux!$AL$1))/INDEX($K48:$O48,1,aux!$AL$1),"n.d.") -> n.d. | AX48: 07
A49: 0703 | B49: Cebolas, alhos, etc., frescos ou refrigerados | C49: 0 | D49: 0 | E49: 0 | F49: 0 | G49: 0 | H49: 0 | I49: 0 | J49: 0 | K49: 0 | L49: 0.046 | M49: 0 | N49: 0 | O49: 0 | P49: 0.0092 | Q49: 1.507210857e-05 | R49: 7.93492807e-06 | S49: 0.0092 | U49: =G49-INDEX($C49:$G49,1,aux!$AL$1) -> 0 | V49: 0 | W49: 0 | X49: =+IF(INDEX($C49:$G49,1,aux!$AL$1)>0,(G49/INDEX($C49:$G49,1,aux!$AL$1))^(1/($G$3-INDEX($C$3:$G$3,1,aux!$AL$1)))-1,"n.d.") -> n.d. | Y49: =IF(INDEX($C49:$G49,1,aux!$AL$1)>0,(G49-INDEX($C49:$G49,1,aux!$AL$1))/INDEX($C49:$G49,1,aux!$AL$1),"n.d.") -> n.d. | AA49: =O49-INDEX($K49:$O49,1,aux!$AL$1) -> 0 | AB49: 0 | AC49: 0 | AD49: =+IF(INDEX($K49:$O49,1,aux!$AL$1)>0,(O49/INDEX($K49:$O49,1,aux!$AL$1))^(1/($O$3-INDEX($K$3:$O$3,1,aux!$AL$1)))-1,"n.d.") -> n.d. | AE49: =IF(INDEX($K49:$O49,1,aux!$AL$1)>0,(O49-INDEX($K49:$O49,1,aux!$AL$1))/INDEX($K49:$O49,1,aux!$AL$1),"n.d.") -> n.d. | AX49: 07
A50: 0704 | B50: Couves, frescas ou refrigeradas | C50: 0 | D50: 0 | E50: 0 | F50: 0 | G50: 0 | H50: 0 | I50: 0 | J50: 0 | K50: 0 | L50: 0 | M50: 0 | N50: 0 | O50: 0 | P50: 0 | Q50: 0 | R50: 0 | S50: 0 | U50: =G50-INDEX($C50:$G50,1,aux!$AL$1) -> 0 | V50: 0 | W50: 0 | X50: =+IF(INDEX($C50:$G50,1,aux!$AL$1)>0,(G50/INDEX($C50:$G50,1,aux!$AL$1))^(1/($G$3-INDEX($C$3:$G$3,1,aux!$AL$1)))-1,"n.d.") -> n.d. | Y50: =IF(INDEX($C50:$G50,1,aux!$AL$1)>0,(G50-INDEX($C50:$G50,1,aux!$AL$1))/INDEX($C50:$G50,1,aux!$AL$1),"n.d.") -> n.d. | AA50: =O50-INDEX($K50:$O50,1,aux!$AL$1) -> 0 | AB50: 0 | AC50: 0 | AD50: =+IF(INDEX($K50:$O50,1,aux!$AL$1)>0,(O50/INDEX($K50:$O50,1,aux!$AL$1))^(1/($O$3-INDEX($K$3:$O$3,1,aux!$AL$1)))-1,"n.d.") -> n.d. | AE50: =IF(INDEX($K50:$O50,1,aux!$AL$1)>0,(O50-INDEX($K50:$O50,1,aux!$AL$1))/INDEX($K50:$O50,1,aux!$AL$1),"n.d.") -> n.d. | AX50: 07
A51: 0705 | B51: Alfaces, frescas ou refrigeradas | C51: 0 | D51: 0 | E51: 0 | F51: 0 | G51: 0 | H51: 0 | I51: 0 | J51: 0 | K51: 0 | L51: 0 | M51: 0 | N51: 0 | O51: 0 | P51: 0 | Q51: 0 | R51: 0 | S51: 0 | U51: =G51-INDEX($C51:$G51,1,aux!$AL$1) -> 0 | V51: 0 | W51: 0 | X51: =+IF(INDEX($C51:$G51,1,aux!$AL$1)>0,(G51/INDEX($C51:$G51,1,aux!$AL$1))^(1/($G$3-INDEX($C$3:$G$3,1,aux!$AL$1)))-1,"n.d.") -> n.d. | Y51: =IF(INDEX($C51:$G51,1,aux!$AL$1)>0,(G51-INDEX($C51:$G51,1,aux!$AL$1))/INDEX($C51:$G51,1,aux!$AL$1),"n.d.") -> n.d. | AA51: =O51-INDEX($K51:$O51,1,aux!$AL$1) -> 0 | AB51: 0 | AC51: 0 | AD51: =+IF(INDEX($K51:$O51,1,aux!$AL$1)>0,(O51/INDEX($K51:$O51,1,aux!$AL$1))^(1/($O$3-INDEX($K$3:$O$3,1,aux!$AL$1)))-1,"n.d.") -> n.d. | AE51: =IF(INDEX($K51:$O51,1,aux!$AL$1)>0,(O51-INDEX($K51:$O51,1,aux!$AL$1))/INDEX($K51:$O51,1,aux!$AL$1),"n.d.") -> n.d. | AX51: 07
A52: 0706 | B52: Cenouras, nabos, beterrabas, etc., frescos ou refrigerados | C52: 0 | D52: 0 | E52: 0 | F52: 0 | G52: 0 | H52: 0 | I52: 0 | J52: 0 | K52: 0 | L52: 0 | M52: 0 | N52: 0 | O52: 0 | P52: 0 | Q52: 0 | R52: 0 | S52: 0 | U52: =G52-INDEX($C52:$G52,1,aux!$AL$1) -> 0 | V52: 0 | W52: 0 | X52: =+IF(INDEX($C52:$G52,1,aux!$AL$1)>0,(G52/INDEX($C52:$G52,1,aux!$AL$1))^(1/($G$3-INDEX($C$3:$G$3,1,aux!$AL$1)))-1,"n.d.") -> n.d. | Y52: =IF(INDEX($C52:$G52,1,aux!$AL$1)>0,(G52-INDEX($C52:$G52,1,aux!$AL$1))/INDEX($C52:$G52,1,aux!$AL$1),"n.d.") -> n.d. | AA52: =O52-INDEX($K52:$O52,1,aux!$AL$1) -> 0 | AB52: 0 | AC52: 0 | AD52: =+IF(INDEX($K52:$O52,1,aux!$AL$1)>0,(O52/INDEX($K52:$O52,1,aux!$AL$1))^(1/($O$3-INDEX($K$3:$O$3,1,aux!$AL$1)))-1,"n.d.") -> n.d. | AE52: =IF(INDEX($K52:$O52,1,aux!$AL$1)>0,(O52-INDEX($K52:$O52,1,aux!$AL$1))/INDEX($K52:$O52,1,aux!$AL$1),"n.d.") -> n.d. | AX52: 07
A53: 0707 | B53: Pepinos e pepininhos, frescos ou refrigerados | C53: 0 | D53: 0 | E53: 0 | F53: 0 | G53: 0 | H53: 0 | I53: 0 | J53: 0 | K53: 0 | L53: 0 | M53: 0 | N53: 0 | O53: 0 | P53: 0 | Q53: 0 | R53: 0 | S53: 0 | U53: =G53-INDEX($C53:$G53,1,aux!$AL$1) -> 0 | V53: 0 | W53: 0 | X53: =+IF(INDEX($C53:$G53,1,aux!$AL$1)>0,(G53/INDEX($C53:$G53,1,aux!$AL$1))^(1/($G$3-INDEX($C$3:$G$3,1,aux!$AL$1)))-1,"n.d.") -> n.d. | Y53: =IF(INDEX($C53:$G53,1,aux!$AL$1)>0,(G53-INDEX($C53:$G53,1,aux!$AL$1))/INDEX($C53:$G53,1,aux!$AL$1),"n.d.") -> n.d. | AA53: =O53-INDEX($K53:$O53,1,aux!$AL$1) -> 0 | AB53: 0 | AC53: 0 | AD53: =+IF(INDEX($K53:$O53,1,aux!$AL$1)>0,(O53/INDEX($K53:$O53,1,aux!$AL$1))^(1/($O$3-INDEX($K$3:$O$3,1,aux!$AL$1)))-1,"n.d.") -> n.d. | AE53: =IF(INDEX($K53:$O53,1,aux!$AL$1)>0,(O53-INDEX($K53:$O53,1,aux!$AL$1))/INDEX($K53:$O53,1,aux!$AL$1),"n.d.") -> n.d. | AX53: 07
A54: 0708 | B54: Tomates preparados ou conservados | C54: 0 | D54: 0 | E54: 0 | F54: 0 | G54: 0 | H54: 0 | I54: 0 | J54: 0 | K54: 0 | L54: 0 | M54: 0 | N54: 0 | O54: 0 | P54: 0 | Q54: 0 | R54: 0 | S54: 0 | U54: =G54-INDEX($C54:$G54,1,aux!$AL$1) -> 0 | V54: 0 | W54: 0 | X54: =+IF(INDEX($C54:$G54,1,aux!$AL$1)>0,(G54/INDEX($C54:$G54,1,aux!$AL$1))^(1/($G$3-INDEX($C$3:$G$3,1,aux!$AL$1)))-1,"n.d.") -> n.d. | Y54: =IF(INDEX($C54:$G54,1,aux!$AL$1)>0,(G54-INDEX($C54:$G54,1,aux!$AL$1))/INDEX($C54:$G54,1,aux!$AL$1),"n.d.") -> n.d. | AA54: =O54-INDEX($K54:$O54,1,aux!$AL$1) -> 0 | AB54: 0 | AC54: 0 | AD54: =+IF(INDEX($K54:$O54,1,aux!$AL$1)>0,(O54/INDEX($K54:$O54,1,aux!$AL$1))^(1/($O$3-INDEX($K$3:$O$3,1,aux!$AL$1)))-1,"n.d.") -> n.d. | AE54: =IF(INDEX($K54:$O54,1,aux!$AL$1)>0,(O54-INDEX($K54:$O54,1,aux!$AL$1))/INDEX($K54:$O54,1,aux!$AL$1),"n.d.") -> n.d. | AX54: 07
A55: 0709 | B55: Outros produtos hortícolas, frescos ou refrigerados | C55: 0 | D55: 0 | E55: 39.266 | F55: 40.252 | G55: 4.5 | H55: 16.8036 | I55: 0.000959098312 | J55: 0.0007314065874 | K55: 0 | L55: 0 | M55: 0 | N55: 0 | O55: 0 | P55: 0 | Q55: 0 | R55: 0 | S55: -16.8036 | U55: =G55-INDEX($C55:$G55,1,aux!$AL$1) -> 4.5 | V55: 0.000580912381 | W55: 0.001489055442 | X55: =+IF(INDEX($C55:$G55,1,aux!$AL$1)>0,(G55/INDEX($C55:$G55,1,aux!$AL$1))^(1/($G$3-INDEX($C$3:$G$3,1,aux!$AL$1)))-1,"n.d.") -> n.d. | Y55: =IF(INDEX($C55:$G55,1,aux!$AL$1)>0,(G55-INDEX($C55:$G55,1,aux!$AL$1))/INDEX($C55:$G55,1,aux!$AL$1),"n.d.") -> n.d. | AA55: =O55-INDEX($K55:$O55,1,aux!$AL$1) -> 0 | AB55: 0 | AC55: 0 | AD55: =+IF(INDEX($K55:$O55,1,aux!$AL$1)>0,(O55/INDEX($K55:$O55,1,aux!$AL$1))^(1/($O$3-INDEX($K$3:$O$3,1,aux!$AL$1)))-1,"n.d.") -> n.d. | AE55: =IF(INDEX($K55:$O55,1,aux!$AL$1)>0,(O55-INDEX($K55:$O55,1,aux!$AL$1))/INDEX($K55:$O55,1,aux!$AL$1),"n.d.") -> n.d. | AX55: 07
A56: 0710 | B56: Produtos hortícolas congelados | C56: 0 | D56: 0 | E56: 0 | F56: 0 | G56: 0 | H56: 0 | I56: 0 | J56: 0 | K56: 0 | L56: 0 | M56: 0 | N56: 0 | O56: 0 | P56: 0 | Q56: 0 | R56: 0 | S56: 0 | U56: =G56-INDEX($C56:$G56,1,aux!$AL$1) -> 0 | V56: 0 | W56: 0 | X56: =+IF(INDEX($C56:$G56,1,aux!$AL$1)>0,(G56/INDEX($C56:$G56,1,aux!$AL$1))^(1/($G$3-INDEX($C$3:$G$3,1,aux!$AL$1)))-1,"n.d.") -> n.d. | Y56: =IF(INDEX($C56:$G56,1,aux!$AL$1)>0,(G56-INDEX($C56:$G56,1,aux!$AL$1))/INDEX($C56:$G56,1,aux!$AL$1),"n.d.") -> n.d. | AA56: =O56-INDEX($K56:$O56,1,aux!$AL$1) -> 0 | AB56: 0 | AC56: 0 | AD56: =+IF(INDEX($K56:$O56,1,aux!$AL$1)>0,(O56/INDEX($K56:$O56,1,aux!$AL$1))^(1/($O$3-INDEX($K$3:$O$3,1,aux!$AL$1)))-1,"n.d.") -> n.d. | AE56: =IF(INDEX($K56:$O56,1,aux!$AL$1)>0,(O56-INDEX($K56:$O56,1,aux!$AL$1))/INDEX($K56:$O56,1,aux!$AL$1),"n.d.") -> n.d. | AX56: 07
A57: 0711 | B57: Produtos hortícolas conservados transitoriamente | C57: 0 | D57: 0 | E57: 0 | F57: 0 | G57: 0 | H57: 0 | I57: 0 | J57: 0 | K57: 0 | L57: 0 | M57: 0 | N57: 0 | O57: 0 | P57: 0 | Q57: 0 | R57: 0 | S57: 0 | U57: =G57-INDEX($C57:$G57,1,aux!$AL$1) -> 0 | V57: 0 | W57: 0 | X57: =+IF(INDEX($C57:$G57,1,aux!$AL$1)>0,(G57/INDEX($C57:$G57,1,aux!$AL$1))^(1/($G$3-INDEX($C$3:$G$3,1,aux!$AL$1)))-1,"n.d.") -> n.d. | Y57: =IF(INDEX($C57:$G57,1,aux!$AL$1)>0,(G57-INDEX($C57:$G57,1,aux!$AL$1))/INDEX($C57:$G57,1,aux!$AL$1),"n.d.") -> n.d. | AA57: =O57-INDEX($K57:$O57,1,aux!$AL$1) -> 0 | AB57: 0 | AC57: 0 | AD57: =+IF(INDEX($K57:$O57,1,aux!$AL$1)>0,(O57/INDEX($K57:$O57,1,aux!$AL$1))^(1/($O$3-INDEX($K$3:$O$3,1,aux!$AL$1)))-1,"n.d.") -> n.d. | AE57: =IF(INDEX($K57:$O57,1,aux!$AL$1)>0,(O57-INDEX($K57:$O57,1,aux!$AL$1))/INDEX($K57:$O57,1,aux!$AL$1),"n.d.") -> n.d. | AX57: 07
A58: 0712 | B58: Produtos hortícolas secos | C58: 0 | D58: 0 | E58: 0 | F58: 0 | G58: 0 | H58: 0 | I58: 0 | J58: 0 | K58: 0 | L58: 0 | M58: 0 | N58: 0 | O58: 0 | P58: 0 | Q58: 0 | R58: 0 | S58: 0 | U58: =G58-INDEX($C58:$G58,1,aux!$AL$1) -> 0 | V58: 0 | W58: 0 | X58: =+IF(INDEX($C58:$G58,1,aux!$AL$1)>0,(G58/INDEX($C58:$G58,1,aux!$AL$1))^(1/($G$3-INDEX($C$3:$G$3,1,aux!$AL$1)))-1,"n.d.") -> n.d. | Y58: =IF(INDEX($C58:$G58,1,aux!$AL$1)>0,(G58-INDEX($C58:$G58,1,aux!$AL$1))/INDEX($C58:$G58,1,aux!$AL$1),"n.d.") -> n.d. | AA58: =O58-INDEX($K58:$O58,1,aux!$AL$1) -> 0 | AB58: 0 | AC58: 0 | AD58: =+IF(INDEX($K58:$O58,1,aux!$AL$1)>0,(O58/INDEX($K58:$O58,1,aux!$AL$1))^(1/($O$3-INDEX($K$3:$O$3,1,aux!$AL$1)))-1,"n.d.") -> n.d. | AE58: =IF(INDEX($K58:$O58,1,aux!$AL$1)>0,(O58-INDEX($K58:$O58,1,aux!$AL$1))/INDEX($K58:$O58,1,aux!$AL$1),"n.d.") -> n.d. | AX58: 07
A59: 0713 | B59: Legumes de vagem, secos, em grão | C59: 0 | D59: 0 | E59: 0 | F59: 492.6 | G59: 0 | H59: 98.52 | I59: 0.005623221553 | J59: 0.004288258289 | K59: 0 | L59: 0.182 | M59: 0 | N59: 0 | O59: 0 | P59: 0.0364 | Q59: 5.963312522e-05 | R59: 3.139471541e-05 | S59: -98.4836 | U59: =G59-INDEX($C59:$G59,1,aux!$AL$1) -> 0 | V59: 0 | W59: 0 | X59: =+IF(INDEX($C59:$G59,1,aux!$AL$1)>0,(G59/INDEX($C59:$G59,1,aux!$AL$1))^(1/($G$3-INDEX($C$3:$G$3,1,aux!$AL$1)))-1,"n.d.") -> n.d. | Y59: =IF(INDEX($C59:$G59,1,aux!$AL$1)>0,(G59-INDEX($C59:$G59,1,aux!$AL$1))/INDEX($C59:$G59,1,aux!$AL$1),"n.d.") -> n.d. | AA59: =O59-INDEX($K59:$O59,1,aux!$AL$1) -> 0 | AB59: 0 | AC59: 0 | AD59: =+IF(INDEX($K59:$O59,1,aux!$AL$1)>0,(O59/INDEX($K59:$O59,1,aux!$AL$1))^(1/($O$3-INDEX($K$3:$O$3,1,aux!$AL$1)))-1,"n.d.") -> n.d. | AE59: =IF(INDEX($K59:$O59,1,aux!$AL$1)>0,(O59-INDEX($K59:$O59,1,aux!$AL$1))/INDEX($K59:$O59,1,aux!$AL$1),"n.d.") -> n.d. | AX59: 07
A60: 0714 | B60: Raízes de mandioca, de araruta, batata-doce, etc. | C60: 0 | D60: 0 | E60: 0 | F60: 0 | G60: 0 | H60: 0 | I60: 0 | J60: 0 | K60: 0 | L60: 0 | M60: 0 | N60: 0 | O60: 0 | P60: 0 | Q60: 0 | R60: 0 | S60: 0 | U60: =G60-INDEX($C60:$G60,1,aux!$AL$1) -> 0 | V60: 0 | W60: 0 | X60: =+IF(INDEX($C60:$G60,1,aux!$AL$1)>0,(G60/INDEX($C60:$G60,1,aux!$AL$1))^(1/($G$3-INDEX($C$3:$G$3,1,aux!$AL$1)))-1,"n.d.") -> n.d. | Y60: =IF(INDEX($C60:$G60,1,aux!$AL$1)>0,(G60-INDEX($C60:$G60,1,aux!$AL$1))/INDEX($C60:$G60,1,aux!$AL$1),"n.d.") -> n.d. | AA60: =O60-INDEX($K60:$O60,1,aux!$AL$1) -> 0 | AB60: 0 | AC60: 0 | AD60: =+IF(INDEX($K60:$O60,1,aux!$AL$1)>0,(O60/INDEX($K60:$O60,1,aux!$AL$1))^(1/($O$3-INDEX($K$3:$O$3,1,aux!$AL$1)))-1,"n.d.") -> n.d. | AE60: =IF(INDEX($K60:$O60,1,aux!$AL$1)>0,(O60-INDEX($K60:$O60,1,aux!$AL$1))/INDEX($K60:$O60,1,aux!$AL$1),"n.d.") -> n.d. | AX60: 07
A61: 07SS | B61: Produtos hortícolas, plantas, raízes e tubérculos, comestíveis | C61: 0 | D61: 0 | E61: 0 | F61: 0 | G61: 0 | H61: 0 | I61: 0 | J61: 0 | K61: 0 | L61: 0 | M61: 0 | N61: 0 | O61: 0 | P61: 0 | Q61: 0 | R61: 0 | S61: 0 | U61: =G61-INDEX($C61:$G61,1,aux!$AL$1) -> 0 | V61: 0 | W61: 0 | X61: =+IF(INDEX($C61:$G61,1,aux!$AL$1)>0,(G61/INDEX($C61:$G61,1,aux!$AL$1))^(1/($G$3-INDEX($C$3:$G$3,1,aux!$AL$1)))-1,"n.d.") -> n.d. | Y61: =IF(INDEX($C61:$G61,1,aux!$AL$1)>0,(G61-INDEX($C61:$G61,1,aux!$AL$1))/INDEX($C61:$G61,1,aux!$AL$1),"n.d.") -> n.d. | AA61: =O61-INDEX($K61:$O61,1,aux!$AL$1) -> 0 | AB61: 0 | AC61: 0 | AD61: =+IF(INDEX($K61:$O61,1,aux!$AL$1)>0,(O61/INDEX($K61:$O61,1,aux!$AL$1))^(1/($O$3-INDEX($K$3:$O$3,1,aux!$AL$1)))-1,"n.d.") -> n.d. | AE61: =IF(INDEX($K61:$O61,1,aux!$AL$1)>0,(O61-INDEX($K61:$O61,1,aux!$AL$1))/INDEX($K61:$O61,1,aux!$AL$1),"n.d.") -> n.d. | AX61: 07
A62: 0801 | B62: Cocos, castanhas do brasil e castanha de cajú | C62: 0 | D62: 0 | E62: 0 | F62: 0 | G62: 0 | H62: 0 | I62: 0 | J62: 0 | K62: 0.009 | L62: 0 | M62: 0 | N62: 0 | O62: 0 | P62: 0.0018 | Q62: 2.948890807e-06 | R62: 1.552485927e-06 | S62: 0.0018 | U62: =G62-INDEX($C62:$G62,1,aux!$AL$1) -> 0 | V62: 0 | W62: 0 | X62: =+IF(INDEX($C62:$G62,1,aux!$AL$1)>0,(G62/INDEX($C62:$G62,1,aux!$AL$1))^(1/($G$3-INDEX($C$3:$G$3,1,aux!$AL$1)))-1,"n.d.") -> n.d. | Y62: =IF(INDEX($C62:$G62,1,aux!$AL$1)>0,(G62-INDEX($C62:$G62,1,aux!$AL$1))/INDEX($C62:$G62,1,aux!$AL$1),"n.d.") -> n.d. | AA62: =O62-INDEX($K62:$O62,1,aux!$AL$1) -> -0.009 | AB62: -1.262844178e-05 | AC62: -7.47085743e-06 | AD62: =+IF(INDEX($K62:$O62,1,aux!$AL$1)>0,(O62/INDEX($K62:$O62,1,aux!$AL$1))^(1/($O$3-INDEX($K$3:$O$3,1,aux!$AL$1)))-1,"n.d.") -> -1 | AE62: =IF(INDEX($K62:$O62,1,aux!$AL$1)>0,(O62-INDEX($K62:$O62,1,aux!$AL$1))/INDEX($K62:$O62,1,aux!$AL$1),"n.d.") -> -1 | AX62: 08
A63: 0802 | B63: Frutas de casca rija | C63: 0 | D63: 0 | E63: 0 | F63: 0 | G63: 0 | H63: 0 | I63: 0 | J63: 0 | K63: 0.009 | L63: 0 | M63: 0 | N63: 0 | O63: 0 | P63: 0.0018 | Q63: 2.948890807e-06 | R63: 1.552485927e-06 | S63: 0.0018 | U63: =G63-INDEX($C63:$G63,1,aux!$AL$1) -> 0 | V63: 0 | W63: 0 | X63: =+IF(INDEX($C63:$G63,1,aux!$AL$1)>0,(G63/INDEX($C63:$G63,1,aux!$AL$1))^(1/($G$3-INDEX($C$3:$G$3,1,aux!$AL$1)))-1,"n.d.") -> n.d. | Y63: =IF(INDEX($C63:$G63,1,aux!$AL$1)>0,(G63-INDEX($C63:$G63,1,aux!$AL$1))/INDEX($C63:$G63,1,aux!$AL$1),"n.d.") -> n.d. | AA63: =O63-INDEX($K63:$O63,1,aux!$AL$1) -> -0.009 | AB63: -1.262844178e-05 | AC63: -7.47085743e-06 | AD63: =+IF(INDEX($K63:$O63,1,aux!$AL$1)>0,(O63/INDEX($K63:$O63,1,aux!$AL$1))^(1/($O$3-INDEX($K$3:$O$3,1,aux!$AL$1)))-1,"n.d.") -> -1 | AE63: =IF(INDEX($K63:$O63,1,aux!$AL$1)>0,(O63-INDEX($K63:$O63,1,aux!$AL$1))/INDEX($K63:$O63,1,aux!$AL$1),"n.d.") -> -1 | AX63: 08
A64: 0803 | B64: Bananas, frescas ou secas | C64: 0 | D64: 0 | E64: 0 | F64: 0 | G64: 0 | H64: 0 | I64: 0 | J64: 0 | K64: 0 | L64: 0 | M64: 0 | N64: 0 | O64: 0 | P64: 0 | Q64: 0 | R64: 0 | S64: 0 | U64: =G64-INDEX($C64:$G64,1,aux!$AL$1) -> 0 | V64: 0 | W64: 0 | X64: =+IF(INDEX($C64:$G64,1,aux!$AL$1)>0,(G64/INDEX($C64:$G64,1,aux!$AL$1))^(1/($G$3-INDEX($C$3:$G$3,1,aux!$AL$1)))-1,"n.d.") -> n.d. | Y64: =IF(INDEX($C64:$G64,1,aux!$AL$1)>0,(G64-INDEX($C64:$G64,1,aux!$AL$1))/INDEX($C64:$G64,1,aux!$AL$1),"n.d.") -> n.d. | AA64: =O64-INDEX($K64:$O64,1,aux!$AL$1) -> 0 | AB64: 0 | AC64: 0 | AD64: =+IF(INDEX($K64:$O64,1,aux!$AL$1)>0,(O64/INDEX($K64:$O64,1,aux!$AL$1))^(1/($O$3-INDEX($K$3:$O$3,1,aux!$AL$1)))-1,"n.d.") -> n.d. | AE64: =IF(INDEX($K64:$O64,1,aux!$AL$1)>0,(O64-INDEX($K64:$O64,1,aux!$AL$1))/INDEX($K64:$O64,1,aux!$AL$1),"n.d.") -> n.d. | AX64: 08
A65: 0804 | B65: Tâmaras, figos, ananases, abacates, goiabas, mangas | C65: 0 | D65: 0 | E65: 0.254 | F65: 0 | G65: 0 | H65: 0.0508 | I65: 2.899509287e-06 | J65: 2.211160385e-06 | K65: 0 | L65: 0.295 | M65: 0 | N65: 0 | O65: 0 | P65: 0.059 | Q65: 9.665808758e-05 | R65: 5.088703871e-05 | S65: 0.0082 | U65: =G65-INDEX($C65:$G65,1,aux!$AL$1) -> 0 | V65: 0 | W65: 0 | X65: =+IF(INDEX($C65:$G65,1,aux!$AL$1)>0,(G65/INDEX($C65:$G65,1,aux!$AL$1))^(1/($G$3-INDEX($C$3:$G$3,1,aux!$AL$1)))-1,"n.d.") -> n.d. | Y65: =IF(INDEX($C65:$G65,1,aux!$AL$1)>0,(G65-INDEX($C65:$G65,1,aux!$AL$1))/INDEX($C65:$G65,1,aux!$AL$1),"n.d.") -> n.d. | AA65: =O65-INDEX($K65:$O65,1,aux!$AL$1) -> 0 | AB65: 0 | AC65: 0 | AD65: =+IF(INDEX($K65:$O65,1,aux!$AL$1)>0,(O65/INDEX($K65:$O65,1,aux!$AL$1))^(1/($O$3-INDEX($K$3:$O$3,1,aux!$AL$1)))-1,"n.d.") -> n.d. | AE65: =IF(INDEX($K65:$O65,1,aux!$AL$1)>0,(O65-INDEX($K65:$O65,1,aux!$AL$1))/INDEX($K65:$O65,1,aux!$AL$1),"n.d.") -> n.d. | AX65: 08
A66: 0805 | B66: Citrinos, frescos ou secos | C66: 0 | D66: 0 | E66: 0 | F66: 0 | G66: 0 | H66: 0 | I66: 0 | J66: 0 | K66: 0 | L66: 0 | M66: 0 | N66: 0 | O66: 0 | P66: 0 | Q66: 0 | R66: 0 | S66: 0 | U66: =G66-INDEX($C66:$G66,1,aux!$AL$1) -> 0 | V66: 0 | W66: 0 | X66: =+IF(INDEX($C66:$G66,1,aux!$AL$1)>0,(G66/INDEX($C66:$G66,1,aux!$AL$1))^(1/($G$3-INDEX($C$3:$G$3,1,aux!$AL$1)))-1,"n.d.") -> n.d. | Y66: =IF(INDEX($C66:$G66,1,aux!$AL$1)>0,(G66-INDEX($C66:$G66,1,aux!$AL$1))/INDEX($C66:$G66,1,aux!$AL$1),"n.d.") -> n.d. | AA66: =O66-INDEX($K66:$O66,1,aux!$AL$1) -> 0 | AB66: 0 | AC66: 0 | AD66: =+IF(INDEX($K66:$O66,1,aux!$AL$1)>0,(O66/INDEX($K66:$O66,1,aux!$AL$1))^(1/($O$3-INDEX($K$3:$O$3,1,aux!$AL$1)))-1,"n.d.") -> n.d. | AE66: =IF(INDEX($K66:$O66,1,aux!$AL$1)>0,(O66-INDEX($K66:$O66,1,aux!$AL$1))/INDEX($K66:$O66,1,aux!$AL$1),"n.d.") -> n.d. | AX66: 08
A67: 0806 | B67: Uvas, frescas ou secas | C67: 0 | D67: 0 | E67: 0 | F67: 0 | G67: 0 | H67: 0 | I67: 0 | J67: 0 | K67: 0 | L67: 0 | M67: 0 | N67: 0 | O67: 0 | P67: 0 | Q67: 0 | R67: 0 | S67: 0 | U67: =G67-INDEX($C67:$G67,1,aux!$AL$1) -> 0 | V67: 0 | W67: 0 | X67: =+IF(INDEX($C67:$G67,1,aux!$AL$1)>0,(G67/INDEX($C67:$G67,1,aux!$AL$1))^(1/($G$3-INDEX($C$3:$G$3,1,aux!$AL$1)))-1,"n.d.") -> n.d. | Y67: =IF(INDEX($C67:$G67,1,aux!$AL$1)>0,(G67-INDEX($C67:$G67,1,aux!$AL$1))/INDEX($C67:$G67,1,aux!$AL$1),"n.d.") -> n.d. | AA67: =O67-INDEX($K67:$O67,1,aux!$AL$1) -> 0 | AB67: 0 | AC67: 0 | AD67: =+IF(INDEX($K67:$O67,1,aux!$AL$1)>0,(O67/INDEX($K67:$O67,1,aux!$AL$1))^(1/($O$3-INDEX($K$3:$O$3,1,aux!$AL$1)))-1,"n.d.") -> n.d. | AE67: =IF(INDEX($K67:$O67,1,aux!$AL$1)>0,(O67-INDEX($K67:$O67,1,aux!$AL$1))/INDEX($K67:$O67,1,aux!$AL$1),"n.d.") -> n.d. | AX67: 08
A68: 0807 | B68: Melões, melancias e papaia, frescos | C68: 0 | D68: 0 | E68: 0.826 | F68: 0 | G68: 0 | H68: 0.1652 | I68: 9.429112877e-06 | J68: 7.190623928e-06 | K68: 0 | L68: 0 | M68: 0 | N68: 0 | O68: 0 | P68: 0 | Q68: 0 | R68: 0 | S68: -0.1652 | U68: =G68-INDEX($C68:$G68,1,aux!$AL$1) -> 0 | V68: =IF($U$237<>0,U68/$U$237, "n.d.") -> 0 | W68: =IF($U$322<>0,U68/$U$322, "n.d.") -> 0 | X68: =+IF(INDEX($C68:$G68,1,aux!$AL$1)>0,(G68/INDEX($C68:$G68,1,aux!$AL$1))^(1/($G$3-INDEX($C$3:$G$3,1,aux!$AL$1)))-1,"n.d.") -> n.d. | Y68: =IF(INDEX($C68:$G68,1,aux!$AL$1)>0,(G68-INDEX($C68:$G68,1,aux!$AL$1))/INDEX($C68:$G68,1,aux!$AL$1),"n.d.") -> n.d. | AA68: =O68-INDEX($K68:$O68,1,aux!$AL$1) -> 0 | AB68: =IF($AA$237<>0,AA68/$AA$237, "n.d.") -> 0 | AC68: =IF($AA$322<>0,AA68/$AA$322, "n.d.") -> 0 | AD68: =+IF(INDEX($K68:$O68,1,aux!$AL$1)>0,(O68/INDEX($K68:$O68,1,aux!$AL$1))^(1/($O$3-INDEX($K$3:$O$3,1,aux!$AL$1)))-1,"n.d.") -> n.d. | AE68: =IF(INDEX($K68:$O68,1,aux!$AL$1)>0,(O68-INDEX($K68:$O68,1,aux!$AL$1))/INDEX($K68:$O68,1,aux!$AL$1),"n.d.") -> n.d. | AX68: 08
A69: 0808 | B69: Maçãs, peras e marmelos, frescos | C69: 0 | D69: 0 | E69: 0 | F69: 0 | G69: 0 | H69: 0 | I69: 0 | J69: 0 | K69: 0 | L69: 0 | M69: 0 | N69: 0 | O69: 0 | P69: 0 | Q69: 0 | R69: 0 | S69: 0 | U69: =G69-INDEX($C69:$G69,1,aux!$AL$1) -> 0 | V69: 0 | W69: 0 | X69: =+IF(INDEX($C69:$G69,1,aux!$AL$1)>0,(G69/INDEX($C69:$G69,1,aux!$AL$1))^(1/($G$3-INDEX($C$3:$G$3,1,aux!$AL$1)))-1,"n.d.") -> n.d. | Y69: =IF(INDEX($C69:$G69,1,aux!$AL$1)>0,(G69-INDEX($C69:$G69,1,aux!$AL$1))/INDEX($C69:$G69,1,aux!$AL$1),"n.d.") -> n.d. | AA69: =O69-INDEX($K69:$O69,1,aux!$AL$1) -> 0 | AB69: 0 | AC69: 0 | AD69: =+IF(INDEX($K69:$O69,1,aux!$AL$1)>0,(O69/INDEX($K69:$O69,1,aux!$AL$1))^(1/($O$3-INDEX($K$3:$O$3,1,aux!$AL$1)))-1,"n.d.") -> n.d. | AE69: =IF(INDEX($K69:$O69,1,aux!$AL$1)>0,(O69-INDEX($K69:$O69,1,aux!$AL$1))/INDEX($K69:$O69,1,aux!$AL$1),"n.d.") -> n.d. | AX69: 08
A70: 0809 | B70: Damascos, cerejas, pêssegos, etc., frescos | C70: 0 | D70: 0 | E70: 0 | F70: 0 | G70: 0 | H70: 0 | I70: 0 | J70: 0 | K70: 0 | L70: 0 | M70: 0 | N70: 0 | O70: 0 | P70: 0 | Q70: 0 | R70: 0 | S70: 0 | U70: =G70-INDEX($C70:$G70,1,aux!$AL$1) -> 0 | V70: 0 | W70: 0 | X70: =+IF(INDEX($C70:$G70,1,aux!$AL$1)>0,(G70/INDEX($C70:$G70,1,aux!$AL$1))^(1/($G$3-INDEX($C$3:$G$3,1,aux!$AL$1)))-1,"n.d.") -> n.d. | Y70: =IF(INDEX($C70:$G70,1,aux!$AL$1)>0,(G70-INDEX($C70:$G70,1,aux!$AL$1))/INDEX($C70:$G70,1,aux!$AL$1),"n.d.") -> n.d. | AA70: =O70-INDEX($K70:$O70,1,aux!$AL$1) -> 0 | AB70: 0 | AC70: 0 | AD70: =+IF(INDEX($K70:$O70,1,aux!$AL$1)>0,(O70/INDEX($K70:$O70,1,aux!$AL$1))^(1/($O$3-INDEX($K$3:$O$3,1,aux!$AL$1)))-1,"n.d.") -> n.d. | AE70: =IF(INDEX($K70:$O70,1,aux!$AL$1)>0,(O70-INDEX($K70:$O70,1,aux!$AL$1))/INDEX($K70:$O70,1,aux!$AL$1),"n.d.") -> n.d. | AX70: 08
A71: 0810 | B71: Outras frutas frescas | C71: 0 | D71: 0 | E71: 1.141 | F71: 0 | G71: 0 | H71: 0.2282 | I71: 1.302496101e-05 | J71: 9.932811019e-06 | K71: 0 | L71: 0 | M71: 0 | N71: 0 | O71: 0 | P71: 0 | Q71: 0 | R71: 0 | S71: -0.2282 | U71: =G71-INDEX($C71:$G71,1,aux!$AL$1) -> 0 | V71: 0 | W71: 0 | X71: =+IF(INDEX($C71:$G71,1,aux!$AL$1)>0,(G71/INDEX($C71:$G71,1,aux!$AL$1))^(1/($G$3-INDEX($C$3:$G$3,1,aux!$AL$1)))-1,"n.d.") -> n.d. | Y71: =IF(INDEX($C71:$G71,1,aux!$AL$1)>0,(G71-INDEX($C71:$G71,1,aux!$AL$1))/INDEX($C71:$G71,1,aux!$AL$1),"n.d.") -> n.d. | AA71: =O71-INDEX($K71:$O71,1,aux!$AL$1) -> 0 | AB71: 0 | AC71: 0 | AD71: =+IF(INDEX($K71:$O71,1,aux!$AL$1)>0,(O71/INDEX($K71:$O71,1,aux!$AL$1))^(1/($O$3-INDEX($K$3:$O$3,1,aux!$AL$1)))-1,"n.d.") -> n.d. | AE71: =IF(INDEX($K71:$O71,1,aux!$AL$1)>0,(O71-INDEX($K71:$O71,1,aux!$AL$1))/INDEX($K71:$O71,1,aux!$AL$1),"n.d.") -> n.d. | AX71: 08
A72: 0811 | B72: Frutas não cozidas ou cozidas em água ou vapor, congeladas | C72: 0 | D72: 0 | E72: 0 | F72: 0 | G72: 0 | H72: 0 | I72: 0 | J72: 0 | K72: 0 | L72: 0 | M72: 0 | N72: 0 | O72: 0 | P72: 0 | Q72: 0 | R72: 0 | S72: 0 | U72: =G72-INDEX($C72:$G72,1,aux!$AL$1) -> 0 | V72: 0 | W72: 0 | X72: =+IF(INDEX($C72:$G72,1,aux!$AL$1)>0,(G72/INDEX($C72:$G72,1,aux!$AL$1))^(1/($G$3-INDEX($C$3:$G$3,1,aux!$AL$1)))-1,"n.d.") -> n.d. | Y72: =IF(INDEX($C72:$G72,1,aux!$AL$1)>0,(G72-INDEX($C72:$G72,1,aux!$AL$1))/INDEX($C72:$G72,1,aux!$AL$1),"n.d.") -> n.d. | AA72: =O72-INDEX($K72:$O72,1,aux!$AL$1) -> 0 | AB72: 0 | AC72: 0 | AD72: =+IF(INDEX($K72:$O72,1,aux!$AL$1)>0,(O72/INDEX($K72:$O72,1,aux!$AL$1))^(1/($O$3-INDEX($K$3:$O$3,1,aux!$AL$1)))-1,"n.d.") -> n.d. | AE72: =IF(INDEX($K72:$O72,1,aux!$AL$1)>0,(O72-INDEX($K72:$O72,1,aux!$AL$1))/INDEX($K72:$O72,1,aux!$AL$1),"n.d.") -> n.d. | AX72: 08
A73: 0812 | B73: Frutas conservadas transitoriamente | C73: 0 | D73: 0 | E73: 0 | F73: 0 | G73: 0 | H73: 0 | I73: 0 | J73: 0 | K73: 0 | L73: 0 | M73: 0 | N73: 0 | O73: 0 | P73: 0 | Q73: 0 | R73: 0 | S73: 0 | U73: =G73-INDEX($C73:$G73,1,aux!$AL$1) -> 0 | V73: 0 | W73: 0 | X73: =+IF(INDEX($C73:$G73,1,aux!$AL$1)>0,(G73/INDEX($C73:$G73,1,aux!$AL$1))^(1/($G$3-INDEX($C$3:$G$3,1,aux!$AL$1)))-1,"n.d.") -> n.d. | Y73: =IF(INDEX($C73:$G73,1,aux!$AL$1)>0,(G73-INDEX($C73:$G73,1,aux!$AL$1))/INDEX($C73:$G73,1,aux!$AL$1),"n.d.") -> n.d. | AA73: =O73-INDEX($K73:$O73,1,aux!$AL$1) -> 0 | AB73: 0 | AC73: 0 | AD73: =+IF(INDEX($K73:$O73,1,aux!$AL$1)>0,(O73/INDEX($K73:$O73,1,aux!$AL$1))^(1/($O$3-INDEX($K$3:$O$3,1,aux!$AL$1)))-1,"n.d.") -> n.d. | AE73: =IF(INDEX($K73:$O73,1,aux!$AL$1)>0,(O73-INDEX($K73:$O73,1,aux!$AL$1))/INDEX($K73:$O73,1,aux!$AL$1),"n.d.") -> n.d. | AX73: 08
A74: 0813 | B74: Outras frutas secas | C74: 0 | D74: 0 | E74: 0 | F74: 0 | G74: 0 | H74: 0 | I74: 0 | J74: 0 | K74: 0 | L74: 0.018 | M74: 0 | N74: 0 | O74: 0 | P74: 0.0036 | Q74: 5.897781615e-06 | R74: 3.104971853e-06 | S74: 0.0036 | U74: =G74-INDEX($C74:$G74,1,aux!$AL$1) -> 0 | V74: 0 | W74: 0 | X74: =+IF(INDEX($C74:$G74,1,aux!$AL$1)>0,(G74/INDEX($C74:$G74,1,aux!$AL$1))^(1/($G$3-INDEX($C$3:$G$3,1,aux!$AL$1)))-1,"n.d.") -> n.d. | Y74: =IF(INDEX($C74:$G74,1,aux!$AL$1)>0,(G74-INDEX($C74:$G74,1,aux!$AL$1))/INDEX($C74:$G74,1,aux!$AL$1),"n.d.") -> n.d. | AA74: =O74-INDEX($K74:$O74,1,aux!$AL$1) -> 0 | AB74: 0 | AC74: 0 | AD74: =+IF(INDEX($K74:$O74,1,aux!$AL$1)>0,(O74/INDEX($K74:$O74,1,aux!$AL$1))^(1/($O$3-INDEX($K$3:$O$3,1,aux!$AL$1)))-1,"n.d.") -> n.d. | AE74: =IF(INDEX($K74:$O74,1,aux!$AL$1)>0,(O74-INDEX($K74:$O74,1,aux!$AL$1))/INDEX($K74:$O74,1,aux!$AL$1),"n.d.") -> n.d. | AX74: 08
A75: 0814 | B75: Cascas de citrinos, melões ou melancias | C75: 0 | D75: 0 | E75: 0 | F75: 0 | G75: 0 | H75: 0 | I75: 0 | J75: 0 | K75: 0 | L75: 0 | M75: 0 | N75: 0 | O75: 0 | P75: 0 | Q75: 0 | R75: 0 | S75: 0 | U75: =G75-INDEX($C75:$G75,1,aux!$AL$1) -> 0 | V75: 0 | W75: 0 | X75: =+IF(INDEX($C75:$G75,1,aux!$AL$1)>0,(G75/INDEX($C75:$G75,1,aux!$AL$1))^(1/($G$3-INDEX($C$3:$G$3,1,aux!$AL$1)))-1,"n.d.") -> n.d. | Y75: =IF(INDEX($C75:$G75,1,aux!$AL$1)>0,(G75-INDEX($C75:$G75,1,aux!$AL$1))/INDEX($C75:$G75,1,aux!$AL$1),"n.d.") -> n.d. | AA75: =O75-INDEX($K75:$O75,1,aux!$AL$1) -> 0 | AB75: 0 | AC75: 0 | AD75: =+IF(INDEX($K75:$O75,1,aux!$AL$1)>0,(O75/INDEX($K75:$O75,1,aux!$AL$1))^(1/($O$3-INDEX($K$3:$O$3,1,aux!$AL$1)))-1,"n.d.") -> n.d. | AE75: =IF(INDEX($K75:$O75,1,aux!$AL$1)>0,(O75-INDEX($K75:$O75,1,aux!$AL$1))/INDEX($K75:$O75,1,aux!$AL$1),"n.d.") -> n.d. | AX75: =+LEFT(A75,2) -> 08
A76: 08SS | B76: Frutas; cascas de citrinos e de melões | C76: 0 | D76: 0 | E76: 0 | F76: 0 | G76: 0 | H76: 0 | I76: 0 | J76: 0 | K76: 0 | L76: 0 | M76: 0 | N76: 0 | O76: 0 | P76: 0 | Q76: 0 | R76: 0 | S76: 0 | U76: =G76-INDEX($C76:$G76,1,aux!$AL$1) -> 0 | V76: 0 | W76: 0 | X76: =+IF(INDEX($C76:$G76,1,aux!$AL$1)>0,(G76/INDEX($C76:$G76,1,aux!$AL$1))^(1/($G$3-INDEX($C$3:$G$3,1,aux!$AL$1)))-1,"n.d.") -> n.d. | Y76: =IF(INDEX($C76:$G76,1,aux!$AL$1)>0,(G76-INDEX($C76:$G76,1,aux!$AL$1))/INDEX($C76:$G76,1,aux!$AL$1),"n.d.") -> n.d. | AA76: =O76-INDEX($K76:$O76,1,aux!$AL$1) -> 0 | AB76: 0 | AC76: 0 | AD76: =+IF(INDEX($K76:$O76,1,aux!$AL$1)>0,(O76/INDEX($K76:$O76,1,aux!$AL$1))^(1/($O$3-INDEX($K$3:$O$3,1,aux!$AL$1)))-1,"n.d.") -> n.d. | AE76: =IF(INDEX($K76:$O76,1,aux!$AL$1)>0,(O76-INDEX($K76:$O76,1,aux!$AL$1))/INDEX($K76:$O76,1,aux!$AL$1),"n.d.") -> n.d. | AX76: 08
A77: 0901 | B77: Café | C77: 9476.01 | D77: 8286.566 | E77: 8740.7 | F77: 19992.078 | G77: 21783.399 | H77: 13655.7506 | I77: 0.7794286551 | J77: 0.5943908415 | K77: 0 | L77: 1.149 | M77: 3.6 | N77: 3.6 | O77: 5.88 | P77: 2.8458 | Q77: 0.004662196367 | R77: 0.00245448025 | S77: -13652.9048 | U77: =G77-INDEX($C77:$G77,1,aux!$AL$1) -> 12307.389 | V77: 1.588781033 | W77: 4.072529905 | X77: =+IF(INDEX($C77:$G77,1,aux!$AL$1)>0,(G77/INDEX($C77:$G77,1,aux!$AL$1))^(1/($G$3-INDEX($C$3:$G$3,1,aux!$AL$1)))-1,"n.d.") -> 0.2313316254 | Y77: =IF(INDEX($C77:$G77,1,aux!$AL$1)>0,(G77-INDEX($C77:$G77,1,aux!$AL$1))/INDEX($C77:$G77,1,aux!$AL$1),"n.d.") -> 1.298794429 | AA77: =O77-INDEX($K77:$O77,1,aux!$AL$1) -> 5.88 | AB77: 0.008250581961 | AC77: 0.004880960188 | AD77: =+IF(INDEX($K77:$O77,1,aux!$AL$1)>0,(O77/INDEX($K77:$O77,1,aux!$AL$1))^(1/($O$3-INDEX($K$3:$O$3,1,aux!$AL$1)))-1,"n.d.") -> n.d. | AE77: =IF(INDEX($K77:$O77,1,aux!$AL$1)>0,(O77-INDEX($K77:$O77,1,aux!$AL$1))/INDEX($K77:$O77,1,aux!$AL$1),"n.d.") -> n.d. | AX77: 09
A78: 0902 | B78: Chá | C78: 1.195 | D78: 0 | E78: 0 | F78: 0 | G78: 6.454 | H78: 1.5298 | I78: 8.731632493e-05 | J78: 6.658726686e-05 | K78: 0.002 | L78: 1.64 | M78: 5.4 | N78: 5.4 | O78: 8.82 | P78: 4.2524 | Q78: 0.006966590705 | R78: 0.003667661753 | S78: 2.7226 | U78: =G78-INDEX($C78:$G78,1,aux!$AL$1) -> 5.259 | V78: 0.0006788929359 | W78: 0.00174020946 | X78: =+IF(INDEX($C78:$G78,1,aux!$AL$1)>0,(G78/INDEX($C78:$G78,1,aux!$AL$1))^(1/($G$3-INDEX($C$3:$G$3,1,aux!$AL$1)))-1,"n.d.") -> 0.5244572988 | Y78: =IF(INDEX($C78:$G78,1,aux!$AL$1)>0,(G78-INDEX($C78:$G78,1,aux!$AL$1))/INDEX($C78:$G78,1,aux!$AL$1),"n.d.") -> 4.40083682 | AA78: =O78-INDEX($K78:$O78,1,aux!$AL$1) -> 8.818 | AB78: 0.01237306662 | AC78: 0.007319780091 | AD78: =+IF(INDEX($K78:$O78,1,aux!$AL$1)>0,(O78/INDEX($K78:$O78,1,aux!$AL$1))^(1/($O$3-INDEX($K$3:$O$3,1,aux!$AL$1)))-1,"n.d.") -> 7.149100003 | AE78: =IF(INDEX($K78:$O78,1,aux!$AL$1)>0,(O78-INDEX($K78:$O78,1,aux!$AL$1))/INDEX($K78:$O78,1,aux!$AL$1),"n.d.") -> 4409 | AX78: 09
A79: 0903 | B79: Mate | C79: 0 | D79: 0 | E79: 0 | F79: 0 | G79: 0 | H79: 0 | I79: 0 | J79: 0 | K79: 0 | L79: 0 | M79: 0 | N79: 0 | O79: 0 | P79: 0 | Q79: 0 | R79: 0 | S79: 0 | U79: =G79-INDEX($C79:$G79,1,aux!$AL$1) -> 0 | V79: 0 | W79: 0 | X79: =+IF(INDEX($C79:$G79,1,aux!$AL$1)>0,(G79/INDEX($C79:$G79,1,aux!$AL$1))^(1/($G$3-INDEX($C$3:$G$3,1,aux!$AL$1)))-1,"n.d.") -> n.d. | Y79: =IF(INDEX($C79:$G79,1,aux!$AL$1)>0,(G79-INDEX($C79:$G79,1,aux!$AL$1))/INDEX($C79:$G79,1,aux!$AL$1),"n.d.") -> n.d. | AA79: =O79-INDEX($K79:$O79,1,aux!$AL$1) -> 0 | AB79: 0 | AC79: 0 | AD79: =+IF(INDEX($K79:$O79,1,aux!$AL$1)>0,(O79/INDEX($K79:$O79,1,aux!$AL$1))^(1/($O$3-INDEX($K$3:$O$3,1,aux!$AL$1)))-1,"n.d.") -> n.d. | AE79: =IF(INDEX($K79:$O79,1,aux!$AL$1)>0,(O79-INDEX($K79:$O79,1,aux!$AL$1))/INDEX($K79:$O79,1,aux!$AL$1),"n.d.") -> n.d. | AX79: 09
A80: 0904 | B80: Pimenta | C80: 0 | D80: 0 | E80: 0 | F80: 45.899 | G80: 0 | H80: 9.1798 | I80: 0.0005239550266 | J80: 0.0003995671279 | K80: 0 | L80: 0 | M80: 0 | N80: 0 | O80: 0 | P80: 0 | Q80: 0 | R80: 0 | S80: -9.1798 | U80: =G80-INDEX($C80:$G80,1,aux!$AL$1) -> 0 | V80: 0 | W80: 0 | X80: =+IF(INDEX($C80:$G80,1,aux!$AL$1)>0,(G80/INDEX($C80:$G80,1,aux!$AL$1))^(1/($G$3-INDEX($C$3:$G$3,1,aux!$AL$1)))-1,"n.d.") -> n.d. | Y80: =IF(INDEX($C80:$G80,1,aux!$AL$1)>0,(G80-INDEX($C80:$G80,1,aux!$AL$1))/INDEX($C80:$G80,1,aux!$AL$1),"n.d.") -> n.d. | AA80: =O80-INDEX($K80:$O80,1,aux!$AL$1) -> 0 | AB80: 0 | AC80: 0 | AD80: =+IF(INDEX($K80:$O80,1,aux!$AL$1)>0,(O80/INDEX($K80:$O80,1,aux!$AL$1))^(1/($O$3-INDEX($K$3:$O$3,1,aux!$AL$1)))-1,"n.d.") -> n.d. | AE80: =IF(INDEX($K80:$O80,1,aux!$AL$1)>0,(O80-INDEX($K80:$O80,1,aux!$AL$1))/INDEX($K80:$O80,1,aux!$AL$1),"n.d.") -> n.d. | AX80: 09
A81: 0905 | B81: Baunilha | C81: 0 | D81: 0 | E81: 0 | F81: 0 | G81: 0 | H81: 0 | I81: 0 | J81: 0 | K81: 0 | L81: 0 | M81: 0 | N81: 0 | O81: 0 | P81: 0 | Q81: 0 | R81: 0 | S81: 0 | U81: =G81-INDEX($C81:$G81,1,aux!$AL$1) -> 0 | V81: 0 | W81: 0 | X81: =+IF(INDEX($C81:$G81,1,aux!$AL$1)>0,(G81/INDEX($C81:$G81,1,aux!$AL$1))^(1/($G$3-INDEX($C$3:$G$3,1,aux!$AL$1)))-1,"n.d.") -> n.d. | Y81: =IF(INDEX($C81:$G81,1,aux!$AL$1)>0,(G81-INDEX($C81:$G81,1,aux!$AL$1))/INDEX($C81:$G81,1,aux!$AL$1),"n.d.") -> n.d. | AA81: =O81-INDEX($K81:$O81,1,aux!$AL$1) -> 0 | AB81: 0 | AC81: 0 | AD81: =+IF(INDEX($K81:$O81,1,aux!$AL$1)>0,(O81/INDEX($K81:$O81,1,aux!$AL$1))^(1/($O$3-INDEX($K$3:$O$3,1,aux!$AL$1)))-1,"n.d.") -> n.d. | AE81: =IF(INDEX($K81:$O81,1,aux!$AL$1)>0,(O81-INDEX($K81:$O81,1,aux!$AL$1))/INDEX($K81:$O81,1,aux!$AL$1),"n.d.") -> n.d. | AX81: 09
A82: 0906 | B82: Canela | C82: 0 | D82: 0 | E82: 0 | F82: 0 | G82: 0 | H82: 0 | I82: 0 | J82: 0 | K82: 0 | L82: 0 | M82: 0 | N82: 0 | O82: 0 | P82: 0 | Q82: 0 | R82: 0 | S82: 0 | U82: =G82-INDEX($C82:$G82,1,aux!$AL$1) -> 0 | V82: 0 | W82: 0 | X82: =+IF(INDEX($C82:$G82,1,aux!$AL$1)>0,(G82/INDEX($C82:$G82,1,aux!$AL$1))^(1/($G$3-INDEX($C$3:$G$3,1,aux!$AL$1)))-1,"n.d.") -> n.d. | Y82: =IF(INDEX($C82:$G82,1,aux!$AL$1)>0,(G82-INDEX($C82:$G82,1,aux!$AL$1))/INDEX($C82:$G82,1,aux!$AL$1),"n.d.") -> n.d. | AA82: =O82-INDEX($K82:$O82,1,aux!$AL$1) -> 0 | AB82: 0 | AC82: 0 | AD82: =+IF(INDEX($K82:$O82,1,aux!$AL$1)>0,(O82/INDEX($K82:$O82,1,aux!$AL$1))^(1/($O$3-INDEX($K$3:$O$3,1,aux!$AL$1)))-1,"n.d.") -> n.d. | AE82: =IF(INDEX($K82:$O82,1,aux!$AL$1)>0,(O82-INDEX($K82:$O82,1,aux!$AL$1))/INDEX($K82:$O82,1,aux!$AL$1),"n.d.") -> n.d. | AX82: 09
A83: 0907 | B83: Cravo-da-índia | C83: 0 | D83: 0 | E83: 0 | F83: 0 | G83: 0 | H83: 0 | I83: 0 | J83: 0 | K83: 0 | L83: 0 | M83: 0 | N83: 0 | O83: 0 | P83: 0 | Q83: 0 | R83: 0 | S83: 0 | U83: =G83-INDEX($C83:$G83,1,aux!$AL$1) -> 0 | V83: 0 | W83: 0 | X83: =+IF(INDEX($C83:$G83,1,aux!$AL$1)>0,(G83/INDEX($C83:$G83,1,aux!$AL$1))^(1/($G$3-INDEX($C$3:$G$3,1,aux!$AL$1)))-1,"n.d.") -> n.d. | Y83: =IF(INDEX($C83:$G83,1,aux!$AL$1)>0,(G83-INDEX($C83:$G83,1,aux!$AL$1))/INDEX($C83:$G83,1,aux!$AL$1),"n.d.") -> n.d. | AA83: =O83-INDEX($K83:$O83,1,aux!$AL$1) -> 0 | AB83: 0 | AC83: 0 | AD83: =+IF(INDEX($K83:$O83,1,aux!$AL$1)>0,(O83/INDEX($K83:$O83,1,aux!$AL$1))^(1/($O$3-INDEX($K$3:$O$3,1,aux!$AL$1)))-1,"n.d.") -> n.d. | AE83: =IF(INDEX($K83:$O83,1,aux!$AL$1)>0,(O83-INDEX($K83:$O83,1,aux!$AL$1))/INDEX($K83:$O83,1,aux!$AL$1),"n.d.") -> n.d. | AX83: 09
A84: 0908 | B84: Noz-moscada, etc. | C84: 0 | D84: 0 | E84: 0 | F84: 0 | G84: 0 | H84: 0 | I84: 0 | J84: 0 | K84: 0 | L84: 0 | M84: 0 | N84: 0 | O84: 0 | P84: 0 | Q84: 0 | R84: 0 | S84: 0 | U84: =G84-INDEX($C84:$G84,1,aux!$AL$1) -> 0 | V84: 0 | W84: 0 | X84: =+IF(INDEX($C84:$G84,1,aux!$AL$1)>0,(G84/INDEX($C84:$G84,1,aux!$AL$1))^(1/($G$3-INDEX($C$3:$G$3,1,aux!$AL$1)))-1,"n.d.") -> n.d. | Y84: =IF(INDEX($C84:$G84,1,aux!$AL$1)>0,(G84-INDEX($C84:$G84,1,aux!$AL$1))/INDEX($C84:$G84,1,aux!$AL$1),"n.d.") -> n.d. | AA84: =O84-INDEX($K84:$O84,1,aux!$AL$1) -> 0 | AB84: 0 | AC84: 0 | AD84: =+IF(INDEX($K84:$O84,1,aux!$AL$1)>0,(O84/INDEX($K84:$O84,1,aux!$AL$1))^(1/($O$3-INDEX($K$3:$O$3,1,aux!$AL$1)))-1,"n.d.") -> n.d. | AE84: =IF(INDEX($K84:$O84,1,aux!$AL$1)>0,(O84-INDEX($K84:$O84,1,aux!$AL$1))/INDEX($K84:$O84,1,aux!$AL$1),"n.d.") -> n.d. | AX84: 09
A85: 0909 | B85: Sementes de anis, funcho, etc. | C85: 0 | D85: 0 | E85: 0 | F85: 0 | G85: 0 | H85: 0 | I85: 0 | J85: 0 | K85: 0 | L85: 0.026 | M85: 0 | N85: 0 | O85: 0 | P85: 0.0052 | Q85: 8.519017888e-06 | R85: 4.484959344e-06 | S85: 0.0052 | U85: =G85-INDEX($C85:$G85,1,aux!$AL$1) -> 0 | V85: 0 | W85: 0 | X85: =+IF(INDEX($C85:$G85,1,aux!$AL$1)>0,(G85/INDEX($C85:$G85,1,aux!$AL$1))^(1/($G$3-INDEX($C$3:$G$3,1,aux!$AL$1)))-1,"n.d.") -> n.d. | Y85: =IF(INDEX($C85:$G85,1,aux!$AL$1)>0,(G85-INDEX($C85:$G85,1,aux!$AL$1))/INDEX($C85:$G85,1,aux!$AL$1),"n.d.") -> n.d. | AA85: =O85-INDEX($K85:$O85,1,aux!$AL$1) -> 0 | AB85: 0 | AC85: 0 | AD85: =+IF(INDEX($K85:$O85,1,aux!$AL$1)>0,(O85/INDEX($K85:$O85,1,aux!$AL$1))^(1/($O$3-INDEX($K$3:$O$3,1,aux!$AL$1)))-1,"n.d.") -> n.d. | AE85: =IF(INDEX($K85:$O85,1,aux!$AL$1)>0,(O85-INDEX($K85:$O85,1,aux!$AL$1))/INDEX($K85:$O85,1,aux!$AL$1),"n.d.") -> n.d. | AX85: 09
A86: 0910 | B86: Gengibre, açafrão, tomilho, louro, etc. | C86: 0 | D86: 0 | E86: 0 | F86: 0 | G86: 0 | H86: 0 | I86: 0 | J86: 0 | K86: 0.022 | L86: 0.04 | M86: 0 | N86: 0 | O86: 0 | P86: 0.0124 | Q86: 2.031458112e-05 | R86: 1.069490305e-05 | S86: 0.0124 | U86: =G86-INDEX($C86:$G86,1,aux!$AL$1) -> 0 | V86: 0 | W86: 0 | X86: =+IF(INDEX($C86:$G86,1,aux!$AL$1)>0,(G86/INDEX($C86:$G86,1,aux!$AL$1))^(1/($G$3-INDEX($C$3:$G$3,1,aux!$AL$1)))-1,"n.d.") -> n.d. | Y86: =IF(INDEX($C86:$G86,1,aux!$AL$1)>0,(G86-INDEX($C86:$G86,1,aux!$AL$1))/INDEX($C86:$G86,1,aux!$AL$1),"n.d.") -> n.d. | AA86: =O86-INDEX($K86:$O86,1,aux!$AL$1) -> -0.022 | AB86: -3.086952434e-05 | AC86: -1.826209594e-05 | AD86: =+IF(INDEX($K86:$O86,1,aux!$AL$1)>0,(O86/INDEX($K86:$O86,1,aux!$AL$1))^(1/($O$3-INDEX($K$3:$O$3,1,aux!$AL$1)))-1,"n.d.") -> -1 | AE86: =IF(INDEX($K86:$O86,1,aux!$AL$1)>0,(O86-INDEX($K86:$O86,1,aux!$AL$1))/INDEX($K86:$O86,1,aux!$AL$1),"n.d.") -> -1 | AX86: 09
A87: 09SS | B87: Café, chá, mate e especiarias | C87: 0 | D87: 0 | E87: 0 | F87: 0 | G87: 0 | H87: 0 | I87: 0 | J87: 0 | K87: 0 | L87: 0 | M87: 0 | N87: 0 | O87: 0 | P87: 0 | Q87: 0 | R87: 0 | S87: 0 | U87: =G87-INDEX($C87:$G87,1,aux!$AL$1) -> 0 | V87: 0 | W87: 0 | X87: =+IF(INDEX($C87:$G87,1,aux!$AL$1)>0,(G87/INDEX($C87:$G87,1,aux!$AL$1))^(1/($G$3-INDEX($C$3:$G$3,1,aux!$AL$1)))-1,"n.d.") -> n.d. | Y87: =IF(INDEX($C87:$G87,1,aux!$AL$1)>0,(G87-INDEX($C87:$G87,1,aux!$AL$1))/INDEX($C87:$G87,1,aux!$AL$1),"n.d.") -> n.d. | AA87: =O87-INDEX($K87:$O87,1,aux!$AL$1) -> 0 | AB87: 0 | AC87: 0 | AD87: =+IF(INDEX($K87:$O87,1,aux!$AL$1)>0,(O87/INDEX($K87:$O87,1,aux!$AL$1))^(1/($O$3-INDEX($K$3:$O$3,1,aux!$AL$1)))-1,"n.d.") -> n.d. | AE87: =IF(INDEX($K87:$O87,1,aux!$AL$1)>0,(O87-INDEX($K87:$O87,1,aux!$AL$1))/INDEX($K87:$O87,1,aux!$AL$1),"n.d.") -> n.d. | AX87: 09
A88: 1001 | B88: Trigo e mistura trigo/centeio | C88: 0 | D88: 0 | E88: 0 | F88: 0 | G88: 0 | H88: 0 | I88: 0 | J88: 0 | K88: 0 | L88: 0 | M88: 0 | N88: 0 | O88: 0 | P88: 0 | Q88: 0 | R88: 0 | S88: 0 | U88: =G88-INDEX($C88:$G88,1,aux!$AL$1) -> 0 | V88: 0 | W88: 0 | X88: =+IF(INDEX($C88:$G88,1,aux!$AL$1)>0,(G88/INDEX($C88:$G88,1,aux!$AL$1))^(1/($G$3-INDEX($C$3:$G$3,1,aux!$AL$1)))-1,"n.d.") -> n.d. | Y88: =IF(INDEX($C88:$G88,1,aux!$AL$1)>0,(G88-INDEX($C88:$G88,1,aux!$AL$1))/INDEX($C88:$G88,1,aux!$AL$1),"n.d.") -> n.d. | AA88: =O88-INDEX($K88:$O88,1,aux!$AL$1) -> 0 | AB88: 0 | AC88: 0 | AD88: =+IF(INDEX($K88:$O88,1,aux!$AL$1)>0,(O88/INDEX($K88:$O88,1,aux!$AL$1))^(1/($O$3-INDEX($K$3:$O$3,1,aux!$AL$1)))-1,"n.d.") -> n.d. | AE88: =IF(INDEX($K88:$O88,1,aux!$AL$1)>0,(O88-INDEX($K88:$O88,1,aux!$AL$1))/INDEX($K88:$O88,1,aux!$AL$1),"n.d.") -> n.d. | AX88: 10
A89: 1002 | B89: Centeio | C89: 0 | D89: 0 | E89: 0 | F89: 0 | G89: 0 | H89: 0 | I89: 0 | J89: 0 | K89: 0 | L89: 0 | M89: 0 | N89: 0 | O89: 0 | P89: 0 | Q89: 0 | R89: 0 | S89: 0 | U89: =G89-INDEX($C89:$G89,1,aux!$AL$1) -> 0 | V89: 0 | W89: 0 | X89: =+IF(INDEX($C89:$G89,1,aux!$AL$1)>0,(G89/INDEX($C89:$G89,1,aux!$AL$1))^(1/($G$3-INDEX($C$3:$G$3,1,aux!$AL$1)))-1,"n.d.") -> n.d. | Y89: =IF(INDEX($C89:$G89,1,aux!$AL$1)>0,(G89-INDEX($C89:$G89,1,aux!$AL$1))/INDEX($C89:$G89,1,aux!$AL$1),"n.d.") -> n.d. | AA89: =O89-INDEX($K89:$O89,1,aux!$AL$1) -> 0 | AB89: 0 | AC89: 0 | AD89: =+IF(INDEX($K89:$O89,1,aux!$AL$1)>0,(O89/INDEX($K89:$O89,1,aux!$AL$1))^(1/($O$3-INDEX($K$3:$O$3,1,aux!$AL$1)))-1,"n.d.") -> n.d. | AE89: =IF(INDEX($K89:$O89,1,aux!$AL$1)>0,(O89-INDEX($K89:$O89,1,aux!$AL$1))/INDEX($K89:$O89,1,aux!$AL$1),"n.d.") -> n.d. | AX89: 10
A90: 1003 | B90: Cevada | C90: 0 | D90: 0 | E90: 0 | F90: 0 | G90: 0 | H90: 0 | I90: 0 | J90: 0 | K90: 0 | L90: 0 | M90: 0 | N90: 0 | O90: 0 | P90: 0 | Q90: 0 | R90: 0 | S90: 0 | U90: =G90-INDEX($C90:$G90,1,aux!$AL$1) -> 0 | V90: 0 | W90: 0 | X90: =+IF(INDEX($C90:$G90,1,aux!$AL$1)>0,(G90/INDEX($C90:$G90,1,aux!$AL$1))^(1/($G$3-INDEX($C$3:$G$3,1,aux!$AL$1)))-1,"n.d.") -> n.d. | Y90: =IF(INDEX($C90:$G90,1,aux!$AL$1)>0,(G90-INDEX($C90:$G90,1,aux!$AL$1))/INDEX($C90:$G90,1,aux!$AL$1),"n.d.") -> n.d. | AA90: =O90-INDEX($K90:$O90,1,aux!$AL$1) -> 0 | AB90: 0 | AC90: 0 | AD90: =+IF(INDEX($K90:$O90,1,aux!$AL$1)>0,(O90/INDEX($K90:$O90,1,aux!$AL$1))^(1/($O$3-INDEX($K$3:$O$3,1,aux!$AL$1)))-1,"n.d.") -> n.d. | AE90: =IF(INDEX($K90:$O90,1,aux!$AL$1)>0,(O90-INDEX($K90:$O90,1,aux!$AL$1))/INDEX($K90:$O90,1,aux!$AL$1),"n.d.") -> n.d. | AX90: 10
A91: 1004 | B91: Aveia | C91: 0 | D91: 0 | E91: 0 | F91: 0 | G91: 0 | H91: 0 | I91: 0 | J91: 0 | K91: 0 | L91: 0 | M91: 0 | N91: 0 | O91: 0 | P91: 0 | Q91: 0 | R91: 0 | S91: 0 | U91: =G91-INDEX($C91:$G91,1,aux!$AL$1) -> 0 | V91: 0 | W91: 0 | X91: =+IF(INDEX($C91:$G91,1,aux!$AL$1)>0,(G91/INDEX($C91:$G91,1,aux!$AL$1))^(1/($G$3-INDEX($C$3:$G$3,1,aux!$AL$1)))-1,"n.d.") -> n.d. | Y91: =IF(INDEX($C91:$G91,1,aux!$AL$1)>0,(G91-INDEX($C91:$G91,1,aux!$AL$1))/INDEX($C91:$G91,1,aux!$AL$1),"n.d.") -> n.d. | AA91: =O91-INDEX($K91:$O91,1,aux!$AL$1) -> 0 | AB91: 0 | AC91: 0 | AD91: =+IF(INDEX($K91:$O91,1,aux!$AL$1)>0,(O91/INDEX($K91:$O91,1,aux!$AL$1))^(1/($O$3-INDEX($K$3:$O$3,1,aux!$AL$1)))-1,"n.d.") -> n.d. | AE91: =IF(INDEX($K91:$O91,1,aux!$AL$1)>0,(O91-INDEX($K91:$O91,1,aux!$AL$1))/INDEX($K91:$O91,1,aux!$AL$1),"n.d.") -> n.d. | AX91: 10
A92: 1005 | B92: Milho | C92: 0 | D92: 0 | E92: 0 | F92: 0 | G92: 0 | H92: 0 | I92: 0 | J92: 0 | K92: 0 | L92: 0 | M92: 0 | N92: 0 | O92: 0 | P92: 0 | Q92: 0 | R92: 0 | S92: 0 | U92: =G92-INDEX($C92:$G92,1,aux!$AL$1) -> 0 | V92: 0 | W92: 0 | X92: =+IF(INDEX($C92:$G92,1,aux!$AL$1)>0,(G92/INDEX($C92:$G92,1,aux!$AL$1))^(1/($G$3-INDEX($C$3:$G$3,1,aux!$AL$1)))-1,"n.d.") -> n.d. | Y92: =IF(INDEX($C92:$G92,1,aux!$AL$1)>0,(G92-INDEX($C92:$G92,1,aux!$AL$1))/INDEX($C92:$G92,1,aux!$AL$1),"n.d.") -> n.d. | AA92: =O92-INDEX($K92:$O92,1,aux!$AL$1) -> 0 | AB92: 0 | AC92: 0 | AD92: =+IF(INDEX($K92:$O92,1,aux!$AL$1)>0,(O92/INDEX($K92:$O92,1,aux!$AL$1))^(1/($O$3-INDEX($K$3:$O$3,1,aux!$AL$1)))-1,"n.d.") -> n.d. | AE92: =IF(INDEX($K92:$O92,1,aux!$AL$1)>0,(O92-INDEX($K92:$O92,1,aux!$AL$1))/INDEX($K92:$O92,1,aux!$AL$1),"n.d.") -> n.d. | AX92: 10
A93: 1006 | B93: Arroz | C93: 0 | D93: 0 | E93: 0 | F93: 0 | G93: 0 | H93: 0 | I93: 0 | J93: 0 | K93: 0 | L93: 0.05 | M93: 0 | N93: 0 | O93: 0 | P93: 0.01 | Q93: 1.638272671e-05 | R93: 8.624921815e-06 | S93: 0.01 | U93: =G93-INDEX($C93:$G93,1,aux!$AL$1) -> 0 | V93: 0 | W93: 0 | X93: =+IF(INDEX($C93:$G93,1,aux!$AL$1)>0,(G93/INDEX($C93:$G93,1,aux!$AL$1))^(1/($G$3-INDEX($C$3:$G$3,1,aux!$AL$1)))-1,"n.d.") -> n.d. | Y93: =IF(INDEX($C93:$G93,1,aux!$AL$1)>0,(G93-INDEX($C93:$G93,1,aux!$AL$1))/INDEX($C93:$G93,1,aux!$AL$1),"n.d.") -> n.d. | AA93: =O93-INDEX($K93:$O93,1,aux!$AL$1) -> 0 | AB93: 0 | AC93: 0 | AD93: =+IF(INDEX($K93:$O93,1,aux!$AL$1)>0,(O93/INDEX($K93:$O93,1,aux!$AL$1))^(1/($O$3-INDEX($K$3:$O$3,1,aux!$AL$1)))-1,"n.d.") -> n.d. | AE93: =IF(INDEX($K93:$O93,1,aux!$AL$1)>0,(O93-INDEX($K93:$O93,1,aux!$AL$1))/INDEX($K93:$O93,1,aux!$AL$1),"n.d.") -> n.d. | AX93: 10
A94: 1007 | B94: Sorgo de grão | C94: 0 | D94: 0 | E94: 0 | F94: 0 | G94: 0 | H94: 0 | I94: 0 | J94: 0 | K94: 0 | L94: 0 | M94: 0 | N94: 0 | O94: 0 | P94: 0 | Q94: 0 | R94: 0 | S94: 0 | U94: =G94-INDEX($C94:$G94,1,aux!$AL$1) -> 0 | V94: 0 | W94: 0 | X94: =+IF(INDEX($C94:$G94,1,aux!$AL$1)>0,(G94/INDEX($C94:$G94,1,aux!$AL$1))^(1/($G$3-INDEX($C$3:$G$3,1,aux!$AL$1)))-1,"n.d.") -> n.d. | Y94: =IF(INDEX($C94:$G94,1,aux!$AL$1)>0,(G94-INDEX($C94:$G94,1,aux!$AL$1))/INDEX($C94:$G94,1,aux!$AL$1),"n.d.") -> n.d. | AA94: =O94-INDEX($K94:$O94,1,aux!$AL$1) -> 0 | AB94: 0 | AC94: 0 | AD94: =+IF(INDEX($K94:$O94,1,aux!$AL$1)>0,(O94/INDEX($K94:$O94,1,aux!$AL$1))^(1/($O$3-INDEX($K$3:$O$3,1,aux!$AL$1)))-1,"n.d.") -> n.d. | AE94: =IF(INDEX($K94:$O94,1,aux!$AL$1)>0,(O94-INDEX($K94:$O94,1,aux!$AL$1))/INDEX($K94:$O94,1,aux!$AL$1),"n.d.") -> n.d. | AX94: 10
A95: 1008 | B95: Trigo mourisco, painço e outros cereais | C95: 0 | D95: 0 | E95: 0 | F95: 0 | G95: 0 | H95: 0 | I95: 0 | J95: 0 | K95: 0 | L95: 0.039 | M95: 0 | N95: 0 | O95: 0 | P95: 0.0078 | Q95: 1.277852683e-05 | R95: 6.727439016e-06 | S95: 0.0078 | U95: =G95-INDEX($C95:$G95,1,aux!$AL$1) -> 0 | V95: 0 | W95: 0 | X95: =+IF(INDEX($C95:$G95,1,aux!$AL$1)>0,(G95/INDEX($C95:$G95,1,aux!$AL$1))^(1/($G$3-INDEX($C$3:$G$3,1,aux!$AL$1)))-1,"n.d.") -> n.d. | Y95: =IF(INDEX($C95:$G95,1,aux!$AL$1)>0,(G95-INDEX($C95:$G95,1,aux!$AL$1))/INDEX($C95:$G95,1,aux!$AL$1),"n.d.") -> n.d. | AA95: =O95-INDEX($K95:$O95,1,aux!$AL$1) -> 0 | AB95: 0 | AC95: 0 | AD95: =+IF(INDEX($K95:$O95,1,aux!$AL$1)>0,(O95/INDEX($K95:$O95,1,aux!$AL$1))^(1/($O$3-INDEX($K$3:$O$3,1,aux!$AL$1)))-1,"n.d.") -> n.d. | AE95: =IF(INDEX($K95:$O95,1,aux!$AL$1)>0,(O95-INDEX($K95:$O95,1,aux!$AL$1))/INDEX($K95:$O95,1,aux!$AL$1),"n.d.") -> n.d. | AX95: 10
A96: 10SS | B96: Cereais | C96: 0 | D96: 0 | E96: 0 | F96: 0 | G96: 0 | H96: 0 | I96: 0 | J96: 0 | K96: 0 | L96: 0 | M96: 0 | N96: 0 | O96: 0 | P96: 0 | Q96: 0 | R96: 0 | S96: 0 | U96: =G96-INDEX($C96:$G96,1,aux!$AL$1) -> 0 | V96: 0 | W96: 0 | X96: =+IF(INDEX($C96:$G96,1,aux!$AL$1)>0,(G96/INDEX($C96:$G96,1,aux!$AL$1))^(1/($G$3-INDEX($C$3:$G$3,1,aux!$AL$1)))-1,"n.d.") -> n.d. | Y96: =IF(INDEX($C96:$G96,1,aux!$AL$1)>0,(G96-INDEX($C96:$G96,1,aux!$AL$1))/INDEX($C96:$G96,1,aux!$AL$1),"n.d.") -> n.d. | AA96: =O96-INDEX($K96:$O96,1,aux!$AL$1) -> 0 | AB96: 0 | AC96: 0 | AD96: =+IF(INDEX($K96:$O96,1,aux!$AL$1)>0,(O96/INDEX($K96:$O96,1,aux!$AL$1))^(1/($O$3-INDEX($K$3:$O$3,1,aux!$AL$1)))-1,"n.d.") -> n.d. | AE96: =IF(INDEX($K96:$O96,1,aux!$AL$1)>0,(O96-INDEX($K96:$O96,1,aux!$AL$1))/INDEX($K96:$O96,1,aux!$AL$1),"n.d.") -> n.d. | AX96: 10
A97: 1101 | B97: Farinhas de trigo ou trigo/centeio | C97: 0 | D97: 0 | E97: 0 | F97: 0 | G97: 0 | H97: 0 | I97: 0 | J97: 0 | K97: 0 | L97: 0 | M97: 0 | N97: 0 | O97: 0 | P97: 0 | Q97: 0 | R97: 0 | S97: 0 | U97: =G97-INDEX($C97:$G97,1,aux!$AL$1) -> 0 | V97: 0 | W97: 0 | X97: =+IF(INDEX($C97:$G97,1,aux!$AL$1)>0,(G97/INDEX($C97:$G97,1,aux!$AL$1))^(1/($G$3-INDEX($C$3:$G$3,1,aux!$AL$1)))-1,"n.d.") -> n.d. | Y97: =IF(INDEX($C97:$G97,1,aux!$AL$1)>0,(G97-INDEX($C97:$G97,1,aux!$AL$1))/INDEX($C97:$G97,1,aux!$AL$1),"n.d.") -> n.d. | AA97: =O97-INDEX($K97:$O97,1,aux!$AL$1) -> 0 | AB97: 0 | AC97: 0 | AD97: =+IF(INDEX($K97:$O97,1,aux!$AL$1)>0,(O97/INDEX($K97:$O97,1,aux!$AL$1))^(1/($O$3-INDEX($K$3:$O$3,1,aux!$AL$1)))-1,"n.d.") -> n.d. | AE97: =IF(INDEX($K97:$O97,1,aux!$AL$1)>0,(O97-INDEX($K97:$O97,1,aux!$AL$1))/INDEX($K97:$O97,1,aux!$AL$1),"n.d.") -> n.d. | AX97: 11
A98: 1102 | B98: Outras farinhas de cereais | C98: 0 | D98: 0 | E98: 0 | F98: 0 | G98: 0 | H98: 0 | I98: 0 | J98: 0 | K98: 0 | L98: 0 | M98: 0 | N98: 0 | O98: 0 | P98: 0 | Q98: 0 | R98: 0 | S98: 0 | U98: =G98-INDEX($C98:$G98,1,aux!$AL$1) -> 0 | V98: 0 | W98: 0 | X98: =+IF(INDEX($C98:$G98,1,aux!$AL$1)>0,(G98/INDEX($C98:$G98,1,aux!$AL$1))^(1/($G$3-INDEX($C$3:$G$3,1,aux!$AL$1)))-1,"n.d.") -> n.d. | Y98: =IF(INDEX($C98:$G98,1,aux!$AL$1)>0,(G98-INDEX($C98:$G98,1,aux!$AL$1))/INDEX($C98:$G98,1,aux!$AL$1),"n.d.") -> n.d. | AA98: =O98-INDEX($K98:$O98,1,aux!$AL$1) -> 0 | AB98: 0 | AC98: 0 | AD98: =+IF(INDEX($K98:$O98,1,aux!$AL$1)>0,(O98/INDEX($K98:$O98,1,aux!$AL$1))^(1/($O$3-INDEX($K$3:$O$3,1,aux!$AL$1)))-1,"n.d.") -> n.d. | AE98: =IF(INDEX($K98:$O98,1,aux!$AL$1)>0,(O98-INDEX($K98:$O98,1,aux!$AL$1))/INDEX($K98:$O98,1,aux!$AL$1),"n.d.") -> n.d. | AX98: 11
A99: 1103 | B99: Grumos, sêmolas, etc. de cereais | C99: 0 | D99: 0 | E99: 0 | F99: 0 | G99: 0 | H99: 0 | I99: 0 | J99: 0 | K99: 0 | L99: 0 | M99: 0 | N99: 0 | O99: 0 | P99: 0 | Q99: 0 | R99: 0 | S99: 0 | U99: =G99-INDEX($C99:$G99,1,aux!$AL$1) -> 0 | V99: 0 | W99: 0 | X99: =+IF(INDEX($C99:$G99,1,aux!$AL$1)>0,(G99/INDEX($C99:$G99,1,aux!$AL$1))^(1/($G$3-INDEX($C$3:$G$3,1,aux!$AL$1)))-1,"n.d.") -> n.d. | Y99: =IF(INDEX($C99:$G99,1,aux!$AL$1)>0,(G99-INDEX($C99:$G99,1,aux!$AL$1))/INDEX($C99:$G99,1,aux!$AL$1),"n.d.") -> n.d. | AA99: =O99-INDEX($K99:$O99,1,aux!$AL$1) -> 0 | AB99: 0 | AC99: 0 | AD99: =+IF(INDEX($K99:$O99,1,aux!$AL$1)>0,(O99/INDEX($K99:$O99,1,aux!$AL$1))^(1/($O$3-INDEX($K$3:$O$3,1,aux!$AL$1)))-1,"n.d.") -> n.d. | AE99: =IF(INDEX($K99:$O99,1,aux!$AL$1)>0,(O99-INDEX($K99:$O99,1,aux!$AL$1))/INDEX($K99:$O99,1,aux!$AL$1),"n.d.") -> n.d. | AX99: 11
A100: 1104 | B100: Grãos de cereais processados | C100: 0 | D100: 0 | E100: 0 | F100: 0 | G100: 0 | H100: 0 | I100: 0 | J100: 0 | K100: 0 | L100: 0 | M100: 0 | N100: 0 | O100: 0 | P100: 0 | Q100: 0 | R100: 0 | S100: 0 | U100: =G100-INDEX($C100:$G100,1,aux!$AL$1) -> 0 | V100: 0 | W100: 0 | X100: =+IF(INDEX($C100:$G100,1,aux!$AL$1)>0,(G100/INDEX($C100:$G100,1,aux!$AL$1))^(1/($G$3-INDEX($C$3:$G$3,1,aux!$AL$1)))-1,"n.d.") -> n.d. | Y100: =IF(INDEX($C100:$G100,1,aux!$AL$1)>0,(G100-INDEX($C100:$G100,1,aux!$AL$1))/INDEX($C100:$G100,1,aux!$AL$1),"n.d.") -> n.d. | AA100: =O100-INDEX($K100:$O100,1,aux!$AL$1) -> 0 | AB100: 0 | AC100: 0 | AD100: =+IF(INDEX($K100:$O100,1,aux!$AL$1)>0,(O100/INDEX($K100:$O100,1,aux!$AL$1))^(1/($O$3-INDEX($K$3:$O$3,1,aux!$AL$1)))-1,"n.d.") -> n.d. | AE100: =IF(INDEX($K100:$O100,1,aux!$AL$1)>0,(O100-INDEX($K100:$O100,1,aux!$AL$1))/INDEX($K100:$O100,1,aux!$AL$1),"n.d.") -> n.d. | AX100: 11
A101: 1105 | B101: Farinha, sêmola, etc. de batata | C101: 0 | D101: 0 | E101: 0 | F101: 0 | G101: 0 | H101: 0 | I101: 0 | J101: 0 | K101: 0 | L101: 0 | M101: 0 | N101: 0 | O101: 0 | P101: 0 | Q101: 0 | R101: 0 | S101: 0 | U101: =G101-INDEX($C101:$G101,1,aux!$AL$1) -> 0 | V101: 0 | W101: 0 | X101: =+IF(INDEX($C101:$G101,1,aux!$AL$1)>0,(G101/INDEX($C101:$G101,1,aux!$AL$1))^(1/($G$3-INDEX($C$3:$G$3,1,aux!$AL$1)))-1,"n.d.") -> n.d. | Y101: =IF(INDEX($C101:$G101,1,aux!$AL$1)>0,(G101-INDEX($C101:$G101,1,aux!$AL$1))/INDEX($C101:$G101,1,aux!$AL$1),"n.d.") -> n.d. | AA101: =O101-INDEX($K101:$O101,1,aux!$AL$1) -> 0 | AB101: 0 | AC101: 0 | AD101: =+IF(INDEX($K101:$O101,1,aux!$AL$1)>0,(O101/INDEX($K101:$O101,1,aux!$AL$1))^(1/($O$3-INDEX($K$3:$O$3,1,aux!$AL$1)))-1,"n.d.") -> n.d. | AE101: =IF(INDEX($K101:$O101,1,aux!$AL$1)>0,(O101-INDEX($K101:$O101,1,aux!$AL$1))/INDEX($K101:$O101,1,aux!$AL$1),"n.d.") -> n.d. | AX101: 11
A102: 1106 | B102: Farinhas, etc. de leguminosas e outros tubérculos | C102: 0 | D102: 0 | E102: 0 | F102: 0 | G102: 0 | H102: 0 | I102: 0 | J102: 0 | K102: 0 | L102: 0 | M102: 0 | N102: 0 | O102: 0 | P102: 0 | Q102: 0 | R102: 0 | S102: 0 | U102: =G102-INDEX($C102:$G102,1,aux!$AL$1) -> 0 | V102: 0 | W102: 0 | X102: =+IF(INDEX($C102:$G102,1,aux!$AL$1)>0,(G102/INDEX($C102:$G102,1,aux!$AL$1))^(1/($G$3-INDEX($C$3:$G$3,1,aux!$AL$1)))-1,"n.d.") -> n.d. | Y102: =IF(INDEX($C102:$G102,1,aux!$AL$1)>0,(G102-INDEX($C102:$G102,1,aux!$AL$1))/INDEX($C102:$G102,1,aux!$AL$1),"n.d.") -> n.d. | AA102: =O102-INDEX($K102:$O102,1,aux!$AL$1) -> 0 | AB102: 0 | AC102: 0 | AD102: =+IF(INDEX($K102:$O102,1,aux!$AL$1)>0,(O102/INDEX($K102:$O102,1,aux!$AL$1))^(1/($O$3-INDEX($K$3:$O$3,1,aux!$AL$1)))-1,"n.d.") -> n.d. | AE102: =IF(INDEX($K102:$O102,1,aux!$AL$1)>0,(O102-INDEX($K102:$O102,1,aux!$AL$1))/INDEX($K102:$O102,1,aux!$AL$1),"n.d.") -> n.d. | AX102: 11
A103: 1107 | B103: Malte, mesmo torrado | C103: 0 | D103: 0 | E103: 0 | F103: 0 | G103: 0 | H103: 0 | I103: 0 | J103: 0 | K103: 0 | L103: 0 | M103: 0 | N103: 0 | O103: 0 | P103: 0 | Q103: 0 | R103: 0 | S103: 0 | U103: =G103-INDEX($C103:$G103,1,aux!$AL$1) -> 0 | V103: 0 | W103: 0 | X103: =+IF(INDEX($C103:$G103,1,aux!$AL$1)>0,(G103/INDEX($C103:$G103,1,aux!$AL$1))^(1/($G$3-INDEX($C$3:$G$3,1,aux!$AL$1)))-1,"n.d.") -> n.d. | Y103: =IF(INDEX($C103:$G103,1,aux!$AL$1)>0,(G103-INDEX($C103:$G103,1,aux!$AL$1))/INDEX($C103:$G103,1,aux!$AL$1),"n.d.") -> n.d. | AA103: =O103-INDEX($K103:$O103,1,aux!$AL$1) -> 0 | AB103: 0 | AC103: 0 | AD103: =+IF(INDEX($K103:$O103,1,aux!$AL$1)>0,(O103/INDEX($K103:$O103,1,aux!$AL$1))^(1/($O$3-INDEX($K$3:$O$3,1,aux!$AL$1)))-1,"n.d.") -> n.d. | AE103: =IF(INDEX($K103:$O103,1,aux!$AL$1)>0,(O103-INDEX($K103:$O103,1,aux!$AL$1))/INDEX($K103:$O103,1,aux!$AL$1),"n.d.") -> n.d. | AX103: 11
A104: 1108 | B104: Amidos e féculas; inulina | C104: 0 | D104: 0 | E104: 0 | F104: 0 | G104: 0 | H104: 0 | I104: 0 | J104: 0 | K104: 0 | L104: 0 | M104: 0 | N104: 0 | O104: 0 | P104: 0 | Q104: 0 | R104: 0 | S104: 0 | U104: =G104-INDEX($C104:$G104,1,aux!$AL$1) -> 0 | V104: 0 | W104: 0 | X104: =+IF(INDEX($C104:$G104,1,aux!$AL$1)>0,(G104/INDEX($C104:$G104,1,aux!$AL$1))^(1/($G$3-INDEX($C$3:$G$3,1,aux!$AL$1)))-1,"n.d.") -> n.d. | Y104: =IF(INDEX($C104:$G104,1,aux!$AL$1)>0,(G104-INDEX($C104:$G104,1,aux!$AL$1))/INDEX($C104:$G104,1,aux!$AL$1),"n.d.") -> n.d. | AA104: =O104-INDEX($K104:$O104,1,aux!$AL$1) -> 0 | AB104: 0 | AC104: 0 | AD104: =+IF(INDEX($K104:$O104,1,aux!$AL$1)>0,(O104/INDEX($K104:$O104,1,aux!$AL$1))^(1/($O$3-INDEX($K$3:$O$3,1,aux!$AL$1)))-1,"n.d.") -> n.d. | AE104: =IF(INDEX($K104:$O104,1,aux!$AL$1)>0,(O104-INDEX($K104:$O104,1,aux!$AL$1))/INDEX($K104:$O104,1,aux!$AL$1),"n.d.") -> n.d. | AX104: 11
A105: 1109 | B105: Glúten de trigo, mesmo seco | C105: 0 | D105: 0 | E105: 0 | F105: 0 | G105: 0 | H105: 0 | I105: 0 | J105: 0 | K105: 0 | L105: 0 | M105: 0 | N105: 0 | O105: 0 | P105: 0 | Q105: 0 | R105: 0 | S105: 0 | U105: =G105-INDEX($C105:$G105,1,aux!$AL$1) -> 0 | V105: 0 | W105: 0 | X105: =+IF(INDEX($C105:$G105,1,aux!$AL$1)>0,(G105/INDEX($C105:$G105,1,aux!$AL$1))^(1/($G$3-INDEX($C$3:$G$3,1,aux!$AL$1)))-1,"n.d.") -> n.d. | Y105: =IF(INDEX($C105:$G105,1,aux!$AL$1)>0,(G105-INDEX($C105:$G105,1,aux!$AL$1))/INDEX($C105:$G105,1,aux!$AL$1),"n.d.") -> n.d. | AA105: =O105-INDEX($K105:$O105,1,aux!$AL$1) -> 0 | AB105: 0 | AC105: 0 | AD105: =+IF(INDEX($K105:$O105,1,aux!$AL$1)>0,(O105/INDEX($K105:$O105,1,aux!$AL$1))^(1/($O$3-INDEX($K$3:$O$3,1,aux!$AL$1)))-1,"n.d.") -> n.d. | AE105: =IF(INDEX($K105:$O105,1,aux!$AL$1)>0,(O105-INDEX($K105:$O105,1,aux!$AL$1))/INDEX($K105:$O105,1,aux!$AL$1),"n.d.") -> n.d. | AX105: 11
A106: 11SS | B106: Produtos da indústria de moagem e outros | C106: 0 | D106: 0 | E106: 0 | F106: 0 | G106: 0 | H106: 0 | I106: 0 | J106: 0 | K106: 0 | L106: 0 | M106: 0 | N106: 0 | O106: 0 | P106: 0 | Q106: 0 | R106: 0 | S106: 0 | U106: =G106-INDEX($C106:$G106,1,aux!$AL$1) -> 0 | V106: 0 | W106: 0 | X106: =+IF(INDEX($C106:$G106,1,aux!$AL$1)>0,(G106/INDEX($C106:$G106,1,aux!$AL$1))^(1/($G$3-INDEX($C$3:$G$3,1,aux!$AL$1)))-1,"n.d.") -> n.d. | Y106: =IF(INDEX($C106:$G106,1,aux!$AL$1)>0,(G106-INDEX($C106:$G106,1,aux!$AL$1))/INDEX($C106:$G106,1,aux!$AL$1),"n.d.") -> n.d. | AA106: =O106-INDEX($K106:$O106,1,aux!$AL$1) -> 0 | AB106: 0 | AC106: 0 | AD106: =+IF(INDEX($K106:$O106,1,aux!$AL$1)>0,(O106/INDEX($K106:$O106,1,aux!$AL$1))^(1/($O$3-INDEX($K$3:$O$3,1,aux!$AL$1)))-1,"n.d.") -> n.d. | AE106: =IF(INDEX($K106:$O106,1,aux!$AL$1)>0,(O106-INDEX($K106:$O106,1,aux!$AL$1))/INDEX($K106:$O106,1,aux!$AL$1),"n.d.") -> n.d. | AX106: 11
A107: 1201 | B107: Soja, mesmo triturada | C107: 0 | D107: 0 | E107: 0 | F107: 0 | G107: 0 | H107: 0 | I107: 0 | J107: 0 | K107: 0 | L107: 0 | M107: 0 | N107: 0 | O107: 0 | P107: 0 | Q107: 0 | R107: 0 | S107: 0 | U107: =G107-INDEX($C107:$G107,1,aux!$AL$1) -> 0 | V107: 0 | W107: 0 | X107: =+IF(INDEX($C107:$G107,1,aux!$AL$1)>0,(G107/INDEX($C107:$G107,1,aux!$AL$1))^(1/($G$3-INDEX($C$3:$G$3,1,aux!$AL$1)))-1,"n.d.") -> n.d. | Y107: =IF(INDEX($C107:$G107,1,aux!$AL$1)>0,(G107-INDEX($C107:$G107,1,aux!$AL$1))/INDEX($C107:$G107,1,aux!$AL$1),"n.d.") -> n.d. | AA107: =O107-INDEX($K107:$O107,1,aux!$AL$1) -> 0 | AB107: 0 | AC107: 0 | AD107: =+IF(INDEX($K107:$O107,1,aux!$AL$1)>0,(O107/INDEX($K107:$O107,1,aux!$AL$1))^(1/($O$3-INDEX($K$3:$O$3,1,aux!$AL$1)))-1,"n.d.") -> n.d. | AE107: =IF(INDEX($K107:$O107,1,aux!$AL$1)>0,(O107-INDEX($K107:$O107,1,aux!$AL$1))/INDEX($K107:$O107,1,aux!$AL$1),"n.d.") -> n.d. | AX107: 12
A108: 1202 | B108: Amendoins não torrados | C108: 0 | D108: 0 | E108: 0 | F108: 0 | G108: 0 | H108: 0 | I108: 0 | J108: 0 | K108: 0 | L108: 0 | M108: 0 | N108: 0 | O108: 0 | P108: 0 | Q108: 0 | R108: 0 | S108: 0 | U108: =G108-INDEX($C108:$G108,1,aux!$AL$1) -> 0 | V108: 0 | W108: 0 | X108: =+IF(INDEX($C108:$G108,1,aux!$AL$1)>0,(G108/INDEX($C108:$G108,1,aux!$AL$1))^(1/($G$3-INDEX($C$3:$G$3,1,aux!$AL$1)))-1,"n.d.") -> n.d. | Y108: =IF(INDEX($C108:$G108,1,aux!$AL$1)>0,(G108-INDEX($C108:$G108,1,aux!$AL$1))/INDEX($C108:$G108,1,aux!$AL$1),"n.d.") -> n.d. | AA108: =O108-INDEX($K108:$O108,1,aux!$AL$1) -> 0 | AB108: 0 | AC108: 0 | AD108: =+IF(INDEX($K108:$O108,1,aux!$AL$1)>0,(O108/INDEX($K108:$O108,1,aux!$AL$1))^(1/($O$3-INDEX($K$3:$O$3,1,aux!$AL$1)))-1,"n.d.") -> n.d. | AE108: =IF(INDEX($K108:$O108,1,aux!$AL$1)>0,(O108-INDEX($K108:$O108,1,aux!$AL$1))/INDEX($K108:$O108,1,aux!$AL$1),"n.d.") -> n.d. | AX108: 12
A109: 1203 | B109: Copra | C109: 0 | D109: 0 | E109: 0 | F109: 0 | G109: 0 | H109: 0 | I109: 0 | J109: 0 | K109: 0 | L109: 0 | M109: 0 | N109: 0 | O109: 0 | P109: 0 | Q109: 0 | R109: 0 | S109: 0 | U109: =G109-INDEX($C109:$G109,1,aux!$AL$1) -> 0 | V109: 0 | W109: 0 | X109: =+IF(INDEX($C109:$G109,1,aux!$AL$1)>0,(G109/INDEX($C109:$G109,1,aux!$AL$1))^(1/($G$3-INDEX($C$3:$G$3,1,aux!$AL$1)))-1,"n.d.") -> n.d. | Y109: =IF(INDEX($C109:$G109,1,aux!$AL$1)>0,(G109-INDEX($C109:$G109,1,aux!$AL$1))/INDEX($C109:$G109,1,aux!$AL$1),"n.d.") -> n.d. | AA109: =O109-INDEX($K109:$O109,1,aux!$AL$1) -> 0 | AB109: 0 | AC109: 0 | AD109: =+IF(INDEX($K109:$O109,1,aux!$AL$1)>0,(O109/INDEX($K109:$O109,1,aux!$AL$1))^(1/($O$3-INDEX($K$3:$O$3,1,aux!$AL$1)))-1,"n.d.") -> n.d. | AE109: =IF(INDEX($K109:$O109,1,aux!$AL$1)>0,(O109-INDEX($K109:$O109,1,aux!$AL$1))/INDEX($K109:$O109,1,aux!$AL$1),"n.d.") -> n.d. | AX109: 12
A110: 1204 | B110: Sementes de linho (linhaça) | C110: 0 | D110: 0 | E110: 0 | F110: 0 | G110: 0 | H110: 0 | I110: 0 | J110: 0 | K110: 0 | L110: 0 | M110: 0 | N110: 0 | O110: 0 | P110: 0 | Q110: 0 | R110: 0 | S110: 0 | U110: =G110-INDEX($C110:$G110,1,aux!$AL$1) -> 0 | V110: 0 | W110: 0 | X110: =+IF(INDEX($C110:$G110,1,aux!$AL$1)>0,(G110/INDEX($C110:$G110,1,aux!$AL$1))^(1/($G$3-INDEX($C$3:$G$3,1,aux!$AL$1)))-1,"n.d.") -> n.d. | Y110: =IF(INDEX($C110:$G110,1,aux!$AL$1)>0,(G110-INDEX($C110:$G110,1,aux!$AL$1))/INDEX($C110:$G110,1,aux!$AL$1),"n.d.") -> n.d. | AA110: =O110-INDEX($K110:$O110,1,aux!$AL$1) -> 0 | AB110: 0 | AC110: 0 | AD110: =+IF(INDEX($K110:$O110,1,aux!$AL$1)>0,(O110/INDEX($K110:$O110,1,aux!$AL$1))^(1/($O$3-INDEX($K$3:$O$3,1,aux!$AL$1)))-1,"n.d.") -> n.d. | AE110: =IF(INDEX($K110:$O110,1,aux!$AL$1)>0,(O110-INDEX($K110:$O110,1,aux!$AL$1))/INDEX($K110:$O110,1,aux!$AL$1),"n.d.") -> n.d. | AX110: 12
A111: 1205 | B111: Sementes de nabo silvestre ou de colza | C111: 0 | D111: 0 | E111: 0 | F111: 0 | G111: 0 | H111: 0 | I111: 0 | J111: 0 | K111: 0 | L111: 0 | M111: 0 | N111: 0 | O111: 0 | P111: 0 | Q111: 0 | R111: 0 | S111: 0 | U111: =G111-INDEX($C111:$G111,1,aux!$AL$1) -> 0 | V111: 0 | W111: 0 | X111: =+IF(INDEX($C111:$G111,1,aux!$AL$1)>0,(G111/INDEX($C111:$G111,1,aux!$AL$1))^(1/($G$3-INDEX($C$3:$G$3,1,aux!$AL$1)))-1,"n.d.") -> n.d. | Y111: =IF(INDEX($C111:$G111,1,aux!$AL$1)>0,(G111-INDEX($C111:$G111,1,aux!$AL$1))/INDEX($C111:$G111,1,aux!$AL$1),"n.d.") -> n.d. | AA111: =O111-INDEX($K111:$O111,1,aux!$AL$1) -> 0 | AB111: 0 | AC111: 0 | AD111: =+IF(INDEX($K111:$O111,1,aux!$AL$1)>0,(O111/INDEX($K111:$O111,1,aux!$AL$1))^(1/($O$3-INDEX($K$3:$O$3,1,aux!$AL$1)))-1,"n.d.") -> n.d. | AE111: =IF(INDEX($K111:$O111,1,aux!$AL$1)>0,(O111-INDEX($K111:$O111,1,aux!$AL$1))/INDEX($K111:$O111,1,aux!$AL$1),"n.d.") -> n.d. | AX111: 12
A112: 1206 | B112: Sementes de girassol | C112: 0 | D112: 0 | E112: 0 | F112: 0 | G112: 0 | H112: 0 | I112: 0 | J112: 0 | K112: 0 | L112: 0 | M112: 0 | N112: 0 | O112: 0 | P112: 0 | Q112: 0 | R112: 0 | S112: 0 | U112: =G112-INDEX($C112:$G112,1,aux!$AL$1) -> 0 | V112: 0 | W112: 0 | X112: =+IF(INDEX($C112:$G112,1,aux!$AL$1)>0,(G112/INDEX($C112:$G112,1,aux!$AL$1))^(1/($G$3-INDEX($C$3:$G$3,1,aux!$AL$1)))-1,"n.d.") -> n.d. | Y112: =IF(INDEX($C112:$G112,1,aux!$AL$1)>0,(G112-INDEX($C112:$G112,1,aux!$AL$1))/INDEX($C112:$G112,1,aux!$AL$1),"n.d.") -> n.d. | AA112: =O112-INDEX($K112:$O112,1,aux!$AL$1) -> 0 | AB112: 0 | AC112: 0 | AD112: =+IF(INDEX($K112:$O112,1,aux!$AL$1)>0,(O112/INDEX($K112:$O112,1,aux!$AL$1))^(1/($O$3-INDEX($K$3:$O$3,1,aux!$AL$1)))-1,"n.d.") -> n.d. | AE112: =IF(INDEX($K112:$O112,1,aux!$AL$1)>0,(O112-INDEX($K112:$O112,1,aux!$AL$1))/INDEX($K112:$O112,1,aux!$AL$1),"n.d.") -> n.d. | AX112: 12
A113: 1207 | B113: Sementes e frutos oleaginosos | C113: 0 | D113: 0 | E113: 0 | F113: 30.473 | G113: 0 | H113: 6.0946 | I113: 0.0003478612067 | J113: 0.0002652783087 | K113: 0 | L113: 0 | M113: 0 | N113: 0 | O113: 0 | P113: 0 | Q113: 0 | R113: 0 | S113: -6.0946 | U113: =G113-INDEX($C113:$G113,1,aux!$AL$1) -> 0 | V113: 0 | W113: 0 | X113: =+IF(INDEX($C113:$G113,1,aux!$AL$1)>0,(G113/INDEX($C113:$G113,1,aux!$AL$1))^(1/($G$3-INDEX($C$3:$G$3,1,aux!$AL$1)))-1,"n.d.") -> n.d. | Y113: =IF(INDEX($C113:$G113,1,aux!$AL$1)>0,(G113-INDEX($C113:$G113,1,aux!$AL$1))/INDEX($C113:$G113,1,aux!$AL$1),"n.d.") -> n.d. | AA113: =O113-INDEX($K113:$O113,1,aux!$AL$1) -> 0 | AB113: 0 | AC113: 0 | AD113: =+IF(INDEX($K113:$O113,1,aux!$AL$1)>0,(O113/INDEX($K113:$O113,1,aux!$AL$1))^(1/($O$3-INDEX($K$3:$O$3,1,aux!$AL$1)))-1,"n.d.") -> n.d. | AE113: =IF(INDEX($K113:$O113,1,aux!$AL$1)>0,(O113-INDEX($K113:$O113,1,aux!$AL$1))/INDEX($K113:$O113,1,aux!$AL$1),"n.d.") -> n.d. | AX113: 12
A114: 1208 | B114: Farinhas de sementes oleaginosas | C114: 0 | D114: 0 | E114: 0 | F114: 0 | G114: 0 | H114: 0 | I114: 0 | J114: 0 | K114: 0 | L114: 0 | M114: 0 | N114: 0 | O114: 0 | P114: 0 | Q114: 0 | R114: 0 | S114: 0 | U114: =G114-INDEX($C114:$G114,1,aux!$AL$1) -> 0 | V114: 0 | W114: 0 | X114: =+IF(INDEX($C114:$G114,1,aux!$AL$1)>0,(G114/INDEX($C114:$G114,1,aux!$AL$1))^(1/($G$3-INDEX($C$3:$G$3,1,aux!$AL$1)))-1,"n.d.") -> n.d. | Y114: =IF(INDEX($C114:$G114,1,aux!$AL$1)>0,(G114-INDEX($C114:$G114,1,aux!$AL$1))/INDEX($C114:$G114,1,aux!$AL$1),"n.d.") -> n.d. | AA114: =O114-INDEX($K114:$O114,1,aux!$AL$1) -> 0 | AB114: 0 | AC114: 0 | AD114: =+IF(INDEX($K114:$O114,1,aux!$AL$1)>0,(O114/INDEX($K114:$O114,1,aux!$AL$1))^(1/($O$3-INDEX($K$3:$O$3,1,aux!$AL$1)))-1,"n.d.") -> n.d. | AE114: =IF(INDEX($K114:$O114,1,aux!$AL$1)>0,(O114-INDEX($K114:$O114,1,aux!$AL$1))/INDEX($K114:$O114,1,aux!$AL$1),"n.d.") -> n.d. | AX114: 12
A115: 1209 | B115: Sementes, frutos e esporos para sementeira | C115: 0 | D115: 0 | E115: 0 | F115: 0 | G115: 0 | H115: 0 | I115: 0 | J115: 0 | K115: 0 | L115: 0 | M115: 0 | N115: 0 | O115: 6.52 | P115: 1.304 | Q115: 0.002136307563 | R115: 0.001124689805 | S115: 1.304 | U115: =G115-INDEX($C115:$G115,1,aux!$AL$1) -> 0 | V115: 0 | W115: 0 | X115: =+IF(INDEX($C115:$G115,1,aux!$AL$1)>0,(G115/INDEX($C115:$G115,1,aux!$AL$1))^(1/($G$3-INDEX($C$3:$G$3,1,aux!$AL$1)))-1,"n.d.") -> n.d. | Y115: =IF(INDEX($C115:$G115,1,aux!$AL$1)>0,(G115-INDEX($C115:$G115,1,aux!$AL$1))/INDEX($C115:$G115,1,aux!$AL$1),"n.d.") -> n.d. | AA115: =O115-INDEX($K115:$O115,1,aux!$AL$1) -> 6.52 | AB115: 0.009148604487 | AC115: 0.005412221161 | AD115: =+IF(INDEX($K115:$O115,1,aux!$AL$1)>0,(O115/INDEX($K115:$O115,1,aux!$AL$1))^(1/($O$3-INDEX($K$3:$O$3,1,aux!$AL$1)))-1,"n.d.") -> n.d. | AE115: =IF(INDEX($K115:$O115,1,aux!$AL$1)>0,(O115-INDEX($K115:$O115,1,aux!$AL$1))/INDEX($K115:$O115,1,aux!$AL$1),"n.d.") -> n.d. | AX115: 12
A116: 1210 | B116: Cones de lúpulo, frescos ou secos | C116: 0 | D116: 0 | E116: 0 | F116: 0 | G116: 0 | H116: 0 | I116: 0 | J116: 0 | K116: 0 | L116: 0 | M116: 0 | N116: 0 | O116: 0 | P116: 0 | Q116: 0 | R116: 0 | S116: 0 | U116: =G116-INDEX($C116:$G116,1,aux!$AL$1) -> 0 | V116: 0 | W116: 0 | X116: =+IF(INDEX($C116:$G116,1,aux!$AL$1)>0,(G116/INDEX($C116:$G116,1,aux!$AL$1))^(1/($G$3-INDEX($C$3:$G$3,1,aux!$AL$1)))-1,"n.d.") -> n.d. | Y116: =IF(INDEX($C116:$G116,1,aux!$AL$1)>0,(G116-INDEX($C116:$G116,1,aux!$AL$1))/INDEX($C116:$G116,1,aux!$AL$1),"n.d.") -> n.d. | AA116: =O116-INDEX($K116:$O116,1,aux!$AL$1) -> 0 | AB116: 0 | AC116: 0 | AD116: =+IF(INDEX($K116:$O116,1,aux!$AL$1)>0,(O116/INDEX($K116:$O116,1,aux!$AL$1))^(1/($O$3-INDEX($K$3:$O$3,1,aux!$AL$1)))-1,"n.d.") -> n.d. | AE116: =IF(INDEX($K116:$O116,1,aux!$AL$1)>0,(O116-INDEX($K116:$O116,1,aux!$AL$1))/INDEX($K116:$O116,1,aux!$AL$1),"n.d.") -> n.d. | AX116: 12
A117: 1211 | B117: Plantas, partes de plantas para usos não alimentares | C117: 0 | D117: 0 | E117: 0 | F117: 0 | G117: 0 | H117: 0 | I117: 0 | J117: 0 | K117: 0 | L117: 0 | M117: 0 | N117: 0 | O117: 0 | P117: 0 | Q117: 0 | R117: 0 | S117: 0 | U117: =G117-INDEX($C117:$G117,1,aux!$AL$1) -> 0 | V117: 0 | W117: 0 | X117: =+IF(INDEX($C117:$G117,1,aux!$AL$1)>0,(G117/INDEX($C117:$G117,1,aux!$AL$1))^(1/($G$3-INDEX($C$3:$G$3,1,aux!$AL$1)))-1,"n.d.") -> n.d. | Y117: =IF(INDEX($C117:$G117,1,aux!$AL$1)>0,(G117-INDEX($C117:$G117,1,aux!$AL$1))/INDEX($C117:$G117,1,aux!$AL$1),"n.d.") -> n.d. | AA117: =O117-INDEX($K117:$O117,1,aux!$AL$1) -> 0 | AB117: 0 | AC117: 0 | AD117: =+IF(INDEX($K117:$O117,1,aux!$AL$1)>0,(O117/INDEX($K117:$O117,1,aux!$AL$1))^(1/($O$3-INDEX($K$3:$O$3,1,aux!$AL$1)))-1,"n.d.") -> n.d. | AE117: =IF(INDEX($K117:$O117,1,aux!$AL$1)>0,(O117-INDEX($K117:$O117,1,aux!$AL$1))/INDEX($K117:$O117,1,aux!$AL$1),"n.d.") -> n.d. | AX117: 12
A118: 1212 | B118: Alfarroba, algas, beterraba sacarina, etc. | C118: 0 | D118: 0 | E118: 0 | F118: 0 | G118: 0 | H118: 0 | I118: 0 | J118: 0 | K118: 0 | L118: 0 | M118: 0 | N118: 0 | O118: 0 | P118: 0 | Q118: 0 | R118: 0 | S118: 0 | U118: =G118-INDEX($C118:$G118,1,aux!$AL$1) -> 0 | V118: 0 | W118: 0 | X118: =+IF(INDEX($C118:$G118,1,aux!$AL$1)>0,(G118/INDEX($C118:$G118,1,aux!$AL$1))^(1/($G$3-INDEX($C$3:$G$3,1,aux!$AL$1)))-1,"n.d.") -> n.d. | Y118: =IF(INDEX($C118:$G118,1,aux!$AL$1)>0,(G118-INDEX($C118:$G118,1,aux!$AL$1))/INDEX($C118:$G118,1,aux!$AL$1),"n.d.") -> n.d. | AA118: =O118-INDEX($K118:$O118,1,aux!$AL$1) -> 0 | AB118: 0 | AC118: 0 | AD118: =+IF(INDEX($K118:$O118,1,aux!$AL$1)>0,(O118/INDEX($K118:$O118,1,aux!$AL$1))^(1/($O$3-INDEX($K$3:$O$3,1,aux!$AL$1)))-1,"n.d.") -> n.d. | AE118: =IF(INDEX($K118:$O118,1,aux!$AL$1)>0,(O118-INDEX($K118:$O118,1,aux!$AL$1))/INDEX($K118:$O118,1,aux!$AL$1),"n.d.") -> n.d. | AX118: 12
A119: 1213 | B119: Palhas e cascas de cereais | C119: 0 | D119: 0 | E119: 0 | F119: 0 | G119: 0 | H119: 0 | I119: 0 | J119: 0 | K119: 0 | L119: 0 | M119: 0 | N119: 0 | O119: 0 | P119: 0 | Q119: 0 | R119: 0 | S119: 0 | U119: =G119-INDEX($C119:$G119,1,aux!$AL$1) -> 0 | V119: 0 | W119: 0 | X119: =+IF(INDEX($C119:$G119,1,aux!$AL$1)>0,(G119/INDEX($C119:$G119,1,aux!$AL$1))^(1/($G$3-INDEX($C$3:$G$3,1,aux!$AL$1)))-1,"n.d.") -> n.d. | Y119: =IF(INDEX($C119:$G119,1,aux!$AL$1)>0,(G119-INDEX($C119:$G119,1,aux!$AL$1))/INDEX($C119:$G119,1,aux!$AL$1),"n.d.") -> n.d. | AA119: =O119-INDEX($K119:$O119,1,aux!$AL$1) -> 0 | AB119: 0 | AC119: 0 | AD119: =+IF(INDEX($K119:$O119,1,aux!$AL$1)>0,(O119/INDEX($K119:$O119,1,aux!$AL$1))^(1/($O$3-INDEX($K$3:$O$3,1,aux!$AL$1)))-1,"n.d.") -> n.d. | AE119: =IF(INDEX($K119:$O119,1,aux!$AL$1)>0,(O119-INDEX($K119:$O119,1,aux!$AL$1))/INDEX($K119:$O119,1,aux!$AL$1),"n.d.") -> n.d. | AX119: 12
A120: 1214 | B120: Rutabagas e outros produtos forrageiros | C120: 0 | D120: 0 | E120: 0 | F120: 0 | G120: 0 | H120: 0 | I120: 0 | J120: 0 | K120: 0 | L120: 0 | M120: 0 | N120: 0 | O120: 0 | P120: 0 | Q120: 0 | R120: 0 | S120: 0 | U120: =G120-INDEX($C120:$G120,1,aux!$AL$1) -> 0 | V120: 0 | W120: 0 | X120: =+IF(INDEX($C120:$G120,1,aux!$AL$1)>0,(G120/INDEX($C120:$G120,1,aux!$AL$1))^(1/($G$3-INDEX($C$3:$G$3,1,aux!$AL$1)))-1,"n.d.") -> n.d. | Y120: =IF(INDEX($C120:$G120,1,aux!$AL$1)>0,(G120-INDEX($C120:$G120,1,aux!$AL$1))/INDEX($C120:$G120,1,aux!$AL$1),"n.d.") -> n.d. | AA120: =O120-INDEX($K120:$O120,1,aux!$AL$1) -> 0 | AB120: 0 | AC120: 0 | AD120: =+IF(INDEX($K120:$O120,1,aux!$AL$1)>0,(O120/INDEX($K120:$O120,1,aux!$AL$1))^(1/($O$3-INDEX($K$3:$O$3,1,aux!$AL$1)))-1,"n.d.") -> n.d. | AE120: =IF(INDEX($K120:$O120,1,aux!$AL$1)>0,(O120-INDEX($K120:$O120,1,aux!$AL$1))/INDEX($K120:$O120,1,aux!$AL$1),"n.d.") -> n.d. | AX120: 12
A121: 12SS | B121: Sementes e frutos oleaginosos, etc. | C121: 0 | D121: 0 | E121: 0 | F121: 0 | G121: 0 | H121: 0 | I121: 0 | J121: 0 | K121: 0 | L121: 0 | M121: 0 | N121: 0 | O121: 0 | P121: 0 | Q121: 0 | R121: 0 | S121: 0 | U121: =G121-INDEX($C121:$G121,1,aux!$AL$1) -> 0 | V121: 0 | W121: 0 | X121: =+IF(INDEX($C121:$G121,1,aux!$AL$1)>0,(G121/INDEX($C121:$G121,1,aux!$AL$1))^(1/($G$3-INDEX($C$3:$G$3,1,aux!$AL$1)))-1,"n.d.") -> n.d. | Y121: =IF(INDEX($C121:$G121,1,aux!$AL$1)>0,(G121-INDEX($C121:$G121,1,aux!$AL$1))/INDEX($C121:$G121,1,aux!$AL$1),"n.d.") -> n.d. | AA121: =O121-INDEX($K121:$O121,1,aux!$AL$1) -> 0 | AB121: 0 | AC121: 0 | AD121: =+IF(INDEX($K121:$O121,1,aux!$AL$1)>0,(O121/INDEX($K121:$O121,1,aux!$AL$1))^(1/($O$3-INDEX($K$3:$O$3,1,aux!$AL$1)))-1,"n.d.") -> n.d. | AE121: =IF(INDEX($K121:$O121,1,aux!$AL$1)>0,(O121-INDEX($K121:$O121,1,aux!$AL$1))/INDEX($K121:$O121,1,aux!$AL$1),"n.d.") -> n.d. | AX121: 12
A122: 1302 | B122: Sucos e extratos vegetais, etc. | C122: 0 | D122: 0 | E122: 0 | F122: 0 | G122: 0 | H122: 0 | I122: 0 | J122: 0 | K122: 0 | L122: 0 | M122: 0 | N122: 0 | O122: 0 | P122: 0 | Q122: 0 | R122: 0 | S122: 0 | U122: =G122-INDEX($C122:$G122,1,aux!$AL$1) -> 0 | V122: 0 | W122: 0 | X122: =+IF(INDEX($C122:$G122,1,aux!$AL$1)>0,(G122/INDEX($C122:$G122,1,aux!$AL$1))^(1/($G$3-INDEX($C$3:$G$3,1,aux!$AL$1)))-1,"n.d.") -> n.d. | Y122: =IF(INDEX($C122:$G122,1,aux!$AL$1)>0,(G122-INDEX($C122:$G122,1,aux!$AL$1))/INDEX($C122:$G122,1,aux!$AL$1),"n.d.") -> n.d. | AA122: =O122-INDEX($K122:$O122,1,aux!$AL$1) -> 0 | AB122: 0 | AC122: 0 | AD122: =+IF(INDEX($K122:$O122,1,aux!$AL$1)>0,(O122/INDEX($K122:$O122,1,aux!$AL$1))^(1/($O$3-INDEX($K$3:$O$3,1,aux!$AL$1)))-1,"n.d.") -> n.d. | AE122: =IF(INDEX($K122:$O122,1,aux!$AL$1)>0,(O122-INDEX($K122:$O122,1,aux!$AL$1))/INDEX($K122:$O122,1,aux!$AL$1),"n.d.") -> n.d. | AX122: 13
A123: 13SS | B123: Gomas, resinas e outros sucos e extratos vegetais | C123: 0 | D123: 0 | E123: 0 | F123: 0 | G123: 0 | H123: 0 | I123: 0 | J123: 0 | K123: 0 | L123: 0 | M123: 0 | N123: 0 | O123: 0 | P123: 0 | Q123: 0 | R123: 0 | S123: 0 | U123: =G123-INDEX($C123:$G123,1,aux!$AL$1) -> 0 | V123: 0 | W123: 0 | X123: =+IF(INDEX($C123:$G123,1,aux!$AL$1)>0,(G123/INDEX($C123:$G123,1,aux!$AL$1))^(1/($G$3-INDEX($C$3:$G$3,1,aux!$AL$1)))-1,"n.d.") -> n.d. | Y123: =IF(INDEX($C123:$G123,1,aux!$AL$1)>0,(G123-INDEX($C123:$G123,1,aux!$AL$1))/INDEX($C123:$G123,1,aux!$AL$1),"n.d.") -> n.d. | AA123: =O123-INDEX($K123:$O123,1,aux!$AL$1) -> 0 | AB123: 0 | AC123: 0 | AD123: =+IF(INDEX($K123:$O123,1,aux!$AL$1)>0,(O123/INDEX($K123:$O123,1,aux!$AL$1))^(1/($O$3-INDEX($K$3:$O$3,1,aux!$AL$1)))-1,"n.d.") -> n.d. | AE123: =IF(INDEX($K123:$O123,1,aux!$AL$1)>0,(O123-INDEX($K123:$O123,1,aux!$AL$1))/INDEX($K123:$O123,1,aux!$AL$1),"n.d.") -> n.d. | AX123: 13
A124: 1401 | B124: Matérias vegetais utilizadas em cestaria | C124: 0 | D124: 0 | E124: 0 | F124: 0 | G124: 0 | H124: 0 | I124: 0 | J124: 0 | K124: 0 | L124: 0 | M124: 0 | N124: 0 | O124: 0 | P124: 0 | Q124: 0 | R124: 0 | S124: 0 | U124: =G124-INDEX($C124:$G124,1,aux!$AL$1) -> 0 | V124: 0 | W124: 0 | X124: =+IF(INDEX($C124:$G124,1,aux!$AL$1)>0,(G124/INDEX($C124:$G124,1,aux!$AL$1))^(1/($G$3-INDEX($C$3:$G$3,1,aux!$AL$1)))-1,"n.d.") -> n.d. | Y124: =IF(INDEX($C124:$G124,1,aux!$AL$1)>0,(G124-INDEX($C124:$G124,1,aux!$AL$1))/INDEX($C124:$G124,1,aux!$AL$1),"n.d.") -> n.d. | AA124: =O124-INDEX($K124:$O124,1,aux!$AL$1) -> 0 | AB124: 0 | AC124: 0 | AD124: =+IF(INDEX($K124:$O124,1,aux!$AL$1)>0,(O124/INDEX($K124:$O124,1,aux!$AL$1))^(1/($O$3-INDEX($K$3:$O$3,1,aux!$AL$1)))-1,"n.d.") -> n.d. | AE124: =IF(INDEX($K124:$O124,1,aux!$AL$1)>0,(O124-INDEX($K124:$O124,1,aux!$AL$1))/INDEX($K124:$O124,1,aux!$AL$1),"n.d.") -> n.d. | AX124: 14
A125: 1404 | B125: Outros produtos vegetais | C125: 0 | D125: 0 | E125: 0 | F125: 0 | G125: 0 | H125: 0 | I125: 0 | J125: 0 | K125: 0 | L125: 0 | M125: 0 | N125: 0 | O125: 0 | P125: 0 | Q125: 0 | R125: 0 | S125: 0 | U125: =G125-INDEX($C125:$G125,1,aux!$AL$1) -> 0 | V125: 0 | W125: 0 | X125: =+IF(INDEX($C125:$G125,1,aux!$AL$1)>0,(G125/INDEX($C125:$G125,1,aux!$AL$1))^(1/($G$3-INDEX($C$3:$G$3,1,aux!$AL$1)))-1,"n.d.") -> n.d. | Y125: =IF(INDEX($C125:$G125,1,aux!$AL$1)>0,(G125-INDEX($C125:$G125,1,aux!$AL$1))/INDEX($C125:$G125,1,aux!$AL$1),"n.d.") -> n.d. | AA125: =O125-INDEX($K125:$O125,1,aux!$AL$1) -> 0 | AB125: 0 | AC125: 0 | AD125: =+IF(INDEX($K125:$O125,1,aux!$AL$1)>0,(O125/INDEX($K125:$O125,1,aux!$AL$1))^(1/($O$3-INDEX($K$3:$O$3,1,aux!$AL$1)))-1,"n.d.") -> n.d. | AE125: =IF(INDEX($K125:$O125,1,aux!$AL$1)>0,(O125-INDEX($K125:$O125,1,aux!$AL$1))/INDEX($K125:$O125,1,aux!$AL$1),"n.d.") -> n.d. | AX125: 14
A126: 14SS | B126: Matérias para entrançar e outros | C126: 0 | D126: 0 | E126: 0 | F126: 0 | G126: 0 | H126: 0 | I126: 0 | J126: 0 | K126: 0 | L126: 0 | M126: 0 | N126: 0 | O126: 0 | P126: 0 | Q126: 0 | R126: 0 | S126: 0 | U126: =G126-INDEX($C126:$G126,1,aux!$AL$1) -> 0 | V126: 0 | W126: 0 | X126: =+IF(INDEX($C126:$G126,1,aux!$AL$1)>0,(G126/INDEX($C126:$G126,1,aux!$AL$1))^(1/($G$3-INDEX($C$3:$G$3,1,aux!$AL$1)))-1,"n.d.") -> n.d. | Y126: =IF(INDEX($C126:$G126,1,aux!$AL$1)>0,(G126-INDEX($C126:$G126,1,aux!$AL$1))/INDEX($C126:$G126,1,aux!$AL$1),"n.d.") -> n.d. | AA126: =O126-INDEX($K126:$O126,1,aux!$AL$1) -> 0 | AB126: 0 | AC126: 0 | AD126: =+IF(INDEX($K126:$O126,1,aux!$AL$1)>0,(O126/INDEX($K126:$O126,1,aux!$AL$1))^(1/($O$3-INDEX($K$3:$O$3,1,aux!$AL$1)))-1,"n.d.") -> n.d. | AE126: =IF(INDEX($K126:$O126,1,aux!$AL$1)>0,(O126-INDEX($K126:$O126,1,aux!$AL$1))/INDEX($K126:$O126,1,aux!$AL$1),"n.d.") -> n.d. | AX126: 14
A127: 1501 | B127: Gorduras de suínos e aves | C127: 0 | D127: 0 | E127: 0 | F127: 0 | G127: 0 | H127: 0 | I127: 0 | J127: 0 | K127: 0 | L127: 0 | M127: 0 | N127: 0 | O127: 0 | P127: 0 | Q127: 0 | R127: 0 | S127: 0 | U127: =G127-INDEX($C127:$G127,1,aux!$AL$1) -> 0 | V127: 0 | W127: 0 | X127: =+IF(INDEX($C127:$G127,1,aux!$AL$1)>0,(G127/INDEX($C127:$G127,1,aux!$AL$1))^(1/($G$3-INDEX($C$3:$G$3,1,aux!$AL$1)))-1,"n.d.") -> n.d. | Y127: =IF(INDEX($C127:$G127,1,aux!$AL$1)>0,(G127-INDEX($C127:$G127,1,aux!$AL$1))/INDEX($C127:$G127,1,aux!$AL$1),"n.d.") -> n.d. | AA127: =O127-INDEX($K127:$O127,1,aux!$AL$1) -> 0 | AB127: 0 | AC127: 0 | AD127: =+IF(INDEX($K127:$O127,1,aux!$AL$1)>0,(O127/INDEX($K127:$O127,1,aux!$AL$1))^(1/($O$3-INDEX($K$3:$O$3,1,aux!$AL$1)))-1,"n.d.") -> n.d. | AE127: =IF(INDEX($K127:$O127,1,aux!$AL$1)>0,(O127-INDEX($K127:$O127,1,aux!$AL$1))/INDEX($K127:$O127,1,aux!$AL$1),"n.d.") -> n.d. | AX127: 15
A128: 1502 | B128: Gorduras de bovinos, ovinos ou caprinos | C128: 0 | D128: 0 | E128: 0 | F128: 0 | G128: 0 | H128: 0 | I128: 0 | J128: 0 | K128: 0 | L128: 0 | M128: 0 | N128: 0 | O128: 0 | P128: 0 | Q128: 0 | R128: 0 | S128: 0 | U128: =G128-INDEX($C128:$G128,1,aux!$AL$1) -> 0 | V128: 0 | W128: 0 | X128: =+IF(INDEX($C128:$G128,1,aux!$AL$1)>0,(G128/INDEX($C128:$G128,1,aux!$AL$1))^(1/($G$3-INDEX($C$3:$G$3,1,aux!$AL$1)))-1,"n.d.") -> n.d. | Y128: =IF(INDEX($C128:$G128,1,aux!$AL$1)>0,(G128-INDEX($C128:$G128,1,aux!$AL$1))/INDEX($C128:$G128,1,aux!$AL$1),"n.d.") -> n.d. | AA128: =O128-INDEX($K128:$O128,1,aux!$AL$1) -> 0 | AB128: 0 | AC128: 0 | AD128: =+IF(INDEX($K128:$O128,1,aux!$AL$1)>0,(O128/INDEX($K128:$O128,1,aux!$AL$1))^(1/($O$3-INDEX($K$3:$O$3,1,aux!$AL$1)))-1,"n.d.") -> n.d. | AE128: =IF(INDEX($K128:$O128,1,aux!$AL$1)>0,(O128-INDEX($K128:$O128,1,aux!$AL$1))/INDEX($K128:$O128,1,aux!$AL$1),"n.d.") -> n.d. | AX128: 15
A129: 1503 | B129: Estearina solar, óleo de banha de porco, etc. | C129: 0 | D129: 0 | E129: 0 | F129: 0 | G129: 0 | H129: 0 | I129: 0 | J129: 0 | K129: 0 | L129: 0 | M129: 0 | N129: 0 | O129: 0 | P129: 0 | Q129: 0 | R129: 0 | S129: 0 | U129: =G129-INDEX($C129:$G129,1,aux!$AL$1) -> 0 | V129: 0 | W129: 0 | X129: =+IF(INDEX($C129:$G129,1,aux!$AL$1)>0,(G129/INDEX($C129:$G129,1,aux!$AL$1))^(1/($G$3-INDEX($C$3:$G$3,1,aux!$AL$1)))-1,"n.d.") -> n.d. | Y129: =IF(INDEX($C129:$G129,1,aux!$AL$1)>0,(G129-INDEX($C129:$G129,1,aux!$AL$1))/INDEX($C129:$G129,1,aux!$AL$1),"n.d.") -> n.d. | AA129: =O129-INDEX($K129:$O129,1,aux!$AL$1) -> 0 | AB129: 0 | AC129: 0 | AD129: =+IF(INDEX($K129:$O129,1,aux!$AL$1)>0,(O129/INDEX($K129:$O129,1,aux!$AL$1))^(1/($O$3-INDEX($K$3:$O$3,1,aux!$AL$1)))-1,"n.d.") -> n.d. | AE129: =IF(INDEX($K129:$O129,1,aux!$AL$1)>0,(O129-INDEX($K129:$O129,1,aux!$AL$1))/INDEX($K129:$O129,1,aux!$AL$1),"n.d.") -> n.d. | AX129: 15
A130: 1504 | B130: Gorduras e óleos de peixes,etc. | C130: 0 | D130: 0 | E130: 0 | F130: 0 | G130: 0 | H130: 0 | I130: 0 | J130: 0 | K130: 0 | L130: 0 | M130: 0 | N130: 0 | O130: 0 | P130: 0 | Q130: 0 | R130: 0 | S130: 0 | U130: =G130-INDEX($C130:$G130,1,aux!$AL$1) -> 0 | V130: 0 | W130: 0 | X130: =+IF(INDEX($C130:$G130,1,aux!$AL$1)>0,(G130/INDEX($C130:$G130,1,aux!$AL$1))^(1/($G$3-INDEX($C$3:$G$3,1,aux!$AL$1)))-1,"n.d.") -> n.d. | Y130: =IF(INDEX($C130:$G130,1,aux!$AL$1)>0,(G130-INDEX($C130:$G130,1,aux!$AL$1))/INDEX($C130:$G130,1,aux!$AL$1),"n.d.") -> n.d. | AA130: =O130-INDEX($K130:$O130,1,aux!$AL$1) -> 0 | AB130: 0 | AC130: 0 | AD130: =+IF(INDEX($K130:$O130,1,aux!$AL$1)>0,(O130/INDEX($K130:$O130,1,aux!$AL$1))^(1/($O$3-INDEX($K$3:$O$3,1,aux!$AL$1)))-1,"n.d.") -> n.d. | AE130: =IF(INDEX($K130:$O130,1,aux!$AL$1)>0,(O130-INDEX($K130:$O130,1,aux!$AL$1))/INDEX($K130:$O130,1,aux!$AL$1),"n.d.") -> n.d. | AX130: 15
A131: 1505 | B131: Suarda e derivados, incluindo lanolina | C131: 0 | D131: 0 | E131: 0 | F131: 0 | G131: 0 | H131: 0 | I131: 0 | J131: 0 | K131: 0 | L131: 0 | M131: 0 | N131: 0 | O131: 0 | P131: 0 | Q131: 0 | R131: 0 | S131: 0 | U131: =G131-INDEX($C131:$G131,1,aux!$AL$1) -> 0 | V131: 0 | W131: 0 | X131: =+IF(INDEX($C131:$G131,1,aux!$AL$1)>0,(G131/INDEX($C131:$G131,1,aux!$AL$1))^(1/($G$3-INDEX($C$3:$G$3,1,aux!$AL$1)))-1,"n.d.") -> n.d. | Y131: =IF(INDEX($C131:$G131,1,aux!$AL$1)>0,(G131-INDEX($C131:$G131,1,aux!$AL$1))/INDEX($C131:$G131,1,aux!$AL$1),"n.d.") -> n.d. | AA131: =O131-INDEX($K131:$O131,1,aux!$AL$1) -> 0 | AB131: 0 | AC131: 0 | AD131: =+IF(INDEX($K131:$O131,1,aux!$AL$1)>0,(O131/INDEX($K131:$O131,1,aux!$AL$1))^(1/($O$3-INDEX($K$3:$O$3,1,aux!$AL$1)))-1,"n.d.") -> n.d. | AE131: =IF(INDEX($K131:$O131,1,aux!$AL$1)>0,(O131-INDEX($K131:$O131,1,aux!$AL$1))/INDEX($K131:$O131,1,aux!$AL$1),"n.d.") -> n.d. | AX131: 15
